{"text_format":"1","workbook":"xlsx","n_sheets":8,"sheets":["Archives actions","Tableau de bord","Vanessa_21","Mathieur_21","Global_21","Vanessa_23","Mathieu_23","Global_23"],"not_rendered":{"charts":27,"images":0,"macros":1,"external_links":0,"defined_names":1,"comments":0,"pivot_tables":0},"unopened":[],"bounds":{"document_bytes":16777216,"sheet_cells":100000,"rows_first":2000,"rows_last":500,"rows_between":2000,"halvings":0,"cell_chars":16384,"cell_head_chars":4096},"cells_cut":0,"cells_raw":0,"read":"whole","date_system":"1900"}

{"sheet":"Archives actions","index":0,"n_rows":75,"n_cols":16,"rows_kept":75,"cut":false,"hidden":false,"merged":[]}
["Année","Mois","Date de la demande","Type action","Entreprise","Demandeur","Réalisateur","Date butoire","Date visite","Etat","Envoie pour correction","MOIS","Année","Date validation","Lien Dinamit","Commentaire"]
[{"$f":"YEAR(C2)","v":2021},{"$f":"MONTH(C2)","v":3},"2021-03-05","FE","LEFER","Dr. JEANNE","Vanessa","/","2021-03-15","Terminé",null,{"$f":"IF(K2=\"\",\"\",MONTH(K2))","v":""},{"$f":"IF(K2=\"\",\"\",YEAR(K2))","v":""},"2021-05-04","Ok","Finaliser par Paola"]
[2021,3,"2021-03-05","FE","GROUPE LB - TISIN","Dr. JEANNE","Vanessa","/","2021-03-23","Terminé","2021-04-20",4,2021,"2021-05-28","Ok"]
[2021,3,"2021-03-10","FE","BOUYGUES ENERGIE","Dr. JEANNE","Vanessa","2021-04-10","2021-03-16","Terminé","2021-06-28",6,2021,"2021-07-21","Ok"]
[2021,3,"2021-03-26","FE","ART FACADE","Dr. SABATHIER","Vanessa","2021-05-10","2021-04-12","Terminé","2021-04-13",4,2021,"2021-05-04","Ok"]
[2021,3,"2021-03-29","FE","LETAN BLESTEL","Dr. JEANNE","Vanessa","2021-04-29","2021-04-06","Terminé","2021-05-26",5,2021,"2021-06-11","Ok"]
[2021,3,"2021-03-29","FE","BELZ","Dr. JEANNE","Vanessa","2021-04-29","2021-06-01","Terminé","2021-05-05",5,2021,"2021-05-27","Ok"]
[2021,3,"2021-03-29","FE","BATI FENETRE","Dr. JEANNE","Vanessa","/","2021-09-14","Terminé","2021-09-24",9,2021,"2021-09-27","Ok"]
[2021,3,"2021-03-29","FE","EMC","Dr. HAPPEY","Vanessa","2021-12-31","2021-12-10","Terminé","2021-12-24",12,2021,"2022-01-05","Ok"]
[2021,4,"2021-04-01","FE","LAMBARD","Dr. MOULIN","Vanessa","2021-05-01","2021-04-15","Terminé","2021-04-19",4,2021,"2021-06-03","Ok"]
[2021,4,"2021-04-01","METROLOGIE","LAMBARD","Dr. MOULIN","Vanessa","2021-05-01","2021-05-05","Terminé","2021-05-10",5,2021,"2021-05-10","/"]
[2021,4,"2021-04-07","METROLOGIE","ORQUIN","Dr. SABATHIER","Mathieu","2021-07-07","2021-04-14","Terminé","2021-04-21",4,2021,"2021-04-21"]
[2021,4,"2021-04-20","FE","LEPRETRE FRANCOIS","Dr. MOULIN","Vanessa","2021-05-20","2021-04-29","Terminé","2021-05-21",5,2021,"2021-06-18","ok","Envoyer à l'entreprise sans les infos complémentaires"]
[2021,4,"2021-04-20","FE","DESRUES","Dr. SABATHIER","Vanessa","2021-05-20","2021-05-10","Terminé","2021-05-26",5,2021,"2021-06-08","Ok"]
[2021,4,"2021-04-28","EP","CHRETIENNE","Dr. SABATHIER","Mathieu","2021-07-28","2021-05-19","Terminé","2021-06-02",6,2021,"2021-06-09","Ok"]
[2021,4,"2021-04-28","FE","CANISY PEINTURE","Dr. SABATHIER","Vanessa","2021-05-28","2021-05-17","Terminé","2021-05-26",5,2021,"2021-06-08","Ok"]
[2021,5,"2021-05-03","FE","MACREL","Dr. SABATHIER","Vanessa","2021-06-15","2021-06-10","Terminé","2021-06-21",6,2021,"2021-07-20","Ok"]
[2021,5,"2021-05-11","FE","LEGALLET","Dr. SABATHIER","Vanessa","2021-05-20","2021-05-18","Terminé","2021-05-19",5,2021,"2021-06-08","Ok"]
[2021,5,"2021-05-19","FE","CHAUVET","Dr. SABATHIER","Mathieu","2021-08-19","2021-06-02","Terminé","2021-06-09",6,2021,"2021-06-16","Ok"]
[2021,5,"2021-05-21","FE","MARIE ET CIE","Dr. SABATHIER","Vanessa","2021-06-30","2021-06-24","Terminé","2021-06-25",6,2021,"2021-07-20","Ok"]
[2021,5,"2021-05-21","FE","MARIE ET CIE","Dr. SABATHIER","Vanessa","2021-06-30","2021-06-24","Terminé","2021-06-25",6,2021,"2021-07-20","Ok"]
[2021,5,"2021-05-21","FE","LES ARTISANS DECORATEURS","Dr. SABATHIER","Vanessa","2021-07-31","2021-07-06","Terminé","2021-07-20",7,2021,"2021-09-06","Ok"]
[2021,5,"2021-05-27","FE","T.P.C","Dr. HAPPEY","Vanessa","2021-06-27","2021-08-03","Terminé","2021-08-06",8,2021,"2021-08-06","Ok"]
[2021,5,"2021-05-28","FE","FORTIN","Dr. JEANNE","Vanessa","2021-06-28","2021-06-23","Terminé","2021-06-28",6,2021,"2021-07-21","Ok","prendre RDV pour restitution"]
[2021,6,"2021-06-01","EP","ASC ROBINE","Dr. FAVARETTO","Vanessa","2021-07-01","2021-06-17","Terminé","2021-06-22",6,2021,"2021-09-07","Ok"]
[2021,6,"2021-06-02","AUTRE","RAMERY/ZANELLO","Dr. SABATHIER","Mathieu","2021-09-02","2021-06-09","Terminé","2021-06-16",6,2021,"2021-06-16"]
[2021,6,"2021-06-02","EP","GANNE","Dr. FAVARETTO","Mathieu","2021-09-02","2021-06-09","Terminé","2021-06-23",6,2021,"2021-06-30","Ok"]
[2021,6,"2021-06-09","EP","ESPACE TOITURE","Dr. SABATHIER","Mathieu","2021-09-09","2021-06-23","Terminé","2021-07-07",7,2021,"2021-07-07","Ok"]
[2021,6,"2021-06-16","EVAL CHIMIQUE","BEAUSSIRE","Dr. JEANNE","Vanessa","2021-09-30","2021-09-02","Terminé",null,"","","2021-09-02","Ok"]
[2021,6,"2021-06-21","FE","LEDUC","Dr. HAPPEY","Vanessa","2021-08-31","2021-07-27","Terminé","2021-07-29",7,2021,"2021-07-30","Ok"]
[2021,6,"2021-06-23","EVAL CHIMIQUE","TIRAPU","Dr. JEANNE","Vanessa","2021-07-23","2021-09-13","Terminé","2021-10-22",10,2021,"2021-10-27","Ok"]
[2021,6,"2021-06-23","FE","TIRAPU","Dr. JEANNE","Vanessa","2021-07-23","2021-09-13","Terminé","2021-09-15",9,2021,"2021-09-15","Ok"]
[2021,7,"2021-07-07","FE","LE MARCHAND","Dr. HAPPEY","Vanessa","2021-10-15","2021-09-30","Terminé","2021-11-26",11,2021,"2021-12-17","Ok"]
[{"$f":"YEAR(C34)","v":2021},{"$f":"MONTH(C34)","v":7},"2021-07-09","CSE","RAMERY","Dr. SABATHIER","Vanessa","2021-08-09","2021-07-16","Terminé","2021-07-20",{"$f":"IF(K34=\"\",\"\",MONTH(K34))","v":7},{"$f":"IF(K34=\"\",\"\",YEAR(K34))","v":2021},"2021-09-03","Ok"]
[2021,7,"2021-07-13","EP","ESPRIT BOIS","Dr. SABATHIER","Vanessa","2021-08-31","2021-07-20","Terminé","2021-07-21",7,2021,"2021-07-23","Ok"]
[2021,7,"2021-07-15","EP","STURNO","Dr. FAVARETTO","Vanessa","2021-09-15","2021-08-25","Terminé","2021-08-26",8,2021,"2021-08-26","Ok"]
[2021,7,"2021-07-26","EP","NSA","Dr. JEANNE","Vanessa","2021-09-30","2021-08-31","Terminé","2021-09-02",9,2021,"2021-09-06","Ok"]
[2021,9,"2021-09-01","EVAL CHIMIQUE","LEMERRE","Dr. HAPPEY","Mathieu","2021-12-01","2021-10-18","Terminé","2021-10-20",10,2021,"2021-10-22","ok"]
[2021,9,"2021-09-01","FE","LEMERRE","Dr. HAPPEY","Mathieu","2021-12-01","2021-10-28","Terminé","2021-11-19",11,2021,"2021-11-19","ok"]
[2021,9,"2021-09-02","EP","SECAM BOUCE HARDY","Dr. FAVARETTO","Mathieu","2021-11-03","2021-09-03","Terminé","2021-09-13",9,2021,"2021-09-13","ok","restitution le 14/09/2021"]
[2021,9,"2021-09-03","FE","MANCHE FERMETURES","Dr. SABATHIER","Vanessa","2021-10-31","2021-10-13","Terminé","2021-10-25",10,2021,"2021-11-10","Ok"]
[2021,9,"2021-09-03","FE","ARTOIS","Dr. SABATHIER","Vanessa","2021-10-31","2021-10-20","Terminé","2021-10-25",10,2021,"2021-11-10","Ok"]
[2021,9,"2021-09-06","FE","TABARIN-ENTZMANN","Dr. JEANNE","Vanessa","2021-10-31","2021-09-27","Terminé","2021-10-05",10,2021,"2021-11-02","Ok"]
[2021,9,"2021-09-07","FE","DIESNIS","Dr. JEANNE","Mathieu","2021-12-07","2021-09-16","Terminé","2021-10-01",10,2021,"2021-10-07","ok"]
[2021,9,"2021-09-07","EP","DIESNIS","Dr. JEANNE","Mathieu","2021-12-07","2021-10-05","Terminé","2021-10-13",10,2021,"2021-10-13","ok"]
[2021,9,"2021-09-10","EVAL CHIMIQUE","BAUER","Dr. HAPPEY","Vanessa","2021-10-31","/","Terminé","2021-10-01",10,2021,"2021-10-01","Ok"]
[2021,9,"2021-09-13","EP","LEPETIT","Dr. SABATHIER","Mathieu","2021-12-13","2021-09-20","Terminé","2021-09-27",9,2021,"2021-09-01","ok","restitution à venir avec cap emploi"]
[2021,9,"2021-09-14","EP","ID ENERGIE","Dr. JEANNE","Mathieu","2021-12-14","2021-09-28","Terminé","2021-10-11",10,2021,"2021-10-13","ok"]
[2021,9,"2021-09-14","EP","C.J.J","Dr. JEANNE","Vanessa","2021-10-14","2021-09-22","Terminé","2021-09-27",9,2021,"2021-10-18","Ok"]
[2021,9,"2021-09-15","FE","MENUISERIE ALU PVC","Dr. HAPPEY","Vanessa","2021-11-15","2021-10-12","Terminé","2021-11-26",11,2021,"2021-12-17","Ok"]
[2021,9,"2021-09-20","FE","VIGER","Dr. NEE","Vanessa","2021-11-20","2021-10-11","Terminé","2021-10-12",10,2021,"2021-11-09","Ok"]
[2021,9,"2021-09-28","AUTRE","AMB","Dr. FAVARETTO","Mathieu",null,null,"Terminé","2021-11-15",11,2021,"2021-11-15","ok","non restitué CSE (souhait du Dr F de différer)"]
[2021,9,"2021-09-29","EP","PICOT","Dr. JEANNE","Mathieu","2021-12-29","2021-11-05","Terminé","2021-11-19",11,2021,"2021-11-25","ok"]
[2021,9,"2021-09-30","FE","HECKMAN","Dr. NEE","Vanessa","2021-10-31","2021-10-19","Terminé","2021-11-02",11,2021,"2021-11-09","Ok"]
[2021,10,"2021-10-05","EP","TRADIROC","Dr. FAVARETTO","Mathieu","2021-11-30","2021-10-19","Terminé","2021-10-25",10,2021,"2021-10-25","ok"]
[2021,10,"2021-10-08","EP","EIFFAGE","Dr. SABATHIER","Mathieu","2022-01-08","2021-11-02","Terminé","2021-11-09",11,2021,"2021-11-09","OK"]
[2021,10,"2021-10-11","EP","ROBINE","Dr. SABATHIER","Mathieu","2021-12-11","2021-10-20","Terminé","2021-11-02",11,2021,"2021-11-02","ok","restitution le 16/11/2021"]
[2021,10,"2021-10-15","METROLOGIE","SITPO","Dr. SABATHIER","Vanessa","2021-11-30","2021-11-18","Terminé","2021-11-24",11,2021,"2022-02-02","Ok"]
[2021,10,"2021-10-15","FE","MAISON VIVRE ICI","Dr. SABATHIER","Vanessa","2021-11-30","2021-11-19","Terminé","2021-11-29",11,2021,"2022-02-02","Ok"]
[2021,10,"2021-10-19","EP","SISTM","Dr. JEANNE","Mathieu","2021-11-30","2021-10-29","Terminé","2021-11-19",11,2021,"2021-11-23","ok"]
[2021,10,"2021-10-19","FE","AVOINE JEROME","Dr. HAPPEY","Vanessa","2021-11-30","2021-11-03","Terminé","2021-11-26",11,2021,"2021-12-17","Ok"]
[2021,10,"2021-10-22","EP","LEJETTE","Dr. FAVARETTO","Mathieu","2021-11-30","2021-11-23","Terminé","2021-12-06",12,2021,"2021-12-13","Ok"]
[2021,10,"2021-10-22","FE","FD CREATION","Dr. HAPPEY","Vanessa","2021-11-30","2021-11-16","Terminé","2021-11-26",11,2021,"2021-12-17","Ok"]
[2021,10,"2021-10-22","EVAL CHIMIQUE","FD CREATION","Dr. HAPPEY","Vanessa","2021-11-30","2021-11-16","Terminé","2021-11-17",11,2021,"2021-11-19","Ok","FDS poste de M.MAILLET"]
[2021,10,"2021-10-26","EP","BONHOMME BOISNARD","Dr. FAVARETTO","Mathieu","2022-01-26","2021-11-16","Terminé","2021-11-23",11,2021,"2021-11-25","ok"]
[{"$f":"YEAR(C66)","v":2021},{"$f":"MONTH(C66)","v":10},"2021-10-26","VISITE CHANTIER","JOUANNE LEFEVRE","Dr. SABATHIER","Mathieu","2022-01-26","2021-12-07","Terminé",null,{"$f":"IF(K66=\"\",\"\",MONTH(K66))","v":""},{"$f":"IF(K66=\"\",\"\",YEAR(K66))","v":""},null,null,"visite de chantier demandée"]
[2021,11,"2021-11-09","EVAL CHIMIQUE","VIGER","Dr. NEE","Vanessa","2021-11-30","2021-10-11","Terminé","2021-12-13",12,2021,"2022-01-25","Ok"]
[2021,11,"2021-11-15","EP","BELLANGER","Dr. SABATHIER","Mathieu","2021-02-15","2021-11-22","Terminé","2021-11-26",11,2021,"2021-11-29"]
[2021,11,"2021-11-16","FE","SANECT","Dr. NEE","Vanessa","2021-11-22","2021-11-19","Terminé","2021-11-26",11,2021,"2021-11-29","ok"]
[2021,11,"2021-11-18","EP","DELACOUR BATIMENT","Dr. HAPPEY","Vanessa","2021-11-29","2021-11-23","Terminé","2021-12-06",12,2021,"2021-12-07","Ok"]
[2021,11,"2021-11-18","FE","DELACOUR BATIMENT","Dr. HAPPEY","Vanessa","2021-11-29","2021-11-23","Terminé","2021-12-06",12,2021,"2021-12-07","Ok"]
[2021,11,"2021-11-19","EP","LCC","Dr. FAVARETTO","Vanessa","2021-12-31","2021-12-15","Terminé","2021-12-20",12,2021,"2021-12-20","Ok"]
[2021,11,"2021-11-25","CSE","fouchard","Dr. SABATHIER","Mathieu",null,"2021-12-03","Terminé","2021-12-17",12,2021,"2021-12-17","/","particip CSE"]
[2021,12,"2021-12-06","EP","AMB","Dr. FAVARETTO","Mathieu","2022-03-31","2021-12-21","Terminé","2021-12-23",12,2021,"2021-12-23","ok"]
[2021,12,"2021-12-17","AUTRE",null,"Dr. SABATHIER","Mathieu","2022-03-17",null,"Terminé",null,"","","2021-12-17","/","Rchrch masque FFP pr barbu, + correction visuelle"]

{"sheet":"Tableau de bord","index":1,"n_rows":194,"n_cols":19,"rows_kept":194,"cut":false,"hidden":false,"merged":[[0,3,0,18]]}
[null,null,null,"Tableau de bord "]
["Année","Mois",null,"Date de la demande","Type action","Entreprise","Demandeur","Réalisateur","Date butoire","Date visite","Etat","Envoie pour avis","MOIS","Année","Date validation","Lien Dinamit","Document transmis","Statut action","Commentaire"]
[{"$f":"IF(D3=\"\",\"\",YEAR(D3))","v":2021},{"$f":"IF(D3=\"\",\"\",MONTH(D3))","v":5},null,"2021-05-21","EP","CANISY PEINTURE","Dr. SABATHIER","Vanessa","2021-06-30",null,null,null,{"$f":"IF(L3=\"\",\"\",MONTH(L3))","v":""},{"$f":"IF(L3=\"\",\"\",YEAR(L3))","v":""},null,null,null,"Action suivie","EP AIRLESS"]
[2021,10,null,"2021-10-08","FE","LEJAMTEL","Dr. SABATHIER","Mathieu","2022-01-08","2021-10-26","Terminé","2021-11-22",11,2021]
[2021,10,null,"2021-10-15","FE","LEMAITRE MENUISERIE","Dr. SABATHIER","Mathieu","2021-11-30",null,null,null,"","",null,null,null,null,"en attente visite méd"]
[2021,10,null,"2021-10-15","EP","LAIR","Dr. SABATHIER","Mathieu","2022-01-15","2021-11-16","En cours ",null,"",""]
[2021,11,null,"2021-11-22","EP","Fouchard","Dr. SABATHIER","Mathieu","2021-02-22",null,"En cours ",null,"",""]
[2021,12,null,"2021-12-06","EP","GALOPIN","Dr. JEANNE","Vanessa","2022-06-30","2022-07-07",null,null,"","",null,null,null,null,"A compléter lors de la CFM"]
[2021,12,null,"2021-12-13","METROLOGIE","ORQUIN","Dr. SABATHIER","Mathieu","2021-03-13","2022-09-02","Terminé","2022-09-06",9,2022,null,null,null,null,"CFM même salarié Mr Culleron"]
[2021,12,null,"2021-12-17","METROLOGIE","MACREL","Dr. SABATHIER","Vanessa","2022-02-15",null,null,null,"","",null,null,null,null,"CFM de Mr Thierry Dupont"]
[2022,2,null,"2022-02-03","FE","TECHNI'LOGIS","Dr. FAVARETTO","Mathieu","2022-05-03",null,null,null,"","",null,null,null,null,"en attente (14/02/2022)"]
[2022,2,null,"2022-02-23","EP","LEFER","Dr. JEANNE","Vanessa","/",null,null,null,"",""]
[2022,3,null,"2022-03-01","EP","AD2J Bâtiment","Dr. SABATHIER","Mathieu","2022-06-01",null,null,null,"","",null,null,null,null,"E de P Stéphane LAURENCE"]
[2022,3,null,"2022-03-02","EP","Menuiserie LISE","Dr. SABATHIER","Mathieu","2022-06-02","2022-03-31",null,null,"",""]
[2022,3,null,"2022-03-26","EP","Lebouteiller","Dr. SABATHIER","Mathieu","2022-04-30",null,null,null,"","",null,null,null,null,"pour inaptitude, avec œil sur matériaux utilisés et type de contraintes de manutention"]
[2022,3,null,"2022-03-28","METROLOGIE","ZENONE","Dr. SABATHIER","Mathieu",null,"fin d'année 22",null,null,"","",null,null,null,null,"CFM , chef de chantier avec obésité importante (Dominiq LEBRUN 53 ans), situation echafaudage"]
[2022,3,null,"2022-03-29","FE","SOBATEC","Dr. DEPEZEVILLE","Vanessa",null,"2022-04-21","Terminé","2022-05-16",5,2022,null,null,null,null,"En attente validation"]
[2022,3,null,"2022-03-29","FE","ARIS","Dr. DEPEZEVILLE","Vanessa",null,"2022-05-31","Terminé","2022-06-13",6,2022]
[2022,4,null,"2022-04-12","EP","FAUCILLION","Dr. HAPPEY","Vanessa","2022-05-13","appeler fin sept",null,null,"","",null,null,null,null,"TMS Pro"]
[2022,6,null,"2022-06-13","EP","ALLEZ ET Cie","Dr. SABATHIER","Mathieu",null,"2022-08-04","Terminé","2022-08-04",8,2022]
[2022,6,null,"2022-06-16","METROLOGIE","AVOINE AGENCEMENT","Dr. HAPPEY","Vanessa",null,"début 2023",null,null,"",""]
[2022,6,null,"2022-06-16","EP","AXIANS","Dr. SABATHIER","Mathieu",null,"2022-11-14"]
[2022,6,null,"2022-06-20","FE","maillard (aubade)","Dr. FAVARETTO","Mathieu",null,"2002-07-18","Terminé","2022-08-02",{"$f":"IF(L23=\"\",\"\",MONTH(L23))","v":8},{"$f":"IF(L23=\"\",\"\",YEAR(L23))","v":2022}]
[2022,6,null,"2022-06-20","METROLOGIE","SOBATEC","Dr. DEPEZEVILLE","Vanessa",null,"Septembre",null,null,"",""]
[2022,7,null,"2022-07-08","EP","CAHU","Dr. FAVARETTO","Mathieu",null,"2022-08-02","Terminé","2022-08-05",8,2022,null,null,null,null,"Amputation doigt avec allodinies"]
[2022,7,null,"2022-07-11","METROLOGIE","Bosché","Dr. MOULIN","Mathieu",null,"en attente",null,null,"",""]
[2022,7,null,"2022-07-13","FE","SARLEC","Dr. JEANNE",null,"31/11/2022",null,null,null,"",""]
[2022,7,null,"2022-07-20","EP","PIGOUCHET","Dr. JEANNE","Vanessa","2022-09-20","octobre",null,null,"","",null,null,null,null,"Suite FE Séverine"]
[2022,7,null,"2022-07-29","FE","MAARCEL","Dr. HAPPEY","Vanessa","2022-08-31","2022-09-22","Terminé","2022-11-04",11,2022]
[2022,7,null,"2022-07-29","FE","MAARCEL METEALLERIE","Dr. HAPPEY","Vanessa","2022-08-31","2022-09-22","Terminé","2022-11-04",11,2022]
[2022,7,null,"2022-07-29","FE","MAARCEL PROJET","Dr. HAPPEY","Vanessa","2022-08-31","2022-09-22","Terminé","2022-11-04",11,2022]
[2022,9,null,"2022-09-08","FE","GOURBESVILLE","Dr. HAPPEY","Vanessa",null,null,null,null,"",""]
[2022,9,null,"2022-09-09","AUTRE","INEO NUCLEAIRE","Dr. DEPEZEVILLE",null,null,null,null,null,"","",null,null,null,null,"accompagnement SIADV (Mme De Nantois) sur l'évaluation du poste de Mr BACHERKI Hatim"]
[2022,9,null,"2022-09-09","AUTRE","CTI bat","Dr. SABATHIER","Mathieu",null,"2022-11-07","Terminé",null,null,null,"2022-11-08"]
[{"$f":"IF(D35=\"\",\"\",YEAR(D35))","v":2022},{"$f":"IF(D35=\"\",\"\",MONTH(D35))","v":9},null,"2022-09-12","EP","TP Genêt","Dr. MOULIN",null,"2023-03-01",null,null,null,{"$f":"IF(L35=\"\",\"\",MONTH(L35))","v":""},{"$f":"IF(L35=\"\",\"\",YEAR(L35))","v":""}]
[2022,9,null,"2022-09-22","AUTRE","LES ARTISANS DECORATEURS","Dr. SABATHIER","Vanessa","Projet 2024"]
[2022,9,null,"2022-09-22","AUTRE","2L TOITURE","Dr. SABATHIER","Mathieu"]
[2022,9,null,"2022-09-22","FE","ESE LANGLOIS","Dr. MOULIN","Mathieu",null,"2022-10-06"]
[2022,9,null,"2022-09-22","AUTRE","STURNO","Dr. FAVARETTO","Mathieu"]
[2022,9,null,"2022-09-23","EP","SADE","Dr. DEPEZEVILLE","Vanessa",null,"2022-11-24"]
[2022,9,null,"2022-09-27","EP","DALIGAULT","Dr. FAVARETTO","Mathieu",null,"2022-10-20","Terminé","2022-10-28",null,null,"2022-11-08"]
[2022,9,null,"2022-09-27","EP","FATOUT TP","Dr. MOULIN","Vanessa",null,"2022-10-12","Terminé","2022-10-13"]
[2022,9,null,"2022-09-27","METROLOGIE","FATOUT TP","Dr. MOULIN","Vanessa",null,"2022-11-25"]
[2022,9,null,"2022-09-30","EP","HAREL Construction","Dr. FAVARETTO","Mathieu",null,"2022-10-07","Terminé","2022-10-24",null,null,"2022-11-08"]
[2022,10,null,"2022-10-04","EP","SELUNE CONSTRUCTIONS","Dr. FAVARETTO","Mathieu",null,"2022-11-24"]
[2022,10,null,"2022-10-10","EP","pavillon artisanal","Dr. FAVARETTO","Mathieu",null,"2022-10-20","Terminé","2022-11-03",null,null,"2022-11-08"]
[2022,10,null,"2022-10-18","EP","AMB","Dr. FAVARETTO","Mathieu",null,"2022-11-03","Terminé","2022-11-04",null,null,"2022-11-08"]
[2022,10,null,"2022-10-24","EP","FAURAT BTP","Dr. MOULIN","Mathieu"]
[2022,10,null,"2022-10-27","FE","Saint Armand Bâtiment","Dr. SABATHIER","Mathieu","2022-11-10","2022-11-07","Terminé","2022-11-08",null,null,"2022-11-10"]
[2022,10,null,"2022-10-27","EP","OMEXOM","Dr. NEE","Mathieu","2023-04-01"]
[2022,10,null,"2022-10-27","FE","SAUR","Dr. MOULIN","Vanessa"]
[2022,10,null,"2022-10-27","FE","CISE","Dr. MOULIN","Vanessa"]
[2022,10,null,"2022-10-27","EP","CISE","Dr. MOULIN","Vanessa"]
[2022,10,null,"2022-10-28","EP","INEO NUCLEAIRE","Dr. DEPEZEVILLE","Mathieu"]
[2022,11,null,"2022-11-09","EP","SOTELEC (diesnis)","Dr. JEANNE","Mathieu",null,"2022-11-14","Terminé","2022-11-14",null,null,"2022-11-15"]
[2022,11,null,"2022-11-10","FE","FOUCHARD Coutances","Dr. MOULIN","Mathieu"]
[2022,11,null,"2022-11-10","METROLOGIE","ACE ENDEL","Dr. NEE","Vanessa",null,"2022-11-14"]
[2022,11,null,"2022-11-10","EP","SADE","Dr. DEPEZEVILLE","Vanessa","2022-11-30","2022-11-24"]
[2022,11,null,"2022-11-10","AUTRE","MAARCEL","Dr. HAPPEY","Vanessa",null,"2022-11-16"]
[2022,11,null,"2022-11-14","FE","ESE Poirier Lechevallier","Dr. MOULIN","Mathieu"]
[2022,11,null,"2022-11-14","EP","ESE Poirier Lechevallier","Dr. MOULIN","Mathieu"]
[2022,11,null,"2022-11-16","EP","EFDI","Dr. JEANNE","Vanessa"]
[2022,11,null,"2022-11-16","SENSIBILISATION","GODEFROY GUY","Dr. JEANNE","Vanessa",null,"2023-01-04"]
[2022,11,null,"2022-11-16","METROLOGIE","GODEFROY GUY","Dr. JEANNE","Vanessa"]
[2022,11,null,"2022-11-17","EP","SNEH ","Dr. MOULIN","Mathieu"]
[2022,11,null,"2022-11-21","EP","ID ENERGIE","Dr. JEANNE","Vanessa"]
[{"$f":"IF(D67=\"\",\"\",YEAR(D67))","v":2022},{"$f":"IF(D67=\"\",\"\",MONTH(D67))","v":11},null,"2022-11-22","VISITE CHANTIER","LEDUC","Dr. HAPPEY",null,null,"2023-01-24"]
[2022,11,null,"2022-11-23","FE","SG CONSTRUCTION","Dr. HAPPEY",null,"2023-01-06"]
["",""]
[2022,11,null,"2022-11-23","EP","KAEFER WANNER","Dr. DEPEZEVILLE"]
["",""]
[2021,3,null,"2021-03-05","FE","SAUR","Dr. JEANNE","Vanessa","/","2022-02-09","Terminé","2022-03-03",{"$f":"IF(L72=\"\",\"\",MONTH(L72))","v":3},{"$f":"IF(L72=\"\",\"\",YEAR(L72))","v":2022},"2022-03-09","OK"]
[2021,9,null,"2021-09-16","FE","KAEFER WANNER","Dr. DEPEZEVILLE","Vanessa","2021-10-31","2021-11-23","Terminé","2021-12-20",12,2021,"2022-04-13","OK"]
[2021,9,null,"2021-09-16","EP","INEO NUCLEAIRE","Dr. DEPEZEVILLE","Mathieu","2021-12-16","2021-10-28","Terminé","2021-11-05",11,2021,"2022-08-26","OK",null,null,"3 salariés à voir"]
[2021,10,null,"2021-10-07","AUTRE","OMEXOM partie 1","Dr. NEE","Mathieu","2022-01-07","2021-11-29","Terminé","2022-02-18",2,2022,"2022-02-24","OK",null,null,"Visite Gale, chantier orano + siège"]
[2021,10,null,"2021-10-19","FE","BOUYGUES ENERGIE","Dr. DEPEZEVILLE","Vanessa","2021-11-30","NA","Terminé","2021-10-27",10,2021,"2022-10-05","Ok",null,null,"En attente validation"]
[2021,10,null,"2021-10-26","FE","JOUANNE LEFEVRE","Dr. SABATHIER","Mathieu","2022-01-26","2021-12-07","Terminé","2022-01-13",1,2022,"2022-01-24","OK"]
[2021,10,null,"2021-10-27","FE","OUEST TERASSEMENT","Dr. JEANNE","Vanessa","2021-12-31","2022-03-31","Terminé","2022-04-12",4,2022,"2022-04-13","OK"]
[2021,10,null,"2021-10-27","FE","NR ENTREPRISE","Dr. JEANNE","Vanessa","2021-12-31","2022-01-13","Terminé","2022-01-28",1,2022,"2022-02-02","OK"]
[2021,11,null,"2021-11-02","FE","AXIMA","Dr. DEPEZEVILLE","Vanessa","2021-12-15","2021-11-26","Terminé","2021-12-23",12,2021,"2022-09-09","OK"]
[2021,11,null,"2021-11-02","EP","LEJAMTEL","Dr. SABATHIER","Mathieu","2022-02-02","2021-12-10","Terminé","2022-02-02",2,2022,"2022-02-22","OK"]
[2021,11,null,"2021-11-17","FE","VALINA","Dr. JEANNE","Mathieu","2022-03-31","2022-02-10","Terminé","2022-02-21",2,2022,"2022-02-24","OK",null,null,"FE à réaliser quand on en saura plus sur le renouvellement du TMS PRO ou non dans le but de proposer à l'employeur l'achat d'aide à la manutention."]
[2021,11,null,"2021-11-19","EVAL CHIMIQUE","SNEF POWER SERVICE","Dr. HAPPEY","Vanessa","2021-12-31","NA","Terminé","2022-01-05",1,2022,"2022-01-21","OK"]
[2021,11,null,"2021-11-22","VISITE CHANTIER","menuiserie plaine","Dr. SABATHIER","Mathieu","2021-02-22","2022-01-14","Terminé","2022-01-17",1,2022,"2022-01-24","OK"]
[2021,11,null,"2021-11-30","FE","BOUYGUES ENERGIE","Dr. SABATHIER","Vanessa",null,"2022-01-20","Terminé","2022-02-02",2,2022,"2022-06-14","OK"]
[2021,12,null,"2021-12-01","EP","AML MENUISERIE","Dr. SABATHIER","Mathieu","2022-03-03","2022-01-06","Terminé","2022-02-01",2,2022,null,"OK"]
[2021,12,null,"2021-12-01","EP","AML MENUISERIE","Dr. SABATHIER","Mathieu","2022-11-03","2022-01-02","Terminé","2022-01-10",1,2022,"2022-01-24","OK",null,null,"menuisier poseur menuiserie"]
[2021,12,null,"2021-12-01","EP","LOUVE","Dr. SABATHIER","Mathieu",null,"2022-01-03","Terminé","2022-01-10",1,2022,"2022-01-24","OK",null,null,"A faire au moment de la reprise en janvier"]
[2021,12,null,"2021-12-01","METROLOGIE","FOUCHARD","Dr. SABATHIER","Mathieu",null,"2022-01-17","Terminé","2022-01-17",1,2022,"2022-01-24","OK"]
[2021,12,null,"2021-12-06","FE","GALOPIN","Dr. JEANNE","Vanessa","2022-03-31","2022-01-25","Terminé","2022-02-01",2,2022,"2022-02-02","OK"]
[2021,12,null,"2021-12-07","EP","KAEFER WANNER","Dr. DEPEZEVILLE","Mathieu",null,"2022-01-31","Terminé","2022-02-01",2,2022,"2022-08-26","OK",null,null,"Mr Capelle, eval du poste de reclassement suite amput 3ème Doigt"]
[2021,12,null,"2021-12-17","FE","SNEF POWER SERVICE","Dr. HAPPEY","Vanessa","2022-01-31","2022-01-05","Terminé","2022-01-10",1,2022,"2022-01-21","OK"]
[2021,12,null,"2021-12-17","VISITE CHANTIER","LORIENNE","Dr. SABATHIER","Mathieu","2022-03-17","2022-01-18","Terminé","2022-01-17",1,2022,"2022-01-21","OK",null,null,"EP anthony POISSON manœuvre maçon pb dos"]
[2022,1,null,"2022-01-05","FE","PONTICELLI","Dr. HAPPEY","Vanessa","2022-02-15","2022-02-22","Terminé","2022-03-14",3,2022,"2022-04-05","OK"]
[2022,1,null,"2022-01-07","FE","MAILLARD","Dr. HAPPEY","Vanessa","2022-03-01","2022-02-17","Terminé","2022-04-04",4,2022,"2022-04-04","OK"]
[2022,1,null,"2022-01-09","FE","Espace et ouverture","Dr. SABATHIER","Mathieu","2022-01-23","2022-01-10","Terminé","2022-01-10",1,2022,null,"OK"]
[2022,1,null,"2022-01-09","EP","Espace et ouverture","Dr. SABATHIER","Mathieu","2022-01-23","2022-01-10","Terminé","2022-01-10",1,2022,null,"OK",null,null,"EP pour inaptitude"]
[2022,1,null,"2022-01-10","EP","COTENTIN ENERGIE INDUSTRIE","Dr. HAPPEY","Vanessa","2022-02-04","2022-01-27","Terminé","2022-01-27",1,2022,"2022-02-01","OK"]
[2022,1,null,"2022-01-11","FE","DALMONT","Dr. HAPPEY","Vanessa","2022-01-24","2022-01-17","Terminé","2022-01-18",1,2022,"2022-01-21","OK"]
[{"$f":"IF(D100=\"\",\"\",YEAR(D100))","v":2022},{"$f":"IF(D100=\"\",\"\",MONTH(D100))","v":1},null,"2022-01-12","EP","DIESNIS","Dr. JEANNE","Mathieu","2022-04-30","2022-01-21","Terminé","2022-01-25",1,2022,"2022-01-27","OK"]
[2022,1,null,"2022-01-14","EP","STURNO","Dr. FAVARETTO","Mathieu","2022-03-14","2022-01-27","Terminé","2022-02-14",2,2022,"2022-03-01","OK",null,null,"pour surcharge de W Conducteur de travaux"]
[2022,1,null,"2022-01-20","EP","Copeaux et Co","Dr. FAVARETTO","Mathieu","2022-02-15","2022-02-21","Terminé","2022-02-24",2,2022,"2022-02-25","OK"]
[2022,1,null,"2022-01-20","EP","Bernard Lavalley","Dr. SABATHIER","Mathieu","2022-04-20","2022-02-11","Terminé","2022-02-22",2,2022,null,"OK"]
[2022,1,null,"2022-01-24","FE","COUVERTURE EUSTACHE","Dr. JEANNE","Vanessa","2022-02-14","2022-02-03","Terminé","2022-02-11",{"$f":"IF(L104=\"\",\"\",MONTH(L104))","v":2},{"$f":"IF(L104=\"\",\"\",YEAR(L104))","v":2022},"2022-03-02","OK"]
[2022,1,null,"2022-01-24","FE","L'ARTISAN DU COTENTIN","Dr. JEANNE","Vanessa","2022-02-14","2022-02-03","Terminé","2022-02-11",2,2022,"2022-03-02","OK"]
[2022,1,null,"2022-01-25","FE","SAS Fouchard Agneaux","Dr. SABATHIER","Mathieu","2022-02-04","2022-02-03","Terminé","2022-02-15",2,2022,null,"OK"]
[2022,1,null,"2022-01-25","EP","SAS Fouchard Agneaux","Dr. SABATHIER","Mathieu","2022-02-04","2022-02-03","Terminé","2022-02-04",2,2022,"2022-02-22","OK",null,null,"E de P en vue inaptitude"]
[2022,1,null,"2022-01-31","FE","HAPISOL","Dr. JEANNE","Vanessa",null,"2022-10-04","Terminé","2022-10-14",10,2022,"2022-10-26","Ok"]
[2022,1,null,"2022-01-31","FE","TP ROUSTIAU","Dr. JEANNE","Vanessa",null,"2022-04-04","Terminé","2022-04-12",4,2022,"2022-04-13","OK"]
[2022,2,null,"2022-02-01","AUTRE","OMEXOM partie 2","Dr. NEE","Mathieu",null,"2022-06-23","Terminé","2022-06-23",6,2022,"2022-06-26","OK"]
[2022,2,null,"2022-02-14","EP","VARIN Isolation","Dr. SABATHIER","Mathieu","2022-05-14","2022-03-18","Terminé","2022-04-12",4,2022,"2022-04-15","OK"]
[2022,2,null,"2022-02-14","AUTRE","CPL Bois Fervache","Dr. SABATHIER","Mathieu",null,"2022-03-14","Terminé","2022-03-31",3,2022,"2022-04-15","OK",null,null,"entretien direction avec Dr Sabathier"]
[2022,2,null,"2022-02-17","FE","SADE","Dr. DEPEZEVILLE","Vanessa","2022-03-01","2022-03-01","Terminé","2022-03-07",3,2022,"2022-03-22","OK"]
[2022,2,null,"2022-02-18","EP","PONTICELLI","Dr. HAPPEY","Vanessa","2022-02-25","2022-03-08","Terminé","2022-03-08",3,2022,"2022-03-08","OK"]
[2022,2,null,"2022-02-18","METROLOGIE","RAMERY","Dr. SABATHIER","Mathieu","2022-03-18","2022-03-11","Terminé","2022-03-11",3,2022,"2022-03-11","OK",null,null,"CFM grutier en tour"]
[2022,2,null,"2022-02-23","AUTRE","GUY LEFEVRE","Dr. HAPPEY","Mathieu",null,"2022-03-21","Terminé",null,"","",null,"OK",null,null,"Conseil exosquelette"]
[2022,3,null,"2022-03-01","FE","ECBN","Dr. HAPPEY","Vanessa","2022-03-09","2022-03-03","Terminé","2022-03-10",3,2022,"2022-05-04","OK"]
[2022,3,null,"2022-03-01","AUTRE","LORIENNE","Dr. SABATHIER","Mathieu","2022-03-31","2022-03-04","Terminé","2022-03-18",3,2022,"2022-03-18","OK",null,null,"entretien +MAJ FE"]
[2022,3,null,"2022-03-01","AUTRE","LEMAUX","Dr. NEE","Vanessa","2022-03-31","2022-03-21","Terminé","2022-03-21",3,2022,null,"OK"]
[2022,3,null,"2022-03-01","EP","LEMAUX","Dr. NEE","Mathieu",null,"2022-05-16","Terminé","2022-05-16",5,2022,"2022-05-16","OK"]
[2022,3,null,"2022-03-02","EP","GUY LEFEVRE","Dr. HAPPEY","Mathieu","2022-05-02","2022-03-22","Terminé","2022-04-07",4,2022,"2022-04-08","OK"]
[2022,3,null,"2022-03-08","EP","menuiserie du Cotentin","Dr. HAPPEY","Vanessa","2022-03-31","2022-03-23","Terminé","2022-04-11",4,2022,"2022-04-12","OK"]
[2022,3,null,"2022-03-14","FE","ENDEL","Dr. NEE","Vanessa","/","2022-03-28","Terminé","2022-05-19",5,2022,"2022-05-23","OK"]
[2022,3,null,"2022-03-14","FE","G.I.E.A.C.E","Dr. NEE","Vanessa","/","2022-03-28","Terminé","2022-05-19",5,2022,"2022-05-23","OK"]
[2022,3,null,"2022-03-17","FE","2B PRO","Dr. HAPPEY","Vanessa","2022-03-31","2022-03-21","Terminé","2022-03-21",3,2022,"2022-03-23","OK"]
[2022,3,null,"2022-03-17","FE","BEAUSSIRE","Dr. JEANNE","Vanessa","/","2022-03-30","Terminé","2022-04-12",4,2022,"2022-04-13","OK"]
[2022,3,null,"2022-03-22","EP","SIST Ouest","Dr. JEANNE","Mathieu",null,"2022-05-12","Terminé","2022-07-01",7,2022,"2022-07-06","OK"]
[2022,3,null,"2022-03-25","FE","OSMONT","Dr. HAPPEY","Vanessa","2022-04-15","2022-04-12","Terminé","2022-05-19",5,2022,"2022-06-08","OK"]
[2022,3,null,"2022-03-25","FE","BOUYGUES BAT GRAND OUEST","Dr. HAPPEY","Vanessa","2022-05-01","2022-04-13","Terminé","2022-06-24",6,2022,"2022-08-10","OK"]
[2022,3,null,"2022-03-25","EP","BOUYGUES BAT GRAND OUEST","Dr. HAPPEY","Vanessa","2022-05-01","2022-04-13","Terminé","2022-05-19",5,2022,"2022-05-19","OK"]
[2022,3,null,"2022-03-25","EP","AMB","Dr. FAVARETTO","Mathieu","2022-06-25","2022-04-08","Terminé","2022-04-11",4,2022,"2022-04-11","OK"]
[{"$f":"IF(D132=\"\",\"\",YEAR(D132))","v":2022},{"$f":"IF(D132=\"\",\"\",MONTH(D132))","v":3},null,"2022-03-28","FE","Ent Madeleine","Dr. SABATHIER","Mathieu","2022-06-28","2022-06-07","Terminé","2022-06-30",6,2022,"2022-07-18","OK",null,null,"envoyé  par courrier"]
[2022,3,null,"2022-03-29","FE","SOCIETE INDUSTRIELLE DE NORMANDIE ","Dr. DEPEZEVILLE","Mathieu",null,"2022-06-23","Terminé","2022-09-01",9,2022,"2022-10-07","Ok"]
[2022,3,null,"2022-03-29","FE","INEO NUCLEAIRE","Dr. DEPEZEVILLE","Vanessa",null,"2022-06-01","Terminé","2022-06-17",6,2022,"2022-09-09","OK"]
[2022,3,null,"2022-03-29","EP","SARL loret frêre","Dr. SABATHIER","Mathieu",null,"2022-04-08","termine","2022-05-09",5,2022,"2022-06-05","OK",null,null,"TMS  pro action "]
[2022,3,null,"2022-03-29","EP","NR ENTREPRISE","Dr. JEANNE","Vanessa",null,"2022-04-05","Terminé","2022-05-02",{"$f":"IF(L136=\"\",\"\",MONTH(L136))","v":5},{"$f":"IF(L136=\"\",\"\",YEAR(L136))","v":2022},"2022-05-02","OK"]
[2022,3,null,"2022-03-30","EP","TABARIN-ENTZMANN","Dr. JEANNE","Vanessa",null,"2022-10-04","Terminé","2022-11-02",11,2022,"2022-11-09","Ok"]
[2022,3,null,"2022-03-31","EP","OUEST TERASSEMENT","Dr. JEANNE","Vanessa","31/06/2022","2022-04-25","Terminé","2022-05-03",5,2022,"2022-05-03","OK"]
[2022,4,null,"2022-04-01","FE","MAZERI Bruno","Dr. SABATHIER","Mathieu",null,"2022-09-16","Terminé","2022-09-30",9,2022,"2022-10-07","Ok",null,null,"MAJ  en vue inaptitude"]
[2022,4,null,"2022-04-01","EP","MAZERI Bruno","Dr. SABATHIER","Mathieu",null,"2022-09-16","Terminé","2022-09-30",9,2022,"2022-10-07","Ok",null,null,"en vue inaptitude"]
[2022,4,null,"2022-04-01","FE","HESTIA","Dr. SABATHIER","Mathieu",null,"2022-06-03","Terminé","2022-06-13",6,2022,"2022-06-24","OK",null,null,"nvL entP, 1 salarié, diff au W /   FE envoyée le 30/06/22"]
[2022,4,null,"2022-04-05","AUTRE","SITPO","Dr. SABATHIER","Mathieu",null,null,"Terminé","2022-06-01",6,2022,"2022-06-01","OK"]
[2022,4,null,"2022-04-12","EP"," Caroline Breton","Dr. SABATHIER","Mathieu",null,"2022-05-23","Terminé","2022-05-24",5,2022,null,"OK",null,null,"TMS pro diable monte escalier élect + pince à sertir"]
[2022,4,null,"2022-04-13","METROLOGIE","JOUAN TP","Dr. JEANNE","Vanessa","2022-04-22","2022-04-21","Terminé","2022-05-11",5,2022,"2022-05-18","OK"]
[2022,4,null,"2022-04-13","EP","AML menuiserie","Dr. SABATHIER","Mathieu",null,"2022-06-10","Terminé","2022-06-24",6,2022,"2022-06-28","OK",null,null,"A venir, pour aménagement poste AGEFIPH (rdv consult Dr Sabathier le 29/4)"]
[2022,4,null,"2022-04-13","EP","ENGIE","Dr. DEPEZEVILLE","Mathieu",null,"20/05/2022, 11H","Terminé","2022-05-23",5,2022,null,"OK",null,null,"Mr Colin, opéré, poste de bureau"]
[2022,4,null,"2022-04-15","EP","VALLINA","Dr. JEANNE","Mathieu","2022-06-15","2022-05-31","Terminé","2022-05-31",5,2022,"2022-06-16","OK"]
[2022,4,null,"2022-04-22","FE","DODIN CAMPENON BERNARD","Dr. HAPPEY","Vanessa","2022-06-30","2022-07-19","Terminé","2022-09-28",9,2022,"2022-09-28","oK"]
[2022,4,null,"2022-04-22","FE","2G CONFORT","Dr. HAPPEY","Vanessa","2022-05-05","2022-05-03","Terminé","2022-05-03",5,2022,"2022-05-03","OK"]
[2022,5,null,"2022-05-02","FE","WELBOND ARMATURES","Dr. HAPPEY","Vanessa","2022-06-02","/","Terminé","2022-09-16",9,2022,"2022-09-21","Ok"]
[2022,5,null,"2022-05-02","FE","MENUISERIES DU COTENTIN","Dr. HAPPEY","Vanessa","2022-05-13","2022-05-10","Terminé","2022-05-11",5,2022,"2022-05-11","OK"]
[2022,5,null,"2022-05-02","EP","BOSCHE","Dr. SABATHIER","Vanessa","2022-05-15","2022-05-06","Terminé","2022-05-10",5,2022,"2022-06-14","OK"]
[2022,5,null,"2022-05-06","EVAL CHIMIQUE","GOURBESVILLE","Dr. HAPPEY","Vanessa","/","/","Terminé","2022-05-19",5,2022,"2022-05-19","OK"]
[2022,5,null,"2022-05-11","EP","LOUVE","Dr. SABATHIER","Mathieu","2022-06-30","2022-05-30","Terminé","2022-06-10",6,2022,"2022-06-28","OK",null,null,"envoyé adhérent"]
[2022,5,null,"2022-05-12","FE","NUVIA STRUCTURE","Dr. NEE","Vanessa","2022-06-12","2022-09-01","Terminé","2022-11-07",11,2022,"2022-11-10","Ok"]
[2022,5,null,"2022-05-12","EP","ACE","Dr. NEE","Mathieu","2022-06-23","2022-06-13","Terminé","2022-06-17",6,2022,"2022-06-20","OK"]
[2022,5,null,"2022-05-17","EP","CEME GUERIN St Lô","Dr. SABATHIER","Mathieu",null,"2022-06-27","Terminé","2022-07-25",7,2022,null,"OK",null,null,"E de P Mme Malleret P, bureautique , responS Mme Capelle"]
[2022,5,null,"2022-05-17","EP","NORGEOT Frères","Dr. SABATHIER","Mathieu",null,"2022-07-11","Terminé","2022-07-12",7,2022,"2022-07-21","OK",null,null,"reprise suite trauma Mb Sup Acc W (Mr Lehodey Sébastien)"]
[2022,5,null,"2022-05-19","EP","NEW BATIM","Dr. SABATHIER","Mathieu","fin été","2022-09-22","Terminé","2022-10-11",10,2022,"2022-10-11","Ok",null,null,"Reprise W salarié plaquiste avec Pb épaule reprise après été minimum (Mr Christophe Aurel)"]
[2022,5,null,"2022-05-19","EP","RAMERY","Dr. SABATHIER","Mathieu",null,"2022-09-05","Terminé","2022-10-03",10,2022,"2022-10-07","Ok",null,null,"Etude atelier de préfabrication Ramery "]
[2022,5,null,"2022-05-31","METROLOGIE","MARC SA","Dr. NEE","Vanessa","2022-06-30","2022-06-23","Terminé","2022-06-29",6,2022,"2022-06-30","OK"]
[2022,6,null,"2022-06-01","FE","LE GARDE MEUBLE","Dr. HAPPEY","Vanessa","/","2022-06-20","Terminé","2022-07-20",7,2022,"2022-07-22","OK"]
[2022,6,null,"2022-06-01","EP","INEO NUCLEAIRE","Dr. DEPEZEVILLE","Mathieu",null,"2022-05-20","Terminé","2022-05-03",5,2022,null,"OK",null,null,"envoyé Mr Marriotti"]
[{"$f":"IF(D164=\"\",\"\",YEAR(D164))","v":2022},{"$f":"IF(D164=\"\",\"\",MONTH(D164))","v":6},null,"2022-06-09","EP","VARIN Isolation","Dr. SABATHIER","Mathieu","2022-07-08","2022-07-04","Terminé","2022-07-12",7,2022,"2022-07-21","OK",null,null,"Bardage (pour statuer sur aptitude Mr AUMOITTE)"]
[2022,6,null,"2022-06-10","EP","VARIN Isolation","Dr. SABATHIER","Mathieu",null,"2022-06-21","Terminé","2022-07-06",7,2022,"2022-07-22","OK",null,null,"Enlèvement et déchargement"]
[2022,6,null,"2022-06-16","EP","SAM ENERGIE","Dr. SABATHIER","Mathieu",null,"2022-06-24","Terminé","2022-06-30",6,2022,"2022-07-06","OK"]
[2022,6,null,"2022-06-17","FE","ROBINE ENERGIE","Dr. SABATHIER","Vanessa","2022-06-24","2022-06-22","Terminé","2022-06-22",6,2022,"2022-10-03","Ok"]
[2022,6,null,"2022-06-20","EP","maillard (Aubade)","Dr. FAVARETTO","Mathieu",null,"2022-07-18","Terminé","2022-07-25",{"$f":"IF(L168=\"\",\"\",MONTH(L168))","v":7},{"$f":"IF(L168=\"\",\"\",YEAR(L168))","v":2022},"2022-07-28","OK"]
[2022,6,null,"2022-06-23","AUTRE","Varin Père et fils","Dr. SABATHIER","Mathieu","NC","NC","Terminé","2022-06-28",6,2022,"2022-06-30","OK",null,null,"Conseils masques ventillation assistée"]
[2022,6,null,"2022-06-28","EP","EUROVIA","Dr. HAPPEY","Vanessa","2022-09-30","2022-09-09","Terminé","2022-09-13",9,2022,"2022-09-13","OK",null,null,"Muneville le B, Femme enceinte chimiste, prélèvement enrobé + port de charge (sac , plaque 25kg)"]
[2022,7,null,"2022-07-01","SENSIBILISATION","MARC SA","Dr. NEE","Vanessa","/","2022-09-12","Terminé","2022-09-25",9,2022,"2022-09-25","Ok"]
[2022,7,null,"2022-07-07","FE","THERMICLIM","Dr. HAPPEY","Vanessa","2022-07-31","2022-07-21","Terminé","2022-07-29",7,2022,"2022-07-29","OK"]
[2022,7,null,"2022-07-07","EP","THERMICLIM","Dr. HAPPEY","Vanessa","2022-07-31","2022-07-21","Terminé","2022-07-29",7,2022,"2022-07-29","OK",null,null,"Franck BONNEMAIN : inaptitude"]
[2022,7,null,"2022-07-07","FE","GREGOIRE YOANN","Dr. HAPPEY","Vanessa","2022-07-31","2022-07-18","Terminé","2022-07-20",7,2022,"2022-07-20","OK"]
[2022,7,null,"2022-07-07","EP","GREGOIRE YOANN","Dr. HAPPEY","Vanessa","2022-07-31","2022-07-18","Terminé","2022-07-20",7,2022,"2022-07-20","OK",null,null,"Denis BAZIRE : problème surdité, reconversion pro"]
[2022,7,null,"2022-07-08","METROLOGIE","ZENONE","Dr. SABATHIER","Mathieu",null,"2022-07-19","Terminé","2022-07-21",7,2022,null,"OK",null,null,"Même CFM mais en situation de chaleur"]
[2022,7,null,"2022-07-11","EP","Bosché","Dr. MOULIN","Mathieu",null,null,"Terminé","2022-10-25",10,2022,"2022-10-25","Ok",null,null,"coffreur bancheur (Mr Saint Martin) 53 ans , diabétiq, tabc, anomal cardiaq, obstruct artér récente: EP + CFM en attente car poste adapté temporaire"]
[2022,7,null,"2022-07-11","FE","Bosché","Dr. MOULIN","Mathieu",null,null,"Terminé","2022-10-25",10,2022,"2022-10-25","Ok"]
[2022,7,null,"2022-07-21","AUTRE","CTI BAT","Dr. SABATHIER","Mathieu",null,"2022-07-22","Terminé","2022-07-22",7,2022,null,"OK"]
[2022,7,null,"2022-07-29","FE","SALVATORE BONANNO","Dr. HAPPEY","Vanessa","2022-08-31","2022-08-04","Terminé","2022-08-10",8,2022,"2022-08-10","OK"]
[2022,7,null,"2022-07-29","FE","LUDOVIC GOUBERT","Dr. HAPPEY","Vanessa","2022-08-31","2022-08-02","Terminé","2022-08-08",8,2022,"2022-08-09","OK"]
[2022,7,null,"2022-07-29","FE","BAUER ","Dr. HAPPEY","Vanessa","2022-08-31","2022-08-03","Terminé","2022-08-08",8,2022,"2022-08-09","OK"]
[2022,8,null,"2022-08-12","EP","SPIE NUCLEAIRE","Dr. HAPPEY","Vanessa","2022-09-12","2022-08-31","Terminé","2022-09-08",9,2022,"2022-09-08","Ok"]
[2022,8,null,"2022-08-16","FE","LETOURNELLE","Dr. HAPPEY","Vanessa","2022-09-16","2022-09-09","Terminé","2022-09-12",9,2022,"2022-09-13","OK"]
[2022,9,null,"2022-09-05","EP","ALLEZ ET Cie","Dr. SABATHIER","Mathieu",null,"2022-09-08","Terminé","2022-09-12",9,2022,"2022-09-12","Ok",null,null,"en vue inaptitude Mr Lebouvier "]
[2022,9,null,"2022-09-05","FE","ALLEZ ET Cie","Dr. SABATHIER","Mathieu",null,"2022-09-08","Terminé","2022-09-12",9,2022,"2022-09-12","Ok"]
[2022,9,null,"2022-09-07","EP","ID ENERGIE","Dr. JEANNE","Mathieu",null,"2022-09-11","Terminé","2022-10-24",10,2022,"2022-10-26","Ok"]
[2022,9,null,"2022-09-08","FE","BOUCE","Dr. HAPPEY","Vanessa",null,"2022-09-28","Terminé","2022-09-30",9,2022,"2022-10-04","Ok"]
[2022,9,null,"2022-09-09","EP","CTI Bât","Dr. SABATHIER","Mathieu",null,"2022-11-07","Terminé","2022-11-08",11,2022,"2022-11-08","Ok",null,null,"visite avec A Sabathier / Mr Vilette"]
[2022,9,null,"2022-09-13","FE","PREZIOSO","Dr. HAPPEY","Vanessa","2022-09-21",null,"Terminé","2022-09-22",9,2022,"2022-09-23","Ok"]
[2022,9,null,"2022-09-14","EP","SIST Ouest","Dr. JEANNE","Mathieu",null,null,"Terminé","2022-09-30",9,2022,"2022-09-30","Ok",null,null,"Mme GUYOT"]
[2022,9,null,"2022-09-14","EP","SIST Ouest","Dr. JEANNE","Mathieu",null,null,"Terminé","2022-09-26",9,2022,"2022-09-29","Ok",null,null,"Mme DEDIEU"]
[2022,10,null,"2022-10-24","EP","SABCO","Dr. JEANNE","Vanessa",null,"2022-11-03","Terminé","2022-11-04",null,null,"2022-11-16","Ok"]
[2022,10,null,"2022-10-24","EP","MVA Agencement","Dr. HAPPEY","Vanessa",null,"2022-11-08","Terminé","2022-11-15",null,null,"2022-11-17","Ok"]

{"sheet":"Vanessa_21","index":2,"n_rows":28,"n_cols":18,"rows_kept":28,"cut":false,"hidden":true,"merged":[[0,0,0,16],[18,0,18,17]]}
["Nombre d'action demandées/finalisées  par mois"]
["Mois","Nb d'actions demandées","EP","FE","EVAL CHIMIQUE","CSE","VISITE CHANTIER","METROLOGIE","AUTRE","Nb d'actions finalisées","EP","FE","EVAL CHIMIQUE","CSE","VISITE CHANTIER","METROLOGIE","AUTRE"]
["Janvier","NA","NA","NA","NA","NA","NA","NA","NA","NA","NA","NA","NA","NA","NA","NA","NA"]
["Février","NA","NA","NA","NA","NA","NA","NA","NA","NA","NA","NA","NA","NA","NA","NA","NA"]
["Mars",{"$f":"COUNTIFS('Tableau de bord'!A:A,\"2021\",'Tableau de bord'!#REF!,\"MARS\",'Tableau de bord'!H:H,\"Vanessa\")","v":{"$error":"#REF!"}},{"$f":"COUNTIFS('Tableau de bord'!A:A,\"2021\",'Tableau de bord'!E:E,\"EP\",'Tableau de bord'!#REF!,\"MARS\",'Tableau de bord'!H:H,\"Vanessa\")","v":{"$error":"#REF!"}},{"$f":"COUNTIFS('Tableau de bord'!$A:$A,\"2021\",'Tableau de bord'!$E:$E,\"FE\",'Tableau de bord'!#REF!,\"MARS\",'Tableau de bord'!$H:$H,\"Vanessa\")","v":{"$error":"#REF!"}},{"$f":"COUNTIFS('Tableau de bord'!$A:$A,\"2021\",'Tableau de bord'!$E:$E,\"EVAL CHIMIQUE\",'Tableau de bord'!#REF!,\"MARS\",'Tableau de bord'!$H:$H,\"Vanessa\")","v":{"$error":"#REF!"}},{"$f":"COUNTIFS('Tableau de bord'!$A:$A,\"2021\",'Tableau de bord'!$E:$E,\"CSE\",'Tableau de bord'!#REF!,\"MARS\",'Tableau de bord'!$H:$H,\"Vanessa\")","v":{"$error":"#REF!"}},{"$f":"COUNTIFS('Tableau de bord'!$A:$A,\"2021\",'Tableau de bord'!$E:$E,\"VISITE CHANTIER\",'Tableau de bord'!#REF!,\"MARS\",'Tableau de bord'!$H:$H,\"Vanessa\")","v":{"$error":"#REF!"}},{"$f":"COUNTIFS('Tableau de bord'!$A:$A,\"2021\",'Tableau de bord'!$E:$E,\"METROLOGIE\",'Tableau de bord'!#REF!,\"MARS\",'Tableau de bord'!$H:$H,\"Vanessa\")","v":{"$error":"#REF!"}},{"$f":"COUNTIFS('Tableau de bord'!A:A,\"2021\",'Tableau de bord'!E:E,\"AUTRE\",'Tableau de bord'!#REF!,\"MARS\",'Tableau de bord'!H:H,\"Vanessa\")","v":{"$error":"#REF!"}},{"$f":"COUNTIFS('Tableau de bord'!A:A,\"2021\",'Tableau de bord'!K:K,\"Terminé\",'Tableau de bord'!#REF!,\"MARS\",'Tableau de bord'!H:H,\"Vanessa\")","v":{"$error":"#REF!"}},{"$f":"COUNTIFS('Tableau de bord'!$A:$A,\"2021\",'Tableau de bord'!$K:$K,\"Terminé\",'Tableau de bord'!#REF!,\"MARS\",'Tableau de bord'!$E:$E,\"EP\",'Tableau de bord'!$H:$H,\"Vanessa\")","v":{"$error":"#REF!"}},{"$f":"COUNTIFS('Tableau de bord'!$A:$A,\"2021\",'Tableau de bord'!$K:$K,\"Terminé\",'Tableau de bord'!#REF!,\"MARS\",'Tableau de bord'!$E:$E,\"FE\",'Tableau de bord'!$H:$H,\"Vanessa\")","v":{"$error":"#REF!"}},{"$f":"COUNTIFS('Tableau de bord'!$A:$A,\"2021\",'Tableau de bord'!$K:$K,\"Terminé\",'Tableau de bord'!#REF!,\"MARS\",'Tableau de bord'!$E:$E,\"EVAL CHIMIQUE\",'Tableau de bord'!$H:$H,\"Vanessa\")","v":{"$error":"#REF!"}},{"$f":"COUNTIFS('Tableau de bord'!$A:$A,\"2021\",'Tableau de bord'!$K:$K,\"Terminé\",'Tableau de bord'!#REF!,\"MARS\",'Tableau de bord'!$E:$E,\"CSE\",'Tableau de bord'!$H:$H,\"Vanessa\")","v":{"$error":"#REF!"}},{"$f":"COUNTIFS('Tableau de bord'!$A:$A,\"2021\",'Tableau de bord'!$K:$K,\"Terminé\",'Tableau de bord'!#REF!,\"MARS\",'Tableau de bord'!$E:$E,\"VISITE CHANTIER\",'Tableau de bord'!$H:$H,\"Vanessa\")","v":{"$error":"#REF!"}},{"$f":"COUNTIFS('Tableau de bord'!$A:$A,\"2021\",'Tableau de bord'!$K:$K,\"Terminé\",'Tableau de bord'!#REF!,\"MARS\",'Tableau de bord'!$E:$E,\"METROLOGIE\",'Tableau de bord'!$H:$H,\"Vanessa\")","v":{"$error":"#REF!"}},{"$f":"COUNTIFS('Tableau de bord'!$A:$A,\"2021\",'Tableau de bord'!$K:$K,\"Terminé\",'Tableau de bord'!#REF!,\"MARS\",'Tableau de bord'!$E:$E,\"AUTRE\",'Tableau de bord'!$H:$H,\"Vanessa\")","v":{"$error":"#REF!"}}]
["Avril",{"$f":"COUNTIFS('Tableau de bord'!A:A,\"2021\",'Tableau de bord'!#REF!,\"AVRIL\",'Tableau de bord'!H:H,\"Vanessa\")","v":{"$error":"#REF!"}},{"$f":"COUNTIFS('Tableau de bord'!A:A,\"2021\",'Tableau de bord'!E:E,\"EP\",'Tableau de bord'!#REF!,\"AVRIL\",'Tableau de bord'!H:H,\"Vanessa\")","v":{"$error":"#REF!"}},{"$f":"COUNTIFS('Tableau de bord'!A:A,\"2021\",'Tableau de bord'!E:E,\"FE\",'Tableau de bord'!#REF!,\"AVRIL\",'Tableau de bord'!H:H,\"Vanessa\")","v":{"$error":"#REF!"}},{"$f":"COUNTIFS('Tableau de bord'!$A:$A,\"2021\",'Tableau de bord'!$E:$E,\"EVAL CHIMIQUE\",'Tableau de bord'!#REF!,\"AVRIL\",'Tableau de bord'!$H:$H,\"Vanessa\")","v":{"$error":"#REF!"}},{"$f":"COUNTIFS('Tableau de bord'!$A:$A,\"2021\",'Tableau de bord'!$E:$E,\"CSE\",'Tableau de bord'!#REF!,\"AVRIL\",'Tableau de bord'!$H:$H,\"Vanessa\")","v":{"$error":"#REF!"}},{"$f":"COUNTIFS('Tableau de bord'!$A:$A,\"2021\",'Tableau de bord'!$E:$E,\"VISITE CHANTIER\",'Tableau de bord'!#REF!,\"AVRIL\",'Tableau de bord'!$H:$H,\"Vanessa\")","v":{"$error":"#REF!"}},{"$f":"COUNTIFS('Tableau de bord'!$A:$A,\"2021\",'Tableau de bord'!$E:$E,\"METROLOGIE\",'Tableau de bord'!#REF!,\"AVRIL\",'Tableau de bord'!$H:$H,\"Vanessa\")","v":{"$error":"#REF!"}},{"$f":"COUNTIFS('Tableau de bord'!A:A,\"2021\",'Tableau de bord'!E:E,\"AUTRE\",'Tableau de bord'!#REF!,\"AVRIL\",'Tableau de bord'!H:H,\"Vanessa\")","v":{"$error":"#REF!"}},{"$f":"COUNTIFS('Tableau de bord'!A:A,\"2021\",'Tableau de bord'!K:K,\"Terminé\",'Tableau de bord'!#REF!,\"AVRIL\",'Tableau de bord'!H:H,\"Vanessa\")","v":{"$error":"#REF!"}},{"$f":"COUNTIFS('Tableau de bord'!$A:$A,\"2021\",'Tableau de bord'!$K:$K,\"Terminé\",'Tableau de bord'!#REF!,\"AVRIL\",'Tableau de bord'!$E:$E,\"EP\",'Tableau de bord'!$H:$H,\"Vanessa\")","v":{"$error":"#REF!"}},{"$f":"COUNTIFS('Tableau de bord'!$A:$A,\"2021\",'Tableau de bord'!$K:$K,\"Terminé\",'Tableau de bord'!#REF!,\"AVRIL\",'Tableau de bord'!$E:$E,\"FE\",'Tableau de bord'!$H:$H,\"Vanessa\")","v":{"$error":"#REF!"}},{"$f":"COUNTIFS('Tableau de bord'!$A:$A,\"2021\",'Tableau de bord'!$K:$K,\"Terminé\",'Tableau de bord'!#REF!,\"AVRIL\",'Tableau de bord'!$E:$E,\"EVAL CHIMIQUE\",'Tableau de bord'!$H:$H,\"Vanessa\")","v":{"$error":"#REF!"}},{"$f":"COUNTIFS('Tableau de bord'!$A:$A,\"2021\",'Tableau de bord'!$K:$K,\"Terminé\",'Tableau de bord'!#REF!,\"AVRIL\",'Tableau de bord'!$E:$E,\"CSE\",'Tableau de bord'!$H:$H,\"Vanessa\")","v":{"$error":"#REF!"}},{"$f":"COUNTIFS('Tableau de bord'!$A:$A,\"2021\",'Tableau de bord'!$K:$K,\"Terminé\",'Tableau de bord'!#REF!,\"AVRIL\",'Tableau de bord'!$E:$E,\"VISITE CHANTIER\",'Tableau de bord'!$H:$H,\"Vanessa\")","v":{"$error":"#REF!"}},{"$f":"COUNTIFS('Tableau de bord'!$A:$A,\"2021\",'Tableau de bord'!$K:$K,\"Terminé\",'Tableau de bord'!#REF!,\"AVRIL\",'Tableau de bord'!$E:$E,\"METROLOGIE\",'Tableau de bord'!$H:$H,\"Vanessa\")","v":{"$error":"#REF!"}},{"$f":"COUNTIFS('Tableau de bord'!$A:$A,\"2021\",'Tableau de bord'!$K:$K,\"Terminé\",'Tableau de bord'!#REF!,\"AVRIL\",'Tableau de bord'!$E:$E,\"AUTRE\",'Tableau de bord'!$H:$H,\"Vanessa\")","v":{"$error":"#REF!"}}]
["Mai",{"$f":"COUNTIFS('Tableau de bord'!A:A,\"2021\",'Tableau de bord'!#REF!,\"MAI\",'Tableau de bord'!H:H,\"Vanessa\")","v":{"$error":"#REF!"}},{"$f":"COUNTIFS('Tableau de bord'!A:A,\"2021\",'Tableau de bord'!E:E,\"EP\",'Tableau de bord'!#REF!,\"MAI\",'Tableau de bord'!H:H,\"Vanessa\")","v":{"$error":"#REF!"}},{"$f":"COUNTIFS('Tableau de bord'!A:A,\"2021\",'Tableau de bord'!E:E,\"FE\",'Tableau de bord'!#REF!,\"MAI\",'Tableau de bord'!H:H,\"Vanessa\")","v":{"$error":"#REF!"}},{"$f":"COUNTIFS('Tableau de bord'!$A:$A,\"2021\",'Tableau de bord'!$E:$E,\"EVAL CHIMIQUE\",'Tableau de bord'!#REF!,\"MAI\",'Tableau de bord'!$H:$H,\"Vanessa\")","v":{"$error":"#REF!"}},{"$f":"COUNTIFS('Tableau de bord'!$A:$A,\"2021\",'Tableau de bord'!$E:$E,\"CSE\",'Tableau de bord'!#REF!,\"MAI\",'Tableau de bord'!$H:$H,\"Vanessa\")","v":{"$error":"#REF!"}},{"$f":"COUNTIFS('Tableau de bord'!$A:$A,\"2021\",'Tableau de bord'!$E:$E,\"VISITE CHANTIER\",'Tableau de bord'!#REF!,\"MAI\",'Tableau de bord'!$H:$H,\"Vanessa\")","v":{"$error":"#REF!"}},{"$f":"COUNTIFS('Tableau de bord'!$A:$A,\"2021\",'Tableau de bord'!$E:$E,\"METROLOGIE\",'Tableau de bord'!#REF!,\"MAI\",'Tableau de bord'!$H:$H,\"Vanessa\")","v":{"$error":"#REF!"}},{"$f":"COUNTIFS('Tableau de bord'!A:A,\"2021\",'Tableau de bord'!E:E,\"AUTRE\",'Tableau de bord'!#REF!,\"MAI\",'Tableau de bord'!H:H,\"Vanessa\")","v":{"$error":"#REF!"}},{"$f":"COUNTIFS('Tableau de bord'!A:A,\"2021\",'Tableau de bord'!K:K,\"Terminé\",'Tableau de bord'!#REF!,\"MAI\",'Tableau de bord'!H:H,\"Vanessa\")","v":{"$error":"#REF!"}},{"$f":"COUNTIFS('Tableau de bord'!$A:$A,\"2021\",'Tableau de bord'!$K:$K,\"Terminé\",'Tableau de bord'!#REF!,\"MAI\",'Tableau de bord'!$E:$E,\"EP\",'Tableau de bord'!$H:$H,\"Vanessa\")","v":{"$error":"#REF!"}},{"$f":"COUNTIFS('Tableau de bord'!$A:$A,\"2021\",'Tableau de bord'!$K:$K,\"Terminé\",'Tableau de bord'!#REF!,\"MAI\",'Tableau de bord'!$E:$E,\"FE\",'Tableau de bord'!$H:$H,\"Vanessa\")","v":{"$error":"#REF!"}},{"$f":"COUNTIFS('Tableau de bord'!$A:$A,\"2021\",'Tableau de bord'!$K:$K,\"Terminé\",'Tableau de bord'!#REF!,\"MAI\",'Tableau de bord'!$E:$E,\"EVAL CHIMIQUE\",'Tableau de bord'!$H:$H,\"Vanessa\")","v":{"$error":"#REF!"}},{"$f":"COUNTIFS('Tableau de bord'!$A:$A,\"2021\",'Tableau de bord'!$K:$K,\"Terminé\",'Tableau de bord'!#REF!,\"MAI\",'Tableau de bord'!$E:$E,\"CSE\",'Tableau de bord'!$H:$H,\"Vanessa\")","v":{"$error":"#REF!"}},{"$f":"COUNTIFS('Tableau de bord'!$A:$A,\"2021\",'Tableau de bord'!$K:$K,\"Terminé\",'Tableau de bord'!#REF!,\"MAI\",'Tableau de bord'!$E:$E,\"VISITE CHANTIER\",'Tableau de bord'!$H:$H,\"Vanessa\")","v":{"$error":"#REF!"}},{"$f":"COUNTIFS('Tableau de bord'!$A:$A,\"2021\",'Tableau de bord'!$K:$K,\"Terminé\",'Tableau de bord'!#REF!,\"MAI\",'Tableau de bord'!$E:$E,\"METROLOGIE\",'Tableau de bord'!$H:$H,\"Vanessa\")","v":{"$error":"#REF!"}},{"$f":"COUNTIFS('Tableau de bord'!$A:$A,\"2021\",'Tableau de bord'!$K:$K,\"Terminé\",'Tableau de bord'!#REF!,\"MAI\",'Tableau de bord'!$E:$E,\"AUTRE\",'Tableau de bord'!$H:$H,\"Vanessa\")","v":{"$error":"#REF!"}}]
["Juin",{"$f":"COUNTIFS('Tableau de bord'!A:A,\"2021\",'Tableau de bord'!#REF!,\"JUIN\",'Tableau de bord'!H:H,\"Vanessa\")","v":{"$error":"#REF!"}},{"$f":"COUNTIFS('Tableau de bord'!A:A,\"2021\",'Tableau de bord'!E:E,\"EP\",'Tableau de bord'!#REF!,\"JUIN\",'Tableau de bord'!H:H,\"Vanessa\")","v":{"$error":"#REF!"}},{"$f":"COUNTIFS('Tableau de bord'!A:A,\"2021\",'Tableau de bord'!E:E,\"FE\",'Tableau de bord'!#REF!,\"JUIN\",'Tableau de bord'!H:H,\"Vanessa\")","v":{"$error":"#REF!"}},{"$f":"COUNTIFS('Tableau de bord'!$A:$A,\"2021\",'Tableau de bord'!$E:$E,\"EVAL CHIMIQUE\",'Tableau de bord'!#REF!,\"JUIN\",'Tableau de bord'!$H:$H,\"Vanessa\")","v":{"$error":"#REF!"}},{"$f":"COUNTIFS('Tableau de bord'!$A:$A,\"2021\",'Tableau de bord'!$E:$E,\"CSE\",'Tableau de bord'!#REF!,\"JUIN\",'Tableau de bord'!$H:$H,\"Vanessa\")","v":{"$error":"#REF!"}},{"$f":"COUNTIFS('Tableau de bord'!$A:$A,\"2021\",'Tableau de bord'!$E:$E,\"VISITE CHANTIER\",'Tableau de bord'!#REF!,\"JUIN\",'Tableau de bord'!$H:$H,\"Vanessa\")","v":{"$error":"#REF!"}},{"$f":"COUNTIFS('Tableau de bord'!$A:$A,\"2021\",'Tableau de bord'!$E:$E,\"METROLOGIE\",'Tableau de bord'!#REF!,\"JUIN\",'Tableau de bord'!$H:$H,\"Vanessa\")","v":{"$error":"#REF!"}},{"$f":"COUNTIFS('Tableau de bord'!A:A,\"2021\",'Tableau de bord'!E:E,\"AUTRE\",'Tableau de bord'!#REF!,\"JUIN\",'Tableau de bord'!H:H,\"Vanessa\")","v":{"$error":"#REF!"}},{"$f":"COUNTIFS('Tableau de bord'!A:A,\"2021\",'Tableau de bord'!K:K,\"Terminé\",'Tableau de bord'!#REF!,\"JUIN\",'Tableau de bord'!H:H,\"Vanessa\")","v":{"$error":"#REF!"}},{"$f":"COUNTIFS('Tableau de bord'!$A:$A,\"2021\",'Tableau de bord'!$K:$K,\"Terminé\",'Tableau de bord'!#REF!,\"JUIN\",'Tableau de bord'!$E:$E,\"EP\",'Tableau de bord'!$H:$H,\"Vanessa\")","v":{"$error":"#REF!"}},{"$f":"COUNTIFS('Tableau de bord'!$A:$A,\"2021\",'Tableau de bord'!$K:$K,\"Terminé\",'Tableau de bord'!#REF!,\"JUIN\",'Tableau de bord'!$E:$E,\"FE\",'Tableau de bord'!$H:$H,\"Vanessa\")","v":{"$error":"#REF!"}},{"$f":"COUNTIFS('Tableau de bord'!$A:$A,\"2021\",'Tableau de bord'!$K:$K,\"Terminé\",'Tableau de bord'!#REF!,\"JUIN\",'Tableau de bord'!$E:$E,\"EVAL CHIMIQUE\",'Tableau de bord'!$H:$H,\"Vanessa\")","v":{"$error":"#REF!"}},{"$f":"COUNTIFS('Tableau de bord'!$A:$A,\"2021\",'Tableau de bord'!$K:$K,\"Terminé\",'Tableau de bord'!#REF!,\"JUIN\",'Tableau de bord'!$E:$E,\"CSE\",'Tableau de bord'!$H:$H,\"Vanessa\")","v":{"$error":"#REF!"}},{"$f":"COUNTIFS('Tableau de bord'!$A:$A,\"2021\",'Tableau de bord'!$K:$K,\"Terminé\",'Tableau de bord'!#REF!,\"JUIN\",'Tableau de bord'!$E:$E,\"VISITE CHANTIER\",'Tableau de bord'!$H:$H,\"Vanessa\")","v":{"$error":"#REF!"}},{"$f":"COUNTIFS('Tableau de bord'!$A:$A,\"2021\",'Tableau de bord'!$K:$K,\"Terminé\",'Tableau de bord'!#REF!,\"JUIN\",'Tableau de bord'!$E:$E,\"METROLOGIE\",'Tableau de bord'!$H:$H,\"Vanessa\")","v":{"$error":"#REF!"}},{"$f":"COUNTIFS('Tableau de bord'!$A:$A,\"2021\",'Tableau de bord'!$K:$K,\"Terminé\",'Tableau de bord'!#REF!,\"JUIN\",'Tableau de bord'!$E:$E,\"AUTRE\",'Tableau de bord'!$H:$H,\"Vanessa\")","v":{"$error":"#REF!"}}]
["Juillet",{"$f":"COUNTIFS('Tableau de bord'!A:A,\"2021\",'Tableau de bord'!#REF!,\"JUILLET\",'Tableau de bord'!H:H,\"Vanessa\")","v":{"$error":"#REF!"}},{"$f":"COUNTIFS('Tableau de bord'!A:A,\"2021\",'Tableau de bord'!E:E,\"EP\",'Tableau de bord'!#REF!,\"JUILLET\",'Tableau de bord'!H:H,\"Vanessa\")","v":{"$error":"#REF!"}},{"$f":"COUNTIFS('Tableau de bord'!A:A,\"2021\",'Tableau de bord'!E:E,\"FE\",'Tableau de bord'!#REF!,\"JUILLET\",'Tableau de bord'!H:H,\"Vanessa\")","v":{"$error":"#REF!"}},{"$f":"COUNTIFS('Tableau de bord'!$A:$A,\"2021\",'Tableau de bord'!$E:$E,\"EVAL CHIMIQUE\",'Tableau de bord'!#REF!,\"JUILLET\",'Tableau de bord'!$H:$H,\"Vanessa\")","v":{"$error":"#REF!"}},{"$f":"COUNTIFS('Tableau de bord'!$A:$A,\"2021\",'Tableau de bord'!$E:$E,\"CSE\",'Tableau de bord'!#REF!,\"JUILLET\",'Tableau de bord'!$H:$H,\"Vanessa\")","v":{"$error":"#REF!"}},{"$f":"COUNTIFS('Tableau de bord'!$A:$A,\"2021\",'Tableau de bord'!$E:$E,\"VISITE CHANTIER\",'Tableau de bord'!#REF!,\"JUILLET\",'Tableau de bord'!$H:$H,\"Vanessa\")","v":{"$error":"#REF!"}},{"$f":"COUNTIFS('Tableau de bord'!$A:$A,\"2021\",'Tableau de bord'!$E:$E,\"METROLOGIE\",'Tableau de bord'!#REF!,\"JUILLET\",'Tableau de bord'!$H:$H,\"Vanessa\")","v":{"$error":"#REF!"}},{"$f":"COUNTIFS('Tableau de bord'!A:A,\"2021\",'Tableau de bord'!E:E,\"AUTRE\",'Tableau de bord'!#REF!,\"JUILLET\",'Tableau de bord'!H:H,\"Vanessa\")","v":{"$error":"#REF!"}},{"$f":"COUNTIFS('Tableau de bord'!A:A,\"2021\",'Tableau de bord'!K:K,\"Terminé\",'Tableau de bord'!#REF!,\"JUILLET\",'Tableau de bord'!H:H,\"Vanessa\")","v":{"$error":"#REF!"}},{"$f":"COUNTIFS('Tableau de bord'!$A:$A,\"2021\",'Tableau de bord'!$K:$K,\"Terminé\",'Tableau de bord'!#REF!,\"JUILLET\",'Tableau de bord'!$E:$E,\"EP\",'Tableau de bord'!$H:$H,\"Vanessa\")","v":{"$error":"#REF!"}},{"$f":"COUNTIFS('Tableau de bord'!$A:$A,\"2021\",'Tableau de bord'!$K:$K,\"Terminé\",'Tableau de bord'!#REF!,\"JUILLET\",'Tableau de bord'!$E:$E,\"FE\",'Tableau de bord'!$H:$H,\"Vanessa\")","v":{"$error":"#REF!"}},{"$f":"COUNTIFS('Tableau de bord'!$A:$A,\"2021\",'Tableau de bord'!$K:$K,\"Terminé\",'Tableau de bord'!#REF!,\"JUILLET\",'Tableau de bord'!$E:$E,\"EVAL CHIMIQUE\",'Tableau de bord'!$H:$H,\"Vanessa\")","v":{"$error":"#REF!"}},{"$f":"COUNTIFS('Tableau de bord'!$A:$A,\"2021\",'Tableau de bord'!$K:$K,\"Terminé\",'Tableau de bord'!#REF!,\"JUILLET\",'Tableau de bord'!$E:$E,\"CSE\",'Tableau de bord'!$H:$H,\"Vanessa\")","v":{"$error":"#REF!"}},{"$f":"COUNTIFS('Tableau de bord'!$A:$A,\"2021\",'Tableau de bord'!$K:$K,\"Terminé\",'Tableau de bord'!#REF!,\"JUILLET\",'Tableau de bord'!$E:$E,\"VISITE CHANTIER\",'Tableau de bord'!$H:$H,\"Vanessa\")","v":{"$error":"#REF!"}},{"$f":"COUNTIFS('Tableau de bord'!$A:$A,\"2021\",'Tableau de bord'!$K:$K,\"Terminé\",'Tableau de bord'!#REF!,\"JUILLET\",'Tableau de bord'!$E:$E,\"METROLOGIE\",'Tableau de bord'!$H:$H,\"Vanessa\")","v":{"$error":"#REF!"}},{"$f":"COUNTIFS('Tableau de bord'!$A:$A,\"2021\",'Tableau de bord'!$K:$K,\"Terminé\",'Tableau de bord'!#REF!,\"JUILLET\",'Tableau de bord'!$E:$E,\"AUTRE\",'Tableau de bord'!$H:$H,\"Vanessa\")","v":{"$error":"#REF!"}}]
["Août",{"$f":"COUNTIFS('Tableau de bord'!A:A,\"2021\",'Tableau de bord'!#REF!,\"AOUT\",'Tableau de bord'!H:H,\"Vanessa\")","v":{"$error":"#REF!"}},{"$f":"COUNTIFS('Tableau de bord'!A:A,\"2021\",'Tableau de bord'!E:E,\"EP\",'Tableau de bord'!#REF!,\"AOUT\",'Tableau de bord'!H:H,\"Vanessa\")","v":{"$error":"#REF!"}},{"$f":"COUNTIFS('Tableau de bord'!A:A,\"2021\",'Tableau de bord'!E:E,\"FE\",'Tableau de bord'!#REF!,\"AOUT\",'Tableau de bord'!H:H,\"Vanessa\")","v":{"$error":"#REF!"}},{"$f":"COUNTIFS('Tableau de bord'!$A:$A,\"2021\",'Tableau de bord'!$E:$E,\"EVAL CHIMIQUE\",'Tableau de bord'!#REF!,\"AOUT\",'Tableau de bord'!$H:$H,\"Vanessa\")","v":{"$error":"#REF!"}},{"$f":"COUNTIFS('Tableau de bord'!$A:$A,\"2021\",'Tableau de bord'!$E:$E,\"CSE\",'Tableau de bord'!#REF!,\"AOUT\",'Tableau de bord'!$H:$H,\"Vanessa\")","v":{"$error":"#REF!"}},{"$f":"COUNTIFS('Tableau de bord'!$A:$A,\"2021\",'Tableau de bord'!$E:$E,\"VISITE CHANTIER\",'Tableau de bord'!#REF!,\"AOUT\",'Tableau de bord'!$H:$H,\"Vanessa\")","v":{"$error":"#REF!"}},{"$f":"COUNTIFS('Tableau de bord'!$A:$A,\"2021\",'Tableau de bord'!$E:$E,\"METROLOGIE\",'Tableau de bord'!#REF!,\"AOUT\",'Tableau de bord'!$H:$H,\"Vanessa\")","v":{"$error":"#REF!"}},{"$f":"COUNTIFS('Tableau de bord'!A:A,\"2021\",'Tableau de bord'!E:E,\"AUTRE\",'Tableau de bord'!#REF!,\"AOUT\",'Tableau de bord'!H:H,\"Vanessa\")","v":{"$error":"#REF!"}},{"$f":"COUNTIFS('Tableau de bord'!A:A,\"2021\",'Tableau de bord'!K:K,\"Terminé\",'Tableau de bord'!#REF!,\"AOUT\",'Tableau de bord'!H:H,\"Vanessa\")","v":{"$error":"#REF!"}},{"$f":"COUNTIFS('Tableau de bord'!$A:$A,\"2021\",'Tableau de bord'!$K:$K,\"Terminé\",'Tableau de bord'!#REF!,\"AOUT\",'Tableau de bord'!$E:$E,\"EP\",'Tableau de bord'!$H:$H,\"Vanessa\")","v":{"$error":"#REF!"}},{"$f":"COUNTIFS('Tableau de bord'!$A:$A,\"2021\",'Tableau de bord'!$K:$K,\"Terminé\",'Tableau de bord'!#REF!,\"AOUT\",'Tableau de bord'!$E:$E,\"FE\",'Tableau de bord'!$H:$H,\"Vanessa\")","v":{"$error":"#REF!"}},{"$f":"COUNTIFS('Tableau de bord'!$A:$A,\"2021\",'Tableau de bord'!$K:$K,\"Terminé\",'Tableau de bord'!#REF!,\"AOUT\",'Tableau de bord'!$E:$E,\"EVAL CHIMIQUE\",'Tableau de bord'!$H:$H,\"Vanessa\")","v":{"$error":"#REF!"}},{"$f":"COUNTIFS('Tableau de bord'!$A:$A,\"2021\",'Tableau de bord'!$K:$K,\"Terminé\",'Tableau de bord'!#REF!,\"AOUT\",'Tableau de bord'!$E:$E,\"CSE\",'Tableau de bord'!$H:$H,\"Vanessa\")","v":{"$error":"#REF!"}},{"$f":"COUNTIFS('Tableau de bord'!$A:$A,\"2021\",'Tableau de bord'!$K:$K,\"Terminé\",'Tableau de bord'!#REF!,\"AOUT\",'Tableau de bord'!$E:$E,\"VISITE CHANTIER\",'Tableau de bord'!$H:$H,\"Vanessa\")","v":{"$error":"#REF!"}},{"$f":"COUNTIFS('Tableau de bord'!$A:$A,\"2021\",'Tableau de bord'!$K:$K,\"Terminé\",'Tableau de bord'!#REF!,\"AOUT\",'Tableau de bord'!$E:$E,\"METROLOGIE\",'Tableau de bord'!$H:$H,\"Vanessa\")","v":{"$error":"#REF!"}},{"$f":"COUNTIFS('Tableau de bord'!$A:$A,\"2021\",'Tableau de bord'!$K:$K,\"Terminé\",'Tableau de bord'!#REF!,\"AOUT\",'Tableau de bord'!$E:$E,\"AUTRE\",'Tableau de bord'!$H:$H,\"Vanessa\")","v":{"$error":"#REF!"}}]
["Septembre",{"$f":"COUNTIFS('Tableau de bord'!A:A,\"2021\",'Tableau de bord'!#REF!,\"SEPTEMBRE\",'Tableau de bord'!H:H,\"Vanessa\")","v":{"$error":"#REF!"}},{"$f":"COUNTIFS('Tableau de bord'!A:A,\"2021\",'Tableau de bord'!E:E,\"EP\",'Tableau de bord'!#REF!,\"SEPTEMBRE\",'Tableau de bord'!H:H,\"Vanessa\")","v":{"$error":"#REF!"}},{"$f":"COUNTIFS('Tableau de bord'!A:A,\"2021\",'Tableau de bord'!E:E,\"FE\",'Tableau de bord'!#REF!,\"SEPTEMBRE\",'Tableau de bord'!H:H,\"Vanessa\")","v":{"$error":"#REF!"}},{"$f":"COUNTIFS('Tableau de bord'!$A:$A,\"2021\",'Tableau de bord'!$E:$E,\"EVAL CHIMIQUE\",'Tableau de bord'!#REF!,\"SEPTEMBRE\",'Tableau de bord'!$H:$H,\"Vanessa\")","v":{"$error":"#REF!"}},{"$f":"COUNTIFS('Tableau de bord'!$A:$A,\"2021\",'Tableau de bord'!$E:$E,\"CSE\",'Tableau de bord'!#REF!,\"SEPTEMBRE\",'Tableau de bord'!$H:$H,\"Vanessa\")","v":{"$error":"#REF!"}},{"$f":"COUNTIFS('Tableau de bord'!$A:$A,\"2021\",'Tableau de bord'!$E:$E,\"VISITE CHANTIER\",'Tableau de bord'!#REF!,\"SEPTEMBRE\",'Tableau de bord'!$H:$H,\"Vanessa\")","v":{"$error":"#REF!"}},{"$f":"COUNTIFS('Tableau de bord'!$A:$A,\"2021\",'Tableau de bord'!$E:$E,\"METROLOGIE\",'Tableau de bord'!#REF!,\"SEPTEMBRE\",'Tableau de bord'!$H:$H,\"Vanessa\")","v":{"$error":"#REF!"}},{"$f":"COUNTIFS('Tableau de bord'!A:A,\"2021\",'Tableau de bord'!E:E,\"AUTRE\",'Tableau de bord'!#REF!,\"SEPTEMBRE\",'Tableau de bord'!H:H,\"Vanessa\")","v":{"$error":"#REF!"}},{"$f":"COUNTIFS('Tableau de bord'!A:A,\"2021\",'Tableau de bord'!K:K,\"Terminé\",'Tableau de bord'!#REF!,\"SEPTEMBRE\",'Tableau de bord'!H:H,\"Vanessa\")","v":{"$error":"#REF!"}},{"$f":"COUNTIFS('Tableau de bord'!$A:$A,\"2021\",'Tableau de bord'!$K:$K,\"Terminé\",'Tableau de bord'!#REF!,\"SEPTEMBRE\",'Tableau de bord'!$E:$E,\"EP\",'Tableau de bord'!$H:$H,\"Vanessa\")","v":{"$error":"#REF!"}},{"$f":"COUNTIFS('Tableau de bord'!$A:$A,\"2021\",'Tableau de bord'!$K:$K,\"Terminé\",'Tableau de bord'!#REF!,\"SEPTEMBRE\",'Tableau de bord'!$E:$E,\"FE\",'Tableau de bord'!$H:$H,\"Vanessa\")","v":{"$error":"#REF!"}},{"$f":"COUNTIFS('Tableau de bord'!$A:$A,\"2021\",'Tableau de bord'!$K:$K,\"Terminé\",'Tableau de bord'!#REF!,\"SEPTEMBRE\",'Tableau de bord'!$E:$E,\"EVAL CHIMIQUE\",'Tableau de bord'!$H:$H,\"Vanessa\")","v":{"$error":"#REF!"}},{"$f":"COUNTIFS('Tableau de bord'!$A:$A,\"2021\",'Tableau de bord'!$K:$K,\"Terminé\",'Tableau de bord'!#REF!,\"SEPTEMBRE\",'Tableau de bord'!$E:$E,\"CSE\",'Tableau de bord'!$H:$H,\"Vanessa\")","v":{"$error":"#REF!"}},{"$f":"COUNTIFS('Tableau de bord'!$A:$A,\"2021\",'Tableau de bord'!$K:$K,\"Terminé\",'Tableau de bord'!#REF!,\"SEPTEMBRE\",'Tableau de bord'!$E:$E,\"VISITE CHANTIER\",'Tableau de bord'!$H:$H,\"Vanessa\")","v":{"$error":"#REF!"}},{"$f":"COUNTIFS('Tableau de bord'!$A:$A,\"2021\",'Tableau de bord'!$K:$K,\"Terminé\",'Tableau de bord'!#REF!,\"SEPTEMBRE\",'Tableau de bord'!$E:$E,\"METROLOGIE\",'Tableau de bord'!$H:$H,\"Vanessa\")","v":{"$error":"#REF!"}},{"$f":"COUNTIFS('Tableau de bord'!$A:$A,\"2021\",'Tableau de bord'!$K:$K,\"Terminé\",'Tableau de bord'!#REF!,\"SEPTEMBRE\",'Tableau de bord'!$E:$E,\"AUTRE\",'Tableau de bord'!$H:$H,\"Vanessa\")","v":{"$error":"#REF!"}}]
["Octobre",{"$f":"COUNTIFS('Tableau de bord'!A:A,\"2021\",'Tableau de bord'!#REF!,\"OCTOBRE\",'Tableau de bord'!H:H,\"Vanessa\")","v":{"$error":"#REF!"}},{"$f":"COUNTIFS('Tableau de bord'!A:A,\"2021\",'Tableau de bord'!E:E,\"EP\",'Tableau de bord'!#REF!,\"OCTOBRE\",'Tableau de bord'!H:H,\"Vanessa\")","v":{"$error":"#REF!"}},{"$f":"COUNTIFS('Tableau de bord'!A:A,\"2021\",'Tableau de bord'!E:E,\"FE\",'Tableau de bord'!#REF!,\"OCTOBRE\",'Tableau de bord'!H:H,\"Vanessa\")","v":{"$error":"#REF!"}},{"$f":"COUNTIFS('Tableau de bord'!$A:$A,\"2021\",'Tableau de bord'!$E:$E,\"EVAL CHIMIQUE\",'Tableau de bord'!#REF!,\"OCTOBRE\",'Tableau de bord'!$H:$H,\"Vanessa\")","v":{"$error":"#REF!"}},{"$f":"COUNTIFS('Tableau de bord'!$A:$A,\"2021\",'Tableau de bord'!$E:$E,\"CSE\",'Tableau de bord'!#REF!,\"OCTOBRE\",'Tableau de bord'!$H:$H,\"Vanessa\")","v":{"$error":"#REF!"}},{"$f":"COUNTIFS('Tableau de bord'!$A:$A,\"2021\",'Tableau de bord'!$E:$E,\"VISITE CHANTIER\",'Tableau de bord'!#REF!,\"OCTOBRE\",'Tableau de bord'!$H:$H,\"Vanessa\")","v":{"$error":"#REF!"}},{"$f":"COUNTIFS('Tableau de bord'!$A:$A,\"2021\",'Tableau de bord'!$E:$E,\"METROLOGIE\",'Tableau de bord'!#REF!,\"OCTOBRE\",'Tableau de bord'!$H:$H,\"Vanessa\")","v":{"$error":"#REF!"}},{"$f":"COUNTIFS('Tableau de bord'!A:A,\"2021\",'Tableau de bord'!E:E,\"AUTRE\",'Tableau de bord'!#REF!,\"OCTOBRE\",'Tableau de bord'!H:H,\"Vanessa\")","v":{"$error":"#REF!"}},{"$f":"COUNTIFS('Tableau de bord'!A:A,\"2021\",'Tableau de bord'!K:K,\"Terminé\",'Tableau de bord'!#REF!,\"OCTOBRE\",'Tableau de bord'!H:H,\"Vanessa\")","v":{"$error":"#REF!"}},{"$f":"COUNTIFS('Tableau de bord'!$A:$A,\"2021\",'Tableau de bord'!$K:$K,\"Terminé\",'Tableau de bord'!#REF!,\"OCTOBRE\",'Tableau de bord'!$E:$E,\"EP\",'Tableau de bord'!$H:$H,\"Vanessa\")","v":{"$error":"#REF!"}},{"$f":"COUNTIFS('Tableau de bord'!$A:$A,\"2021\",'Tableau de bord'!$K:$K,\"Terminé\",'Tableau de bord'!#REF!,\"OCTOBRE\",'Tableau de bord'!$E:$E,\"FE\",'Tableau de bord'!$H:$H,\"Vanessa\")","v":{"$error":"#REF!"}},{"$f":"COUNTIFS('Tableau de bord'!$A:$A,\"2021\",'Tableau de bord'!$K:$K,\"Terminé\",'Tableau de bord'!#REF!,\"OCTOBRE\",'Tableau de bord'!$E:$E,\"EVAL CHIMIQUE\",'Tableau de bord'!$H:$H,\"Vanessa\")","v":{"$error":"#REF!"}},{"$f":"COUNTIFS('Tableau de bord'!$A:$A,\"2021\",'Tableau de bord'!$K:$K,\"Terminé\",'Tableau de bord'!#REF!,\"OCTOBRE\",'Tableau de bord'!$E:$E,\"CSE\",'Tableau de bord'!$H:$H,\"Vanessa\")","v":{"$error":"#REF!"}},{"$f":"COUNTIFS('Tableau de bord'!$A:$A,\"2021\",'Tableau de bord'!$K:$K,\"Terminé\",'Tableau de bord'!#REF!,\"OCTOBRE\",'Tableau de bord'!$E:$E,\"VISITE CHANTIER\",'Tableau de bord'!$H:$H,\"Vanessa\")","v":{"$error":"#REF!"}},{"$f":"COUNTIFS('Tableau de bord'!$A:$A,\"2021\",'Tableau de bord'!$K:$K,\"Terminé\",'Tableau de bord'!#REF!,\"OCTOBRE\",'Tableau de bord'!$E:$E,\"METROLOGIE\",'Tableau de bord'!$H:$H,\"Vanessa\")","v":{"$error":"#REF!"}},{"$f":"COUNTIFS('Tableau de bord'!$A:$A,\"2021\",'Tableau de bord'!$K:$K,\"Terminé\",'Tableau de bord'!#REF!,\"OCTOBRE\",'Tableau de bord'!$E:$E,\"AUTRE\",'Tableau de bord'!$H:$H,\"Vanessa\")","v":{"$error":"#REF!"}}]
["Novembre",{"$f":"COUNTIFS('Tableau de bord'!A:A,\"2021\",'Tableau de bord'!#REF!,\"NOVEMBRE\",'Tableau de bord'!H:H,\"Vanessa\")","v":{"$error":"#REF!"}},{"$f":"COUNTIFS('Tableau de bord'!A:A,\"2021\",'Tableau de bord'!E:E,\"EP\",'Tableau de bord'!#REF!,\"NOVEMBRE\",'Tableau de bord'!H:H,\"Vanessa\")","v":{"$error":"#REF!"}},{"$f":"COUNTIFS('Tableau de bord'!A:A,\"2021\",'Tableau de bord'!E:E,\"FE\",'Tableau de bord'!#REF!,\"NOVEMBRE\",'Tableau de bord'!H:H,\"Vanessa\")","v":{"$error":"#REF!"}},{"$f":"COUNTIFS('Tableau de bord'!$A:$A,\"2021\",'Tableau de bord'!$E:$E,\"EVAL CHIMIQUE\",'Tableau de bord'!#REF!,\"NOVEMBRE\",'Tableau de bord'!$H:$H,\"Vanessa\")","v":{"$error":"#REF!"}},{"$f":"COUNTIFS('Tableau de bord'!$A:$A,\"2021\",'Tableau de bord'!$E:$E,\"CSE\",'Tableau de bord'!#REF!,\"NOVEMBRE\",'Tableau de bord'!$H:$H,\"Vanessa\")","v":{"$error":"#REF!"}},{"$f":"COUNTIFS('Tableau de bord'!$A:$A,\"2021\",'Tableau de bord'!$E:$E,\"VISITE CHANTIER\",'Tableau de bord'!#REF!,\"NOVEMBRE\",'Tableau de bord'!$H:$H,\"Vanessa\")","v":{"$error":"#REF!"}},{"$f":"COUNTIFS('Tableau de bord'!$A:$A,\"2021\",'Tableau de bord'!$E:$E,\"METROLOGIE\",'Tableau de bord'!#REF!,\"NOVEMBRE\",'Tableau de bord'!$H:$H,\"Vanessa\")","v":{"$error":"#REF!"}},{"$f":"COUNTIFS('Tableau de bord'!A:A,\"2021\",'Tableau de bord'!E:E,\"AUTRE\",'Tableau de bord'!#REF!,\"NOVEMBRE\",'Tableau de bord'!H:H,\"Vanessa\")","v":{"$error":"#REF!"}},{"$f":"COUNTIFS('Tableau de bord'!A:A,\"2021\",'Tableau de bord'!K:K,\"Terminé\",'Tableau de bord'!#REF!,\"NOVEMBRE\",'Tableau de bord'!H:H,\"Vanessa\")","v":{"$error":"#REF!"}},{"$f":"COUNTIFS('Tableau de bord'!$A:$A,\"2021\",'Tableau de bord'!$K:$K,\"Terminé\",'Tableau de bord'!#REF!,\"NOVEMBRE\",'Tableau de bord'!$E:$E,\"EP\",'Tableau de bord'!$H:$H,\"Vanessa\")","v":{"$error":"#REF!"}},{"$f":"COUNTIFS('Tableau de bord'!$A:$A,\"2021\",'Tableau de bord'!$K:$K,\"Terminé\",'Tableau de bord'!#REF!,\"NOVEMBRE\",'Tableau de bord'!$E:$E,\"FE\",'Tableau de bord'!$H:$H,\"Vanessa\")","v":{"$error":"#REF!"}},{"$f":"COUNTIFS('Tableau de bord'!$A:$A,\"2021\",'Tableau de bord'!$K:$K,\"Terminé\",'Tableau de bord'!#REF!,\"NOVEMBRE\",'Tableau de bord'!$E:$E,\"EVAL CHIMIQUE\",'Tableau de bord'!$H:$H,\"Vanessa\")","v":{"$error":"#REF!"}},{"$f":"COUNTIFS('Tableau de bord'!$A:$A,\"2021\",'Tableau de bord'!$K:$K,\"Terminé\",'Tableau de bord'!#REF!,\"NOVEMBRE\",'Tableau de bord'!$E:$E,\"CSE\",'Tableau de bord'!$H:$H,\"Vanessa\")","v":{"$error":"#REF!"}},{"$f":"COUNTIFS('Tableau de bord'!$A:$A,\"2021\",'Tableau de bord'!$K:$K,\"Terminé\",'Tableau de bord'!#REF!,\"NOVEMBRE\",'Tableau de bord'!$E:$E,\"VISITE CHANTIER\",'Tableau de bord'!$H:$H,\"Vanessa\")","v":{"$error":"#REF!"}},{"$f":"COUNTIFS('Tableau de bord'!$A:$A,\"2021\",'Tableau de bord'!$K:$K,\"Terminé\",'Tableau de bord'!#REF!,\"NOVEMBRE\",'Tableau de bord'!$E:$E,\"METROLOGIE\",'Tableau de bord'!$H:$H,\"Vanessa\")","v":{"$error":"#REF!"}},{"$f":"COUNTIFS('Tableau de bord'!$A:$A,\"2021\",'Tableau de bord'!$K:$K,\"Terminé\",'Tableau de bord'!#REF!,\"NOVEMBRE\",'Tableau de bord'!$E:$E,\"AUTRE\",'Tableau de bord'!$H:$H,\"Vanessa\")","v":{"$error":"#REF!"}}]
["Décembre",{"$f":"COUNTIFS('Tableau de bord'!A:A,\"2021\",'Tableau de bord'!#REF!,\"DECEMBRE\",'Tableau de bord'!H:H,\"Vanessa\")","v":{"$error":"#REF!"}},{"$f":"COUNTIFS('Tableau de bord'!A:A,\"2021\",'Tableau de bord'!E:E,\"EP\",'Tableau de bord'!#REF!,\"DECEMBRE\",'Tableau de bord'!H:H,\"Vanessa\")","v":{"$error":"#REF!"}},{"$f":"COUNTIFS('Tableau de bord'!A:A,\"2021\",'Tableau de bord'!E:E,\"FE\",'Tableau de bord'!#REF!,\"DECEMBRE\",'Tableau de bord'!H:H,\"Vanessa\")","v":{"$error":"#REF!"}},{"$f":"COUNTIFS('Tableau de bord'!$A:$A,\"2021\",'Tableau de bord'!$E:$E,\"EVAL CHIMIQUE\",'Tableau de bord'!#REF!,\"DECEMBRE\",'Tableau de bord'!$H:$H,\"Vanessa\")","v":{"$error":"#REF!"}},{"$f":"COUNTIFS('Tableau de bord'!$A:$A,\"2021\",'Tableau de bord'!$E:$E,\"CSE\",'Tableau de bord'!#REF!,\"DECEMBRE\",'Tableau de bord'!$H:$H,\"Vanessa\")","v":{"$error":"#REF!"}},{"$f":"COUNTIFS('Tableau de bord'!$A:$A,\"2021\",'Tableau de bord'!$E:$E,\"VISITE CHANTIER\",'Tableau de bord'!#REF!,\"DECEMBRE\",'Tableau de bord'!$H:$H,\"Vanessa\")","v":{"$error":"#REF!"}},{"$f":"COUNTIFS('Tableau de bord'!$A:$A,\"2021\",'Tableau de bord'!$E:$E,\"METROLOGIE\",'Tableau de bord'!#REF!,\"DECEMBRE\",'Tableau de bord'!$H:$H,\"Vanessa\")","v":{"$error":"#REF!"}},{"$f":"COUNTIFS('Tableau de bord'!A:A,\"2021\",'Tableau de bord'!E:E,\"AUTRE\",'Tableau de bord'!#REF!,\"DECEMBRE\",'Tableau de bord'!H:H,\"Vanessa\")","v":{"$error":"#REF!"}},{"$f":"COUNTIFS('Tableau de bord'!A:A,\"2021\",'Tableau de bord'!K:K,\"Terminé\",'Tableau de bord'!#REF!,\"DECEMBRE\",'Tableau de bord'!H:H,\"Vanessa\")","v":{"$error":"#REF!"}},{"$f":"COUNTIFS('Tableau de bord'!$A:$A,\"2021\",'Tableau de bord'!$K:$K,\"Terminé\",'Tableau de bord'!#REF!,\"DECEMBRE\",'Tableau de bord'!$E:$E,\"EP\",'Tableau de bord'!$H:$H,\"Vanessa\")","v":{"$error":"#REF!"}},{"$f":"COUNTIFS('Tableau de bord'!$A:$A,\"2021\",'Tableau de bord'!$K:$K,\"Terminé\",'Tableau de bord'!#REF!,\"DECEMBRE\",'Tableau de bord'!$E:$E,\"FE\",'Tableau de bord'!$H:$H,\"Vanessa\")","v":{"$error":"#REF!"}},{"$f":"COUNTIFS('Tableau de bord'!$A:$A,\"2021\",'Tableau de bord'!$K:$K,\"Terminé\",'Tableau de bord'!#REF!,\"DECEMBRE\",'Tableau de bord'!$E:$E,\"EVAL CHIMIQUE\",'Tableau de bord'!$H:$H,\"Vanessa\")","v":{"$error":"#REF!"}},{"$f":"COUNTIFS('Tableau de bord'!$A:$A,\"2021\",'Tableau de bord'!$K:$K,\"Terminé\",'Tableau de bord'!#REF!,\"DECEMBRE\",'Tableau de bord'!$E:$E,\"CSE\",'Tableau de bord'!$H:$H,\"Vanessa\")","v":{"$error":"#REF!"}},{"$f":"COUNTIFS('Tableau de bord'!$A:$A,\"2021\",'Tableau de bord'!$K:$K,\"Terminé\",'Tableau de bord'!#REF!,\"DECEMBRE\",'Tableau de bord'!$E:$E,\"VISITE CHANTIER\",'Tableau de bord'!$H:$H,\"Vanessa\")","v":{"$error":"#REF!"}},{"$f":"COUNTIFS('Tableau de bord'!$A:$A,\"2021\",'Tableau de bord'!$K:$K,\"Terminé\",'Tableau de bord'!#REF!,\"DECEMBRE\",'Tableau de bord'!$E:$E,\"METROLOGIE\",'Tableau de bord'!$H:$H,\"Vanessa\")","v":{"$error":"#REF!"}},{"$f":"COUNTIFS('Tableau de bord'!$A:$A,\"2021\",'Tableau de bord'!$K:$K,\"Terminé\",'Tableau de bord'!#REF!,\"DECEMBRE\",'Tableau de bord'!$E:$E,\"AUTRE\",'Tableau de bord'!$H:$H,\"Vanessa\")","v":{"$error":"#REF!"}}]
["TOTAL",{"$f":"SUM(B5:B14)","v":{"$error":"#REF!"}},{"$f":"SUM(C5:C14)","v":{"$error":"#REF!"}},{"$error":"#REF!"},{"$error":"#REF!"},{"$error":"#REF!"},{"$error":"#REF!"},{"$error":"#REF!"},{"$f":"SUM(I5:I14)","v":{"$error":"#REF!"}},{"$error":"#REF!"},{"$error":"#REF!"},{"$error":"#REF!"},{"$error":"#REF!"},{"$error":"#REF!"},{"$error":"#REF!"},{"$error":"#REF!"},{"$error":"#REF!"}]
[]
[]
[]
["Nombre d'action demandées/finalisées  par médecin"]
["Médecin","Nb d'actions demandées","EP","FE","EVAL CHIMIQUE","CSE","VISITE CHANTIER","METROLOGIE","AUTRE","Nb d'actions finalisées","EP","FE","EVAL CHIMIQUE","CSE","VISITE CHANTIER","METROLOGIE","AUTRE","ATTENTE VALIDATION"]
["Dr DEPEZEVILLE",{"$f":"COUNTIFS('Tableau de bord'!A:A,\"2021\",'Tableau de bord'!G:G,\"Dr. DEPEZEVILLE\",'Tableau de bord'!H:H,\"Vanessa\")","v":3},{"$f":"COUNTIFS('Tableau de bord'!A:A,\"2021\",'Tableau de bord'!$G:$G,\"Dr. DEPEZEVILLE\",'Tableau de bord'!$E:$E,\"EP\",'Tableau de bord'!$H:$H,\"Vanessa\")","v":0},{"$f":"COUNTIFS('Tableau de bord'!$A:$A,\"2021\",'Tableau de bord'!$G:$G,\"Dr. DEPEZEVILLE\",'Tableau de bord'!$E:$E,\"FE\",'Tableau de bord'!$H:$H,\"Vanessa\")","v":3},{"$f":"COUNTIFS('Tableau de bord'!$A:$A,\"2021\",'Tableau de bord'!$G:$G,\"Dr. DEPEZEVILLE\",'Tableau de bord'!$E:$E,\"EVAL CHIMIQUE\",'Tableau de bord'!$H:$H,\"Vanessa\")","v":0},{"$f":"COUNTIFS('Tableau de bord'!$A:$A,\"2021\",'Tableau de bord'!$G:$G,\"Dr. DEPEZEVILLE\",'Tableau de bord'!$E:$E,\"CSE\",'Tableau de bord'!$H:$H,\"Vanessa\")","v":0},{"$f":"COUNTIFS('Tableau de bord'!$A:$A,\"2021\",'Tableau de bord'!$G:$G,\"Dr. DEPEZEVILLE\",'Tableau de bord'!$E:$E,\"VISITE CHANTIER\",'Tableau de bord'!$H:$H,\"Vanessa\")","v":0},{"$f":"COUNTIFS('Tableau de bord'!$A:$A,\"2021\",'Tableau de bord'!$G:$G,\"Dr. DEPEZEVILLE\",'Tableau de bord'!$E:$E,\"METROLOGIE\",'Tableau de bord'!$H:$H,\"Vanessa\")","v":0},{"$f":"COUNTIFS('Tableau de bord'!A:A,\"2021\",'Tableau de bord'!$G:$G,\"Dr. DEPEZEVILLE\",'Tableau de bord'!$E:$E,\"AUTRE\",'Tableau de bord'!$H:$H,\"Vanessa\")","v":0},{"$f":"COUNTIFS('Tableau de bord'!$A:$A,\"2021\",'Tableau de bord'!$G:$G,\"Dr. DEPEZEVILLE\",'Tableau de bord'!$K:$K,\"Terminé\",'Tableau de bord'!$H:$H,\"Vanessa\")","v":3},{"$f":"COUNTIFS('Tableau de bord'!$A:$A,\"2021\",'Tableau de bord'!$G:$G,\"Dr. DEPEZEVILLE\",'Tableau de bord'!$E:$E,\"EP\",'Tableau de bord'!$K:$K,\"Terminé\",'Tableau de bord'!$H:$H,\"Vanessa\")","v":0},{"$f":"COUNTIFS('Tableau de bord'!$A:$A,\"2021\",'Tableau de bord'!$G:$G,\"Dr. DEPEZEVILLE\",'Tableau de bord'!$E:$E,\"FE\",'Tableau de bord'!$K:$K,\"Terminé\",'Tableau de bord'!$H:$H,\"Vanessa\")","v":3},{"$f":"COUNTIFS('Tableau de bord'!$A:$A,\"2021\",'Tableau de bord'!$G:$G,\"Dr. DEPEZEVILLE\",'Tableau de bord'!$E:$E,\"EVAL CHIMIQUE\",'Tableau de bord'!$K:$K,\"Terminé\",'Tableau de bord'!$H:$H,\"Vanessa\")","v":0},{"$f":"COUNTIFS('Tableau de bord'!$A:$A,\"2021\",'Tableau de bord'!$G:$G,\"Dr. DEPEZEVILLE\",'Tableau de bord'!$E:$E,\"CSE\",'Tableau de bord'!$K:$K,\"Terminé\",'Tableau de bord'!$H:$H,\"Vanessa\")","v":0},{"$f":"COUNTIFS('Tableau de bord'!$A:$A,\"2021\",'Tableau de bord'!$G:$G,\"Dr. DEPEZEVILLE\",'Tableau de bord'!$E:$E,\"VISITE CHANTIER\",'Tableau de bord'!$K:$K,\"Terminé\",'Tableau de bord'!$H:$H,\"Vanessa\")","v":0},{"$f":"COUNTIFS('Tableau de bord'!$A:$A,\"2021\",'Tableau de bord'!$G:$G,\"Dr. DEPEZEVILLE\",'Tableau de bord'!$E:$E,\"METROLOGIE\",'Tableau de bord'!$K:$K,\"Terminé\",'Tableau de bord'!$H:$H,\"Vanessa\")","v":0},{"$f":"COUNTIFS('Tableau de bord'!$A:$A,\"2021\",'Tableau de bord'!$G:$G,\"Dr. DEPEZEVILLE\",'Tableau de bord'!$E:$E,\"AUTRE\",'Tableau de bord'!$K:$K,\"Terminé\",'Tableau de bord'!$H:$H,\"Vanessa\")","v":0},{"$f":"COUNTIFS('Tableau de bord'!$G:$G,\"Dr. DEPEZEVILLE\",'Tableau de bord'!$H:$H,\"Vanessa\",'Tableau de bord'!$K:$K,\"Terminé\",'Tableau de bord'!O:O,\"\")","v":2}]
["Dr FAVARETTO",{"$f":"COUNTIFS('Tableau de bord'!A:A,\"2021\",'Tableau de bord'!G:G,\"Dr. FAVARETTO\",'Tableau de bord'!H:H,\"Vanessa\")","v":0},{"$f":"COUNTIFS('Tableau de bord'!A:A,\"2021\",'Tableau de bord'!$G:$G,\"Dr. FAVARETTO\",'Tableau de bord'!$E:$E,\"EP\",'Tableau de bord'!$H:$H,\"Vanessa\")","v":0},{"$f":"COUNTIFS('Tableau de bord'!$A:$A,\"2021\",'Tableau de bord'!$G:$G,\"Dr. FAVARETTO\",'Tableau de bord'!$E:$E,\"FE\",'Tableau de bord'!$H:$H,\"Vanessa\")","v":0},{"$f":"COUNTIFS('Tableau de bord'!$A:$A,\"2021\",'Tableau de bord'!$G:$G,\"Dr. FAVARETTO\",'Tableau de bord'!$E:$E,\"EVAL CHIMIQUE\",'Tableau de bord'!$H:$H,\"Vanessa\")","v":0},{"$f":"COUNTIFS('Tableau de bord'!$A:$A,\"2021\",'Tableau de bord'!$G:$G,\"Dr. FAVARETTO\",'Tableau de bord'!$E:$E,\"CSE\",'Tableau de bord'!$H:$H,\"Vanessa\")","v":0},{"$f":"COUNTIFS('Tableau de bord'!$A:$A,\"2021\",'Tableau de bord'!$G:$G,\"Dr. FAVARETTO\",'Tableau de bord'!$E:$E,\"VISITE CHANTIER\",'Tableau de bord'!$H:$H,\"Vanessa\")","v":0},{"$f":"COUNTIFS('Tableau de bord'!$A:$A,\"2021\",'Tableau de bord'!$G:$G,\"Dr. FAVARETTO\",'Tableau de bord'!$E:$E,\"METROLOGIE\",'Tableau de bord'!$H:$H,\"Vanessa\")","v":0},{"$f":"COUNTIFS('Tableau de bord'!A:A,\"2021\",'Tableau de bord'!$G:$G,\"Dr. FAVARETTO\",'Tableau de bord'!$E:$E,\"AUTRE\",'Tableau de bord'!$H:$H,\"Vanessa\")","v":0},{"$f":"COUNTIFS('Tableau de bord'!$A:$A,\"2021\",'Tableau de bord'!$G:$G,\"Dr. FAVARETTO\",'Tableau de bord'!$K:$K,\"Terminé\",'Tableau de bord'!$H:$H,\"Vanessa\")","v":0},{"$f":"COUNTIFS('Tableau de bord'!$A:$A,\"2021\",'Tableau de bord'!$G:$G,\"Dr. FAVARETTO\",'Tableau de bord'!$E:$E,\"EP\",'Tableau de bord'!$K:$K,\"Terminé\",'Tableau de bord'!$H:$H,\"Vanessa\")","v":0},{"$f":"COUNTIFS('Tableau de bord'!$A:$A,\"2021\",'Tableau de bord'!$G:$G,\"Dr. FAVARETTO\",'Tableau de bord'!$E:$E,\"FE\",'Tableau de bord'!$K:$K,\"Terminé\",'Tableau de bord'!$H:$H,\"Vanessa\")","v":0},{"$f":"COUNTIFS('Tableau de bord'!$A:$A,\"2021\",'Tableau de bord'!$G:$G,\"Dr. FAVARETTO\",'Tableau de bord'!$E:$E,\"EVAL CHIMIQUE\",'Tableau de bord'!$K:$K,\"Terminé\",'Tableau de bord'!$H:$H,\"Vanessa\")","v":0},{"$f":"COUNTIFS('Tableau de bord'!$A:$A,\"2021\",'Tableau de bord'!$G:$G,\"Dr. FAVARETTO\",'Tableau de bord'!$E:$E,\"CSE\",'Tableau de bord'!$K:$K,\"Terminé\",'Tableau de bord'!$H:$H,\"Vanessa\")","v":0},{"$f":"COUNTIFS('Tableau de bord'!$A:$A,\"2021\",'Tableau de bord'!$G:$G,\"Dr. FAVARETTO\",'Tableau de bord'!$E:$E,\"VISITE CHANTIER\",'Tableau de bord'!$K:$K,\"Terminé\",'Tableau de bord'!$H:$H,\"Vanessa\")","v":0},{"$f":"COUNTIFS('Tableau de bord'!$A:$A,\"2021\",'Tableau de bord'!$G:$G,\"Dr. FAVARETTO\",'Tableau de bord'!$E:$E,\"METROLOGIE\",'Tableau de bord'!$K:$K,\"Terminé\",'Tableau de bord'!$H:$H,\"Vanessa\")","v":0},{"$f":"COUNTIFS('Tableau de bord'!$A:$A,\"2021\",'Tableau de bord'!$G:$G,\"Dr. FAVARETTO\",'Tableau de bord'!$E:$E,\"AUTRE\",'Tableau de bord'!$K:$K,\"Terminé\",'Tableau de bord'!$H:$H,\"Vanessa\")","v":0},{"$f":"COUNTIFS('Tableau de bord'!$G:$G,\"Dr. FAVARETTO\",'Tableau de bord'!$H:$H,\"Vanessa\",'Tableau de bord'!$K:$K,\"Terminé\",'Tableau de bord'!O:O,\"\")","v":0}]
["Dr HAPPEY",{"$f":"COUNTIFS('Tableau de bord'!A:A,\"2021\",'Tableau de bord'!G:G,\"Dr. HAPPEY\",'Tableau de bord'!H:H,\"Vanessa\")","v":2},{"$f":"COUNTIFS('Tableau de bord'!A:A,\"2021\",'Tableau de bord'!$G:$G,\"Dr. HAPPEY\",'Tableau de bord'!$E:$E,\"EP\",'Tableau de bord'!$H:$H,\"Vanessa\")","v":0},{"$f":"COUNTIFS('Tableau de bord'!$A:$A,\"2021\",'Tableau de bord'!$G:$G,\"Dr. HAPPEY\",'Tableau de bord'!$E:$E,\"FE\",'Tableau de bord'!$H:$H,\"Vanessa\")","v":1},{"$f":"COUNTIFS('Tableau de bord'!$A:$A,\"2021\",'Tableau de bord'!$G:$G,\"Dr. HAPPEY\",'Tableau de bord'!$E:$E,\"EVAL CHIMIQUE\",'Tableau de bord'!$H:$H,\"Vanessa\")","v":1},{"$f":"COUNTIFS('Tableau de bord'!$A:$A,\"2021\",'Tableau de bord'!$G:$G,\"Dr. HAPPEY\",'Tableau de bord'!$E:$E,\"CSE\",'Tableau de bord'!$H:$H,\"Vanessa\")","v":0},{"$f":"COUNTIFS('Tableau de bord'!$A:$A,\"2021\",'Tableau de bord'!$G:$G,\"Dr. HAPPEY\",'Tableau de bord'!$E:$E,\"VISITE CHANTIER\",'Tableau de bord'!$H:$H,\"Vanessa\")","v":0},{"$f":"COUNTIFS('Tableau de bord'!$A:$A,\"2021\",'Tableau de bord'!$G:$G,\"Dr. HAPPEY\",'Tableau de bord'!$E:$E,\"METROLOGIE\",'Tableau de bord'!$H:$H,\"Vanessa\")","v":0},{"$f":"COUNTIFS('Tableau de bord'!A:A,\"2021\",'Tableau de bord'!$G:$G,\"Dr. HAPPEY\",'Tableau de bord'!$E:$E,\"AUTRE\",'Tableau de bord'!$H:$H,\"Vanessa\")","v":0},{"$f":"COUNTIFS('Tableau de bord'!$A:$A,\"2021\",'Tableau de bord'!$G:$G,\"Dr. HAPPEY\",'Tableau de bord'!$K:$K,\"Terminé\",'Tableau de bord'!$H:$H,\"Vanessa\")","v":2},{"$f":"COUNTIFS('Tableau de bord'!$A:$A,\"2021\",'Tableau de bord'!$G:$G,\"Dr. HAPPEY\",'Tableau de bord'!$E:$E,\"EP\",'Tableau de bord'!$K:$K,\"Terminé\",'Tableau de bord'!$H:$H,\"Vanessa\")","v":0},{"$f":"COUNTIFS('Tableau de bord'!$A:$A,\"2021\",'Tableau de bord'!$G:$G,\"Dr. HAPPEY\",'Tableau de bord'!$E:$E,\"FE\",'Tableau de bord'!$K:$K,\"Terminé\",'Tableau de bord'!$H:$H,\"Vanessa\")","v":1},{"$f":"COUNTIFS('Tableau de bord'!$A:$A,\"2021\",'Tableau de bord'!$G:$G,\"Dr. HAPPEY\",'Tableau de bord'!$E:$E,\"EVAL CHIMIQUE\",'Tableau de bord'!$K:$K,\"Terminé\",'Tableau de bord'!$H:$H,\"Vanessa\")","v":1},{"$f":"COUNTIFS('Tableau de bord'!$A:$A,\"2021\",'Tableau de bord'!$G:$G,\"Dr. HAPPEY\",'Tableau de bord'!$E:$E,\"CSE\",'Tableau de bord'!$K:$K,\"Terminé\",'Tableau de bord'!$H:$H,\"Vanessa\")","v":0},{"$f":"COUNTIFS('Tableau de bord'!$A:$A,\"2021\",'Tableau de bord'!$G:$G,\"Dr. HAPPEY\",'Tableau de bord'!$E:$E,\"VISITE CHANTIER\",'Tableau de bord'!$K:$K,\"Terminé\",'Tableau de bord'!$H:$H,\"Vanessa\")","v":0},{"$f":"COUNTIFS('Tableau de bord'!$A:$A,\"2021\",'Tableau de bord'!$G:$G,\"Dr. HAPPEY\",'Tableau de bord'!$E:$E,\"METROLOGIE\",'Tableau de bord'!$K:$K,\"Terminé\",'Tableau de bord'!$H:$H,\"Vanessa\")","v":0},{"$f":"COUNTIFS('Tableau de bord'!$A:$A,\"2021\",'Tableau de bord'!$G:$G,\"Dr. HAPPEY\",'Tableau de bord'!$E:$E,\"AUTRE\",'Tableau de bord'!$K:$K,\"Terminé\",'Tableau de bord'!$H:$H,\"Vanessa\")","v":0},{"$f":"COUNTIFS('Tableau de bord'!$G:$G,\"Dr. HAPPEY\",'Tableau de bord'!$H:$H,\"Vanessa\",'Tableau de bord'!$K:$K,\"Terminé\",'Tableau de bord'!O:O,\"\")","v":3}]
["Dr JEANNE",{"$f":"COUNTIFS('Tableau de bord'!A:A,\"2021\",'Tableau de bord'!G:G,\"Dr. JEANNE\",'Tableau de bord'!H:H,\"Vanessa\")","v":5},{"$f":"COUNTIFS('Tableau de bord'!A:A,\"2021\",'Tableau de bord'!$G:$G,\"Dr. JEANNE\",'Tableau de bord'!$E:$E,\"EP\",'Tableau de bord'!$H:$H,\"Vanessa\")","v":1},{"$f":"COUNTIFS('Tableau de bord'!$A:$A,\"2021\",'Tableau de bord'!$G:$G,\"Dr. JEANNE\",'Tableau de bord'!$E:$E,\"FE\",'Tableau de bord'!$H:$H,\"Vanessa\")","v":4},{"$f":"COUNTIFS('Tableau de bord'!$A:$A,\"2021\",'Tableau de bord'!$G:$G,\"Dr. JEANNE\",'Tableau de bord'!$E:$E,\"EVAL CHIMIQUE\",'Tableau de bord'!$H:$H,\"Vanessa\")","v":0},{"$f":"COUNTIFS('Tableau de bord'!$A:$A,\"2021\",'Tableau de bord'!$G:$G,\"Dr. JEANNE\",'Tableau de bord'!$E:$E,\"CSE\",'Tableau de bord'!$H:$H,\"Vanessa\")","v":0},{"$f":"COUNTIFS('Tableau de bord'!$A:$A,\"2021\",'Tableau de bord'!$G:$G,\"Dr. JEANNE\",'Tableau de bord'!$E:$E,\"VISITE CHANTIER\",'Tableau de bord'!$H:$H,\"Vanessa\")","v":0},{"$f":"COUNTIFS('Tableau de bord'!$A:$A,\"2021\",'Tableau de bord'!$G:$G,\"Dr. JEANNE\",'Tableau de bord'!$E:$E,\"METROLOGIE\",'Tableau de bord'!$H:$H,\"Vanessa\")","v":0},{"$f":"COUNTIFS('Tableau de bord'!A:A,\"2021\",'Tableau de bord'!$G:$G,\"Dr. JEANNE\",'Tableau de bord'!$E:$E,\"AUTRE\",'Tableau de bord'!$H:$H,\"Vanessa\")","v":0},{"$f":"COUNTIFS('Tableau de bord'!$A:$A,\"2021\",'Tableau de bord'!$G:$G,\"Dr. JEANNE\",'Tableau de bord'!$K:$K,\"Terminé\",'Tableau de bord'!$H:$H,\"Vanessa\")","v":4},{"$f":"COUNTIFS('Tableau de bord'!$A:$A,\"2021\",'Tableau de bord'!$G:$G,\"Dr. JEANNE\",'Tableau de bord'!$E:$E,\"EP\",'Tableau de bord'!$K:$K,\"Terminé\",'Tableau de bord'!$H:$H,\"Vanessa\")","v":0},{"$f":"COUNTIFS('Tableau de bord'!$A:$A,\"2021\",'Tableau de bord'!$G:$G,\"Dr. JEANNE\",'Tableau de bord'!$E:$E,\"FE\",'Tableau de bord'!$K:$K,\"Terminé\",'Tableau de bord'!$H:$H,\"Vanessa\")","v":4},{"$f":"COUNTIFS('Tableau de bord'!$A:$A,\"2021\",'Tableau de bord'!$G:$G,\"Dr. JEANNE\",'Tableau de bord'!$E:$E,\"EVAL CHIMIQUE\",'Tableau de bord'!$K:$K,\"Terminé\",'Tableau de bord'!$H:$H,\"Vanessa\")","v":0},{"$f":"COUNTIFS('Tableau de bord'!$A:$A,\"2021\",'Tableau de bord'!$G:$G,\"Dr. JEANNE\",'Tableau de bord'!$E:$E,\"CSE\",'Tableau de bord'!$K:$K,\"Terminé\",'Tableau de bord'!$H:$H,\"Vanessa\")","v":0},{"$f":"COUNTIFS('Tableau de bord'!$A:$A,\"2021\",'Tableau de bord'!$G:$G,\"Dr. JEANNE\",'Tableau de bord'!$E:$E,\"VISITE CHANTIER\",'Tableau de bord'!$K:$K,\"Terminé\",'Tableau de bord'!$H:$H,\"Vanessa\")","v":0},{"$f":"COUNTIFS('Tableau de bord'!$A:$A,\"2021\",'Tableau de bord'!$G:$G,\"Dr. JEANNE\",'Tableau de bord'!$E:$E,\"METROLOGIE\",'Tableau de bord'!$K:$K,\"Terminé\",'Tableau de bord'!$H:$H,\"Vanessa\")","v":0},{"$f":"COUNTIFS('Tableau de bord'!$A:$A,\"2021\",'Tableau de bord'!$G:$G,\"Dr. JEANNE\",'Tableau de bord'!$E:$E,\"AUTRE\",'Tableau de bord'!$K:$K,\"Terminé\",'Tableau de bord'!$H:$H,\"Vanessa\")","v":0},{"$f":"COUNTIFS('Tableau de bord'!$G:$G,\"Dr. JEANNE\",'Tableau de bord'!$H:$H,\"Vanessa\",'Tableau de bord'!$K:$K,\"Terminé\",'Tableau de bord'!O:O,\"\")","v":0}]
["Dr MOULIN",{"$f":"COUNTIFS('Tableau de bord'!A:A,\"2021\",'Tableau de bord'!G:G,\"Dr. MOULIN\",'Tableau de bord'!H:H,\"Vanessa\")","v":0},{"$f":"COUNTIFS('Tableau de bord'!A:A,\"2021\",'Tableau de bord'!$G:$G,\"Dr. MOULIN\",'Tableau de bord'!$E:$E,\"EP\",'Tableau de bord'!$H:$H,\"Vanessa\")","v":0},{"$f":"COUNTIFS('Tableau de bord'!$A:$A,\"2021\",'Tableau de bord'!$G:$G,\"Dr. MOULIN\",'Tableau de bord'!$E:$E,\"FE\",'Tableau de bord'!$H:$H,\"Vanessa\")","v":0},{"$f":"COUNTIFS('Tableau de bord'!$A:$A,\"2021\",'Tableau de bord'!$G:$G,\"Dr. MOULIN\",'Tableau de bord'!$E:$E,\"EVAL CHIMIQUE\",'Tableau de bord'!$H:$H,\"Vanessa\")","v":0},{"$f":"COUNTIFS('Tableau de bord'!$A:$A,\"2021\",'Tableau de bord'!$G:$G,\"Dr. MOULIN\",'Tableau de bord'!$E:$E,\"CSE\",'Tableau de bord'!$H:$H,\"Vanessa\")","v":0},{"$f":"COUNTIFS('Tableau de bord'!$A:$A,\"2021\",'Tableau de bord'!$G:$G,\"Dr. MOULIN\",'Tableau de bord'!$E:$E,\"VISITE CHANTIER\",'Tableau de bord'!$H:$H,\"Vanessa\")","v":0},{"$f":"COUNTIFS('Tableau de bord'!$A:$A,\"2021\",'Tableau de bord'!$G:$G,\"Dr. MOULIN\",'Tableau de bord'!$E:$E,\"METROLOGIE\",'Tableau de bord'!$H:$H,\"Vanessa\")","v":0},{"$f":"COUNTIFS('Tableau de bord'!A:A,\"2021\",'Tableau de bord'!$G:$G,\"Dr. MOULIN\",'Tableau de bord'!$E:$E,\"AUTRE\",'Tableau de bord'!$H:$H,\"Vanessa\")","v":0},{"$f":"COUNTIFS('Tableau de bord'!$A:$A,\"2021\",'Tableau de bord'!$G:$G,\"Dr. MOULIN\",'Tableau de bord'!$K:$K,\"Terminé\",'Tableau de bord'!$H:$H,\"Vanessa\")","v":0},{"$f":"COUNTIFS('Tableau de bord'!$A:$A,\"2021\",'Tableau de bord'!$G:$G,\"Dr. MOULIN\",'Tableau de bord'!$E:$E,\"EP\",'Tableau de bord'!$K:$K,\"Terminé\",'Tableau de bord'!$H:$H,\"Vanessa\")","v":0},{"$f":"COUNTIFS('Tableau de bord'!$A:$A,\"2021\",'Tableau de bord'!$G:$G,\"Dr. MOULIN\",'Tableau de bord'!$E:$E,\"FE\",'Tableau de bord'!$K:$K,\"Terminé\",'Tableau de bord'!$H:$H,\"Vanessa\")","v":0},{"$f":"COUNTIFS('Tableau de bord'!$A:$A,\"2021\",'Tableau de bord'!$G:$G,\"Dr. MOULIN\",'Tableau de bord'!$E:$E,\"EVAL CHIMIQUE\",'Tableau de bord'!$K:$K,\"Terminé\",'Tableau de bord'!$H:$H,\"Vanessa\")","v":0},{"$f":"COUNTIFS('Tableau de bord'!$A:$A,\"2021\",'Tableau de bord'!$G:$G,\"Dr. MOULIN\",'Tableau de bord'!$E:$E,\"CSE\",'Tableau de bord'!$K:$K,\"Terminé\",'Tableau de bord'!$H:$H,\"Vanessa\")","v":0},{"$f":"COUNTIFS('Tableau de bord'!$A:$A,\"2021\",'Tableau de bord'!$G:$G,\"Dr. MOULIN\",'Tableau de bord'!$E:$E,\"VISITE CHANTIER\",'Tableau de bord'!$K:$K,\"Terminé\",'Tableau de bord'!$H:$H,\"Vanessa\")","v":0},{"$f":"COUNTIFS('Tableau de bord'!$A:$A,\"2021\",'Tableau de bord'!$G:$G,\"Dr. MOULIN\",'Tableau de bord'!$E:$E,\"METROLOGIE\",'Tableau de bord'!$K:$K,\"Terminé\",'Tableau de bord'!$H:$H,\"Vanessa\")","v":0},{"$f":"COUNTIFS('Tableau de bord'!$A:$A,\"2021\",'Tableau de bord'!$G:$G,\"Dr. MOULIN\",'Tableau de bord'!$E:$E,\"AUTRE\",'Tableau de bord'!$K:$K,\"Terminé\",'Tableau de bord'!$H:$H,\"Vanessa\")","v":0},{"$f":"COUNTIFS('Tableau de bord'!$G:$G,\"Dr. MOULIN\",'Tableau de bord'!$H:$H,\"Vanessa\",'Tableau de bord'!$K:$K,\"Terminé\",'Tableau de bord'!O:O,\"\")","v":1}]
["Dr NEE",{"$f":"COUNTIFS('Tableau de bord'!A:A,\"2021\",'Tableau de bord'!G:G,\"Dr. NEE\",'Tableau de bord'!H:H,\"Vanessa\")","v":0},{"$f":"COUNTIFS('Tableau de bord'!A:A,\"2021\",'Tableau de bord'!$G:$G,\"Dr. NEE\",'Tableau de bord'!$E:$E,\"EP\",'Tableau de bord'!$H:$H,\"Vanessa\")","v":0},{"$f":"COUNTIFS('Tableau de bord'!$A:$A,\"2021\",'Tableau de bord'!$G:$G,\"Dr. NEE\",'Tableau de bord'!$E:$E,\"FE\",'Tableau de bord'!$H:$H,\"Vanessa\")","v":0},{"$f":"COUNTIFS('Tableau de bord'!$A:$A,\"2021\",'Tableau de bord'!$G:$G,\"Dr. NEE\",'Tableau de bord'!$E:$E,\"EVAL CHIMIQUE\",'Tableau de bord'!$H:$H,\"Vanessa\")","v":0},{"$f":"COUNTIFS('Tableau de bord'!$A:$A,\"2021\",'Tableau de bord'!$G:$G,\"Dr. NEE\",'Tableau de bord'!$E:$E,\"CSE\",'Tableau de bord'!$H:$H,\"Vanessa\")","v":0},{"$f":"COUNTIFS('Tableau de bord'!$A:$A,\"2021\",'Tableau de bord'!$G:$G,\"Dr. NEE\",'Tableau de bord'!$E:$E,\"VISITE CHANTIER\",'Tableau de bord'!$H:$H,\"Vanessa\")","v":0},{"$f":"COUNTIFS('Tableau de bord'!$A:$A,\"2021\",'Tableau de bord'!$G:$G,\"Dr. NEE\",'Tableau de bord'!$E:$E,\"METROLOGIE\",'Tableau de bord'!$H:$H,\"Vanessa\")","v":0},{"$f":"COUNTIFS('Tableau de bord'!A:A,\"2021\",'Tableau de bord'!$G:$G,\"Dr. NEE\",'Tableau de bord'!$E:$E,\"AUTRE\",'Tableau de bord'!$H:$H,\"Vanessa\")","v":0},{"$f":"COUNTIFS('Tableau de bord'!$A:$A,\"2021\",'Tableau de bord'!$G:$G,\"Dr. NEE\",'Tableau de bord'!$K:$K,\"Terminé\",'Tableau de bord'!$H:$H,\"Vanessa\")","v":0},{"$f":"COUNTIFS('Tableau de bord'!$A:$A,\"2021\",'Tableau de bord'!$G:$G,\"Dr. NEE\",'Tableau de bord'!$E:$E,\"EP\",'Tableau de bord'!$K:$K,\"Terminé\",'Tableau de bord'!$H:$H,\"Vanessa\")","v":0},{"$f":"COUNTIFS('Tableau de bord'!$A:$A,\"2021\",'Tableau de bord'!$G:$G,\"Dr. NEE\",'Tableau de bord'!$E:$E,\"FE\",'Tableau de bord'!$K:$K,\"Terminé\",'Tableau de bord'!$H:$H,\"Vanessa\")","v":0},{"$f":"COUNTIFS('Tableau de bord'!$A:$A,\"2021\",'Tableau de bord'!$G:$G,\"Dr. NEE\",'Tableau de bord'!$E:$E,\"EVAL CHIMIQUE\",'Tableau de bord'!$K:$K,\"Terminé\",'Tableau de bord'!$H:$H,\"Vanessa\")","v":0},{"$f":"COUNTIFS('Tableau de bord'!$A:$A,\"2021\",'Tableau de bord'!$G:$G,\"Dr. NEE\",'Tableau de bord'!$E:$E,\"CSE\",'Tableau de bord'!$K:$K,\"Terminé\",'Tableau de bord'!$H:$H,\"Vanessa\")","v":0},{"$f":"COUNTIFS('Tableau de bord'!$A:$A,\"2021\",'Tableau de bord'!$G:$G,\"Dr. NEE\",'Tableau de bord'!$E:$E,\"VISITE CHANTIER\",'Tableau de bord'!$K:$K,\"Terminé\",'Tableau de bord'!$H:$H,\"Vanessa\")","v":0},{"$f":"COUNTIFS('Tableau de bord'!$A:$A,\"2021\",'Tableau de bord'!$G:$G,\"Dr. NEE\",'Tableau de bord'!$E:$E,\"METROLOGIE\",'Tableau de bord'!$K:$K,\"Terminé\",'Tableau de bord'!$H:$H,\"Vanessa\")","v":0},{"$f":"COUNTIFS('Tableau de bord'!$A:$A,\"2021\",'Tableau de bord'!$G:$G,\"Dr. NEE\",'Tableau de bord'!$E:$E,\"AUTRE\",'Tableau de bord'!$K:$K,\"Terminé\",'Tableau de bord'!$H:$H,\"Vanessa\")","v":0},{"$f":"COUNTIFS('Tableau de bord'!$G:$G,\"Dr. NEE\",'Tableau de bord'!$H:$H,\"Vanessa\",'Tableau de bord'!$K:$K,\"Terminé\",'Tableau de bord'!O:O,\"\")","v":1}]
["Dr SABATHIER",{"$f":"COUNTIFS('Tableau de bord'!A:A,\"2021\",'Tableau de bord'!G:G,\"Dr. SABATHIER\",'Tableau de bord'!H:H,\"Vanessa\")","v":3},{"$f":"COUNTIFS('Tableau de bord'!A:A,\"2021\",'Tableau de bord'!$G:$G,\"Dr. SABATHIER\",'Tableau de bord'!$E:$E,\"EP\",'Tableau de bord'!$H:$H,\"Vanessa\")","v":1},{"$f":"COUNTIFS('Tableau de bord'!$A:$A,\"2021\",'Tableau de bord'!$G:$G,\"Dr. SABATHIER\",'Tableau de bord'!$E:$E,\"FE\",'Tableau de bord'!$H:$H,\"Vanessa\")","v":1},{"$f":"COUNTIFS('Tableau de bord'!$A:$A,\"2021\",'Tableau de bord'!$G:$G,\"Dr. SABATHIER\",'Tableau de bord'!$E:$E,\"EVAL CHIMIQUE\",'Tableau de bord'!$H:$H,\"Vanessa\")","v":0},{"$f":"COUNTIFS('Tableau de bord'!$A:$A,\"2021\",'Tableau de bord'!$G:$G,\"Dr. SABATHIER\",'Tableau de bord'!$E:$E,\"CSE\",'Tableau de bord'!$H:$H,\"Vanessa\")","v":0},{"$f":"COUNTIFS('Tableau de bord'!$A:$A,\"2021\",'Tableau de bord'!$G:$G,\"Dr. SABATHIER\",'Tableau de bord'!$E:$E,\"VISITE CHANTIER\",'Tableau de bord'!$H:$H,\"Vanessa\")","v":0},{"$f":"COUNTIFS('Tableau de bord'!$A:$A,\"2021\",'Tableau de bord'!$G:$G,\"Dr. SABATHIER\",'Tableau de bord'!$E:$E,\"METROLOGIE\",'Tableau de bord'!$H:$H,\"Vanessa\")","v":1},{"$f":"COUNTIFS('Tableau de bord'!A:A,\"2021\",'Tableau de bord'!$G:$G,\"Dr. SABATHIER\",'Tableau de bord'!$E:$E,\"AUTRE\",'Tableau de bord'!$H:$H,\"Vanessa\")","v":0},{"$f":"COUNTIFS('Tableau de bord'!$A:$A,\"2021\",'Tableau de bord'!$G:$G,\"Dr. SABATHIER\",'Tableau de bord'!$K:$K,\"Terminé\",'Tableau de bord'!$H:$H,\"Vanessa\")","v":1},{"$f":"COUNTIFS('Tableau de bord'!$A:$A,\"2021\",'Tableau de bord'!$G:$G,\"Dr. SABATHIER\",'Tableau de bord'!$E:$E,\"EP\",'Tableau de bord'!$K:$K,\"Terminé\",'Tableau de bord'!$H:$H,\"Vanessa\")","v":0},{"$f":"COUNTIFS('Tableau de bord'!$A:$A,\"2021\",'Tableau de bord'!$G:$G,\"Dr. SABATHIER\",'Tableau de bord'!$E:$E,\"FE\",'Tableau de bord'!$K:$K,\"Terminé\",'Tableau de bord'!$H:$H,\"Vanessa\")","v":1},{"$f":"COUNTIFS('Tableau de bord'!$A:$A,\"2021\",'Tableau de bord'!$G:$G,\"Dr. SABATHIER\",'Tableau de bord'!$E:$E,\"EVAL CHIMIQUE\",'Tableau de bord'!$K:$K,\"Terminé\",'Tableau de bord'!$H:$H,\"Vanessa\")","v":0},{"$f":"COUNTIFS('Tableau de bord'!$A:$A,\"2021\",'Tableau de bord'!$G:$G,\"Dr. SABATHIER\",'Tableau de bord'!$E:$E,\"CSE\",'Tableau de bord'!$K:$K,\"Terminé\",'Tableau de bord'!$H:$H,\"Vanessa\")","v":0},{"$f":"COUNTIFS('Tableau de bord'!$A:$A,\"2021\",'Tableau de bord'!$G:$G,\"Dr. SABATHIER\",'Tableau de bord'!$E:$E,\"VISITE CHANTIER\",'Tableau de bord'!$K:$K,\"Terminé\",'Tableau de bord'!$H:$H,\"Vanessa\")","v":0},{"$f":"COUNTIFS('Tableau de bord'!$A:$A,\"2021\",'Tableau de bord'!$G:$G,\"Dr. SABATHIER\",'Tableau de bord'!$E:$E,\"METROLOGIE\",'Tableau de bord'!$K:$K,\"Terminé\",'Tableau de bord'!$H:$H,\"Vanessa\")","v":0},{"$f":"COUNTIFS('Tableau de bord'!$A:$A,\"2021\",'Tableau de bord'!$G:$G,\"Dr. SABATHIER\",'Tableau de bord'!$E:$E,\"AUTRE\",'Tableau de bord'!$K:$K,\"Terminé\",'Tableau de bord'!$H:$H,\"Vanessa\")","v":0},{"$f":"COUNTIFS('Tableau de bord'!$G:$G,\"Dr. SABATHIER\",'Tableau de bord'!$H:$H,\"Vanessa\",'Tableau de bord'!$K:$K,\"Terminé\",'Tableau de bord'!O:O,\"\")","v":0}]
["TOTAL",{"$f":"SUM(B21:B27)","v":13},2,{"$f":"SUM(D21:D27)","v":9},1,0,0,1,{"$f":"SUM(I21:I27)","v":0},10,0,9,1,0,0,0,0,7]

{"sheet":"Mathieur_21","index":3,"n_rows":28,"n_cols":18,"rows_kept":28,"cut":false,"hidden":true,"merged":[[0,0,0,16],[18,0,18,17]]}
["Nombre d'action demandées/finalisées  par mois"]
["Mois","Nb d'actions demandées","EP","FE","EVAL CHIMIQUE","CSE","VISITE CHANTIER","METROLOGIE","AUTRE","Nb d'actions finalisées","EP","FE","EVAL CHIMIQUE","CSE","VISITE CHANTIER","METROLOGIE","AUTRE"]
["Janvier","NA","NA","NA","NA","NA","NA","NA","NA","NA","NA","NA","NA","NA","NA","NA","NA"]
["Février","NA","NA","NA","NA","NA","NA","NA","NA","NA","NA","NA","NA","NA","NA","NA","NA"]
["Mars",{"$f":"COUNTIFS('Tableau de bord'!A:A,\"2021\",'Tableau de bord'!#REF!,\"MARS\",'Tableau de bord'!H:H,\"Mathieu\")","v":{"$error":"#REF!"}},{"$f":"COUNTIFS('Tableau de bord'!A:A,\"2021\",'Tableau de bord'!E:E,\"EP\",'Tableau de bord'!#REF!,\"MARS\",'Tableau de bord'!H:H,\"Mathieu\")","v":{"$error":"#REF!"}},{"$f":"COUNTIFS('Tableau de bord'!$A:$A,\"2021\",'Tableau de bord'!$E:$E,\"FE\",'Tableau de bord'!#REF!,\"MARS\",'Tableau de bord'!$H:$H,\"Mathieu\")","v":{"$error":"#REF!"}},{"$f":"COUNTIFS('Tableau de bord'!$A:$A,\"2021\",'Tableau de bord'!$E:$E,\"EVAL CHIMIQUE\",'Tableau de bord'!#REF!,\"MARS\",'Tableau de bord'!$H:$H,\"Mathieu\")","v":{"$error":"#REF!"}},{"$f":"COUNTIFS('Tableau de bord'!$A:$A,\"2021\",'Tableau de bord'!$E:$E,\"CSE\",'Tableau de bord'!#REF!,\"MARS\",'Tableau de bord'!$H:$H,\"Mathieu\")","v":{"$error":"#REF!"}},{"$f":"COUNTIFS('Tableau de bord'!$A:$A,\"2021\",'Tableau de bord'!$E:$E,\"VISITE CHANTIER\",'Tableau de bord'!#REF!,\"MARS\",'Tableau de bord'!$H:$H,\"Mathieu\")","v":{"$error":"#REF!"}},{"$f":"COUNTIFS('Tableau de bord'!$A:$A,\"2021\",'Tableau de bord'!$E:$E,\"METROLOGIE\",'Tableau de bord'!#REF!,\"MARS\",'Tableau de bord'!$H:$H,\"Mathieu\")","v":{"$error":"#REF!"}},{"$f":"COUNTIFS('Tableau de bord'!A:A,\"2021\",'Tableau de bord'!E:E,\"AUTRE\",'Tableau de bord'!#REF!,\"MARS\",'Tableau de bord'!H:H,\"Mathieu\")","v":{"$error":"#REF!"}},{"$f":"COUNTIFS('Tableau de bord'!A:A,\"2021\",'Tableau de bord'!K:K,\"Terminé\",'Tableau de bord'!#REF!,\"MARS\",'Tableau de bord'!H:H,\"Mathieu\")","v":{"$error":"#REF!"}},{"$f":"COUNTIFS('Tableau de bord'!$A:$A,\"2021\",'Tableau de bord'!$K:$K,\"Terminé\",'Tableau de bord'!#REF!,\"MARS\",'Tableau de bord'!$E:$E,\"EP\",'Tableau de bord'!$H:$H,\"Mathieu\")","v":{"$error":"#REF!"}},{"$f":"COUNTIFS('Tableau de bord'!$A:$A,\"2021\",'Tableau de bord'!$K:$K,\"Terminé\",'Tableau de bord'!#REF!,\"MARS\",'Tableau de bord'!$E:$E,\"FE\",'Tableau de bord'!$H:$H,\"Mathieu\")","v":{"$error":"#REF!"}},{"$f":"COUNTIFS('Tableau de bord'!$A:$A,\"2021\",'Tableau de bord'!$K:$K,\"Terminé\",'Tableau de bord'!#REF!,\"MARS\",'Tableau de bord'!$E:$E,\"EVAL CHIMIQUE\",'Tableau de bord'!$H:$H,\"Mathieu\")","v":{"$error":"#REF!"}},{"$f":"COUNTIFS('Tableau de bord'!$A:$A,\"2021\",'Tableau de bord'!$K:$K,\"Terminé\",'Tableau de bord'!#REF!,\"MARS\",'Tableau de bord'!$E:$E,\"CSE\",'Tableau de bord'!$H:$H,\"Mathieu\")","v":{"$error":"#REF!"}},{"$f":"COUNTIFS('Tableau de bord'!$A:$A,\"2021\",'Tableau de bord'!$K:$K,\"Terminé\",'Tableau de bord'!#REF!,\"MARS\",'Tableau de bord'!$E:$E,\"VISITE CHANTIER\",'Tableau de bord'!$H:$H,\"Mathieu\")","v":{"$error":"#REF!"}},{"$f":"COUNTIFS('Tableau de bord'!$A:$A,\"2021\",'Tableau de bord'!$K:$K,\"Terminé\",'Tableau de bord'!#REF!,\"MARS\",'Tableau de bord'!$E:$E,\"METROLOGIE\",'Tableau de bord'!$H:$H,\"Mathieu\")","v":{"$error":"#REF!"}},{"$f":"COUNTIFS('Tableau de bord'!$A:$A,\"2021\",'Tableau de bord'!$K:$K,\"Terminé\",'Tableau de bord'!#REF!,\"MARS\",'Tableau de bord'!$E:$E,\"AUTRE\",'Tableau de bord'!$H:$H,\"Mathieu\")","v":{"$error":"#REF!"}}]
["Avril",{"$f":"COUNTIFS('Tableau de bord'!A:A,\"2021\",'Tableau de bord'!#REF!,\"AVRIL\",'Tableau de bord'!H:H,\"Mathieu\")","v":{"$error":"#REF!"}},{"$f":"COUNTIFS('Tableau de bord'!A:A,\"2021\",'Tableau de bord'!E:E,\"EP\",'Tableau de bord'!#REF!,\"AVRIL\",'Tableau de bord'!H:H,\"Mathieu\")","v":{"$error":"#REF!"}},{"$f":"COUNTIFS('Tableau de bord'!A:A,\"2021\",'Tableau de bord'!E:E,\"FE\",'Tableau de bord'!#REF!,\"AVRIL\",'Tableau de bord'!H:H,\"Mathieu\")","v":{"$error":"#REF!"}},{"$f":"COUNTIFS('Tableau de bord'!$A:$A,\"2021\",'Tableau de bord'!$E:$E,\"EVAL CHIMIQUE\",'Tableau de bord'!#REF!,\"AVRIL\",'Tableau de bord'!$H:$H,\"Mathieu\")","v":{"$error":"#REF!"}},{"$f":"COUNTIFS('Tableau de bord'!$A:$A,\"2021\",'Tableau de bord'!$E:$E,\"CSE\",'Tableau de bord'!#REF!,\"AVRIL\",'Tableau de bord'!$H:$H,\"Mathieu\")","v":{"$error":"#REF!"}},{"$f":"COUNTIFS('Tableau de bord'!$A:$A,\"2021\",'Tableau de bord'!$E:$E,\"VISITE CHANTIER\",'Tableau de bord'!#REF!,\"AVRIL\",'Tableau de bord'!$H:$H,\"Mathieu\")","v":{"$error":"#REF!"}},{"$f":"COUNTIFS('Tableau de bord'!$A:$A,\"2021\",'Tableau de bord'!$E:$E,\"METROLOGIE\",'Tableau de bord'!#REF!,\"AVRIL\",'Tableau de bord'!$H:$H,\"Mathieu\")","v":{"$error":"#REF!"}},{"$f":"COUNTIFS('Tableau de bord'!A:A,\"2021\",'Tableau de bord'!E:E,\"AUTRE\",'Tableau de bord'!#REF!,\"AVRIL\",'Tableau de bord'!H:H,\"Mathieu\")","v":{"$error":"#REF!"}},{"$f":"COUNTIFS('Tableau de bord'!A:A,\"2021\",'Tableau de bord'!K:K,\"Terminé\",'Tableau de bord'!#REF!,\"AVRIL\",'Tableau de bord'!H:H,\"Mathieu\")","v":{"$error":"#REF!"}},{"$f":"COUNTIFS('Tableau de bord'!$A:$A,\"2021\",'Tableau de bord'!$K:$K,\"Terminé\",'Tableau de bord'!#REF!,\"AVRIL\",'Tableau de bord'!$E:$E,\"EP\",'Tableau de bord'!$H:$H,\"Mathieu\")","v":{"$error":"#REF!"}},{"$f":"COUNTIFS('Tableau de bord'!$A:$A,\"2021\",'Tableau de bord'!$K:$K,\"Terminé\",'Tableau de bord'!#REF!,\"AVRIL\",'Tableau de bord'!$E:$E,\"FE\",'Tableau de bord'!$H:$H,\"Mathieu\")","v":{"$error":"#REF!"}},{"$f":"COUNTIFS('Tableau de bord'!$A:$A,\"2021\",'Tableau de bord'!$K:$K,\"Terminé\",'Tableau de bord'!#REF!,\"AVRIL\",'Tableau de bord'!$E:$E,\"EVAL CHIMIQUE\",'Tableau de bord'!$H:$H,\"Mathieu\")","v":{"$error":"#REF!"}},{"$f":"COUNTIFS('Tableau de bord'!$A:$A,\"2021\",'Tableau de bord'!$K:$K,\"Terminé\",'Tableau de bord'!#REF!,\"AVRIL\",'Tableau de bord'!$E:$E,\"CSE\",'Tableau de bord'!$H:$H,\"Mathieu\")","v":{"$error":"#REF!"}},{"$f":"COUNTIFS('Tableau de bord'!$A:$A,\"2021\",'Tableau de bord'!$K:$K,\"Terminé\",'Tableau de bord'!#REF!,\"AVRIL\",'Tableau de bord'!$E:$E,\"VISITE CHANTIER\",'Tableau de bord'!$H:$H,\"Mathieu\")","v":{"$error":"#REF!"}},{"$f":"COUNTIFS('Tableau de bord'!$A:$A,\"2021\",'Tableau de bord'!$K:$K,\"Terminé\",'Tableau de bord'!#REF!,\"AVRIL\",'Tableau de bord'!$E:$E,\"METROLOGIE\",'Tableau de bord'!$H:$H,\"Mathieu\")","v":{"$error":"#REF!"}},{"$f":"COUNTIFS('Tableau de bord'!$A:$A,\"2021\",'Tableau de bord'!$K:$K,\"Terminé\",'Tableau de bord'!#REF!,\"AVRIL\",'Tableau de bord'!$E:$E,\"AUTRE\",'Tableau de bord'!$H:$H,\"Mathieu\")","v":{"$error":"#REF!"}}]
["Mai",{"$f":"COUNTIFS('Tableau de bord'!A:A,\"2021\",'Tableau de bord'!#REF!,\"MAI\",'Tableau de bord'!H:H,\"Mathieu\")","v":{"$error":"#REF!"}},{"$f":"COUNTIFS('Tableau de bord'!A:A,\"2021\",'Tableau de bord'!E:E,\"EP\",'Tableau de bord'!#REF!,\"MAI\",'Tableau de bord'!H:H,\"Mathieu\")","v":{"$error":"#REF!"}},{"$f":"COUNTIFS('Tableau de bord'!A:A,\"2021\",'Tableau de bord'!E:E,\"FE\",'Tableau de bord'!#REF!,\"MAI\",'Tableau de bord'!H:H,\"Mathieu\")","v":{"$error":"#REF!"}},{"$f":"COUNTIFS('Tableau de bord'!$A:$A,\"2021\",'Tableau de bord'!$E:$E,\"EVAL CHIMIQUE\",'Tableau de bord'!#REF!,\"MAI\",'Tableau de bord'!$H:$H,\"Mathieu\")","v":{"$error":"#REF!"}},{"$f":"COUNTIFS('Tableau de bord'!$A:$A,\"2021\",'Tableau de bord'!$E:$E,\"CSE\",'Tableau de bord'!#REF!,\"MAI\",'Tableau de bord'!$H:$H,\"Mathieu\")","v":{"$error":"#REF!"}},{"$f":"COUNTIFS('Tableau de bord'!$A:$A,\"2021\",'Tableau de bord'!$E:$E,\"VISITE CHANTIER\",'Tableau de bord'!#REF!,\"MAI\",'Tableau de bord'!$H:$H,\"Mathieu\")","v":{"$error":"#REF!"}},{"$f":"COUNTIFS('Tableau de bord'!$A:$A,\"2021\",'Tableau de bord'!$E:$E,\"METROLOGIE\",'Tableau de bord'!#REF!,\"MAI\",'Tableau de bord'!$H:$H,\"Mathieu\")","v":{"$error":"#REF!"}},{"$f":"COUNTIFS('Tableau de bord'!A:A,\"2021\",'Tableau de bord'!E:E,\"AUTRE\",'Tableau de bord'!#REF!,\"MAI\",'Tableau de bord'!H:H,\"Mathieu\")","v":{"$error":"#REF!"}},{"$f":"COUNTIFS('Tableau de bord'!A:A,\"2021\",'Tableau de bord'!K:K,\"Terminé\",'Tableau de bord'!#REF!,\"MAI\",'Tableau de bord'!H:H,\"Mathieu\")","v":{"$error":"#REF!"}},{"$f":"COUNTIFS('Tableau de bord'!$A:$A,\"2021\",'Tableau de bord'!$K:$K,\"Terminé\",'Tableau de bord'!#REF!,\"MAI\",'Tableau de bord'!$E:$E,\"EP\",'Tableau de bord'!$H:$H,\"Mathieu\")","v":{"$error":"#REF!"}},{"$f":"COUNTIFS('Tableau de bord'!$A:$A,\"2021\",'Tableau de bord'!$K:$K,\"Terminé\",'Tableau de bord'!#REF!,\"MAI\",'Tableau de bord'!$E:$E,\"FE\",'Tableau de bord'!$H:$H,\"Mathieu\")","v":{"$error":"#REF!"}},{"$f":"COUNTIFS('Tableau de bord'!$A:$A,\"2021\",'Tableau de bord'!$K:$K,\"Terminé\",'Tableau de bord'!#REF!,\"MAI\",'Tableau de bord'!$E:$E,\"EVAL CHIMIQUE\",'Tableau de bord'!$H:$H,\"Mathieu\")","v":{"$error":"#REF!"}},{"$f":"COUNTIFS('Tableau de bord'!$A:$A,\"2021\",'Tableau de bord'!$K:$K,\"Terminé\",'Tableau de bord'!#REF!,\"MAI\",'Tableau de bord'!$E:$E,\"CSE\",'Tableau de bord'!$H:$H,\"Mathieu\")","v":{"$error":"#REF!"}},{"$f":"COUNTIFS('Tableau de bord'!$A:$A,\"2021\",'Tableau de bord'!$K:$K,\"Terminé\",'Tableau de bord'!#REF!,\"MAI\",'Tableau de bord'!$E:$E,\"VISITE CHANTIER\",'Tableau de bord'!$H:$H,\"Mathieu\")","v":{"$error":"#REF!"}},{"$f":"COUNTIFS('Tableau de bord'!$A:$A,\"2021\",'Tableau de bord'!$K:$K,\"Terminé\",'Tableau de bord'!#REF!,\"MAI\",'Tableau de bord'!$E:$E,\"METROLOGIE\",'Tableau de bord'!$H:$H,\"Mathieu\")","v":{"$error":"#REF!"}},{"$f":"COUNTIFS('Tableau de bord'!$A:$A,\"2021\",'Tableau de bord'!$K:$K,\"Terminé\",'Tableau de bord'!#REF!,\"MAI\",'Tableau de bord'!$E:$E,\"AUTRE\",'Tableau de bord'!$H:$H,\"Mathieu\")","v":{"$error":"#REF!"}}]
["Juin",{"$f":"COUNTIFS('Tableau de bord'!A:A,\"2021\",'Tableau de bord'!#REF!,\"JUIN\",'Tableau de bord'!H:H,\"Mathieu\")","v":{"$error":"#REF!"}},{"$f":"COUNTIFS('Tableau de bord'!A:A,\"2021\",'Tableau de bord'!E:E,\"EP\",'Tableau de bord'!#REF!,\"JUIN\",'Tableau de bord'!H:H,\"Mathieu\")","v":{"$error":"#REF!"}},{"$f":"COUNTIFS('Tableau de bord'!A:A,\"2021\",'Tableau de bord'!E:E,\"FE\",'Tableau de bord'!#REF!,\"JUIN\",'Tableau de bord'!H:H,\"Mathieu\")","v":{"$error":"#REF!"}},{"$f":"COUNTIFS('Tableau de bord'!$A:$A,\"2021\",'Tableau de bord'!$E:$E,\"EVAL CHIMIQUE\",'Tableau de bord'!#REF!,\"JUIN\",'Tableau de bord'!$H:$H,\"Mathieu\")","v":{"$error":"#REF!"}},{"$f":"COUNTIFS('Tableau de bord'!$A:$A,\"2021\",'Tableau de bord'!$E:$E,\"CSE\",'Tableau de bord'!#REF!,\"JUIN\",'Tableau de bord'!$H:$H,\"Mathieu\")","v":{"$error":"#REF!"}},{"$f":"COUNTIFS('Tableau de bord'!$A:$A,\"2021\",'Tableau de bord'!$E:$E,\"VISITE CHANTIER\",'Tableau de bord'!#REF!,\"JUIN\",'Tableau de bord'!$H:$H,\"Mathieu\")","v":{"$error":"#REF!"}},{"$f":"COUNTIFS('Tableau de bord'!$A:$A,\"2021\",'Tableau de bord'!$E:$E,\"METROLOGIE\",'Tableau de bord'!#REF!,\"JUIN\",'Tableau de bord'!$H:$H,\"Mathieu\")","v":{"$error":"#REF!"}},{"$f":"COUNTIFS('Tableau de bord'!A:A,\"2021\",'Tableau de bord'!E:E,\"AUTRE\",'Tableau de bord'!#REF!,\"JUIN\",'Tableau de bord'!H:H,\"Mathieu\")","v":{"$error":"#REF!"}},{"$f":"COUNTIFS('Tableau de bord'!A:A,\"2021\",'Tableau de bord'!K:K,\"Terminé\",'Tableau de bord'!#REF!,\"JUIN\",'Tableau de bord'!H:H,\"Mathieu\")","v":{"$error":"#REF!"}},{"$f":"COUNTIFS('Tableau de bord'!$A:$A,\"2021\",'Tableau de bord'!$K:$K,\"Terminé\",'Tableau de bord'!#REF!,\"JUIN\",'Tableau de bord'!$E:$E,\"EP\",'Tableau de bord'!$H:$H,\"Mathieu\")","v":{"$error":"#REF!"}},{"$f":"COUNTIFS('Tableau de bord'!$A:$A,\"2021\",'Tableau de bord'!$K:$K,\"Terminé\",'Tableau de bord'!#REF!,\"JUIN\",'Tableau de bord'!$E:$E,\"FE\",'Tableau de bord'!$H:$H,\"Mathieu\")","v":{"$error":"#REF!"}},{"$f":"COUNTIFS('Tableau de bord'!$A:$A,\"2021\",'Tableau de bord'!$K:$K,\"Terminé\",'Tableau de bord'!#REF!,\"JUIN\",'Tableau de bord'!$E:$E,\"EVAL CHIMIQUE\",'Tableau de bord'!$H:$H,\"Mathieu\")","v":{"$error":"#REF!"}},{"$f":"COUNTIFS('Tableau de bord'!$A:$A,\"2021\",'Tableau de bord'!$K:$K,\"Terminé\",'Tableau de bord'!#REF!,\"JUIN\",'Tableau de bord'!$E:$E,\"CSE\",'Tableau de bord'!$H:$H,\"Mathieu\")","v":{"$error":"#REF!"}},{"$f":"COUNTIFS('Tableau de bord'!$A:$A,\"2021\",'Tableau de bord'!$K:$K,\"Terminé\",'Tableau de bord'!#REF!,\"JUIN\",'Tableau de bord'!$E:$E,\"VISITE CHANTIER\",'Tableau de bord'!$H:$H,\"Mathieu\")","v":{"$error":"#REF!"}},{"$f":"COUNTIFS('Tableau de bord'!$A:$A,\"2021\",'Tableau de bord'!$K:$K,\"Terminé\",'Tableau de bord'!#REF!,\"JUIN\",'Tableau de bord'!$E:$E,\"METROLOGIE\",'Tableau de bord'!$H:$H,\"Mathieu\")","v":{"$error":"#REF!"}},{"$f":"COUNTIFS('Tableau de bord'!$A:$A,\"2021\",'Tableau de bord'!$K:$K,\"Terminé\",'Tableau de bord'!#REF!,\"JUIN\",'Tableau de bord'!$E:$E,\"AUTRE\",'Tableau de bord'!$H:$H,\"Mathieu\")","v":{"$error":"#REF!"}}]
["Juillet",{"$f":"COUNTIFS('Tableau de bord'!A:A,\"2021\",'Tableau de bord'!#REF!,\"JUILLET\",'Tableau de bord'!H:H,\"Mathieu\")","v":{"$error":"#REF!"}},{"$f":"COUNTIFS('Tableau de bord'!A:A,\"2021\",'Tableau de bord'!E:E,\"EP\",'Tableau de bord'!#REF!,\"JUILLET\",'Tableau de bord'!H:H,\"Mathieu\")","v":{"$error":"#REF!"}},{"$f":"COUNTIFS('Tableau de bord'!A:A,\"2021\",'Tableau de bord'!E:E,\"FE\",'Tableau de bord'!#REF!,\"JUILLET\",'Tableau de bord'!H:H,\"Mathieu\")","v":{"$error":"#REF!"}},{"$f":"COUNTIFS('Tableau de bord'!$A:$A,\"2021\",'Tableau de bord'!$E:$E,\"EVAL CHIMIQUE\",'Tableau de bord'!#REF!,\"JUILLET\",'Tableau de bord'!$H:$H,\"Mathieu\")","v":{"$error":"#REF!"}},{"$f":"COUNTIFS('Tableau de bord'!$A:$A,\"2021\",'Tableau de bord'!$E:$E,\"CSE\",'Tableau de bord'!#REF!,\"JUILLET\",'Tableau de bord'!$H:$H,\"Mathieu\")","v":{"$error":"#REF!"}},{"$f":"COUNTIFS('Tableau de bord'!$A:$A,\"2021\",'Tableau de bord'!$E:$E,\"VISITE CHANTIER\",'Tableau de bord'!#REF!,\"JUILLET\",'Tableau de bord'!$H:$H,\"Mathieu\")","v":{"$error":"#REF!"}},{"$f":"COUNTIFS('Tableau de bord'!$A:$A,\"2021\",'Tableau de bord'!$E:$E,\"METROLOGIE\",'Tableau de bord'!#REF!,\"JUILLET\",'Tableau de bord'!$H:$H,\"Mathieu\")","v":{"$error":"#REF!"}},{"$f":"COUNTIFS('Tableau de bord'!A:A,\"2021\",'Tableau de bord'!E:E,\"AUTRE\",'Tableau de bord'!#REF!,\"JUILLET\",'Tableau de bord'!H:H,\"Mathieu\")","v":{"$error":"#REF!"}},{"$f":"COUNTIFS('Tableau de bord'!A:A,\"2021\",'Tableau de bord'!K:K,\"Terminé\",'Tableau de bord'!#REF!,\"JUILLET\",'Tableau de bord'!H:H,\"Mathieu\")","v":{"$error":"#REF!"}},{"$f":"COUNTIFS('Tableau de bord'!$A:$A,\"2021\",'Tableau de bord'!$K:$K,\"Terminé\",'Tableau de bord'!#REF!,\"JUILLET\",'Tableau de bord'!$E:$E,\"EP\",'Tableau de bord'!$H:$H,\"Mathieu\")","v":{"$error":"#REF!"}},{"$f":"COUNTIFS('Tableau de bord'!$A:$A,\"2021\",'Tableau de bord'!$K:$K,\"Terminé\",'Tableau de bord'!#REF!,\"JUILLET\",'Tableau de bord'!$E:$E,\"FE\",'Tableau de bord'!$H:$H,\"Mathieu\")","v":{"$error":"#REF!"}},{"$f":"COUNTIFS('Tableau de bord'!$A:$A,\"2021\",'Tableau de bord'!$K:$K,\"Terminé\",'Tableau de bord'!#REF!,\"JUILLET\",'Tableau de bord'!$E:$E,\"EVAL CHIMIQUE\",'Tableau de bord'!$H:$H,\"Mathieu\")","v":{"$error":"#REF!"}},{"$f":"COUNTIFS('Tableau de bord'!$A:$A,\"2021\",'Tableau de bord'!$K:$K,\"Terminé\",'Tableau de bord'!#REF!,\"JUILLET\",'Tableau de bord'!$E:$E,\"CSE\",'Tableau de bord'!$H:$H,\"Mathieu\")","v":{"$error":"#REF!"}},{"$f":"COUNTIFS('Tableau de bord'!$A:$A,\"2021\",'Tableau de bord'!$K:$K,\"Terminé\",'Tableau de bord'!#REF!,\"JUILLET\",'Tableau de bord'!$E:$E,\"VISITE CHANTIER\",'Tableau de bord'!$H:$H,\"Mathieu\")","v":{"$error":"#REF!"}},{"$f":"COUNTIFS('Tableau de bord'!$A:$A,\"2021\",'Tableau de bord'!$K:$K,\"Terminé\",'Tableau de bord'!#REF!,\"JUILLET\",'Tableau de bord'!$E:$E,\"METROLOGIE\",'Tableau de bord'!$H:$H,\"Mathieu\")","v":{"$error":"#REF!"}},{"$f":"COUNTIFS('Tableau de bord'!$A:$A,\"2021\",'Tableau de bord'!$K:$K,\"Terminé\",'Tableau de bord'!#REF!,\"JUILLET\",'Tableau de bord'!$E:$E,\"AUTRE\",'Tableau de bord'!$H:$H,\"Mathieu\")","v":{"$error":"#REF!"}}]
["Août",{"$f":"COUNTIFS('Tableau de bord'!A:A,\"2021\",'Tableau de bord'!#REF!,\"AOUT\",'Tableau de bord'!H:H,\"Mathieu\")","v":{"$error":"#REF!"}},{"$f":"COUNTIFS('Tableau de bord'!A:A,\"2021\",'Tableau de bord'!E:E,\"EP\",'Tableau de bord'!#REF!,\"AOUT\",'Tableau de bord'!H:H,\"Mathieu\")","v":{"$error":"#REF!"}},{"$f":"COUNTIFS('Tableau de bord'!A:A,\"2021\",'Tableau de bord'!E:E,\"FE\",'Tableau de bord'!#REF!,\"AOUT\",'Tableau de bord'!H:H,\"Mathieu\")","v":{"$error":"#REF!"}},{"$f":"COUNTIFS('Tableau de bord'!$A:$A,\"2021\",'Tableau de bord'!$E:$E,\"EVAL CHIMIQUE\",'Tableau de bord'!#REF!,\"AOUT\",'Tableau de bord'!$H:$H,\"Mathieu\")","v":{"$error":"#REF!"}},{"$f":"COUNTIFS('Tableau de bord'!$A:$A,\"2021\",'Tableau de bord'!$E:$E,\"CSE\",'Tableau de bord'!#REF!,\"AOUT\",'Tableau de bord'!$H:$H,\"Mathieu\")","v":{"$error":"#REF!"}},{"$f":"COUNTIFS('Tableau de bord'!$A:$A,\"2021\",'Tableau de bord'!$E:$E,\"VISITE CHANTIER\",'Tableau de bord'!#REF!,\"AOUT\",'Tableau de bord'!$H:$H,\"Mathieu\")","v":{"$error":"#REF!"}},{"$f":"COUNTIFS('Tableau de bord'!$A:$A,\"2021\",'Tableau de bord'!$E:$E,\"METROLOGIE\",'Tableau de bord'!#REF!,\"AOUT\",'Tableau de bord'!$H:$H,\"Mathieu\")","v":{"$error":"#REF!"}},{"$f":"COUNTIFS('Tableau de bord'!A:A,\"2021\",'Tableau de bord'!E:E,\"AUTRE\",'Tableau de bord'!#REF!,\"AOUT\",'Tableau de bord'!H:H,\"Mathieu\")","v":{"$error":"#REF!"}},{"$f":"COUNTIFS('Tableau de bord'!A:A,\"2021\",'Tableau de bord'!K:K,\"Terminé\",'Tableau de bord'!#REF!,\"AOUT\",'Tableau de bord'!H:H,\"Mathieu\")","v":{"$error":"#REF!"}},{"$f":"COUNTIFS('Tableau de bord'!$A:$A,\"2021\",'Tableau de bord'!$K:$K,\"Terminé\",'Tableau de bord'!#REF!,\"AOUT\",'Tableau de bord'!$E:$E,\"EP\",'Tableau de bord'!$H:$H,\"Mathieu\")","v":{"$error":"#REF!"}},{"$f":"COUNTIFS('Tableau de bord'!$A:$A,\"2021\",'Tableau de bord'!$K:$K,\"Terminé\",'Tableau de bord'!#REF!,\"AOUT\",'Tableau de bord'!$E:$E,\"FE\",'Tableau de bord'!$H:$H,\"Mathieu\")","v":{"$error":"#REF!"}},{"$f":"COUNTIFS('Tableau de bord'!$A:$A,\"2021\",'Tableau de bord'!$K:$K,\"Terminé\",'Tableau de bord'!#REF!,\"AOUT\",'Tableau de bord'!$E:$E,\"EVAL CHIMIQUE\",'Tableau de bord'!$H:$H,\"Mathieu\")","v":{"$error":"#REF!"}},{"$f":"COUNTIFS('Tableau de bord'!$A:$A,\"2021\",'Tableau de bord'!$K:$K,\"Terminé\",'Tableau de bord'!#REF!,\"AOUT\",'Tableau de bord'!$E:$E,\"CSE\",'Tableau de bord'!$H:$H,\"Mathieu\")","v":{"$error":"#REF!"}},{"$f":"COUNTIFS('Tableau de bord'!$A:$A,\"2021\",'Tableau de bord'!$K:$K,\"Terminé\",'Tableau de bord'!#REF!,\"AOUT\",'Tableau de bord'!$E:$E,\"VISITE CHANTIER\",'Tableau de bord'!$H:$H,\"Mathieu\")","v":{"$error":"#REF!"}},{"$f":"COUNTIFS('Tableau de bord'!$A:$A,\"2021\",'Tableau de bord'!$K:$K,\"Terminé\",'Tableau de bord'!#REF!,\"AOUT\",'Tableau de bord'!$E:$E,\"METROLOGIE\",'Tableau de bord'!$H:$H,\"Mathieu\")","v":{"$error":"#REF!"}},{"$f":"COUNTIFS('Tableau de bord'!$A:$A,\"2021\",'Tableau de bord'!$K:$K,\"Terminé\",'Tableau de bord'!#REF!,\"AOUT\",'Tableau de bord'!$E:$E,\"AUTRE\",'Tableau de bord'!$H:$H,\"Mathieu\")","v":{"$error":"#REF!"}}]
["Septembre",{"$f":"COUNTIFS('Tableau de bord'!A:A,\"2021\",'Tableau de bord'!#REF!,\"SEPTEMBRE\",'Tableau de bord'!H:H,\"Mathieu\")","v":{"$error":"#REF!"}},{"$f":"COUNTIFS('Tableau de bord'!A:A,\"2021\",'Tableau de bord'!E:E,\"EP\",'Tableau de bord'!#REF!,\"SEPTEMBRE\",'Tableau de bord'!H:H,\"Mathieu\")","v":{"$error":"#REF!"}},{"$f":"COUNTIFS('Tableau de bord'!A:A,\"2021\",'Tableau de bord'!E:E,\"FE\",'Tableau de bord'!#REF!,\"SEPTEMBRE\",'Tableau de bord'!H:H,\"Mathieu\")","v":{"$error":"#REF!"}},{"$f":"COUNTIFS('Tableau de bord'!$A:$A,\"2021\",'Tableau de bord'!$E:$E,\"EVAL CHIMIQUE\",'Tableau de bord'!#REF!,\"SEPTEMBRE\",'Tableau de bord'!$H:$H,\"Mathieu\")","v":{"$error":"#REF!"}},{"$f":"COUNTIFS('Tableau de bord'!$A:$A,\"2021\",'Tableau de bord'!$E:$E,\"CSE\",'Tableau de bord'!#REF!,\"SEPTEMBRE\",'Tableau de bord'!$H:$H,\"Mathieu\")","v":{"$error":"#REF!"}},{"$f":"COUNTIFS('Tableau de bord'!$A:$A,\"2021\",'Tableau de bord'!$E:$E,\"VISITE CHANTIER\",'Tableau de bord'!#REF!,\"SEPTEMBRE\",'Tableau de bord'!$H:$H,\"Mathieu\")","v":{"$error":"#REF!"}},{"$f":"COUNTIFS('Tableau de bord'!$A:$A,\"2021\",'Tableau de bord'!$E:$E,\"METROLOGIE\",'Tableau de bord'!#REF!,\"SEPTEMBRE\",'Tableau de bord'!$H:$H,\"Mathieu\")","v":{"$error":"#REF!"}},{"$f":"COUNTIFS('Tableau de bord'!A:A,\"2021\",'Tableau de bord'!E:E,\"AUTRE\",'Tableau de bord'!#REF!,\"SEPTEMBRE\",'Tableau de bord'!H:H,\"Mathieu\")","v":{"$error":"#REF!"}},{"$f":"COUNTIFS('Tableau de bord'!A:A,\"2021\",'Tableau de bord'!K:K,\"Terminé\",'Tableau de bord'!#REF!,\"SEPTEMBRE\",'Tableau de bord'!H:H,\"Mathieu\")","v":{"$error":"#REF!"}},{"$f":"COUNTIFS('Tableau de bord'!$A:$A,\"2021\",'Tableau de bord'!$K:$K,\"Terminé\",'Tableau de bord'!#REF!,\"SEPTEMBRE\",'Tableau de bord'!$E:$E,\"EP\",'Tableau de bord'!$H:$H,\"Mathieu\")","v":{"$error":"#REF!"}},{"$f":"COUNTIFS('Tableau de bord'!$A:$A,\"2021\",'Tableau de bord'!$K:$K,\"Terminé\",'Tableau de bord'!#REF!,\"SEPTEMBRE\",'Tableau de bord'!$E:$E,\"FE\",'Tableau de bord'!$H:$H,\"Mathieu\")","v":{"$error":"#REF!"}},{"$f":"COUNTIFS('Tableau de bord'!$A:$A,\"2021\",'Tableau de bord'!$K:$K,\"Terminé\",'Tableau de bord'!#REF!,\"SEPTEMBRE\",'Tableau de bord'!$E:$E,\"EVAL CHIMIQUE\",'Tableau de bord'!$H:$H,\"Mathieu\")","v":{"$error":"#REF!"}},{"$f":"COUNTIFS('Tableau de bord'!$A:$A,\"2021\",'Tableau de bord'!$K:$K,\"Terminé\",'Tableau de bord'!#REF!,\"SEPTEMBRE\",'Tableau de bord'!$E:$E,\"CSE\",'Tableau de bord'!$H:$H,\"Mathieu\")","v":{"$error":"#REF!"}},{"$f":"COUNTIFS('Tableau de bord'!$A:$A,\"2021\",'Tableau de bord'!$K:$K,\"Terminé\",'Tableau de bord'!#REF!,\"SEPTEMBRE\",'Tableau de bord'!$E:$E,\"VISITE CHANTIER\",'Tableau de bord'!$H:$H,\"Mathieu\")","v":{"$error":"#REF!"}},{"$f":"COUNTIFS('Tableau de bord'!$A:$A,\"2021\",'Tableau de bord'!$K:$K,\"Terminé\",'Tableau de bord'!#REF!,\"SEPTEMBRE\",'Tableau de bord'!$E:$E,\"METROLOGIE\",'Tableau de bord'!$H:$H,\"Mathieu\")","v":{"$error":"#REF!"}},{"$f":"COUNTIFS('Tableau de bord'!$A:$A,\"2021\",'Tableau de bord'!$K:$K,\"Terminé\",'Tableau de bord'!#REF!,\"SEPTEMBRE\",'Tableau de bord'!$E:$E,\"AUTRE\",'Tableau de bord'!$H:$H,\"Mathieu\")","v":{"$error":"#REF!"}}]
["Octobre",{"$f":"COUNTIFS('Tableau de bord'!A:A,\"2021\",'Tableau de bord'!#REF!,\"OCTOBRE\",'Tableau de bord'!H:H,\"Mathieu\")","v":{"$error":"#REF!"}},{"$f":"COUNTIFS('Tableau de bord'!A:A,\"2021\",'Tableau de bord'!E:E,\"EP\",'Tableau de bord'!#REF!,\"OCTOBRE\",'Tableau de bord'!H:H,\"Mathieu\")","v":{"$error":"#REF!"}},{"$f":"COUNTIFS('Tableau de bord'!A:A,\"2021\",'Tableau de bord'!E:E,\"FE\",'Tableau de bord'!#REF!,\"OCTOBRE\",'Tableau de bord'!H:H,\"Mathieu\")","v":{"$error":"#REF!"}},{"$f":"COUNTIFS('Tableau de bord'!$A:$A,\"2021\",'Tableau de bord'!$E:$E,\"EVAL CHIMIQUE\",'Tableau de bord'!#REF!,\"OCTOBRE\",'Tableau de bord'!$H:$H,\"Mathieu\")","v":{"$error":"#REF!"}},{"$f":"COUNTIFS('Tableau de bord'!$A:$A,\"2021\",'Tableau de bord'!$E:$E,\"CSE\",'Tableau de bord'!#REF!,\"OCTOBRE\",'Tableau de bord'!$H:$H,\"Mathieu\")","v":{"$error":"#REF!"}},{"$f":"COUNTIFS('Tableau de bord'!$A:$A,\"2021\",'Tableau de bord'!$E:$E,\"VISITE CHANTIER\",'Tableau de bord'!#REF!,\"OCTOBRE\",'Tableau de bord'!$H:$H,\"Mathieu\")","v":{"$error":"#REF!"}},{"$f":"COUNTIFS('Tableau de bord'!$A:$A,\"2021\",'Tableau de bord'!$E:$E,\"METROLOGIE\",'Tableau de bord'!#REF!,\"OCTOBRE\",'Tableau de bord'!$H:$H,\"Mathieu\")","v":{"$error":"#REF!"}},{"$f":"COUNTIFS('Tableau de bord'!A:A,\"2021\",'Tableau de bord'!E:E,\"AUTRE\",'Tableau de bord'!#REF!,\"OCTOBRE\",'Tableau de bord'!H:H,\"Mathieu\")","v":{"$error":"#REF!"}},{"$f":"COUNTIFS('Tableau de bord'!A:A,\"2021\",'Tableau de bord'!K:K,\"Terminé\",'Tableau de bord'!#REF!,\"OCTOBRE\",'Tableau de bord'!H:H,\"Mathieu\")","v":{"$error":"#REF!"}},{"$f":"COUNTIFS('Tableau de bord'!$A:$A,\"2021\",'Tableau de bord'!$K:$K,\"Terminé\",'Tableau de bord'!#REF!,\"OCTOBRE\",'Tableau de bord'!$E:$E,\"EP\",'Tableau de bord'!$H:$H,\"Mathieu\")","v":{"$error":"#REF!"}},{"$f":"COUNTIFS('Tableau de bord'!$A:$A,\"2021\",'Tableau de bord'!$K:$K,\"Terminé\",'Tableau de bord'!#REF!,\"OCTOBRE\",'Tableau de bord'!$E:$E,\"FE\",'Tableau de bord'!$H:$H,\"Mathieu\")","v":{"$error":"#REF!"}},{"$f":"COUNTIFS('Tableau de bord'!$A:$A,\"2021\",'Tableau de bord'!$K:$K,\"Terminé\",'Tableau de bord'!#REF!,\"OCTOBRE\",'Tableau de bord'!$E:$E,\"EVAL CHIMIQUE\",'Tableau de bord'!$H:$H,\"Mathieu\")","v":{"$error":"#REF!"}},{"$f":"COUNTIFS('Tableau de bord'!$A:$A,\"2021\",'Tableau de bord'!$K:$K,\"Terminé\",'Tableau de bord'!#REF!,\"OCTOBRE\",'Tableau de bord'!$E:$E,\"CSE\",'Tableau de bord'!$H:$H,\"Mathieu\")","v":{"$error":"#REF!"}},{"$f":"COUNTIFS('Tableau de bord'!$A:$A,\"2021\",'Tableau de bord'!$K:$K,\"Terminé\",'Tableau de bord'!#REF!,\"OCTOBRE\",'Tableau de bord'!$E:$E,\"VISITE CHANTIER\",'Tableau de bord'!$H:$H,\"Mathieu\")","v":{"$error":"#REF!"}},{"$f":"COUNTIFS('Tableau de bord'!$A:$A,\"2021\",'Tableau de bord'!$K:$K,\"Terminé\",'Tableau de bord'!#REF!,\"OCTOBRE\",'Tableau de bord'!$E:$E,\"METROLOGIE\",'Tableau de bord'!$H:$H,\"Mathieu\")","v":{"$error":"#REF!"}},{"$f":"COUNTIFS('Tableau de bord'!$A:$A,\"2021\",'Tableau de bord'!$K:$K,\"Terminé\",'Tableau de bord'!#REF!,\"OCTOBRE\",'Tableau de bord'!$E:$E,\"AUTRE\",'Tableau de bord'!$H:$H,\"Mathieu\")","v":{"$error":"#REF!"}}]
["Novembre",{"$f":"COUNTIFS('Tableau de bord'!A:A,\"2021\",'Tableau de bord'!#REF!,\"NOVEMBRE\",'Tableau de bord'!H:H,\"Mathieu\")","v":{"$error":"#REF!"}},{"$f":"COUNTIFS('Tableau de bord'!A:A,\"2021\",'Tableau de bord'!E:E,\"EP\",'Tableau de bord'!#REF!,\"NOVEMBRE\",'Tableau de bord'!H:H,\"Mathieu\")","v":{"$error":"#REF!"}},{"$f":"COUNTIFS('Tableau de bord'!A:A,\"2021\",'Tableau de bord'!E:E,\"FE\",'Tableau de bord'!#REF!,\"NOVEMBRE\",'Tableau de bord'!H:H,\"Mathieu\")","v":{"$error":"#REF!"}},{"$f":"COUNTIFS('Tableau de bord'!$A:$A,\"2021\",'Tableau de bord'!$E:$E,\"EVAL CHIMIQUE\",'Tableau de bord'!#REF!,\"NOVEMBRE\",'Tableau de bord'!$H:$H,\"Mathieu\")","v":{"$error":"#REF!"}},{"$f":"COUNTIFS('Tableau de bord'!$A:$A,\"2021\",'Tableau de bord'!$E:$E,\"CSE\",'Tableau de bord'!#REF!,\"NOVEMBRE\",'Tableau de bord'!$H:$H,\"Mathieu\")","v":{"$error":"#REF!"}},{"$f":"COUNTIFS('Tableau de bord'!$A:$A,\"2021\",'Tableau de bord'!$E:$E,\"VISITE CHANTIER\",'Tableau de bord'!#REF!,\"NOVEMBRE\",'Tableau de bord'!$H:$H,\"Mathieu\")","v":{"$error":"#REF!"}},{"$f":"COUNTIFS('Tableau de bord'!$A:$A,\"2021\",'Tableau de bord'!$E:$E,\"METROLOGIE\",'Tableau de bord'!#REF!,\"NOVEMBRE\",'Tableau de bord'!$H:$H,\"Mathieu\")","v":{"$error":"#REF!"}},{"$f":"COUNTIFS('Tableau de bord'!A:A,\"2021\",'Tableau de bord'!E:E,\"AUTRE\",'Tableau de bord'!#REF!,\"NOVEMBRE\",'Tableau de bord'!H:H,\"Mathieu\")","v":{"$error":"#REF!"}},{"$f":"COUNTIFS('Tableau de bord'!A:A,\"2021\",'Tableau de bord'!K:K,\"Terminé\",'Tableau de bord'!#REF!,\"NOVEMBRE\",'Tableau de bord'!H:H,\"Mathieu\")","v":{"$error":"#REF!"}},{"$f":"COUNTIFS('Tableau de bord'!$A:$A,\"2021\",'Tableau de bord'!$K:$K,\"Terminé\",'Tableau de bord'!#REF!,\"NOVEMBRE\",'Tableau de bord'!$E:$E,\"EP\",'Tableau de bord'!$H:$H,\"Mathieu\")","v":{"$error":"#REF!"}},{"$f":"COUNTIFS('Tableau de bord'!$A:$A,\"2021\",'Tableau de bord'!$K:$K,\"Terminé\",'Tableau de bord'!#REF!,\"NOVEMBRE\",'Tableau de bord'!$E:$E,\"FE\",'Tableau de bord'!$H:$H,\"Mathieu\")","v":{"$error":"#REF!"}},{"$f":"COUNTIFS('Tableau de bord'!$A:$A,\"2021\",'Tableau de bord'!$K:$K,\"Terminé\",'Tableau de bord'!#REF!,\"NOVEMBRE\",'Tableau de bord'!$E:$E,\"EVAL CHIMIQUE\",'Tableau de bord'!$H:$H,\"Mathieu\")","v":{"$error":"#REF!"}},{"$f":"COUNTIFS('Tableau de bord'!$A:$A,\"2021\",'Tableau de bord'!$K:$K,\"Terminé\",'Tableau de bord'!#REF!,\"NOVEMBRE\",'Tableau de bord'!$E:$E,\"CSE\",'Tableau de bord'!$H:$H,\"Mathieu\")","v":{"$error":"#REF!"}},{"$f":"COUNTIFS('Tableau de bord'!$A:$A,\"2021\",'Tableau de bord'!$K:$K,\"Terminé\",'Tableau de bord'!#REF!,\"NOVEMBRE\",'Tableau de bord'!$E:$E,\"VISITE CHANTIER\",'Tableau de bord'!$H:$H,\"Mathieu\")","v":{"$error":"#REF!"}},{"$f":"COUNTIFS('Tableau de bord'!$A:$A,\"2021\",'Tableau de bord'!$K:$K,\"Terminé\",'Tableau de bord'!#REF!,\"NOVEMBRE\",'Tableau de bord'!$E:$E,\"METROLOGIE\",'Tableau de bord'!$H:$H,\"Mathieu\")","v":{"$error":"#REF!"}},{"$f":"COUNTIFS('Tableau de bord'!$A:$A,\"2021\",'Tableau de bord'!$K:$K,\"Terminé\",'Tableau de bord'!#REF!,\"NOVEMBRE\",'Tableau de bord'!$E:$E,\"AUTRE\",'Tableau de bord'!$H:$H,\"Mathieu\")","v":{"$error":"#REF!"}}]
["Décembre",{"$f":"COUNTIFS('Tableau de bord'!A:A,\"2021\",'Tableau de bord'!#REF!,\"DECEMBRE\",'Tableau de bord'!H:H,\"Mathieu\")","v":{"$error":"#REF!"}},{"$f":"COUNTIFS('Tableau de bord'!A:A,\"2021\",'Tableau de bord'!E:E,\"EP\",'Tableau de bord'!#REF!,\"DECEMBRE\",'Tableau de bord'!H:H,\"Mathieu\")","v":{"$error":"#REF!"}},{"$f":"COUNTIFS('Tableau de bord'!A:A,\"2021\",'Tableau de bord'!E:E,\"FE\",'Tableau de bord'!#REF!,\"DECEMBRE\",'Tableau de bord'!H:H,\"Mathieu\")","v":{"$error":"#REF!"}},{"$f":"COUNTIFS('Tableau de bord'!$A:$A,\"2021\",'Tableau de bord'!$E:$E,\"EVAL CHIMIQUE\",'Tableau de bord'!#REF!,\"DECEMBRE\",'Tableau de bord'!$H:$H,\"Mathieu\")","v":{"$error":"#REF!"}},{"$f":"COUNTIFS('Tableau de bord'!$A:$A,\"2021\",'Tableau de bord'!$E:$E,\"CSE\",'Tableau de bord'!#REF!,\"DECEMBRE\",'Tableau de bord'!$H:$H,\"Mathieu\")","v":{"$error":"#REF!"}},{"$f":"COUNTIFS('Tableau de bord'!$A:$A,\"2021\",'Tableau de bord'!$E:$E,\"VISITE CHANTIER\",'Tableau de bord'!#REF!,\"DECEMBRE\",'Tableau de bord'!$H:$H,\"Mathieu\")","v":{"$error":"#REF!"}},{"$f":"COUNTIFS('Tableau de bord'!$A:$A,\"2021\",'Tableau de bord'!$E:$E,\"METROLOGIE\",'Tableau de bord'!#REF!,\"DECEMBRE\",'Tableau de bord'!$H:$H,\"Mathieu\")","v":{"$error":"#REF!"}},{"$f":"COUNTIFS('Tableau de bord'!A:A,\"2021\",'Tableau de bord'!E:E,\"AUTRE\",'Tableau de bord'!#REF!,\"DECEMBRE\",'Tableau de bord'!H:H,\"Mathieu\")","v":{"$error":"#REF!"}},{"$f":"COUNTIFS('Tableau de bord'!A:A,\"2021\",'Tableau de bord'!K:K,\"Terminé\",'Tableau de bord'!#REF!,\"DECEMBRE\",'Tableau de bord'!H:H,\"Mathieu\")","v":{"$error":"#REF!"}},{"$f":"COUNTIFS('Tableau de bord'!$A:$A,\"2021\",'Tableau de bord'!$K:$K,\"Terminé\",'Tableau de bord'!#REF!,\"DECEMBRE\",'Tableau de bord'!$E:$E,\"EP\",'Tableau de bord'!$H:$H,\"Mathieu\")","v":{"$error":"#REF!"}},{"$f":"COUNTIFS('Tableau de bord'!$A:$A,\"2021\",'Tableau de bord'!$K:$K,\"Terminé\",'Tableau de bord'!#REF!,\"DECEMBRE\",'Tableau de bord'!$E:$E,\"FE\",'Tableau de bord'!$H:$H,\"Mathieu\")","v":{"$error":"#REF!"}},{"$f":"COUNTIFS('Tableau de bord'!$A:$A,\"2021\",'Tableau de bord'!$K:$K,\"Terminé\",'Tableau de bord'!#REF!,\"DECEMBRE\",'Tableau de bord'!$E:$E,\"EVAL CHIMIQUE\",'Tableau de bord'!$H:$H,\"Mathieu\")","v":{"$error":"#REF!"}},{"$f":"COUNTIFS('Tableau de bord'!$A:$A,\"2021\",'Tableau de bord'!$K:$K,\"Terminé\",'Tableau de bord'!#REF!,\"DECEMBRE\",'Tableau de bord'!$E:$E,\"CSE\",'Tableau de bord'!$H:$H,\"Mathieu\")","v":{"$error":"#REF!"}},{"$f":"COUNTIFS('Tableau de bord'!$A:$A,\"2021\",'Tableau de bord'!$K:$K,\"Terminé\",'Tableau de bord'!#REF!,\"DECEMBRE\",'Tableau de bord'!$E:$E,\"VISITE CHANTIER\",'Tableau de bord'!$H:$H,\"Mathieu\")","v":{"$error":"#REF!"}},{"$f":"COUNTIFS('Tableau de bord'!$A:$A,\"2021\",'Tableau de bord'!$K:$K,\"Terminé\",'Tableau de bord'!#REF!,\"DECEMBRE\",'Tableau de bord'!$E:$E,\"METROLOGIE\",'Tableau de bord'!$H:$H,\"Mathieu\")","v":{"$error":"#REF!"}},{"$f":"COUNTIFS('Tableau de bord'!$A:$A,\"2021\",'Tableau de bord'!$K:$K,\"Terminé\",'Tableau de bord'!#REF!,\"DECEMBRE\",'Tableau de bord'!$E:$E,\"AUTRE\",'Tableau de bord'!$H:$H,\"Mathieu\")","v":{"$error":"#REF!"}}]
["TOTAL",{"$f":"SUM(B5:B14)","v":{"$error":"#REF!"}},{"$f":"SUM(C5:C14)","v":{"$error":"#REF!"}},{"$error":"#REF!"},{"$error":"#REF!"},{"$error":"#REF!"},{"$error":"#REF!"},{"$error":"#REF!"},{"$f":"SUM(I5:I14)","v":{"$error":"#REF!"}},{"$error":"#REF!"},{"$error":"#REF!"},{"$error":"#REF!"},{"$error":"#REF!"},{"$error":"#REF!"},{"$error":"#REF!"},{"$error":"#REF!"},{"$error":"#REF!"}]
[]
[]
[]
["Nombre d'action demandées/finalisées  par médecin"]
["Médecin","Nb d'actions demandées","EP","FE","EVAL CHIMIQUE","CSE","VISITE CHANTIER","METROLOGIE","AUTRE","Nb d'actions finalisées","EP","FE","EVAL CHIMIQUE","CSE","VISITE CHANTIER","METROLOGIE","AUTRE","ATTENTE VALIDATION"]
["Dr DEPEZEVILLE",{"$f":"COUNTIFS('Tableau de bord'!A:A,\"2021\",'Tableau de bord'!G:G,\"Dr. DEPEZEVILLE\",'Tableau de bord'!H:H,\"Mathieu\")","v":2},{"$f":"COUNTIFS('Tableau de bord'!A:A,\"2021\",'Tableau de bord'!$G:$G,\"Dr. DEPEZEVILLE\",'Tableau de bord'!$E:$E,\"EP\",'Tableau de bord'!$H:$H,\"Mathieu\")","v":2},{"$f":"COUNTIFS('Tableau de bord'!$A:$A,\"2021\",'Tableau de bord'!$G:$G,\"Dr. DEPEZEVILLE\",'Tableau de bord'!$E:$E,\"FE\",'Tableau de bord'!$H:$H,\"Mathieu\")","v":0},{"$f":"COUNTIFS('Tableau de bord'!$A:$A,\"2021\",'Tableau de bord'!$G:$G,\"Dr. DEPEZEVILLE\",'Tableau de bord'!$E:$E,\"EVAL CHIMIQUE\",'Tableau de bord'!$H:$H,\"Mathieu\")","v":0},{"$f":"COUNTIFS('Tableau de bord'!$A:$A,\"2021\",'Tableau de bord'!$G:$G,\"Dr. DEPEZEVILLE\",'Tableau de bord'!$E:$E,\"CSE\",'Tableau de bord'!$H:$H,\"Mathieu\")","v":0},{"$f":"COUNTIFS('Tableau de bord'!$A:$A,\"2021\",'Tableau de bord'!$G:$G,\"Dr. DEPEZEVILLE\",'Tableau de bord'!$E:$E,\"VISITE CHANTIER\",'Tableau de bord'!$H:$H,\"Mathieu\")","v":0},{"$f":"COUNTIFS('Tableau de bord'!$A:$A,\"2021\",'Tableau de bord'!$G:$G,\"Dr. DEPEZEVILLE\",'Tableau de bord'!$E:$E,\"METROLOGIE\",'Tableau de bord'!$H:$H,\"Mathieu\")","v":0},{"$f":"COUNTIFS('Tableau de bord'!A:A,\"2021\",'Tableau de bord'!$G:$G,\"Dr. DEPEZEVILLE\",'Tableau de bord'!$E:$E,\"AUTRE\",'Tableau de bord'!$H:$H,\"Mathieu\")","v":0},{"$f":"COUNTIFS('Tableau de bord'!$A:$A,\"2021\",'Tableau de bord'!$G:$G,\"Dr. DEPEZEVILLE\",'Tableau de bord'!$K:$K,\"Terminé\",'Tableau de bord'!$H:$H,\"Mathieu\")","v":2},{"$f":"COUNTIFS('Tableau de bord'!$A:$A,\"2021\",'Tableau de bord'!$G:$G,\"Dr. DEPEZEVILLE\",'Tableau de bord'!$E:$E,\"EP\",'Tableau de bord'!$K:$K,\"Terminé\",'Tableau de bord'!$H:$H,\"Mathieu\")","v":2},{"$f":"COUNTIFS('Tableau de bord'!$A:$A,\"2021\",'Tableau de bord'!$G:$G,\"Dr. DEPEZEVILLE\",'Tableau de bord'!$E:$E,\"FE\",'Tableau de bord'!$K:$K,\"Terminé\",'Tableau de bord'!$H:$H,\"Mathieu\")","v":0},{"$f":"COUNTIFS('Tableau de bord'!$A:$A,\"2021\",'Tableau de bord'!$G:$G,\"Dr. DEPEZEVILLE\",'Tableau de bord'!$E:$E,\"EVAL CHIMIQUE\",'Tableau de bord'!$K:$K,\"Terminé\",'Tableau de bord'!$H:$H,\"Mathieu\")","v":0},{"$f":"COUNTIFS('Tableau de bord'!$A:$A,\"2021\",'Tableau de bord'!$G:$G,\"Dr. DEPEZEVILLE\",'Tableau de bord'!$E:$E,\"CSE\",'Tableau de bord'!$K:$K,\"Terminé\",'Tableau de bord'!$H:$H,\"Mathieu\")","v":0},{"$f":"COUNTIFS('Tableau de bord'!$A:$A,\"2021\",'Tableau de bord'!$G:$G,\"Dr. DEPEZEVILLE\",'Tableau de bord'!$E:$E,\"VISITE CHANTIER\",'Tableau de bord'!$K:$K,\"Terminé\",'Tableau de bord'!$H:$H,\"Mathieu\")","v":0},{"$f":"COUNTIFS('Tableau de bord'!$A:$A,\"2021\",'Tableau de bord'!$G:$G,\"Dr. DEPEZEVILLE\",'Tableau de bord'!$E:$E,\"METROLOGIE\",'Tableau de bord'!$K:$K,\"Terminé\",'Tableau de bord'!$H:$H,\"Mathieu\")","v":0},{"$f":"COUNTIFS('Tableau de bord'!$A:$A,\"2021\",'Tableau de bord'!$G:$G,\"Dr. DEPEZEVILLE\",'Tableau de bord'!$E:$E,\"AUTRE\",'Tableau de bord'!$K:$K,\"Terminé\",'Tableau de bord'!$H:$H,\"Mathieu\")","v":0},{"$f":"COUNTIFS('Tableau de bord'!$G:$G,\"Dr. DEPEZEVILLE\",'Tableau de bord'!$H:$H,\"Mathieu\",'Tableau de bord'!$K:$K,\"Terminé\",'Tableau de bord'!O:O,\"\")","v":2}]
["Dr FAVARETTO",{"$f":"COUNTIFS('Tableau de bord'!A:A,\"2021\",'Tableau de bord'!G:G,\"Dr. FAVARETTO\",'Tableau de bord'!H:H,\"Mathieu\")","v":0},{"$f":"COUNTIFS('Tableau de bord'!A:A,\"2021\",'Tableau de bord'!$G:$G,\"Dr. FAVARETTO\",'Tableau de bord'!$E:$E,\"EP\",'Tableau de bord'!$H:$H,\"Mathieu\")","v":0},{"$f":"COUNTIFS('Tableau de bord'!$A:$A,\"2021\",'Tableau de bord'!$G:$G,\"Dr. FAVARETTO\",'Tableau de bord'!$E:$E,\"FE\",'Tableau de bord'!$H:$H,\"Mathieu\")","v":0},{"$f":"COUNTIFS('Tableau de bord'!$A:$A,\"2021\",'Tableau de bord'!$G:$G,\"Dr. FAVARETTO\",'Tableau de bord'!$E:$E,\"EVAL CHIMIQUE\",'Tableau de bord'!$H:$H,\"Mathieu\")","v":0},{"$f":"COUNTIFS('Tableau de bord'!$A:$A,\"2021\",'Tableau de bord'!$G:$G,\"Dr. FAVARETTO\",'Tableau de bord'!$E:$E,\"CSE\",'Tableau de bord'!$H:$H,\"Mathieu\")","v":0},{"$f":"COUNTIFS('Tableau de bord'!$A:$A,\"2021\",'Tableau de bord'!$G:$G,\"Dr. FAVARETTO\",'Tableau de bord'!$E:$E,\"VISITE CHANTIER\",'Tableau de bord'!$H:$H,\"Mathieu\")","v":0},{"$f":"COUNTIFS('Tableau de bord'!$A:$A,\"2021\",'Tableau de bord'!$G:$G,\"Dr. FAVARETTO\",'Tableau de bord'!$E:$E,\"METROLOGIE\",'Tableau de bord'!$H:$H,\"Mathieu\")","v":0},{"$f":"COUNTIFS('Tableau de bord'!A:A,\"2021\",'Tableau de bord'!$G:$G,\"Dr. FAVARETTO\",'Tableau de bord'!$E:$E,\"AUTRE\",'Tableau de bord'!$H:$H,\"Mathieu\")","v":0},{"$f":"COUNTIFS('Tableau de bord'!$A:$A,\"2021\",'Tableau de bord'!$G:$G,\"Dr. FAVARETTO\",'Tableau de bord'!$K:$K,\"Terminé\",'Tableau de bord'!$H:$H,\"Mathieu\")","v":0},{"$f":"COUNTIFS('Tableau de bord'!$A:$A,\"2021\",'Tableau de bord'!$G:$G,\"Dr. FAVARETTO\",'Tableau de bord'!$E:$E,\"EP\",'Tableau de bord'!$K:$K,\"Terminé\",'Tableau de bord'!$H:$H,\"Mathieu\")","v":0},{"$f":"COUNTIFS('Tableau de bord'!$A:$A,\"2021\",'Tableau de bord'!$G:$G,\"Dr. FAVARETTO\",'Tableau de bord'!$E:$E,\"FE\",'Tableau de bord'!$K:$K,\"Terminé\",'Tableau de bord'!$H:$H,\"Mathieu\")","v":0},{"$f":"COUNTIFS('Tableau de bord'!$A:$A,\"2021\",'Tableau de bord'!$G:$G,\"Dr. FAVARETTO\",'Tableau de bord'!$E:$E,\"EVAL CHIMIQUE\",'Tableau de bord'!$K:$K,\"Terminé\",'Tableau de bord'!$H:$H,\"Mathieu\")","v":0},{"$f":"COUNTIFS('Tableau de bord'!$A:$A,\"2021\",'Tableau de bord'!$G:$G,\"Dr. FAVARETTO\",'Tableau de bord'!$E:$E,\"CSE\",'Tableau de bord'!$K:$K,\"Terminé\",'Tableau de bord'!$H:$H,\"Mathieu\")","v":0},{"$f":"COUNTIFS('Tableau de bord'!$A:$A,\"2021\",'Tableau de bord'!$G:$G,\"Dr. FAVARETTO\",'Tableau de bord'!$E:$E,\"VISITE CHANTIER\",'Tableau de bord'!$K:$K,\"Terminé\",'Tableau de bord'!$H:$H,\"Mathieu\")","v":0},{"$f":"COUNTIFS('Tableau de bord'!$A:$A,\"2021\",'Tableau de bord'!$G:$G,\"Dr. FAVARETTO\",'Tableau de bord'!$E:$E,\"METROLOGIE\",'Tableau de bord'!$K:$K,\"Terminé\",'Tableau de bord'!$H:$H,\"Mathieu\")","v":0},{"$f":"COUNTIFS('Tableau de bord'!$A:$A,\"2021\",'Tableau de bord'!$G:$G,\"Dr. FAVARETTO\",'Tableau de bord'!$E:$E,\"AUTRE\",'Tableau de bord'!$K:$K,\"Terminé\",'Tableau de bord'!$H:$H,\"Mathieu\")","v":0},{"$f":"COUNTIFS('Tableau de bord'!$G:$G,\"Dr. FAVARETTO\",'Tableau de bord'!$H:$H,\"Mathieu\",'Tableau de bord'!$K:$K,\"Terminé\",'Tableau de bord'!O:O,\"\")","v":2}]
["Dr HAPPEY",{"$f":"COUNTIFS('Tableau de bord'!A:A,\"2021\",'Tableau de bord'!G:G,\"Dr. HAPPEY\",'Tableau de bord'!H:H,\"Mathieu\")","v":0},{"$f":"COUNTIFS('Tableau de bord'!A:A,\"2021\",'Tableau de bord'!$G:$G,\"Dr. HAPPEY\",'Tableau de bord'!$E:$E,\"EP\",'Tableau de bord'!$H:$H,\"Mathieu\")","v":0},{"$f":"COUNTIFS('Tableau de bord'!$A:$A,\"2021\",'Tableau de bord'!$G:$G,\"Dr. HAPPEY\",'Tableau de bord'!$E:$E,\"FE\",'Tableau de bord'!$H:$H,\"Mathieu\")","v":0},{"$f":"COUNTIFS('Tableau de bord'!$A:$A,\"2021\",'Tableau de bord'!$G:$G,\"Dr. HAPPEY\",'Tableau de bord'!$E:$E,\"EVAL CHIMIQUE\",'Tableau de bord'!$H:$H,\"Mathieu\")","v":0},{"$f":"COUNTIFS('Tableau de bord'!$A:$A,\"2021\",'Tableau de bord'!$G:$G,\"Dr. HAPPEY\",'Tableau de bord'!$E:$E,\"CSE\",'Tableau de bord'!$H:$H,\"Mathieu\")","v":0},{"$f":"COUNTIFS('Tableau de bord'!$A:$A,\"2021\",'Tableau de bord'!$G:$G,\"Dr. HAPPEY\",'Tableau de bord'!$E:$E,\"VISITE CHANTIER\",'Tableau de bord'!$H:$H,\"Mathieu\")","v":0},{"$f":"COUNTIFS('Tableau de bord'!$A:$A,\"2021\",'Tableau de bord'!$G:$G,\"Dr. HAPPEY\",'Tableau de bord'!$E:$E,\"METROLOGIE\",'Tableau de bord'!$H:$H,\"Mathieu\")","v":0},{"$f":"COUNTIFS('Tableau de bord'!A:A,\"2021\",'Tableau de bord'!$G:$G,\"Dr. HAPPEY\",'Tableau de bord'!$E:$E,\"AUTRE\",'Tableau de bord'!$H:$H,\"Mathieu\")","v":0},{"$f":"COUNTIFS('Tableau de bord'!$A:$A,\"2021\",'Tableau de bord'!$G:$G,\"Dr. HAPPEY\",'Tableau de bord'!$K:$K,\"Terminé\",'Tableau de bord'!$H:$H,\"Mathieu\")","v":0},{"$f":"COUNTIFS('Tableau de bord'!$A:$A,\"2021\",'Tableau de bord'!$G:$G,\"Dr. HAPPEY\",'Tableau de bord'!$E:$E,\"EP\",'Tableau de bord'!$K:$K,\"Terminé\",'Tableau de bord'!$H:$H,\"Mathieu\")","v":0},{"$f":"COUNTIFS('Tableau de bord'!$A:$A,\"2021\",'Tableau de bord'!$G:$G,\"Dr. HAPPEY\",'Tableau de bord'!$E:$E,\"FE\",'Tableau de bord'!$K:$K,\"Terminé\",'Tableau de bord'!$H:$H,\"Mathieu\")","v":0},{"$f":"COUNTIFS('Tableau de bord'!$A:$A,\"2021\",'Tableau de bord'!$G:$G,\"Dr. HAPPEY\",'Tableau de bord'!$E:$E,\"EVAL CHIMIQUE\",'Tableau de bord'!$K:$K,\"Terminé\",'Tableau de bord'!$H:$H,\"Mathieu\")","v":0},{"$f":"COUNTIFS('Tableau de bord'!$A:$A,\"2021\",'Tableau de bord'!$G:$G,\"Dr. HAPPEY\",'Tableau de bord'!$E:$E,\"CSE\",'Tableau de bord'!$K:$K,\"Terminé\",'Tableau de bord'!$H:$H,\"Mathieu\")","v":0},{"$f":"COUNTIFS('Tableau de bord'!$A:$A,\"2021\",'Tableau de bord'!$G:$G,\"Dr. HAPPEY\",'Tableau de bord'!$E:$E,\"VISITE CHANTIER\",'Tableau de bord'!$K:$K,\"Terminé\",'Tableau de bord'!$H:$H,\"Mathieu\")","v":0},{"$f":"COUNTIFS('Tableau de bord'!$A:$A,\"2021\",'Tableau de bord'!$G:$G,\"Dr. HAPPEY\",'Tableau de bord'!$E:$E,\"METROLOGIE\",'Tableau de bord'!$K:$K,\"Terminé\",'Tableau de bord'!$H:$H,\"Mathieu\")","v":0},{"$f":"COUNTIFS('Tableau de bord'!$A:$A,\"2021\",'Tableau de bord'!$G:$G,\"Dr. HAPPEY\",'Tableau de bord'!$E:$E,\"AUTRE\",'Tableau de bord'!$K:$K,\"Terminé\",'Tableau de bord'!$H:$H,\"Mathieu\")","v":0},{"$f":"COUNTIFS('Tableau de bord'!$G:$G,\"Dr. HAPPEY\",'Tableau de bord'!$H:$H,\"Mathieu\",'Tableau de bord'!$K:$K,\"Terminé\",'Tableau de bord'!O:O,\"\")","v":1}]
["Dr JEANNE",{"$f":"COUNTIFS('Tableau de bord'!A:A,\"2021\",'Tableau de bord'!G:G,\"Dr. JEANNE\",'Tableau de bord'!H:H,\"Mathieu\")","v":1},{"$f":"COUNTIFS('Tableau de bord'!A:A,\"2021\",'Tableau de bord'!$G:$G,\"Dr. JEANNE\",'Tableau de bord'!$E:$E,\"EP\",'Tableau de bord'!$H:$H,\"Mathieu\")","v":0},{"$f":"COUNTIFS('Tableau de bord'!$A:$A,\"2021\",'Tableau de bord'!$G:$G,\"Dr. JEANNE\",'Tableau de bord'!$E:$E,\"FE\",'Tableau de bord'!$H:$H,\"Mathieu\")","v":1},{"$f":"COUNTIFS('Tableau de bord'!$A:$A,\"2021\",'Tableau de bord'!$G:$G,\"Dr. JEANNE\",'Tableau de bord'!$E:$E,\"EVAL CHIMIQUE\",'Tableau de bord'!$H:$H,\"Mathieu\")","v":0},{"$f":"COUNTIFS('Tableau de bord'!$A:$A,\"2021\",'Tableau de bord'!$G:$G,\"Dr. JEANNE\",'Tableau de bord'!$E:$E,\"CSE\",'Tableau de bord'!$H:$H,\"Mathieu\")","v":0},{"$f":"COUNTIFS('Tableau de bord'!$A:$A,\"2021\",'Tableau de bord'!$G:$G,\"Dr. JEANNE\",'Tableau de bord'!$E:$E,\"VISITE CHANTIER\",'Tableau de bord'!$H:$H,\"Mathieu\")","v":0},{"$f":"COUNTIFS('Tableau de bord'!$A:$A,\"2021\",'Tableau de bord'!$G:$G,\"Dr. JEANNE\",'Tableau de bord'!$E:$E,\"METROLOGIE\",'Tableau de bord'!$H:$H,\"Mathieu\")","v":0},{"$f":"COUNTIFS('Tableau de bord'!A:A,\"2021\",'Tableau de bord'!$G:$G,\"Dr. JEANNE\",'Tableau de bord'!$E:$E,\"AUTRE\",'Tableau de bord'!$H:$H,\"Mathieu\")","v":0},{"$f":"COUNTIFS('Tableau de bord'!$A:$A,\"2021\",'Tableau de bord'!$G:$G,\"Dr. JEANNE\",'Tableau de bord'!$K:$K,\"Terminé\",'Tableau de bord'!$H:$H,\"Mathieu\")","v":1},{"$f":"COUNTIFS('Tableau de bord'!$A:$A,\"2021\",'Tableau de bord'!$G:$G,\"Dr. JEANNE\",'Tableau de bord'!$E:$E,\"EP\",'Tableau de bord'!$K:$K,\"Terminé\",'Tableau de bord'!$H:$H,\"Mathieu\")","v":0},{"$f":"COUNTIFS('Tableau de bord'!$A:$A,\"2021\",'Tableau de bord'!$G:$G,\"Dr. JEANNE\",'Tableau de bord'!$E:$E,\"FE\",'Tableau de bord'!$K:$K,\"Terminé\",'Tableau de bord'!$H:$H,\"Mathieu\")","v":1},{"$f":"COUNTIFS('Tableau de bord'!$A:$A,\"2021\",'Tableau de bord'!$G:$G,\"Dr. JEANNE\",'Tableau de bord'!$E:$E,\"EVAL CHIMIQUE\",'Tableau de bord'!$K:$K,\"Terminé\",'Tableau de bord'!$H:$H,\"Mathieu\")","v":0},{"$f":"COUNTIFS('Tableau de bord'!$A:$A,\"2021\",'Tableau de bord'!$G:$G,\"Dr. JEANNE\",'Tableau de bord'!$E:$E,\"CSE\",'Tableau de bord'!$K:$K,\"Terminé\",'Tableau de bord'!$H:$H,\"Mathieu\")","v":0},{"$f":"COUNTIFS('Tableau de bord'!$A:$A,\"2021\",'Tableau de bord'!$G:$G,\"Dr. JEANNE\",'Tableau de bord'!$E:$E,\"VISITE CHANTIER\",'Tableau de bord'!$K:$K,\"Terminé\",'Tableau de bord'!$H:$H,\"Mathieu\")","v":0},{"$f":"COUNTIFS('Tableau de bord'!$A:$A,\"2021\",'Tableau de bord'!$G:$G,\"Dr. JEANNE\",'Tableau de bord'!$E:$E,\"METROLOGIE\",'Tableau de bord'!$K:$K,\"Terminé\",'Tableau de bord'!$H:$H,\"Mathieu\")","v":0},{"$f":"COUNTIFS('Tableau de bord'!$A:$A,\"2021\",'Tableau de bord'!$G:$G,\"Dr. JEANNE\",'Tableau de bord'!$E:$E,\"AUTRE\",'Tableau de bord'!$K:$K,\"Terminé\",'Tableau de bord'!$H:$H,\"Mathieu\")","v":0},{"$f":"COUNTIFS('Tableau de bord'!$G:$G,\"Dr. JEANNE\",'Tableau de bord'!$H:$H,\"Mathieu\",'Tableau de bord'!$K:$K,\"Terminé\",'Tableau de bord'!O:O,\"\")","v":0}]
["Dr MOULIN",{"$f":"COUNTIFS('Tableau de bord'!A:A,\"2021\",'Tableau de bord'!G:G,\"Dr. MOULIN\",'Tableau de bord'!H:H,\"Mathieu\")","v":0},{"$f":"COUNTIFS('Tableau de bord'!A:A,\"2021\",'Tableau de bord'!$G:$G,\"Dr. MOULIN\",'Tableau de bord'!$E:$E,\"EP\",'Tableau de bord'!$H:$H,\"Mathieu\")","v":0},{"$f":"COUNTIFS('Tableau de bord'!$A:$A,\"2021\",'Tableau de bord'!$G:$G,\"Dr. MOULIN\",'Tableau de bord'!$E:$E,\"FE\",'Tableau de bord'!$H:$H,\"Mathieu\")","v":0},{"$f":"COUNTIFS('Tableau de bord'!$A:$A,\"2021\",'Tableau de bord'!$G:$G,\"Dr. MOULIN\",'Tableau de bord'!$E:$E,\"EVAL CHIMIQUE\",'Tableau de bord'!$H:$H,\"Mathieu\")","v":0},{"$f":"COUNTIFS('Tableau de bord'!$A:$A,\"2021\",'Tableau de bord'!$G:$G,\"Dr. MOULIN\",'Tableau de bord'!$E:$E,\"CSE\",'Tableau de bord'!$H:$H,\"Mathieu\")","v":0},{"$f":"COUNTIFS('Tableau de bord'!$A:$A,\"2021\",'Tableau de bord'!$G:$G,\"Dr. MOULIN\",'Tableau de bord'!$E:$E,\"VISITE CHANTIER\",'Tableau de bord'!$H:$H,\"Mathieu\")","v":0},{"$f":"COUNTIFS('Tableau de bord'!$A:$A,\"2021\",'Tableau de bord'!$G:$G,\"Dr. MOULIN\",'Tableau de bord'!$E:$E,\"METROLOGIE\",'Tableau de bord'!$H:$H,\"Mathieu\")","v":0},{"$f":"COUNTIFS('Tableau de bord'!A:A,\"2021\",'Tableau de bord'!$G:$G,\"Dr. MOULIN\",'Tableau de bord'!$E:$E,\"AUTRE\",'Tableau de bord'!$H:$H,\"Mathieu\")","v":0},{"$f":"COUNTIFS('Tableau de bord'!$A:$A,\"2021\",'Tableau de bord'!$G:$G,\"Dr. MOULIN\",'Tableau de bord'!$K:$K,\"Terminé\",'Tableau de bord'!$H:$H,\"Mathieu\")","v":0},{"$f":"COUNTIFS('Tableau de bord'!$A:$A,\"2021\",'Tableau de bord'!$G:$G,\"Dr. MOULIN\",'Tableau de bord'!$E:$E,\"EP\",'Tableau de bord'!$K:$K,\"Terminé\",'Tableau de bord'!$H:$H,\"Mathieu\")","v":0},{"$f":"COUNTIFS('Tableau de bord'!$A:$A,\"2021\",'Tableau de bord'!$G:$G,\"Dr. MOULIN\",'Tableau de bord'!$E:$E,\"FE\",'Tableau de bord'!$K:$K,\"Terminé\",'Tableau de bord'!$H:$H,\"Mathieu\")","v":0},{"$f":"COUNTIFS('Tableau de bord'!$A:$A,\"2021\",'Tableau de bord'!$G:$G,\"Dr. MOULIN\",'Tableau de bord'!$E:$E,\"EVAL CHIMIQUE\",'Tableau de bord'!$K:$K,\"Terminé\",'Tableau de bord'!$H:$H,\"Mathieu\")","v":0},{"$f":"COUNTIFS('Tableau de bord'!$A:$A,\"2021\",'Tableau de bord'!$G:$G,\"Dr. MOULIN\",'Tableau de bord'!$E:$E,\"CSE\",'Tableau de bord'!$K:$K,\"Terminé\",'Tableau de bord'!$H:$H,\"Mathieu\")","v":0},{"$f":"COUNTIFS('Tableau de bord'!$A:$A,\"2021\",'Tableau de bord'!$G:$G,\"Dr. MOULIN\",'Tableau de bord'!$E:$E,\"VISITE CHANTIER\",'Tableau de bord'!$K:$K,\"Terminé\",'Tableau de bord'!$H:$H,\"Mathieu\")","v":0},{"$f":"COUNTIFS('Tableau de bord'!$A:$A,\"2021\",'Tableau de bord'!$G:$G,\"Dr. MOULIN\",'Tableau de bord'!$E:$E,\"METROLOGIE\",'Tableau de bord'!$K:$K,\"Terminé\",'Tableau de bord'!$H:$H,\"Mathieu\")","v":0},{"$f":"COUNTIFS('Tableau de bord'!$A:$A,\"2021\",'Tableau de bord'!$G:$G,\"Dr. MOULIN\",'Tableau de bord'!$E:$E,\"AUTRE\",'Tableau de bord'!$K:$K,\"Terminé\",'Tableau de bord'!$H:$H,\"Mathieu\")","v":0},{"$f":"COUNTIFS('Tableau de bord'!$G:$G,\"Dr. MOULIN\",'Tableau de bord'!$H:$H,\"Mathieu\",'Tableau de bord'!$K:$K,\"Terminé\",'Tableau de bord'!O:O,\"\")","v":0}]
["Dr NEE",{"$f":"COUNTIFS('Tableau de bord'!A:A,\"2021\",'Tableau de bord'!G:G,\"Dr. NEE\",'Tableau de bord'!H:H,\"Mathieu\")","v":1},{"$f":"COUNTIFS('Tableau de bord'!A:A,\"2021\",'Tableau de bord'!$G:$G,\"Dr. NEE\",'Tableau de bord'!$E:$E,\"EP\",'Tableau de bord'!$H:$H,\"Mathieu\")","v":0},{"$f":"COUNTIFS('Tableau de bord'!$A:$A,\"2021\",'Tableau de bord'!$G:$G,\"Dr. NEE\",'Tableau de bord'!$E:$E,\"FE\",'Tableau de bord'!$H:$H,\"Mathieu\")","v":0},{"$f":"COUNTIFS('Tableau de bord'!$A:$A,\"2021\",'Tableau de bord'!$G:$G,\"Dr. NEE\",'Tableau de bord'!$E:$E,\"EVAL CHIMIQUE\",'Tableau de bord'!$H:$H,\"Mathieu\")","v":0},{"$f":"COUNTIFS('Tableau de bord'!$A:$A,\"2021\",'Tableau de bord'!$G:$G,\"Dr. NEE\",'Tableau de bord'!$E:$E,\"CSE\",'Tableau de bord'!$H:$H,\"Mathieu\")","v":0},{"$f":"COUNTIFS('Tableau de bord'!$A:$A,\"2021\",'Tableau de bord'!$G:$G,\"Dr. NEE\",'Tableau de bord'!$E:$E,\"VISITE CHANTIER\",'Tableau de bord'!$H:$H,\"Mathieu\")","v":0},{"$f":"COUNTIFS('Tableau de bord'!$A:$A,\"2021\",'Tableau de bord'!$G:$G,\"Dr. NEE\",'Tableau de bord'!$E:$E,\"METROLOGIE\",'Tableau de bord'!$H:$H,\"Mathieu\")","v":0},{"$f":"COUNTIFS('Tableau de bord'!A:A,\"2021\",'Tableau de bord'!$G:$G,\"Dr. NEE\",'Tableau de bord'!$E:$E,\"AUTRE\",'Tableau de bord'!$H:$H,\"Mathieu\")","v":1},{"$f":"COUNTIFS('Tableau de bord'!$A:$A,\"2021\",'Tableau de bord'!$G:$G,\"Dr. NEE\",'Tableau de bord'!$K:$K,\"Terminé\",'Tableau de bord'!$H:$H,\"Mathieu\")","v":1},{"$f":"COUNTIFS('Tableau de bord'!$A:$A,\"2021\",'Tableau de bord'!$G:$G,\"Dr. NEE\",'Tableau de bord'!$E:$E,\"EP\",'Tableau de bord'!$K:$K,\"Terminé\",'Tableau de bord'!$H:$H,\"Mathieu\")","v":0},{"$f":"COUNTIFS('Tableau de bord'!$A:$A,\"2021\",'Tableau de bord'!$G:$G,\"Dr. NEE\",'Tableau de bord'!$E:$E,\"FE\",'Tableau de bord'!$K:$K,\"Terminé\",'Tableau de bord'!$H:$H,\"Mathieu\")","v":0},{"$f":"COUNTIFS('Tableau de bord'!$A:$A,\"2021\",'Tableau de bord'!$G:$G,\"Dr. NEE\",'Tableau de bord'!$E:$E,\"EVAL CHIMIQUE\",'Tableau de bord'!$K:$K,\"Terminé\",'Tableau de bord'!$H:$H,\"Mathieu\")","v":0},{"$f":"COUNTIFS('Tableau de bord'!$A:$A,\"2021\",'Tableau de bord'!$G:$G,\"Dr. NEE\",'Tableau de bord'!$E:$E,\"CSE\",'Tableau de bord'!$K:$K,\"Terminé\",'Tableau de bord'!$H:$H,\"Mathieu\")","v":0},{"$f":"COUNTIFS('Tableau de bord'!$A:$A,\"2021\",'Tableau de bord'!$G:$G,\"Dr. NEE\",'Tableau de bord'!$E:$E,\"VISITE CHANTIER\",'Tableau de bord'!$K:$K,\"Terminé\",'Tableau de bord'!$H:$H,\"Mathieu\")","v":0},{"$f":"COUNTIFS('Tableau de bord'!$A:$A,\"2021\",'Tableau de bord'!$G:$G,\"Dr. NEE\",'Tableau de bord'!$E:$E,\"METROLOGIE\",'Tableau de bord'!$K:$K,\"Terminé\",'Tableau de bord'!$H:$H,\"Mathieu\")","v":0},{"$f":"COUNTIFS('Tableau de bord'!$A:$A,\"2021\",'Tableau de bord'!$G:$G,\"Dr. NEE\",'Tableau de bord'!$E:$E,\"AUTRE\",'Tableau de bord'!$K:$K,\"Terminé\",'Tableau de bord'!$H:$H,\"Mathieu\")","v":1},{"$f":"COUNTIFS('Tableau de bord'!$G:$G,\"Dr. NEE\",'Tableau de bord'!$H:$H,\"Mathieu\",'Tableau de bord'!$K:$K,\"Terminé\",'Tableau de bord'!O:O,\"\")","v":0}]
["Dr SABATHIER",{"$f":"COUNTIFS('Tableau de bord'!A:A,\"2021\",'Tableau de bord'!G:G,\"Dr. SABATHIER\",'Tableau de bord'!H:H,\"Mathieu\")","v":13},{"$f":"COUNTIFS('Tableau de bord'!A:A,\"2021\",'Tableau de bord'!$G:$G,\"Dr. SABATHIER\",'Tableau de bord'!$E:$E,\"EP\",'Tableau de bord'!$H:$H,\"Mathieu\")","v":6},{"$f":"COUNTIFS('Tableau de bord'!$A:$A,\"2021\",'Tableau de bord'!$G:$G,\"Dr. SABATHIER\",'Tableau de bord'!$E:$E,\"FE\",'Tableau de bord'!$H:$H,\"Mathieu\")","v":3},{"$f":"COUNTIFS('Tableau de bord'!$A:$A,\"2021\",'Tableau de bord'!$G:$G,\"Dr. SABATHIER\",'Tableau de bord'!$E:$E,\"EVAL CHIMIQUE\",'Tableau de bord'!$H:$H,\"Mathieu\")","v":0},{"$f":"COUNTIFS('Tableau de bord'!$A:$A,\"2021\",'Tableau de bord'!$G:$G,\"Dr. SABATHIER\",'Tableau de bord'!$E:$E,\"CSE\",'Tableau de bord'!$H:$H,\"Mathieu\")","v":0},{"$f":"COUNTIFS('Tableau de bord'!$A:$A,\"2021\",'Tableau de bord'!$G:$G,\"Dr. SABATHIER\",'Tableau de bord'!$E:$E,\"VISITE CHANTIER\",'Tableau de bord'!$H:$H,\"Mathieu\")","v":2},{"$f":"COUNTIFS('Tableau de bord'!$A:$A,\"2021\",'Tableau de bord'!$G:$G,\"Dr. SABATHIER\",'Tableau de bord'!$E:$E,\"METROLOGIE\",'Tableau de bord'!$H:$H,\"Mathieu\")","v":2},{"$f":"COUNTIFS('Tableau de bord'!A:A,\"2021\",'Tableau de bord'!$G:$G,\"Dr. SABATHIER\",'Tableau de bord'!$E:$E,\"AUTRE\",'Tableau de bord'!$H:$H,\"Mathieu\")","v":0},{"$f":"COUNTIFS('Tableau de bord'!$A:$A,\"2021\",'Tableau de bord'!$G:$G,\"Dr. SABATHIER\",'Tableau de bord'!$K:$K,\"Terminé\",'Tableau de bord'!$H:$H,\"Mathieu\")","v":10},{"$f":"COUNTIFS('Tableau de bord'!$A:$A,\"2021\",'Tableau de bord'!$G:$G,\"Dr. SABATHIER\",'Tableau de bord'!$E:$E,\"EP\",'Tableau de bord'!$K:$K,\"Terminé\",'Tableau de bord'!$H:$H,\"Mathieu\")","v":4},{"$f":"COUNTIFS('Tableau de bord'!$A:$A,\"2021\",'Tableau de bord'!$G:$G,\"Dr. SABATHIER\",'Tableau de bord'!$E:$E,\"FE\",'Tableau de bord'!$K:$K,\"Terminé\",'Tableau de bord'!$H:$H,\"Mathieu\")","v":2},{"$f":"COUNTIFS('Tableau de bord'!$A:$A,\"2021\",'Tableau de bord'!$G:$G,\"Dr. SABATHIER\",'Tableau de bord'!$E:$E,\"EVAL CHIMIQUE\",'Tableau de bord'!$K:$K,\"Terminé\",'Tableau de bord'!$H:$H,\"Mathieu\")","v":0},{"$f":"COUNTIFS('Tableau de bord'!$A:$A,\"2021\",'Tableau de bord'!$G:$G,\"Dr. SABATHIER\",'Tableau de bord'!$E:$E,\"CSE\",'Tableau de bord'!$K:$K,\"Terminé\",'Tableau de bord'!$H:$H,\"Mathieu\")","v":0},{"$f":"COUNTIFS('Tableau de bord'!$A:$A,\"2021\",'Tableau de bord'!$G:$G,\"Dr. SABATHIER\",'Tableau de bord'!$E:$E,\"VISITE CHANTIER\",'Tableau de bord'!$K:$K,\"Terminé\",'Tableau de bord'!$H:$H,\"Mathieu\")","v":2},{"$f":"COUNTIFS('Tableau de bord'!$A:$A,\"2021\",'Tableau de bord'!$G:$G,\"Dr. SABATHIER\",'Tableau de bord'!$E:$E,\"METROLOGIE\",'Tableau de bord'!$K:$K,\"Terminé\",'Tableau de bord'!$H:$H,\"Mathieu\")","v":2},{"$f":"COUNTIFS('Tableau de bord'!$A:$A,\"2021\",'Tableau de bord'!$G:$G,\"Dr. SABATHIER\",'Tableau de bord'!$E:$E,\"AUTRE\",'Tableau de bord'!$K:$K,\"Terminé\",'Tableau de bord'!$H:$H,\"Mathieu\")","v":0},{"$f":"COUNTIFS('Tableau de bord'!$G:$G,\"Dr. SABATHIER\",'Tableau de bord'!$H:$H,\"Mathieu\",'Tableau de bord'!$K:$K,\"Terminé\",'Tableau de bord'!O:O,\"\")","v":12}]
["TOTAL",{"$f":"SUM(B21:B27)","v":17},8,{"$f":"SUM(D21:D27)","v":4},0,0,2,2,{"$f":"SUM(I21:I27)","v":1},14,6,3,0,0,2,2,1,17]

{"sheet":"Global_21","index":4,"n_rows":28,"n_cols":18,"rows_kept":28,"cut":false,"hidden":true,"merged":[[0,0,0,16],[18,0,18,17]]}
["Nombre d'action demandées/finalisées  par mois"]
["Mois","Nb d'actions demandées","EP","FE","EVAL CHIMIQUE","CSE","VISITE CHANTIER","METROLOGIE","AUTRE","Nb d'actions finalisées","EP","FE","EVAL CHIMIQUE","CSE","VISITE CHANTIER","METROLOGIE","AUTRE"]
["Janvier","NA","NA","NA","NA","NA","NA","NA","NA","NA","NA","NA","NA","NA","NA","NA","NA"]
["Février","NA","NA","NA","NA","NA","NA","NA","NA","NA","NA","NA","NA","NA","NA","NA","NA"]
["Mars",{"$f":"COUNTIFS('Tableau de bord'!A:A,\"2021\",'Tableau de bord'!#REF!,\"MARS\")","v":{"$error":"#REF!"}},{"$f":"COUNTIFS('Tableau de bord'!A:A,\"2021\",'Tableau de bord'!E:E,\"EP\",'Tableau de bord'!#REF!,\"MARS\")","v":{"$error":"#REF!"}},{"$f":"COUNTIFS('Tableau de bord'!$A:$A,\"2021\",'Tableau de bord'!$E:$E,\"FE\",'Tableau de bord'!#REF!,\"MARS\")","v":{"$error":"#REF!"}},{"$f":"COUNTIFS('Tableau de bord'!$A:$A,\"2021\",'Tableau de bord'!$E:$E,\"EVAL CHIMIQUE\",'Tableau de bord'!#REF!,\"MARS\")","v":{"$error":"#REF!"}},{"$f":"COUNTIFS('Tableau de bord'!$A:$A,\"2021\",'Tableau de bord'!$E:$E,\"CSE\",'Tableau de bord'!#REF!,\"MARS\")","v":{"$error":"#REF!"}},{"$f":"COUNTIFS('Tableau de bord'!$A:$A,\"2021\",'Tableau de bord'!$E:$E,\"VISITE CHANTIER\",'Tableau de bord'!#REF!,\"MARS\")","v":{"$error":"#REF!"}},{"$f":"COUNTIFS('Tableau de bord'!$A:$A,\"2021\",'Tableau de bord'!$E:$E,\"METROLOGIE\",'Tableau de bord'!#REF!,\"MARS\")","v":{"$error":"#REF!"}},{"$f":"COUNTIFS('Tableau de bord'!A:A,\"2021\",'Tableau de bord'!E:E,\"AUTRE\",'Tableau de bord'!#REF!,\"MARS\")","v":{"$error":"#REF!"}},{"$f":"COUNTIFS('Tableau de bord'!A:A,\"2021\",'Tableau de bord'!K:K,\"Terminé\",'Tableau de bord'!#REF!,\"MARS\")","v":{"$error":"#REF!"}},{"$f":"COUNTIFS('Tableau de bord'!$A:$A,\"2021\",'Tableau de bord'!$K:$K,\"Terminé\",'Tableau de bord'!#REF!,\"MARS\",'Tableau de bord'!$E:$E,\"EP\")","v":{"$error":"#REF!"}},{"$f":"COUNTIFS('Tableau de bord'!$A:$A,\"2021\",'Tableau de bord'!$K:$K,\"Terminé\",'Tableau de bord'!#REF!,\"MARS\",'Tableau de bord'!$E:$E,\"FE\")","v":{"$error":"#REF!"}},{"$f":"COUNTIFS('Tableau de bord'!$A:$A,\"2021\",'Tableau de bord'!$K:$K,\"Terminé\",'Tableau de bord'!#REF!,\"MARS\",'Tableau de bord'!$E:$E,\"EVAL CHIMIQUE\")","v":{"$error":"#REF!"}},{"$f":"COUNTIFS('Tableau de bord'!$A:$A,\"2021\",'Tableau de bord'!$K:$K,\"Terminé\",'Tableau de bord'!#REF!,\"MARS\",'Tableau de bord'!$E:$E,\"CSE\")","v":{"$error":"#REF!"}},{"$f":"COUNTIFS('Tableau de bord'!$A:$A,\"2021\",'Tableau de bord'!$K:$K,\"Terminé\",'Tableau de bord'!#REF!,\"MARS\",'Tableau de bord'!$E:$E,\"VISITE CHANTIER\")","v":{"$error":"#REF!"}},{"$f":"COUNTIFS('Tableau de bord'!$A:$A,\"2021\",'Tableau de bord'!$K:$K,\"Terminé\",'Tableau de bord'!#REF!,\"MARS\",'Tableau de bord'!$E:$E,\"METROLOGIE\")","v":{"$error":"#REF!"}},{"$f":"COUNTIFS('Tableau de bord'!$A:$A,\"2021\",'Tableau de bord'!$K:$K,\"Terminé\",'Tableau de bord'!#REF!,\"MARS\",'Tableau de bord'!$E:$E,\"AUTRE\")","v":{"$error":"#REF!"}}]
["Avril",{"$f":"COUNTIFS('Tableau de bord'!A:A,\"2021\",'Tableau de bord'!#REF!,\"AVRIL\")","v":{"$error":"#REF!"}},{"$f":"COUNTIFS('Tableau de bord'!A:A,\"2021\",'Tableau de bord'!E:E,\"EP\",'Tableau de bord'!#REF!,\"AVRIL\")","v":{"$error":"#REF!"}},{"$f":"COUNTIFS('Tableau de bord'!A:A,\"2021\",'Tableau de bord'!E:E,\"FE\",'Tableau de bord'!#REF!,\"AVRIL\")","v":{"$error":"#REF!"}},{"$f":"COUNTIFS('Tableau de bord'!$A:$A,\"2021\",'Tableau de bord'!$E:$E,\"EVAL CHIMIQUE\",'Tableau de bord'!#REF!,\"AVRIL\")","v":{"$error":"#REF!"}},{"$f":"COUNTIFS('Tableau de bord'!$A:$A,\"2021\",'Tableau de bord'!$E:$E,\"CSE\",'Tableau de bord'!#REF!,\"AVRIL\")","v":{"$error":"#REF!"}},{"$f":"COUNTIFS('Tableau de bord'!$A:$A,\"2021\",'Tableau de bord'!$E:$E,\"VISITE CHANTIER\",'Tableau de bord'!#REF!,\"AVRIL\")","v":{"$error":"#REF!"}},{"$f":"COUNTIFS('Tableau de bord'!$A:$A,\"2021\",'Tableau de bord'!$E:$E,\"METROLOGIE\",'Tableau de bord'!#REF!,\"AVRIL\")","v":{"$error":"#REF!"}},{"$f":"COUNTIFS('Tableau de bord'!A:A,\"2021\",'Tableau de bord'!E:E,\"AUTRE\",'Tableau de bord'!#REF!,\"AVRIL\")","v":{"$error":"#REF!"}},{"$f":"COUNTIFS('Tableau de bord'!A:A,\"2021\",'Tableau de bord'!K:K,\"Terminé\",'Tableau de bord'!#REF!,\"AVRIL\")","v":{"$error":"#REF!"}},{"$f":"COUNTIFS('Tableau de bord'!$A:$A,\"2021\",'Tableau de bord'!$K:$K,\"Terminé\",'Tableau de bord'!#REF!,\"AVRIL\",'Tableau de bord'!$E:$E,\"EP\")","v":{"$error":"#REF!"}},{"$f":"COUNTIFS('Tableau de bord'!$A:$A,\"2021\",'Tableau de bord'!$K:$K,\"Terminé\",'Tableau de bord'!#REF!,\"AVRIL\",'Tableau de bord'!$E:$E,\"FE\")","v":{"$error":"#REF!"}},{"$f":"COUNTIFS('Tableau de bord'!$A:$A,\"2021\",'Tableau de bord'!$K:$K,\"Terminé\",'Tableau de bord'!#REF!,\"AVRIL\",'Tableau de bord'!$E:$E,\"EVAL CHIMIQUE\")","v":{"$error":"#REF!"}},{"$f":"COUNTIFS('Tableau de bord'!$A:$A,\"2021\",'Tableau de bord'!$K:$K,\"Terminé\",'Tableau de bord'!#REF!,\"AVRIL\",'Tableau de bord'!$E:$E,\"CSE\")","v":{"$error":"#REF!"}},{"$f":"COUNTIFS('Tableau de bord'!$A:$A,\"2021\",'Tableau de bord'!$K:$K,\"Terminé\",'Tableau de bord'!#REF!,\"AVRIL\",'Tableau de bord'!$E:$E,\"VISITE CHANTIER\")","v":{"$error":"#REF!"}},{"$f":"COUNTIFS('Tableau de bord'!$A:$A,\"2021\",'Tableau de bord'!$K:$K,\"Terminé\",'Tableau de bord'!#REF!,\"AVRIL\",'Tableau de bord'!$E:$E,\"METROLOGIE\")","v":{"$error":"#REF!"}},{"$f":"COUNTIFS('Tableau de bord'!$A:$A,\"2021\",'Tableau de bord'!$K:$K,\"Terminé\",'Tableau de bord'!#REF!,\"AVRIL\",'Tableau de bord'!$E:$E,\"AUTRE\")","v":{"$error":"#REF!"}}]
["Mai",{"$f":"COUNTIFS('Tableau de bord'!A:A,\"2021\",'Tableau de bord'!#REF!,\"MAI\")","v":{"$error":"#REF!"}},{"$f":"COUNTIFS('Tableau de bord'!A:A,\"2021\",'Tableau de bord'!E:E,\"EP\",'Tableau de bord'!#REF!,\"MAI\")","v":{"$error":"#REF!"}},{"$f":"COUNTIFS('Tableau de bord'!A:A,\"2021\",'Tableau de bord'!E:E,\"FE\",'Tableau de bord'!#REF!,\"MAI\")","v":{"$error":"#REF!"}},{"$f":"COUNTIFS('Tableau de bord'!$A:$A,\"2021\",'Tableau de bord'!$E:$E,\"EVAL CHIMIQUE\",'Tableau de bord'!#REF!,\"MAI\")","v":{"$error":"#REF!"}},{"$f":"COUNTIFS('Tableau de bord'!$A:$A,\"2021\",'Tableau de bord'!$E:$E,\"CSE\",'Tableau de bord'!#REF!,\"MAI\")","v":{"$error":"#REF!"}},{"$f":"COUNTIFS('Tableau de bord'!$A:$A,\"2021\",'Tableau de bord'!$E:$E,\"VISITE CHANTIER\",'Tableau de bord'!#REF!,\"MAI\")","v":{"$error":"#REF!"}},{"$f":"COUNTIFS('Tableau de bord'!$A:$A,\"2021\",'Tableau de bord'!$E:$E,\"METROLOGIE\",'Tableau de bord'!#REF!,\"MAI\")","v":{"$error":"#REF!"}},{"$f":"COUNTIFS('Tableau de bord'!A:A,\"2021\",'Tableau de bord'!E:E,\"AUTRE\",'Tableau de bord'!#REF!,\"MAI\")","v":{"$error":"#REF!"}},{"$f":"COUNTIFS('Tableau de bord'!A:A,\"2021\",'Tableau de bord'!K:K,\"Terminé\",'Tableau de bord'!#REF!,\"MAI\")","v":{"$error":"#REF!"}},{"$f":"COUNTIFS('Tableau de bord'!$A:$A,\"2021\",'Tableau de bord'!$K:$K,\"Terminé\",'Tableau de bord'!#REF!,\"MAI\",'Tableau de bord'!$E:$E,\"EP\")","v":{"$error":"#REF!"}},{"$f":"COUNTIFS('Tableau de bord'!$A:$A,\"2021\",'Tableau de bord'!$K:$K,\"Terminé\",'Tableau de bord'!#REF!,\"MAI\",'Tableau de bord'!$E:$E,\"FE\")","v":{"$error":"#REF!"}},{"$f":"COUNTIFS('Tableau de bord'!$A:$A,\"2021\",'Tableau de bord'!$K:$K,\"Terminé\",'Tableau de bord'!#REF!,\"MAI\",'Tableau de bord'!$E:$E,\"EVAL CHIMIQUE\")","v":{"$error":"#REF!"}},{"$f":"COUNTIFS('Tableau de bord'!$A:$A,\"2021\",'Tableau de bord'!$K:$K,\"Terminé\",'Tableau de bord'!#REF!,\"MAI\",'Tableau de bord'!$E:$E,\"CSE\")","v":{"$error":"#REF!"}},{"$f":"COUNTIFS('Tableau de bord'!$A:$A,\"2021\",'Tableau de bord'!$K:$K,\"Terminé\",'Tableau de bord'!#REF!,\"MAI\",'Tableau de bord'!$E:$E,\"VISITE CHANTIER\")","v":{"$error":"#REF!"}},{"$f":"COUNTIFS('Tableau de bord'!$A:$A,\"2021\",'Tableau de bord'!$K:$K,\"Terminé\",'Tableau de bord'!#REF!,\"MAI\",'Tableau de bord'!$E:$E,\"METROLOGIE\")","v":{"$error":"#REF!"}},{"$f":"COUNTIFS('Tableau de bord'!$A:$A,\"2021\",'Tableau de bord'!$K:$K,\"Terminé\",'Tableau de bord'!#REF!,\"MAI\",'Tableau de bord'!$E:$E,\"AUTRE\")","v":{"$error":"#REF!"}}]
["Juin",{"$f":"COUNTIFS('Tableau de bord'!A:A,\"2021\",'Tableau de bord'!#REF!,\"JUIN\")","v":{"$error":"#REF!"}},{"$f":"COUNTIFS('Tableau de bord'!A:A,\"2021\",'Tableau de bord'!E:E,\"EP\",'Tableau de bord'!#REF!,\"JUIN\")","v":{"$error":"#REF!"}},{"$f":"COUNTIFS('Tableau de bord'!A:A,\"2021\",'Tableau de bord'!E:E,\"FE\",'Tableau de bord'!#REF!,\"JUIN\")","v":{"$error":"#REF!"}},{"$f":"COUNTIFS('Tableau de bord'!$A:$A,\"2021\",'Tableau de bord'!$E:$E,\"EVAL CHIMIQUE\",'Tableau de bord'!#REF!,\"JUIN\")","v":{"$error":"#REF!"}},{"$f":"COUNTIFS('Tableau de bord'!$A:$A,\"2021\",'Tableau de bord'!$E:$E,\"CSE\",'Tableau de bord'!#REF!,\"JUIN\")","v":{"$error":"#REF!"}},{"$f":"COUNTIFS('Tableau de bord'!$A:$A,\"2021\",'Tableau de bord'!$E:$E,\"VISITE CHANTIER\",'Tableau de bord'!#REF!,\"JUIN\")","v":{"$error":"#REF!"}},{"$f":"COUNTIFS('Tableau de bord'!$A:$A,\"2021\",'Tableau de bord'!$E:$E,\"METROLOGIE\",'Tableau de bord'!#REF!,\"JUIN\")","v":{"$error":"#REF!"}},{"$f":"COUNTIFS('Tableau de bord'!A:A,\"2021\",'Tableau de bord'!E:E,\"AUTRE\",'Tableau de bord'!#REF!,\"JUIN\")","v":{"$error":"#REF!"}},{"$f":"COUNTIFS('Tableau de bord'!A:A,\"2021\",'Tableau de bord'!K:K,\"Terminé\",'Tableau de bord'!#REF!,\"JUIN\")","v":{"$error":"#REF!"}},{"$f":"COUNTIFS('Tableau de bord'!$A:$A,\"2021\",'Tableau de bord'!$K:$K,\"Terminé\",'Tableau de bord'!#REF!,\"JUIN\",'Tableau de bord'!$E:$E,\"EP\")","v":{"$error":"#REF!"}},{"$f":"COUNTIFS('Tableau de bord'!$A:$A,\"2021\",'Tableau de bord'!$K:$K,\"Terminé\",'Tableau de bord'!#REF!,\"JUIN\",'Tableau de bord'!$E:$E,\"FE\")","v":{"$error":"#REF!"}},{"$f":"COUNTIFS('Tableau de bord'!$A:$A,\"2021\",'Tableau de bord'!$K:$K,\"Terminé\",'Tableau de bord'!#REF!,\"JUIN\",'Tableau de bord'!$E:$E,\"EVAL CHIMIQUE\")","v":{"$error":"#REF!"}},{"$f":"COUNTIFS('Tableau de bord'!$A:$A,\"2021\",'Tableau de bord'!$K:$K,\"Terminé\",'Tableau de bord'!#REF!,\"JUIN\",'Tableau de bord'!$E:$E,\"CSE\")","v":{"$error":"#REF!"}},{"$f":"COUNTIFS('Tableau de bord'!$A:$A,\"2021\",'Tableau de bord'!$K:$K,\"Terminé\",'Tableau de bord'!#REF!,\"JUIN\",'Tableau de bord'!$E:$E,\"VISITE CHANTIER\")","v":{"$error":"#REF!"}},{"$f":"COUNTIFS('Tableau de bord'!$A:$A,\"2021\",'Tableau de bord'!$K:$K,\"Terminé\",'Tableau de bord'!#REF!,\"JUIN\",'Tableau de bord'!$E:$E,\"METROLOGIE\")","v":{"$error":"#REF!"}},{"$f":"COUNTIFS('Tableau de bord'!$A:$A,\"2021\",'Tableau de bord'!$K:$K,\"Terminé\",'Tableau de bord'!#REF!,\"JUIN\",'Tableau de bord'!$E:$E,\"AUTRE\")","v":{"$error":"#REF!"}}]
["Juillet",{"$f":"COUNTIFS('Tableau de bord'!A:A,\"2021\",'Tableau de bord'!#REF!,\"JUILLET\")","v":{"$error":"#REF!"}},{"$f":"COUNTIFS('Tableau de bord'!A:A,\"2021\",'Tableau de bord'!E:E,\"EP\",'Tableau de bord'!#REF!,\"JUILLET\")","v":{"$error":"#REF!"}},{"$f":"COUNTIFS('Tableau de bord'!A:A,\"2021\",'Tableau de bord'!E:E,\"FE\",'Tableau de bord'!#REF!,\"JUILLET\")","v":{"$error":"#REF!"}},{"$f":"COUNTIFS('Tableau de bord'!$A:$A,\"2021\",'Tableau de bord'!$E:$E,\"EVAL CHIMIQUE\",'Tableau de bord'!#REF!,\"JUILLET\")","v":{"$error":"#REF!"}},{"$f":"COUNTIFS('Tableau de bord'!$A:$A,\"2021\",'Tableau de bord'!$E:$E,\"CSE\",'Tableau de bord'!#REF!,\"JUILLET\")","v":{"$error":"#REF!"}},{"$f":"COUNTIFS('Tableau de bord'!$A:$A,\"2021\",'Tableau de bord'!$E:$E,\"VISITE CHANTIER\",'Tableau de bord'!#REF!,\"JUILLET\")","v":{"$error":"#REF!"}},{"$f":"COUNTIFS('Tableau de bord'!$A:$A,\"2021\",'Tableau de bord'!$E:$E,\"METROLOGIE\",'Tableau de bord'!#REF!,\"JUILLET\")","v":{"$error":"#REF!"}},{"$f":"COUNTIFS('Tableau de bord'!A:A,\"2021\",'Tableau de bord'!E:E,\"AUTRE\",'Tableau de bord'!#REF!,\"JUILLET\")","v":{"$error":"#REF!"}},{"$f":"COUNTIFS('Tableau de bord'!A:A,\"2021\",'Tableau de bord'!K:K,\"Terminé\",'Tableau de bord'!#REF!,\"JUILLET\")","v":{"$error":"#REF!"}},{"$f":"COUNTIFS('Tableau de bord'!$A:$A,\"2021\",'Tableau de bord'!$K:$K,\"Terminé\",'Tableau de bord'!#REF!,\"JUILLET\",'Tableau de bord'!$E:$E,\"EP\")","v":{"$error":"#REF!"}},{"$f":"COUNTIFS('Tableau de bord'!$A:$A,\"2021\",'Tableau de bord'!$K:$K,\"Terminé\",'Tableau de bord'!#REF!,\"JUILLET\",'Tableau de bord'!$E:$E,\"FE\")","v":{"$error":"#REF!"}},{"$f":"COUNTIFS('Tableau de bord'!$A:$A,\"2021\",'Tableau de bord'!$K:$K,\"Terminé\",'Tableau de bord'!#REF!,\"JUILLET\",'Tableau de bord'!$E:$E,\"EVAL CHIMIQUE\")","v":{"$error":"#REF!"}},{"$f":"COUNTIFS('Tableau de bord'!$A:$A,\"2021\",'Tableau de bord'!$K:$K,\"Terminé\",'Tableau de bord'!#REF!,\"JUILLET\",'Tableau de bord'!$E:$E,\"CSE\")","v":{"$error":"#REF!"}},{"$f":"COUNTIFS('Tableau de bord'!$A:$A,\"2021\",'Tableau de bord'!$K:$K,\"Terminé\",'Tableau de bord'!#REF!,\"JUILLET\",'Tableau de bord'!$E:$E,\"VISITE CHANTIER\")","v":{"$error":"#REF!"}},{"$f":"COUNTIFS('Tableau de bord'!$A:$A,\"2021\",'Tableau de bord'!$K:$K,\"Terminé\",'Tableau de bord'!#REF!,\"JUILLET\",'Tableau de bord'!$E:$E,\"METROLOGIE\")","v":{"$error":"#REF!"}},{"$f":"COUNTIFS('Tableau de bord'!$A:$A,\"2021\",'Tableau de bord'!$K:$K,\"Terminé\",'Tableau de bord'!#REF!,\"JUILLET\",'Tableau de bord'!$E:$E,\"AUTRE\")","v":{"$error":"#REF!"}}]
["Août",{"$f":"COUNTIFS('Tableau de bord'!A:A,\"2021\",'Tableau de bord'!#REF!,\"AOUT\")","v":{"$error":"#REF!"}},{"$f":"COUNTIFS('Tableau de bord'!A:A,\"2021\",'Tableau de bord'!E:E,\"EP\",'Tableau de bord'!#REF!,\"AOUT\")","v":{"$error":"#REF!"}},{"$f":"COUNTIFS('Tableau de bord'!A:A,\"2021\",'Tableau de bord'!E:E,\"FE\",'Tableau de bord'!#REF!,\"AOUT\")","v":{"$error":"#REF!"}},{"$f":"COUNTIFS('Tableau de bord'!$A:$A,\"2021\",'Tableau de bord'!$E:$E,\"EVAL CHIMIQUE\",'Tableau de bord'!#REF!,\"AOUT\")","v":{"$error":"#REF!"}},{"$f":"COUNTIFS('Tableau de bord'!$A:$A,\"2021\",'Tableau de bord'!$E:$E,\"CSE\",'Tableau de bord'!#REF!,\"AOUT\")","v":{"$error":"#REF!"}},{"$f":"COUNTIFS('Tableau de bord'!$A:$A,\"2021\",'Tableau de bord'!$E:$E,\"VISITE CHANTIER\",'Tableau de bord'!#REF!,\"AOUT\")","v":{"$error":"#REF!"}},{"$f":"COUNTIFS('Tableau de bord'!$A:$A,\"2021\",'Tableau de bord'!$E:$E,\"METROLOGIE\",'Tableau de bord'!#REF!,\"AOUT\")","v":{"$error":"#REF!"}},{"$f":"COUNTIFS('Tableau de bord'!A:A,\"2021\",'Tableau de bord'!E:E,\"AUTRE\",'Tableau de bord'!#REF!,\"AOUT\")","v":{"$error":"#REF!"}},{"$f":"COUNTIFS('Tableau de bord'!A:A,\"2021\",'Tableau de bord'!K:K,\"Terminé\",'Tableau de bord'!#REF!,\"AOUT\")","v":{"$error":"#REF!"}},{"$f":"COUNTIFS('Tableau de bord'!$A:$A,\"2021\",'Tableau de bord'!$K:$K,\"Terminé\",'Tableau de bord'!#REF!,\"AOUT\",'Tableau de bord'!$E:$E,\"EP\")","v":{"$error":"#REF!"}},{"$f":"COUNTIFS('Tableau de bord'!$A:$A,\"2021\",'Tableau de bord'!$K:$K,\"Terminé\",'Tableau de bord'!#REF!,\"AOUT\",'Tableau de bord'!$E:$E,\"FE\")","v":{"$error":"#REF!"}},{"$f":"COUNTIFS('Tableau de bord'!$A:$A,\"2021\",'Tableau de bord'!$K:$K,\"Terminé\",'Tableau de bord'!#REF!,\"AOUT\",'Tableau de bord'!$E:$E,\"EVAL CHIMIQUE\")","v":{"$error":"#REF!"}},{"$f":"COUNTIFS('Tableau de bord'!$A:$A,\"2021\",'Tableau de bord'!$K:$K,\"Terminé\",'Tableau de bord'!#REF!,\"AOUT\",'Tableau de bord'!$E:$E,\"CSE\")","v":{"$error":"#REF!"}},{"$f":"COUNTIFS('Tableau de bord'!$A:$A,\"2021\",'Tableau de bord'!$K:$K,\"Terminé\",'Tableau de bord'!#REF!,\"AOUT\",'Tableau de bord'!$E:$E,\"VISITE CHANTIER\")","v":{"$error":"#REF!"}},{"$f":"COUNTIFS('Tableau de bord'!$A:$A,\"2021\",'Tableau de bord'!$K:$K,\"Terminé\",'Tableau de bord'!#REF!,\"AOUT\",'Tableau de bord'!$E:$E,\"METROLOGIE\")","v":{"$error":"#REF!"}},{"$f":"COUNTIFS('Tableau de bord'!$A:$A,\"2021\",'Tableau de bord'!$K:$K,\"Terminé\",'Tableau de bord'!#REF!,\"AOUT\",'Tableau de bord'!$E:$E,\"AUTRE\")","v":{"$error":"#REF!"}}]
["Septembre",{"$f":"COUNTIFS('Tableau de bord'!A:A,\"2021\",'Tableau de bord'!#REF!,\"SEPTEMBRE\")","v":{"$error":"#REF!"}},{"$f":"COUNTIFS('Tableau de bord'!A:A,\"2021\",'Tableau de bord'!E:E,\"EP\",'Tableau de bord'!#REF!,\"SEPTEMBRE\")","v":{"$error":"#REF!"}},{"$f":"COUNTIFS('Tableau de bord'!A:A,\"2021\",'Tableau de bord'!E:E,\"FE\",'Tableau de bord'!#REF!,\"SEPTEMBRE\")","v":{"$error":"#REF!"}},{"$f":"COUNTIFS('Tableau de bord'!$A:$A,\"2021\",'Tableau de bord'!$E:$E,\"EVAL CHIMIQUE\",'Tableau de bord'!#REF!,\"SEPTEMBRE\")","v":{"$error":"#REF!"}},{"$f":"COUNTIFS('Tableau de bord'!$A:$A,\"2021\",'Tableau de bord'!$E:$E,\"CSE\",'Tableau de bord'!#REF!,\"SEPTEMBRE\")","v":{"$error":"#REF!"}},{"$f":"COUNTIFS('Tableau de bord'!$A:$A,\"2021\",'Tableau de bord'!$E:$E,\"VISITE CHANTIER\",'Tableau de bord'!#REF!,\"SEPTEMBRE\")","v":{"$error":"#REF!"}},{"$f":"COUNTIFS('Tableau de bord'!$A:$A,\"2021\",'Tableau de bord'!$E:$E,\"METROLOGIE\",'Tableau de bord'!#REF!,\"SEPTEMBRE\")","v":{"$error":"#REF!"}},{"$f":"COUNTIFS('Tableau de bord'!A:A,\"2021\",'Tableau de bord'!E:E,\"AUTRE\",'Tableau de bord'!#REF!,\"SEPTEMBRE\")","v":{"$error":"#REF!"}},{"$f":"COUNTIFS('Tableau de bord'!A:A,\"2021\",'Tableau de bord'!K:K,\"Terminé\",'Tableau de bord'!#REF!,\"SEPTEMBRE\")","v":{"$error":"#REF!"}},{"$f":"COUNTIFS('Tableau de bord'!$A:$A,\"2021\",'Tableau de bord'!$K:$K,\"Terminé\",'Tableau de bord'!#REF!,\"SEPTEMBRE\",'Tableau de bord'!$E:$E,\"EP\")","v":{"$error":"#REF!"}},{"$f":"COUNTIFS('Tableau de bord'!$A:$A,\"2021\",'Tableau de bord'!$K:$K,\"Terminé\",'Tableau de bord'!#REF!,\"SEPTEMBRE\",'Tableau de bord'!$E:$E,\"FE\")","v":{"$error":"#REF!"}},{"$f":"COUNTIFS('Tableau de bord'!$A:$A,\"2021\",'Tableau de bord'!$K:$K,\"Terminé\",'Tableau de bord'!#REF!,\"SEPTEMBRE\",'Tableau de bord'!$E:$E,\"EVAL CHIMIQUE\")","v":{"$error":"#REF!"}},{"$f":"COUNTIFS('Tableau de bord'!$A:$A,\"2021\",'Tableau de bord'!$K:$K,\"Terminé\",'Tableau de bord'!#REF!,\"SEPTEMBRE\",'Tableau de bord'!$E:$E,\"CSE\")","v":{"$error":"#REF!"}},{"$f":"COUNTIFS('Tableau de bord'!$A:$A,\"2021\",'Tableau de bord'!$K:$K,\"Terminé\",'Tableau de bord'!#REF!,\"SEPTEMBRE\",'Tableau de bord'!$E:$E,\"VISITE CHANTIER\")","v":{"$error":"#REF!"}},{"$f":"COUNTIFS('Tableau de bord'!$A:$A,\"2021\",'Tableau de bord'!$K:$K,\"Terminé\",'Tableau de bord'!#REF!,\"SEPTEMBRE\",'Tableau de bord'!$E:$E,\"METROLOGIE\")","v":{"$error":"#REF!"}},{"$f":"COUNTIFS('Tableau de bord'!$A:$A,\"2021\",'Tableau de bord'!$K:$K,\"Terminé\",'Tableau de bord'!#REF!,\"SEPTEMBRE\",'Tableau de bord'!$E:$E,\"AUTRE\")","v":{"$error":"#REF!"}}]
["Octobre",{"$f":"COUNTIFS('Tableau de bord'!A:A,\"2021\",'Tableau de bord'!#REF!,\"OCTOBRE\")","v":{"$error":"#REF!"}},{"$f":"COUNTIFS('Tableau de bord'!A:A,\"2021\",'Tableau de bord'!E:E,\"EP\",'Tableau de bord'!#REF!,\"OCTOBRE\")","v":{"$error":"#REF!"}},{"$f":"COUNTIFS('Tableau de bord'!A:A,\"2021\",'Tableau de bord'!E:E,\"FE\",'Tableau de bord'!#REF!,\"OCTOBRE\")","v":{"$error":"#REF!"}},{"$f":"COUNTIFS('Tableau de bord'!$A:$A,\"2021\",'Tableau de bord'!$E:$E,\"EVAL CHIMIQUE\",'Tableau de bord'!#REF!,\"OCTOBRE\")","v":{"$error":"#REF!"}},{"$f":"COUNTIFS('Tableau de bord'!$A:$A,\"2021\",'Tableau de bord'!$E:$E,\"CSE\",'Tableau de bord'!#REF!,\"OCTOBRE\")","v":{"$error":"#REF!"}},{"$f":"COUNTIFS('Tableau de bord'!$A:$A,\"2021\",'Tableau de bord'!$E:$E,\"VISITE CHANTIER\",'Tableau de bord'!#REF!,\"OCTOBRE\")","v":{"$error":"#REF!"}},{"$f":"COUNTIFS('Tableau de bord'!$A:$A,\"2021\",'Tableau de bord'!$E:$E,\"METROLOGIE\",'Tableau de bord'!#REF!,\"OCTOBRE\")","v":{"$error":"#REF!"}},{"$f":"COUNTIFS('Tableau de bord'!A:A,\"2021\",'Tableau de bord'!E:E,\"AUTRE\",'Tableau de bord'!#REF!,\"OCTOBRE\")","v":{"$error":"#REF!"}},{"$f":"COUNTIFS('Tableau de bord'!A:A,\"2021\",'Tableau de bord'!K:K,\"Terminé\",'Tableau de bord'!#REF!,\"OCTOBRE\")","v":{"$error":"#REF!"}},{"$f":"COUNTIFS('Tableau de bord'!$A:$A,\"2021\",'Tableau de bord'!$K:$K,\"Terminé\",'Tableau de bord'!#REF!,\"OCTOBRE\",'Tableau de bord'!$E:$E,\"EP\")","v":{"$error":"#REF!"}},{"$f":"COUNTIFS('Tableau de bord'!$A:$A,\"2021\",'Tableau de bord'!$K:$K,\"Terminé\",'Tableau de bord'!#REF!,\"OCTOBRE\",'Tableau de bord'!$E:$E,\"FE\")","v":{"$error":"#REF!"}},{"$f":"COUNTIFS('Tableau de bord'!$A:$A,\"2021\",'Tableau de bord'!$K:$K,\"Terminé\",'Tableau de bord'!#REF!,\"OCTOBRE\",'Tableau de bord'!$E:$E,\"EVAL CHIMIQUE\")","v":{"$error":"#REF!"}},{"$f":"COUNTIFS('Tableau de bord'!$A:$A,\"2021\",'Tableau de bord'!$K:$K,\"Terminé\",'Tableau de bord'!#REF!,\"OCTOBRE\",'Tableau de bord'!$E:$E,\"CSE\")","v":{"$error":"#REF!"}},{"$f":"COUNTIFS('Tableau de bord'!$A:$A,\"2021\",'Tableau de bord'!$K:$K,\"Terminé\",'Tableau de bord'!#REF!,\"OCTOBRE\",'Tableau de bord'!$E:$E,\"VISITE CHANTIER\")","v":{"$error":"#REF!"}},{"$f":"COUNTIFS('Tableau de bord'!$A:$A,\"2021\",'Tableau de bord'!$K:$K,\"Terminé\",'Tableau de bord'!#REF!,\"OCTOBRE\",'Tableau de bord'!$E:$E,\"METROLOGIE\")","v":{"$error":"#REF!"}},{"$f":"COUNTIFS('Tableau de bord'!$A:$A,\"2021\",'Tableau de bord'!$K:$K,\"Terminé\",'Tableau de bord'!#REF!,\"OCTOBRE\",'Tableau de bord'!$E:$E,\"AUTRE\")","v":{"$error":"#REF!"}}]
["Novembre",{"$f":"COUNTIFS('Tableau de bord'!A:A,\"2021\",'Tableau de bord'!#REF!,\"NOVEMBRE\")","v":{"$error":"#REF!"}},{"$f":"COUNTIFS('Tableau de bord'!A:A,\"2021\",'Tableau de bord'!E:E,\"EP\",'Tableau de bord'!#REF!,\"NOVEMBRE\")","v":{"$error":"#REF!"}},{"$f":"COUNTIFS('Tableau de bord'!A:A,\"2021\",'Tableau de bord'!E:E,\"FE\",'Tableau de bord'!#REF!,\"NOVEMBRE\")","v":{"$error":"#REF!"}},{"$f":"COUNTIFS('Tableau de bord'!$A:$A,\"2021\",'Tableau de bord'!$E:$E,\"EVAL CHIMIQUE\",'Tableau de bord'!#REF!,\"NOVEMBRE\")","v":{"$error":"#REF!"}},{"$f":"COUNTIFS('Tableau de bord'!$A:$A,\"2021\",'Tableau de bord'!$E:$E,\"CSE\",'Tableau de bord'!#REF!,\"NOVEMBRE\")","v":{"$error":"#REF!"}},{"$f":"COUNTIFS('Tableau de bord'!$A:$A,\"2021\",'Tableau de bord'!$E:$E,\"VISITE CHANTIER\",'Tableau de bord'!#REF!,\"NOVEMBRE\")","v":{"$error":"#REF!"}},{"$f":"COUNTIFS('Tableau de bord'!$A:$A,\"2021\",'Tableau de bord'!$E:$E,\"METROLOGIE\",'Tableau de bord'!#REF!,\"NOVEMBRE\")","v":{"$error":"#REF!"}},{"$f":"COUNTIFS('Tableau de bord'!A:A,\"2021\",'Tableau de bord'!E:E,\"AUTRE\",'Tableau de bord'!#REF!,\"NOVEMBRE\")","v":{"$error":"#REF!"}},{"$f":"COUNTIFS('Tableau de bord'!A:A,\"2021\",'Tableau de bord'!K:K,\"Terminé\",'Tableau de bord'!#REF!,\"NOVEMBRE\")","v":{"$error":"#REF!"}},{"$f":"COUNTIFS('Tableau de bord'!$A:$A,\"2021\",'Tableau de bord'!$K:$K,\"Terminé\",'Tableau de bord'!#REF!,\"NOVEMBRE\",'Tableau de bord'!$E:$E,\"EP\")","v":{"$error":"#REF!"}},{"$f":"COUNTIFS('Tableau de bord'!$A:$A,\"2021\",'Tableau de bord'!$K:$K,\"Terminé\",'Tableau de bord'!#REF!,\"NOVEMBRE\",'Tableau de bord'!$E:$E,\"FE\")","v":{"$error":"#REF!"}},{"$f":"COUNTIFS('Tableau de bord'!$A:$A,\"2021\",'Tableau de bord'!$K:$K,\"Terminé\",'Tableau de bord'!#REF!,\"NOVEMBRE\",'Tableau de bord'!$E:$E,\"EVAL CHIMIQUE\")","v":{"$error":"#REF!"}},{"$f":"COUNTIFS('Tableau de bord'!$A:$A,\"2021\",'Tableau de bord'!$K:$K,\"Terminé\",'Tableau de bord'!#REF!,\"NOVEMBRE\",'Tableau de bord'!$E:$E,\"CSE\")","v":{"$error":"#REF!"}},{"$f":"COUNTIFS('Tableau de bord'!$A:$A,\"2021\",'Tableau de bord'!$K:$K,\"Terminé\",'Tableau de bord'!#REF!,\"NOVEMBRE\",'Tableau de bord'!$E:$E,\"VISITE CHANTIER\")","v":{"$error":"#REF!"}},{"$f":"COUNTIFS('Tableau de bord'!$A:$A,\"2021\",'Tableau de bord'!$K:$K,\"Terminé\",'Tableau de bord'!#REF!,\"NOVEMBRE\",'Tableau de bord'!$E:$E,\"METROLOGIE\")","v":{"$error":"#REF!"}},{"$f":"COUNTIFS('Tableau de bord'!$A:$A,\"2021\",'Tableau de bord'!$K:$K,\"Terminé\",'Tableau de bord'!#REF!,\"NOVEMBRE\",'Tableau de bord'!$E:$E,\"AUTRE\")","v":{"$error":"#REF!"}}]
["Décembre",{"$f":"COUNTIFS('Tableau de bord'!A:A,\"2021\",'Tableau de bord'!#REF!,\"DECEMBRE\")","v":{"$error":"#REF!"}},{"$f":"COUNTIFS('Tableau de bord'!A:A,\"2021\",'Tableau de bord'!E:E,\"EP\",'Tableau de bord'!#REF!,\"DECEMBRE\")","v":{"$error":"#REF!"}},{"$f":"COUNTIFS('Tableau de bord'!A:A,\"2021\",'Tableau de bord'!E:E,\"FE\",'Tableau de bord'!#REF!,\"DECEMBRE\")","v":{"$error":"#REF!"}},{"$f":"COUNTIFS('Tableau de bord'!$A:$A,\"2021\",'Tableau de bord'!$E:$E,\"EVAL CHIMIQUE\",'Tableau de bord'!#REF!,\"DECEMBRE\")","v":{"$error":"#REF!"}},{"$f":"COUNTIFS('Tableau de bord'!$A:$A,\"2021\",'Tableau de bord'!$E:$E,\"CSE\",'Tableau de bord'!#REF!,\"DECEMBRE\")","v":{"$error":"#REF!"}},{"$f":"COUNTIFS('Tableau de bord'!$A:$A,\"2021\",'Tableau de bord'!$E:$E,\"VISITE CHANTIER\",'Tableau de bord'!#REF!,\"DECEMBRE\")","v":{"$error":"#REF!"}},{"$f":"COUNTIFS('Tableau de bord'!$A:$A,\"2021\",'Tableau de bord'!$E:$E,\"METROLOGIE\",'Tableau de bord'!#REF!,\"DECEMBRE\")","v":{"$error":"#REF!"}},{"$f":"COUNTIFS('Tableau de bord'!A:A,\"2021\",'Tableau de bord'!E:E,\"AUTRE\",'Tableau de bord'!#REF!,\"DECEMBRE\")","v":{"$error":"#REF!"}},{"$f":"COUNTIFS('Tableau de bord'!A:A,\"2021\",'Tableau de bord'!K:K,\"Terminé\",'Tableau de bord'!#REF!,\"DECEMBRE\")","v":{"$error":"#REF!"}},{"$f":"COUNTIFS('Tableau de bord'!$A:$A,\"2021\",'Tableau de bord'!$K:$K,\"Terminé\",'Tableau de bord'!#REF!,\"DECEMBRE\",'Tableau de bord'!$E:$E,\"EP\")","v":{"$error":"#REF!"}},{"$f":"COUNTIFS('Tableau de bord'!$A:$A,\"2021\",'Tableau de bord'!$K:$K,\"Terminé\",'Tableau de bord'!#REF!,\"DECEMBRE\",'Tableau de bord'!$E:$E,\"FE\")","v":{"$error":"#REF!"}},{"$f":"COUNTIFS('Tableau de bord'!$A:$A,\"2021\",'Tableau de bord'!$K:$K,\"Terminé\",'Tableau de bord'!#REF!,\"DECEMBRE\",'Tableau de bord'!$E:$E,\"EVAL CHIMIQUE\")","v":{"$error":"#REF!"}},{"$f":"COUNTIFS('Tableau de bord'!$A:$A,\"2021\",'Tableau de bord'!$K:$K,\"Terminé\",'Tableau de bord'!#REF!,\"DECEMBRE\",'Tableau de bord'!$E:$E,\"CSE\")","v":{"$error":"#REF!"}},{"$f":"COUNTIFS('Tableau de bord'!$A:$A,\"2021\",'Tableau de bord'!$K:$K,\"Terminé\",'Tableau de bord'!#REF!,\"DECEMBRE\",'Tableau de bord'!$E:$E,\"VISITE CHANTIER\")","v":{"$error":"#REF!"}},{"$f":"COUNTIFS('Tableau de bord'!$A:$A,\"2021\",'Tableau de bord'!$K:$K,\"Terminé\",'Tableau de bord'!#REF!,\"DECEMBRE\",'Tableau de bord'!$E:$E,\"METROLOGIE\")","v":{"$error":"#REF!"}},{"$f":"COUNTIFS('Tableau de bord'!$A:$A,\"2021\",'Tableau de bord'!$K:$K,\"Terminé\",'Tableau de bord'!#REF!,\"DECEMBRE\",'Tableau de bord'!$E:$E,\"AUTRE\")","v":{"$error":"#REF!"}}]
["TOTAL",{"$f":"SUM(B5:B14)","v":{"$error":"#REF!"}},{"$f":"SUM(C5:C14)","v":{"$error":"#REF!"}},{"$error":"#REF!"},{"$error":"#REF!"},{"$error":"#REF!"},{"$error":"#REF!"},{"$error":"#REF!"},{"$f":"SUM(I5:I14)","v":{"$error":"#REF!"}},{"$error":"#REF!"},{"$error":"#REF!"},{"$error":"#REF!"},{"$error":"#REF!"},{"$error":"#REF!"},{"$error":"#REF!"},{"$error":"#REF!"},{"$error":"#REF!"}]
[]
[]
[]
["Nombre d'action demandées/finalisées  par médecin"]
["Médecin","Nb d'actions demandées","EP","FE","EVAL CHIMIQUE","CSE","VISITE CHANTIER","METROLOGIE","AUTRE","Nb d'actions finalisées","EP","FE","EVAL CHIMIQUE","CSE","VISITE CHANTIER","METROLOGIE","AUTRE","ATTENTE VALIDATION"]
["Dr DEPEZEVILLE",{"$f":"COUNTIFS('Tableau de bord'!A:A,\"2021\",'Tableau de bord'!G:G,\"Dr. DEPEZEVILLE\")","v":5},{"$f":"COUNTIFS('Tableau de bord'!A:A,\"2021\",'Tableau de bord'!$G:$G,\"Dr. DEPEZEVILLE\",'Tableau de bord'!$E:$E,\"EP\")","v":2},{"$f":"COUNTIFS('Tableau de bord'!$A:$A,\"2021\",'Tableau de bord'!$G:$G,\"Dr. DEPEZEVILLE\",'Tableau de bord'!$E:$E,\"FE\")","v":3},{"$f":"COUNTIFS('Tableau de bord'!$A:$A,\"2021\",'Tableau de bord'!$G:$G,\"Dr. DEPEZEVILLE\",'Tableau de bord'!$E:$E,\"EVAL CHIMIQUE\")","v":0},{"$f":"COUNTIFS('Tableau de bord'!$A:$A,\"2021\",'Tableau de bord'!$G:$G,\"Dr. DEPEZEVILLE\",'Tableau de bord'!$E:$E,\"CSE\")","v":0},{"$f":"COUNTIFS('Tableau de bord'!$A:$A,\"2021\",'Tableau de bord'!$G:$G,\"Dr. DEPEZEVILLE\",'Tableau de bord'!$E:$E,\"VISITE CHANTIER\")","v":0},{"$f":"COUNTIFS('Tableau de bord'!$A:$A,\"2021\",'Tableau de bord'!$G:$G,\"Dr. DEPEZEVILLE\",'Tableau de bord'!$E:$E,\"METROLOGIE\")","v":0},{"$f":"COUNTIFS('Tableau de bord'!A:A,\"2021\",'Tableau de bord'!$G:$G,\"Dr. DEPEZEVILLE\",'Tableau de bord'!$E:$E,\"AUTRE\")","v":0},{"$f":"COUNTIFS('Tableau de bord'!$A:$A,\"2021\",'Tableau de bord'!$G:$G,\"Dr. DEPEZEVILLE\",'Tableau de bord'!$K:$K,\"Terminé\")","v":5},{"$f":"COUNTIFS('Tableau de bord'!$A:$A,\"2021\",'Tableau de bord'!$G:$G,\"Dr. DEPEZEVILLE\",'Tableau de bord'!$E:$E,\"EP\",'Tableau de bord'!$K:$K,\"Terminé\")","v":2},{"$f":"COUNTIFS('Tableau de bord'!$A:$A,\"2021\",'Tableau de bord'!$G:$G,\"Dr. DEPEZEVILLE\",'Tableau de bord'!$E:$E,\"FE\",'Tableau de bord'!$K:$K,\"Terminé\")","v":3},{"$f":"COUNTIFS('Tableau de bord'!$A:$A,\"2021\",'Tableau de bord'!$G:$G,\"Dr. DEPEZEVILLE\",'Tableau de bord'!$E:$E,\"EVAL CHIMIQUE\",'Tableau de bord'!$K:$K,\"Terminé\")","v":0},{"$f":"COUNTIFS('Tableau de bord'!$A:$A,\"2021\",'Tableau de bord'!$G:$G,\"Dr. DEPEZEVILLE\",'Tableau de bord'!$E:$E,\"CSE\",'Tableau de bord'!$K:$K,\"Terminé\")","v":0},{"$f":"COUNTIFS('Tableau de bord'!$A:$A,\"2021\",'Tableau de bord'!$G:$G,\"Dr. DEPEZEVILLE\",'Tableau de bord'!$E:$E,\"VISITE CHANTIER\",'Tableau de bord'!$K:$K,\"Terminé\")","v":0},{"$f":"COUNTIFS('Tableau de bord'!$A:$A,\"2021\",'Tableau de bord'!$G:$G,\"Dr. DEPEZEVILLE\",'Tableau de bord'!$E:$E,\"METROLOGIE\",'Tableau de bord'!$K:$K,\"Terminé\")","v":0},{"$f":"COUNTIFS('Tableau de bord'!$A:$A,\"2021\",'Tableau de bord'!$G:$G,\"Dr. DEPEZEVILLE\",'Tableau de bord'!$E:$E,\"AUTRE\",'Tableau de bord'!$K:$K,\"Terminé\")","v":0},{"$f":"COUNTIFS('Tableau de bord'!$G:$G,\"Dr. DEPEZEVILLE\",'Tableau de bord'!$K:$K,\"Terminé\",'Tableau de bord'!O:O,\"\")","v":4}]
["Dr FAVARETTO",{"$f":"COUNTIFS('Tableau de bord'!A:A,\"2021\",'Tableau de bord'!G:G,\"Dr. FAVARETTO\")","v":0},{"$f":"COUNTIFS('Tableau de bord'!A:A,\"2021\",'Tableau de bord'!$G:$G,\"Dr. FAVARETTO\",'Tableau de bord'!$E:$E,\"EP\")","v":0},{"$f":"COUNTIFS('Tableau de bord'!$A:$A,\"2021\",'Tableau de bord'!$G:$G,\"Dr. FAVARETTO\",'Tableau de bord'!$E:$E,\"FE\")","v":0},{"$f":"COUNTIFS('Tableau de bord'!$A:$A,\"2021\",'Tableau de bord'!$G:$G,\"Dr. FAVARETTO\",'Tableau de bord'!$E:$E,\"EVAL CHIMIQUE\")","v":0},{"$f":"COUNTIFS('Tableau de bord'!$A:$A,\"2021\",'Tableau de bord'!$G:$G,\"Dr. FAVARETTO\",'Tableau de bord'!$E:$E,\"CSE\")","v":0},{"$f":"COUNTIFS('Tableau de bord'!$A:$A,\"2021\",'Tableau de bord'!$G:$G,\"Dr. FAVARETTO\",'Tableau de bord'!$E:$E,\"VISITE CHANTIER\")","v":0},{"$f":"COUNTIFS('Tableau de bord'!$A:$A,\"2021\",'Tableau de bord'!$G:$G,\"Dr. FAVARETTO\",'Tableau de bord'!$E:$E,\"METROLOGIE\")","v":0},{"$f":"COUNTIFS('Tableau de bord'!A:A,\"2021\",'Tableau de bord'!$G:$G,\"Dr. FAVARETTO\",'Tableau de bord'!$E:$E,\"AUTRE\")","v":0},{"$f":"COUNTIFS('Tableau de bord'!$A:$A,\"2021\",'Tableau de bord'!$G:$G,\"Dr. FAVARETTO\",'Tableau de bord'!$K:$K,\"Terminé\")","v":0},{"$f":"COUNTIFS('Tableau de bord'!$A:$A,\"2021\",'Tableau de bord'!$G:$G,\"Dr. FAVARETTO\",'Tableau de bord'!$E:$E,\"EP\",'Tableau de bord'!$K:$K,\"Terminé\")","v":0},{"$f":"COUNTIFS('Tableau de bord'!$A:$A,\"2021\",'Tableau de bord'!$G:$G,\"Dr. FAVARETTO\",'Tableau de bord'!$E:$E,\"FE\",'Tableau de bord'!$K:$K,\"Terminé\")","v":0},{"$f":"COUNTIFS('Tableau de bord'!$A:$A,\"2021\",'Tableau de bord'!$G:$G,\"Dr. FAVARETTO\",'Tableau de bord'!$E:$E,\"EVAL CHIMIQUE\",'Tableau de bord'!$K:$K,\"Terminé\")","v":0},{"$f":"COUNTIFS('Tableau de bord'!$A:$A,\"2021\",'Tableau de bord'!$G:$G,\"Dr. FAVARETTO\",'Tableau de bord'!$E:$E,\"CSE\",'Tableau de bord'!$K:$K,\"Terminé\")","v":0},{"$f":"COUNTIFS('Tableau de bord'!$A:$A,\"2021\",'Tableau de bord'!$G:$G,\"Dr. FAVARETTO\",'Tableau de bord'!$E:$E,\"VISITE CHANTIER\",'Tableau de bord'!$K:$K,\"Terminé\")","v":0},{"$f":"COUNTIFS('Tableau de bord'!$A:$A,\"2021\",'Tableau de bord'!$G:$G,\"Dr. FAVARETTO\",'Tableau de bord'!$E:$E,\"METROLOGIE\",'Tableau de bord'!$K:$K,\"Terminé\")","v":0},{"$f":"COUNTIFS('Tableau de bord'!$A:$A,\"2021\",'Tableau de bord'!$G:$G,\"Dr. FAVARETTO\",'Tableau de bord'!$E:$E,\"AUTRE\",'Tableau de bord'!$K:$K,\"Terminé\")","v":0},{"$f":"COUNTIFS('Tableau de bord'!$G:$G,\"Dr. FAVARETTO\",'Tableau de bord'!$K:$K,\"Terminé\",'Tableau de bord'!O:O,\"\")","v":2}]
["Dr HAPPEY",{"$f":"COUNTIFS('Tableau de bord'!A:A,\"2021\",'Tableau de bord'!G:G,\"Dr. HAPPEY\")","v":2},{"$f":"COUNTIFS('Tableau de bord'!A:A,\"2021\",'Tableau de bord'!$G:$G,\"Dr. HAPPEY\",'Tableau de bord'!$E:$E,\"EP\")","v":0},{"$f":"COUNTIFS('Tableau de bord'!$A:$A,\"2021\",'Tableau de bord'!$G:$G,\"Dr. HAPPEY\",'Tableau de bord'!$E:$E,\"FE\")","v":1},{"$f":"COUNTIFS('Tableau de bord'!$A:$A,\"2021\",'Tableau de bord'!$G:$G,\"Dr. HAPPEY\",'Tableau de bord'!$E:$E,\"EVAL CHIMIQUE\")","v":1},{"$f":"COUNTIFS('Tableau de bord'!$A:$A,\"2021\",'Tableau de bord'!$G:$G,\"Dr. HAPPEY\",'Tableau de bord'!$E:$E,\"CSE\")","v":0},{"$f":"COUNTIFS('Tableau de bord'!$A:$A,\"2021\",'Tableau de bord'!$G:$G,\"Dr. HAPPEY\",'Tableau de bord'!$E:$E,\"VISITE CHANTIER\")","v":0},{"$f":"COUNTIFS('Tableau de bord'!$A:$A,\"2021\",'Tableau de bord'!$G:$G,\"Dr. HAPPEY\",'Tableau de bord'!$E:$E,\"METROLOGIE\")","v":0},{"$f":"COUNTIFS('Tableau de bord'!A:A,\"2021\",'Tableau de bord'!$G:$G,\"Dr. HAPPEY\",'Tableau de bord'!$E:$E,\"AUTRE\")","v":0},{"$f":"COUNTIFS('Tableau de bord'!$A:$A,\"2021\",'Tableau de bord'!$G:$G,\"Dr. HAPPEY\",'Tableau de bord'!$K:$K,\"Terminé\")","v":2},{"$f":"COUNTIFS('Tableau de bord'!$A:$A,\"2021\",'Tableau de bord'!$G:$G,\"Dr. HAPPEY\",'Tableau de bord'!$E:$E,\"EP\",'Tableau de bord'!$K:$K,\"Terminé\")","v":0},{"$f":"COUNTIFS('Tableau de bord'!$A:$A,\"2021\",'Tableau de bord'!$G:$G,\"Dr. HAPPEY\",'Tableau de bord'!$E:$E,\"FE\",'Tableau de bord'!$K:$K,\"Terminé\")","v":1},{"$f":"COUNTIFS('Tableau de bord'!$A:$A,\"2021\",'Tableau de bord'!$G:$G,\"Dr. HAPPEY\",'Tableau de bord'!$E:$E,\"EVAL CHIMIQUE\",'Tableau de bord'!$K:$K,\"Terminé\")","v":1},{"$f":"COUNTIFS('Tableau de bord'!$A:$A,\"2021\",'Tableau de bord'!$G:$G,\"Dr. HAPPEY\",'Tableau de bord'!$E:$E,\"CSE\",'Tableau de bord'!$K:$K,\"Terminé\")","v":0},{"$f":"COUNTIFS('Tableau de bord'!$A:$A,\"2021\",'Tableau de bord'!$G:$G,\"Dr. HAPPEY\",'Tableau de bord'!$E:$E,\"VISITE CHANTIER\",'Tableau de bord'!$K:$K,\"Terminé\")","v":0},{"$f":"COUNTIFS('Tableau de bord'!$A:$A,\"2021\",'Tableau de bord'!$G:$G,\"Dr. HAPPEY\",'Tableau de bord'!$E:$E,\"METROLOGIE\",'Tableau de bord'!$K:$K,\"Terminé\")","v":0},{"$f":"COUNTIFS('Tableau de bord'!$A:$A,\"2021\",'Tableau de bord'!$G:$G,\"Dr. HAPPEY\",'Tableau de bord'!$E:$E,\"AUTRE\",'Tableau de bord'!$K:$K,\"Terminé\")","v":0},{"$f":"COUNTIFS('Tableau de bord'!$G:$G,\"Dr. HAPPEY\",'Tableau de bord'!$K:$K,\"Terminé\",'Tableau de bord'!O:O,\"\")","v":4}]
["Dr JEANNE",{"$f":"COUNTIFS('Tableau de bord'!A:A,\"2021\",'Tableau de bord'!G:G,\"Dr. JEANNE\")","v":6},{"$f":"COUNTIFS('Tableau de bord'!A:A,\"2021\",'Tableau de bord'!$G:$G,\"Dr. JEANNE\",'Tableau de bord'!$E:$E,\"EP\")","v":1},{"$f":"COUNTIFS('Tableau de bord'!$A:$A,\"2021\",'Tableau de bord'!$G:$G,\"Dr. JEANNE\",'Tableau de bord'!$E:$E,\"FE\")","v":5},{"$f":"COUNTIFS('Tableau de bord'!$A:$A,\"2021\",'Tableau de bord'!$G:$G,\"Dr. JEANNE\",'Tableau de bord'!$E:$E,\"EVAL CHIMIQUE\")","v":0},{"$f":"COUNTIFS('Tableau de bord'!$A:$A,\"2021\",'Tableau de bord'!$G:$G,\"Dr. JEANNE\",'Tableau de bord'!$E:$E,\"CSE\")","v":0},{"$f":"COUNTIFS('Tableau de bord'!$A:$A,\"2021\",'Tableau de bord'!$G:$G,\"Dr. JEANNE\",'Tableau de bord'!$E:$E,\"VISITE CHANTIER\")","v":0},{"$f":"COUNTIFS('Tableau de bord'!$A:$A,\"2021\",'Tableau de bord'!$G:$G,\"Dr. JEANNE\",'Tableau de bord'!$E:$E,\"METROLOGIE\")","v":0},{"$f":"COUNTIFS('Tableau de bord'!A:A,\"2021\",'Tableau de bord'!$G:$G,\"Dr. JEANNE\",'Tableau de bord'!$E:$E,\"AUTRE\")","v":0},{"$f":"COUNTIFS('Tableau de bord'!$A:$A,\"2021\",'Tableau de bord'!$G:$G,\"Dr. JEANNE\",'Tableau de bord'!$K:$K,\"Terminé\")","v":5},{"$f":"COUNTIFS('Tableau de bord'!$A:$A,\"2021\",'Tableau de bord'!$G:$G,\"Dr. JEANNE\",'Tableau de bord'!$E:$E,\"EP\",'Tableau de bord'!$K:$K,\"Terminé\")","v":0},{"$f":"COUNTIFS('Tableau de bord'!$A:$A,\"2021\",'Tableau de bord'!$G:$G,\"Dr. JEANNE\",'Tableau de bord'!$E:$E,\"FE\",'Tableau de bord'!$K:$K,\"Terminé\")","v":5},{"$f":"COUNTIFS('Tableau de bord'!$A:$A,\"2021\",'Tableau de bord'!$G:$G,\"Dr. JEANNE\",'Tableau de bord'!$E:$E,\"EVAL CHIMIQUE\",'Tableau de bord'!$K:$K,\"Terminé\")","v":0},{"$f":"COUNTIFS('Tableau de bord'!$A:$A,\"2021\",'Tableau de bord'!$G:$G,\"Dr. JEANNE\",'Tableau de bord'!$E:$E,\"CSE\",'Tableau de bord'!$K:$K,\"Terminé\")","v":0},{"$f":"COUNTIFS('Tableau de bord'!$A:$A,\"2021\",'Tableau de bord'!$G:$G,\"Dr. JEANNE\",'Tableau de bord'!$E:$E,\"VISITE CHANTIER\",'Tableau de bord'!$K:$K,\"Terminé\")","v":0},{"$f":"COUNTIFS('Tableau de bord'!$A:$A,\"2021\",'Tableau de bord'!$G:$G,\"Dr. JEANNE\",'Tableau de bord'!$E:$E,\"METROLOGIE\",'Tableau de bord'!$K:$K,\"Terminé\")","v":0},{"$f":"COUNTIFS('Tableau de bord'!$A:$A,\"2021\",'Tableau de bord'!$G:$G,\"Dr. JEANNE\",'Tableau de bord'!$E:$E,\"AUTRE\",'Tableau de bord'!$K:$K,\"Terminé\")","v":0},{"$f":"COUNTIFS('Tableau de bord'!$G:$G,\"Dr. JEANNE\",'Tableau de bord'!$K:$K,\"Terminé\",'Tableau de bord'!O:O,\"\")","v":0}]
["Dr MOULIN",{"$f":"COUNTIFS('Tableau de bord'!A:A,\"2021\",'Tableau de bord'!G:G,\"Dr. MOULIN\")","v":0},{"$f":"COUNTIFS('Tableau de bord'!A:A,\"2021\",'Tableau de bord'!$G:$G,\"Dr. MOULIN\",'Tableau de bord'!$E:$E,\"EP\")","v":0},{"$f":"COUNTIFS('Tableau de bord'!$A:$A,\"2021\",'Tableau de bord'!$G:$G,\"Dr. MOULIN\",'Tableau de bord'!$E:$E,\"FE\")","v":0},{"$f":"COUNTIFS('Tableau de bord'!$A:$A,\"2021\",'Tableau de bord'!$G:$G,\"Dr. MOULIN\",'Tableau de bord'!$E:$E,\"EVAL CHIMIQUE\")","v":0},{"$f":"COUNTIFS('Tableau de bord'!$A:$A,\"2021\",'Tableau de bord'!$G:$G,\"Dr. MOULIN\",'Tableau de bord'!$E:$E,\"CSE\")","v":0},{"$f":"COUNTIFS('Tableau de bord'!$A:$A,\"2021\",'Tableau de bord'!$G:$G,\"Dr. MOULIN\",'Tableau de bord'!$E:$E,\"VISITE CHANTIER\")","v":0},{"$f":"COUNTIFS('Tableau de bord'!$A:$A,\"2021\",'Tableau de bord'!$G:$G,\"Dr. MOULIN\",'Tableau de bord'!$E:$E,\"METROLOGIE\")","v":0},{"$f":"COUNTIFS('Tableau de bord'!A:A,\"2021\",'Tableau de bord'!$G:$G,\"Dr. MOULIN\",'Tableau de bord'!$E:$E,\"AUTRE\")","v":0},{"$f":"COUNTIFS('Tableau de bord'!$A:$A,\"2021\",'Tableau de bord'!$G:$G,\"Dr. MOULIN\",'Tableau de bord'!$K:$K,\"Terminé\")","v":0},{"$f":"COUNTIFS('Tableau de bord'!$A:$A,\"2021\",'Tableau de bord'!$G:$G,\"Dr. MOULIN\",'Tableau de bord'!$E:$E,\"EP\",'Tableau de bord'!$K:$K,\"Terminé\")","v":0},{"$f":"COUNTIFS('Tableau de bord'!$A:$A,\"2021\",'Tableau de bord'!$G:$G,\"Dr. MOULIN\",'Tableau de bord'!$E:$E,\"FE\",'Tableau de bord'!$K:$K,\"Terminé\")","v":0},{"$f":"COUNTIFS('Tableau de bord'!$A:$A,\"2021\",'Tableau de bord'!$G:$G,\"Dr. MOULIN\",'Tableau de bord'!$E:$E,\"EVAL CHIMIQUE\",'Tableau de bord'!$K:$K,\"Terminé\")","v":0},{"$f":"COUNTIFS('Tableau de bord'!$A:$A,\"2021\",'Tableau de bord'!$G:$G,\"Dr. MOULIN\",'Tableau de bord'!$E:$E,\"CSE\",'Tableau de bord'!$K:$K,\"Terminé\")","v":0},{"$f":"COUNTIFS('Tableau de bord'!$A:$A,\"2021\",'Tableau de bord'!$G:$G,\"Dr. MOULIN\",'Tableau de bord'!$E:$E,\"VISITE CHANTIER\",'Tableau de bord'!$K:$K,\"Terminé\")","v":0},{"$f":"COUNTIFS('Tableau de bord'!$A:$A,\"2021\",'Tableau de bord'!$G:$G,\"Dr. MOULIN\",'Tableau de bord'!$E:$E,\"METROLOGIE\",'Tableau de bord'!$K:$K,\"Terminé\")","v":0},{"$f":"COUNTIFS('Tableau de bord'!$A:$A,\"2021\",'Tableau de bord'!$G:$G,\"Dr. MOULIN\",'Tableau de bord'!$E:$E,\"AUTRE\",'Tableau de bord'!$K:$K,\"Terminé\")","v":0},{"$f":"COUNTIFS('Tableau de bord'!$G:$G,\"Dr. MOULIN\",'Tableau de bord'!$K:$K,\"Terminé\",'Tableau de bord'!O:O,\"\")","v":1}]
["Dr NEE",{"$f":"COUNTIFS('Tableau de bord'!A:A,\"2021\",'Tableau de bord'!G:G,\"Dr. NEE\")","v":1},{"$f":"COUNTIFS('Tableau de bord'!A:A,\"2021\",'Tableau de bord'!$G:$G,\"Dr. NEE\",'Tableau de bord'!$E:$E,\"EP\")","v":0},{"$f":"COUNTIFS('Tableau de bord'!$A:$A,\"2021\",'Tableau de bord'!$G:$G,\"Dr. NEE\",'Tableau de bord'!$E:$E,\"FE\")","v":0},{"$f":"COUNTIFS('Tableau de bord'!$A:$A,\"2021\",'Tableau de bord'!$G:$G,\"Dr. NEE\",'Tableau de bord'!$E:$E,\"EVAL CHIMIQUE\")","v":0},{"$f":"COUNTIFS('Tableau de bord'!$A:$A,\"2021\",'Tableau de bord'!$G:$G,\"Dr. NEE\",'Tableau de bord'!$E:$E,\"CSE\")","v":0},{"$f":"COUNTIFS('Tableau de bord'!$A:$A,\"2021\",'Tableau de bord'!$G:$G,\"Dr. NEE\",'Tableau de bord'!$E:$E,\"VISITE CHANTIER\")","v":0},{"$f":"COUNTIFS('Tableau de bord'!$A:$A,\"2021\",'Tableau de bord'!$G:$G,\"Dr. NEE\",'Tableau de bord'!$E:$E,\"METROLOGIE\")","v":0},{"$f":"COUNTIFS('Tableau de bord'!A:A,\"2021\",'Tableau de bord'!$G:$G,\"Dr. NEE\",'Tableau de bord'!$E:$E,\"AUTRE\")","v":1},{"$f":"COUNTIFS('Tableau de bord'!$A:$A,\"2021\",'Tableau de bord'!$G:$G,\"Dr. NEE\",'Tableau de bord'!$K:$K,\"Terminé\")","v":1},{"$f":"COUNTIFS('Tableau de bord'!$A:$A,\"2021\",'Tableau de bord'!$G:$G,\"Dr. NEE\",'Tableau de bord'!$E:$E,\"EP\",'Tableau de bord'!$K:$K,\"Terminé\")","v":0},{"$f":"COUNTIFS('Tableau de bord'!$A:$A,\"2021\",'Tableau de bord'!$G:$G,\"Dr. NEE\",'Tableau de bord'!$E:$E,\"FE\",'Tableau de bord'!$K:$K,\"Terminé\")","v":0},{"$f":"COUNTIFS('Tableau de bord'!$A:$A,\"2021\",'Tableau de bord'!$G:$G,\"Dr. NEE\",'Tableau de bord'!$E:$E,\"EVAL CHIMIQUE\",'Tableau de bord'!$K:$K,\"Terminé\")","v":0},{"$f":"COUNTIFS('Tableau de bord'!$A:$A,\"2021\",'Tableau de bord'!$G:$G,\"Dr. NEE\",'Tableau de bord'!$E:$E,\"CSE\",'Tableau de bord'!$K:$K,\"Terminé\")","v":0},{"$f":"COUNTIFS('Tableau de bord'!$A:$A,\"2021\",'Tableau de bord'!$G:$G,\"Dr. NEE\",'Tableau de bord'!$E:$E,\"VISITE CHANTIER\",'Tableau de bord'!$K:$K,\"Terminé\")","v":0},{"$f":"COUNTIFS('Tableau de bord'!$A:$A,\"2021\",'Tableau de bord'!$G:$G,\"Dr. NEE\",'Tableau de bord'!$E:$E,\"METROLOGIE\",'Tableau de bord'!$K:$K,\"Terminé\")","v":0},{"$f":"COUNTIFS('Tableau de bord'!$A:$A,\"2021\",'Tableau de bord'!$G:$G,\"Dr. NEE\",'Tableau de bord'!$E:$E,\"AUTRE\",'Tableau de bord'!$K:$K,\"Terminé\")","v":1},{"$f":"COUNTIFS('Tableau de bord'!$G:$G,\"Dr. NEE\",'Tableau de bord'!$K:$K,\"Terminé\",'Tableau de bord'!O:O,\"\")","v":1}]
["Dr SABATHIER",{"$f":"COUNTIFS('Tableau de bord'!A:A,\"2021\",'Tableau de bord'!G:G,\"Dr. SABATHIER\")","v":16},{"$f":"COUNTIFS('Tableau de bord'!A:A,\"2021\",'Tableau de bord'!$G:$G,\"Dr. SABATHIER\",'Tableau de bord'!$E:$E,\"EP\")","v":7},{"$f":"COUNTIFS('Tableau de bord'!$A:$A,\"2021\",'Tableau de bord'!$G:$G,\"Dr. SABATHIER\",'Tableau de bord'!$E:$E,\"FE\")","v":4},{"$f":"COUNTIFS('Tableau de bord'!$A:$A,\"2021\",'Tableau de bord'!$G:$G,\"Dr. SABATHIER\",'Tableau de bord'!$E:$E,\"EVAL CHIMIQUE\")","v":0},{"$f":"COUNTIFS('Tableau de bord'!$A:$A,\"2021\",'Tableau de bord'!$G:$G,\"Dr. SABATHIER\",'Tableau de bord'!$E:$E,\"CSE\")","v":0},{"$f":"COUNTIFS('Tableau de bord'!$A:$A,\"2021\",'Tableau de bord'!$G:$G,\"Dr. SABATHIER\",'Tableau de bord'!$E:$E,\"VISITE CHANTIER\")","v":2},{"$f":"COUNTIFS('Tableau de bord'!$A:$A,\"2021\",'Tableau de bord'!$G:$G,\"Dr. SABATHIER\",'Tableau de bord'!$E:$E,\"METROLOGIE\")","v":3},{"$f":"COUNTIFS('Tableau de bord'!A:A,\"2021\",'Tableau de bord'!$G:$G,\"Dr. SABATHIER\",'Tableau de bord'!$E:$E,\"AUTRE\")","v":0},{"$f":"COUNTIFS('Tableau de bord'!$A:$A,\"2021\",'Tableau de bord'!$G:$G,\"Dr. SABATHIER\",'Tableau de bord'!$K:$K,\"Terminé\")","v":11},{"$f":"COUNTIFS('Tableau de bord'!$A:$A,\"2021\",'Tableau de bord'!$G:$G,\"Dr. SABATHIER\",'Tableau de bord'!$E:$E,\"EP\",'Tableau de bord'!$K:$K,\"Terminé\")","v":4},{"$f":"COUNTIFS('Tableau de bord'!$A:$A,\"2021\",'Tableau de bord'!$G:$G,\"Dr. SABATHIER\",'Tableau de bord'!$E:$E,\"FE\",'Tableau de bord'!$K:$K,\"Terminé\")","v":3},{"$f":"COUNTIFS('Tableau de bord'!$A:$A,\"2021\",'Tableau de bord'!$G:$G,\"Dr. SABATHIER\",'Tableau de bord'!$E:$E,\"EVAL CHIMIQUE\",'Tableau de bord'!$K:$K,\"Terminé\")","v":0},{"$f":"COUNTIFS('Tableau de bord'!$A:$A,\"2021\",'Tableau de bord'!$G:$G,\"Dr. SABATHIER\",'Tableau de bord'!$E:$E,\"CSE\",'Tableau de bord'!$K:$K,\"Terminé\")","v":0},{"$f":"COUNTIFS('Tableau de bord'!$A:$A,\"2021\",'Tableau de bord'!$G:$G,\"Dr. SABATHIER\",'Tableau de bord'!$E:$E,\"VISITE CHANTIER\",'Tableau de bord'!$K:$K,\"Terminé\")","v":2},{"$f":"COUNTIFS('Tableau de bord'!$A:$A,\"2021\",'Tableau de bord'!$G:$G,\"Dr. SABATHIER\",'Tableau de bord'!$E:$E,\"METROLOGIE\",'Tableau de bord'!$K:$K,\"Terminé\")","v":2},{"$f":"COUNTIFS('Tableau de bord'!$A:$A,\"2021\",'Tableau de bord'!$G:$G,\"Dr. SABATHIER\",'Tableau de bord'!$E:$E,\"AUTRE\",'Tableau de bord'!$K:$K,\"Terminé\")","v":0},{"$f":"COUNTIFS('Tableau de bord'!$G:$G,\"Dr. SABATHIER\",'Tableau de bord'!$K:$K,\"Terminé\",'Tableau de bord'!O:O,\"\")","v":12}]
["TOTAL",{"$f":"SUM(B21:B27)","v":30},10,{"$f":"SUM(D21:D27)","v":13},1,0,2,3,{"$f":"SUM(I21:I27)","v":1},24,6,12,1,0,2,2,1,24]

{"sheet":"Vanessa_23","index":5,"n_rows":29,"n_cols":18,"rows_kept":29,"cut":false,"hidden":false,"merged":[[0,0,0,16],[18,0,18,17]]}
["Nombre d'action demandées/finalisées  par mois"]
["Mois","Nb d'actions demandées","EP","FE","EVAL CHIMIQUE","CSE","METROLOGIE","SENSIBILISATION","AUTRE","Nb d'actions finalisées","EP","FE","EVAL CHIMIQUE","CSE","METROLOGIE","SENSIBILISATION","AUTRE"]
["Janvier",{"$f":"COUNTIFS('Tableau de bord'!A:A,\"2023\",'Tableau de bord'!B:B,\"1\",'Tableau de bord'!H:H,\"Vanessa\")","v":0},{"$f":"COUNTIFS('Tableau de bord'!A:A,\"2023\",'Tableau de bord'!E:E,\"EP\",'Tableau de bord'!B:B,\"1\",'Tableau de bord'!H:H,\"Vanessa\")","v":0},{"$f":"COUNTIFS('Tableau de bord'!$A:$A,\"2023\",'Tableau de bord'!$E:$E,\"FE\",'Tableau de bord'!B:B,\"1\",'Tableau de bord'!$H:$H,\"Vanessa\")","v":0},{"$f":"COUNTIFS('Tableau de bord'!$A:$A,\"2023\",'Tableau de bord'!$E:$E,\"EVAL CHIMIQUE\",'Tableau de bord'!B:B,\"1\",'Tableau de bord'!$H:$H,\"Vanessa\")","v":0},{"$f":"COUNTIFS('Tableau de bord'!$A:$A,\"2023\",'Tableau de bord'!$E:$E,\"CSE\",'Tableau de bord'!B:B,\"1\",'Tableau de bord'!$H:$H,\"Vanessa\")","v":0},{"$f":"COUNTIFS('Tableau de bord'!$A:$A,\"2023\",'Tableau de bord'!$E:$E,\"METROLOGIE\",'Tableau de bord'!B:B,\"1\",'Tableau de bord'!$H:$H,\"Vanessa\")","v":0},{"$f":"COUNTIFS('Tableau de bord'!$A:$A,\"2023\",'Tableau de bord'!$E:$E,\"SENSIBILISATION\",'Tableau de bord'!B:B,\"1\",'Tableau de bord'!$H:$H,\"Vanessa\")","v":0},{"$f":"COUNTIFS('Tableau de bord'!A:A,\"2023\",'Tableau de bord'!E:E,\"AUTRE\",'Tableau de bord'!B:B,\"1\",'Tableau de bord'!H:H,\"Vanessa\")","v":0},{"$f":"COUNTIFS('Tableau de bord'!N:N,\"2023\",'Tableau de bord'!K:K,\"Terminé\",'Tableau de bord'!M:M,\"1\",'Tableau de bord'!H:H,\"Vanessa\")","v":0},{"$f":"COUNTIFS('Tableau de bord'!N:N,\"2023\",'Tableau de bord'!$K:$K,\"Terminé\",'Tableau de bord'!M:M,\"1\",'Tableau de bord'!$E:$E,\"EP\",'Tableau de bord'!$H:$H,\"Vanessa\")","v":0},{"$f":"COUNTIFS('Tableau de bord'!N:N,\"2023\",'Tableau de bord'!$K:$K,\"Terminé\",'Tableau de bord'!M:M,\"1\",'Tableau de bord'!$E:$E,\"FE\",'Tableau de bord'!$H:$H,\"Vanessa\")","v":0},{"$f":"COUNTIFS('Tableau de bord'!N:N,\"2023\",'Tableau de bord'!$K:$K,\"Terminé\",'Tableau de bord'!M:M,\"1\",'Tableau de bord'!$E:$E,\"EVAL CHIMIQUE\",'Tableau de bord'!$H:$H,\"Vanessa\")","v":0},{"$f":"COUNTIFS('Tableau de bord'!N:N,\"2023\",'Tableau de bord'!$K:$K,\"Terminé\",'Tableau de bord'!M:M,\"1\",'Tableau de bord'!$E:$E,\"CSE\",'Tableau de bord'!$H:$H,\"Vanessa\")","v":0},{"$f":"COUNTIFS('Tableau de bord'!N:N,\"2023\",'Tableau de bord'!$K:$K,\"Terminé\",'Tableau de bord'!M:M,\"1\",'Tableau de bord'!$E:$E,\"METROLOGIE\",'Tableau de bord'!$H:$H,\"Vanessa\")","v":0},{"$f":"COUNTIFS('Tableau de bord'!N:N,\"2023\",'Tableau de bord'!$K:$K,\"Terminé\",'Tableau de bord'!M:M,\"1\",'Tableau de bord'!$E:$E,\"SENSIBILISATION\",'Tableau de bord'!$H:$H,\"Vanessa\")","v":0},{"$f":"COUNTIFS('Tableau de bord'!N:N,\"2023\",'Tableau de bord'!$K:$K,\"Terminé\",'Tableau de bord'!M:M,\"1\",'Tableau de bord'!$E:$E,\"AUTRE\",'Tableau de bord'!$H:$H,\"Vanessa\")","v":0}]
["Février",{"$f":"COUNTIFS('Tableau de bord'!A:A,\"2023\",'Tableau de bord'!B:B,\"2\",'Tableau de bord'!H:H,\"Vanessa\")","v":0},{"$f":"COUNTIFS('Tableau de bord'!A:A,\"2023\",'Tableau de bord'!E:E,\"EP\",'Tableau de bord'!B:B,\"2\",'Tableau de bord'!H:H,\"Vanessa\")","v":0},{"$f":"COUNTIFS('Tableau de bord'!$A:$A,\"2023\",'Tableau de bord'!$E:$E,\"FE\",'Tableau de bord'!B:B,\"2\",'Tableau de bord'!$H:$H,\"Vanessa\")","v":0},{"$f":"COUNTIFS('Tableau de bord'!$A:$A,\"2023\",'Tableau de bord'!$E:$E,\"EVAL CHIMIQUE\",'Tableau de bord'!B:B,\"2\",'Tableau de bord'!$H:$H,\"Vanessa\")","v":0},{"$f":"COUNTIFS('Tableau de bord'!$A:$A,\"2023\",'Tableau de bord'!$E:$E,\"CSE\",'Tableau de bord'!B:B,\"2\",'Tableau de bord'!$H:$H,\"Vanessa\")","v":0},{"$f":"COUNTIFS('Tableau de bord'!$A:$A,\"2023\",'Tableau de bord'!$E:$E,\"METROLOGIE\",'Tableau de bord'!B:B,\"2\",'Tableau de bord'!$H:$H,\"Vanessa\")","v":0},{"$f":"COUNTIFS('Tableau de bord'!$A:$A,\"2023\",'Tableau de bord'!$E:$E,\"SENSIBILISATION\",'Tableau de bord'!B:B,\"2\",'Tableau de bord'!$H:$H,\"Vanessa\")","v":0},{"$f":"COUNTIFS('Tableau de bord'!A:A,\"2023\",'Tableau de bord'!E:E,\"AUTRE\",'Tableau de bord'!B:B,\"2\",'Tableau de bord'!H:H,\"Vanessa\")","v":0},{"$f":"COUNTIFS('Tableau de bord'!N:N,\"2023\",'Tableau de bord'!K:K,\"Terminé\",'Tableau de bord'!M:M,\"2\",'Tableau de bord'!H:H,\"Vanessa\")","v":0},{"$f":"COUNTIFS('Tableau de bord'!N:N,\"2023\",'Tableau de bord'!$K:$K,\"Terminé\",'Tableau de bord'!M:M,\"2\",'Tableau de bord'!$E:$E,\"EP\",'Tableau de bord'!$H:$H,\"Vanessa\")","v":0},{"$f":"COUNTIFS('Tableau de bord'!N:N,\"2023\",'Tableau de bord'!$K:$K,\"Terminé\",'Tableau de bord'!M:M,\"2\",'Tableau de bord'!$E:$E,\"FE\",'Tableau de bord'!$H:$H,\"Vanessa\")","v":0},{"$f":"COUNTIFS('Tableau de bord'!N:N,\"2023\",'Tableau de bord'!$K:$K,\"Terminé\",'Tableau de bord'!M:M,\"2\",'Tableau de bord'!$E:$E,\"EVAL CHIMIQUE\",'Tableau de bord'!$H:$H,\"Vanessa\")","v":0},{"$f":"COUNTIFS('Tableau de bord'!N:N,\"2023\",'Tableau de bord'!$K:$K,\"Terminé\",'Tableau de bord'!M:M,\"2\",'Tableau de bord'!$E:$E,\"CSE\",'Tableau de bord'!$H:$H,\"Vanessa\")","v":0},{"$f":"COUNTIFS('Tableau de bord'!N:N,\"2023\",'Tableau de bord'!$K:$K,\"Terminé\",'Tableau de bord'!M:M,\"2\",'Tableau de bord'!$E:$E,\"METROLOGIE\",'Tableau de bord'!$H:$H,\"Vanessa\")","v":0},{"$f":"COUNTIFS('Tableau de bord'!N:N,\"2023\",'Tableau de bord'!$K:$K,\"Terminé\",'Tableau de bord'!M:M,\"2\",'Tableau de bord'!$E:$E,\"SENSIBILISATION\",'Tableau de bord'!$H:$H,\"Vanessa\")","v":0},{"$f":"COUNTIFS('Tableau de bord'!N:N,\"2023\",'Tableau de bord'!$K:$K,\"Terminé\",'Tableau de bord'!M:M,\"2\",'Tableau de bord'!$E:$E,\"AUTRE\",'Tableau de bord'!$H:$H,\"Vanessa\")","v":0}]
["Mars",{"$f":"COUNTIFS('Tableau de bord'!A:A,\"2023\",'Tableau de bord'!B:B,\"3\",'Tableau de bord'!H:H,\"Vanessa\")","v":0},{"$f":"COUNTIFS('Tableau de bord'!A:A,\"2023\",'Tableau de bord'!E:E,\"EP\",'Tableau de bord'!B:B,\"3\",'Tableau de bord'!H:H,\"Vanessa\")","v":0},{"$f":"COUNTIFS('Tableau de bord'!$A:$A,\"2023\",'Tableau de bord'!$E:$E,\"FE\",'Tableau de bord'!B:B,\"3\",'Tableau de bord'!$H:$H,\"Vanessa\")","v":0},{"$f":"COUNTIFS('Tableau de bord'!$A:$A,\"2023\",'Tableau de bord'!$E:$E,\"EVAL CHIMIQUE\",'Tableau de bord'!B:B,\"3\",'Tableau de bord'!$H:$H,\"Vanessa\")","v":0},{"$f":"COUNTIFS('Tableau de bord'!$A:$A,\"2023\",'Tableau de bord'!$E:$E,\"CSE\",'Tableau de bord'!B:B,\"3\",'Tableau de bord'!$H:$H,\"Vanessa\")","v":0},{"$f":"COUNTIFS('Tableau de bord'!$A:$A,\"2023\",'Tableau de bord'!$E:$E,\"METROLOGIE\",'Tableau de bord'!B:B,\"3\",'Tableau de bord'!$H:$H,\"Vanessa\")","v":0},{"$f":"COUNTIFS('Tableau de bord'!$A:$A,\"2023\",'Tableau de bord'!$E:$E,\"SENSIBILISATION\",'Tableau de bord'!B:B,\"3\",'Tableau de bord'!$H:$H,\"Vanessa\")","v":0},{"$f":"COUNTIFS('Tableau de bord'!A:A,\"2023\",'Tableau de bord'!E:E,\"AUTRE\",'Tableau de bord'!B:B,\"3\",'Tableau de bord'!H:H,\"Vanessa\")","v":0},{"$f":"COUNTIFS('Tableau de bord'!N:N,\"2023\",'Tableau de bord'!K:K,\"Terminé\",'Tableau de bord'!M:M,\"3\",'Tableau de bord'!H:H,\"Vanessa\")","v":0},{"$f":"COUNTIFS('Tableau de bord'!N:N,\"2023\",'Tableau de bord'!$K:$K,\"Terminé\",'Tableau de bord'!M:M,\"3\",'Tableau de bord'!$E:$E,\"EP\",'Tableau de bord'!$H:$H,\"Vanessa\")","v":0},{"$f":"COUNTIFS('Tableau de bord'!N:N,\"2023\",'Tableau de bord'!$K:$K,\"Terminé\",'Tableau de bord'!M:M,\"3\",'Tableau de bord'!$E:$E,\"FE\",'Tableau de bord'!$H:$H,\"Vanessa\")","v":0},{"$f":"COUNTIFS('Tableau de bord'!N:N,\"2023\",'Tableau de bord'!$K:$K,\"Terminé\",'Tableau de bord'!M:M,\"3\",'Tableau de bord'!$E:$E,\"EVAL CHIMIQUE\",'Tableau de bord'!$H:$H,\"Vanessa\")","v":0},{"$f":"COUNTIFS('Tableau de bord'!N:N,\"2023\",'Tableau de bord'!$K:$K,\"Terminé\",'Tableau de bord'!M:M,\"3\",'Tableau de bord'!$E:$E,\"CSE\",'Tableau de bord'!$H:$H,\"Vanessa\")","v":0},{"$f":"COUNTIFS('Tableau de bord'!N:N,\"2023\",'Tableau de bord'!$K:$K,\"Terminé\",'Tableau de bord'!M:M,\"3\",'Tableau de bord'!$E:$E,\"METROLOGIE\",'Tableau de bord'!$H:$H,\"Vanessa\")","v":0},{"$f":"COUNTIFS('Tableau de bord'!N:N,\"2023\",'Tableau de bord'!$K:$K,\"Terminé\",'Tableau de bord'!M:M,\"3\",'Tableau de bord'!$E:$E,\"SENSIBILISATION\",'Tableau de bord'!$H:$H,\"Vanessa\")","v":0},{"$f":"COUNTIFS('Tableau de bord'!N:N,\"2023\",'Tableau de bord'!$K:$K,\"Terminé\",'Tableau de bord'!M:M,\"3\",'Tableau de bord'!$E:$E,\"AUTRE\",'Tableau de bord'!$H:$H,\"Vanessa\")","v":0}]
["Avril",{"$f":"COUNTIFS('Tableau de bord'!A:A,\"2023\",'Tableau de bord'!B:B,\"4\",'Tableau de bord'!H:H,\"Vanessa\")","v":0},{"$f":"COUNTIFS('Tableau de bord'!A:A,\"2023\",'Tableau de bord'!E:E,\"EP\",'Tableau de bord'!B:B,\"4\",'Tableau de bord'!H:H,\"Vanessa\")","v":0},{"$f":"COUNTIFS('Tableau de bord'!$A:$A,\"2023\",'Tableau de bord'!$E:$E,\"FE\",'Tableau de bord'!B:B,\"4\",'Tableau de bord'!$H:$H,\"Vanessa\")","v":0},{"$f":"COUNTIFS('Tableau de bord'!$A:$A,\"2023\",'Tableau de bord'!$E:$E,\"EVAL CHIMIQUE\",'Tableau de bord'!B:B,\"4\",'Tableau de bord'!$H:$H,\"Vanessa\")","v":0},{"$f":"COUNTIFS('Tableau de bord'!$A:$A,\"2023\",'Tableau de bord'!$E:$E,\"CSE\",'Tableau de bord'!B:B,\"4\",'Tableau de bord'!$H:$H,\"Vanessa\")","v":0},{"$f":"COUNTIFS('Tableau de bord'!$A:$A,\"2023\",'Tableau de bord'!$E:$E,\"METROLOGIE\",'Tableau de bord'!B:B,\"4\",'Tableau de bord'!$H:$H,\"Vanessa\")","v":0},{"$f":"COUNTIFS('Tableau de bord'!$A:$A,\"2023\",'Tableau de bord'!$E:$E,\"SENSIBILISATION\",'Tableau de bord'!B:B,\"4\",'Tableau de bord'!$H:$H,\"Vanessa\")","v":0},{"$f":"COUNTIFS('Tableau de bord'!A:A,\"2023\",'Tableau de bord'!E:E,\"AUTRE\",'Tableau de bord'!B:B,\"4\",'Tableau de bord'!H:H,\"Vanessa\")","v":0},{"$f":"COUNTIFS('Tableau de bord'!N:N,\"2023\",'Tableau de bord'!K:K,\"Terminé\",'Tableau de bord'!M:M,\"4\",'Tableau de bord'!H:H,\"Vanessa\")","v":0},{"$f":"COUNTIFS('Tableau de bord'!N:N,\"2023\",'Tableau de bord'!$K:$K,\"Terminé\",'Tableau de bord'!M:M,\"4\",'Tableau de bord'!$E:$E,\"EP\",'Tableau de bord'!$H:$H,\"Vanessa\")","v":0},{"$f":"COUNTIFS('Tableau de bord'!N:N,\"2023\",'Tableau de bord'!$K:$K,\"Terminé\",'Tableau de bord'!M:M,\"4\",'Tableau de bord'!$E:$E,\"FE\",'Tableau de bord'!$H:$H,\"Vanessa\")","v":0},{"$f":"COUNTIFS('Tableau de bord'!N:N,\"2023\",'Tableau de bord'!$K:$K,\"Terminé\",'Tableau de bord'!M:M,\"4\",'Tableau de bord'!$E:$E,\"EVAL CHIMIQUE\",'Tableau de bord'!$H:$H,\"Vanessa\")","v":0},{"$f":"COUNTIFS('Tableau de bord'!N:N,\"2023\",'Tableau de bord'!$K:$K,\"Terminé\",'Tableau de bord'!M:M,\"4\",'Tableau de bord'!$E:$E,\"CSE\",'Tableau de bord'!$H:$H,\"Vanessa\")","v":0},{"$f":"COUNTIFS('Tableau de bord'!N:N,\"2023\",'Tableau de bord'!$K:$K,\"Terminé\",'Tableau de bord'!M:M,\"4\",'Tableau de bord'!$E:$E,\"METROLOGIE\",'Tableau de bord'!$H:$H,\"Vanessa\")","v":0},{"$f":"COUNTIFS('Tableau de bord'!N:N,\"2023\",'Tableau de bord'!$K:$K,\"Terminé\",'Tableau de bord'!M:M,\"4\",'Tableau de bord'!$E:$E,\"SENSIBILISATION\",'Tableau de bord'!$H:$H,\"Vanessa\")","v":0},{"$f":"COUNTIFS('Tableau de bord'!N:N,\"2023\",'Tableau de bord'!$K:$K,\"Terminé\",'Tableau de bord'!M:M,\"4\",'Tableau de bord'!$E:$E,\"AUTRE\",'Tableau de bord'!$H:$H,\"Vanessa\")","v":0}]
["Mai",{"$f":"COUNTIFS('Tableau de bord'!A:A,\"2023\",'Tableau de bord'!B:B,\"5\",'Tableau de bord'!H:H,\"Vanessa\")","v":0},{"$f":"COUNTIFS('Tableau de bord'!A:A,\"2023\",'Tableau de bord'!E:E,\"EP\",'Tableau de bord'!B:B,\"5\",'Tableau de bord'!H:H,\"Vanessa\")","v":0},{"$f":"COUNTIFS('Tableau de bord'!$A:$A,\"2023\",'Tableau de bord'!$E:$E,\"FE\",'Tableau de bord'!B:B,\"5\",'Tableau de bord'!$H:$H,\"Vanessa\")","v":0},{"$f":"COUNTIFS('Tableau de bord'!$A:$A,\"2023\",'Tableau de bord'!$E:$E,\"EVAL CHIMIQUE\",'Tableau de bord'!B:B,\"5\",'Tableau de bord'!$H:$H,\"Vanessa\")","v":0},{"$f":"COUNTIFS('Tableau de bord'!$A:$A,\"2023\",'Tableau de bord'!$E:$E,\"CSE\",'Tableau de bord'!B:B,\"5\",'Tableau de bord'!$H:$H,\"Vanessa\")","v":0},{"$f":"COUNTIFS('Tableau de bord'!$A:$A,\"2023\",'Tableau de bord'!$E:$E,\"METROLOGIE\",'Tableau de bord'!B:B,\"5\",'Tableau de bord'!$H:$H,\"Vanessa\")","v":0},{"$f":"COUNTIFS('Tableau de bord'!$A:$A,\"2023\",'Tableau de bord'!$E:$E,\"SENSIBILISATION\",'Tableau de bord'!B:B,\"5\",'Tableau de bord'!$H:$H,\"Vanessa\")","v":0},{"$f":"COUNTIFS('Tableau de bord'!A:A,\"2023\",'Tableau de bord'!E:E,\"AUTRE\",'Tableau de bord'!B:B,\"5\",'Tableau de bord'!H:H,\"Vanessa\")","v":0},{"$f":"COUNTIFS('Tableau de bord'!N:N,\"2023\",'Tableau de bord'!K:K,\"Terminé\",'Tableau de bord'!M:M,\"5\",'Tableau de bord'!H:H,\"Vanessa\")","v":0},{"$f":"COUNTIFS('Tableau de bord'!N:N,\"2023\",'Tableau de bord'!$K:$K,\"Terminé\",'Tableau de bord'!M:M,\"5\",'Tableau de bord'!$E:$E,\"EP\",'Tableau de bord'!$H:$H,\"Vanessa\")","v":0},{"$f":"COUNTIFS('Tableau de bord'!N:N,\"2023\",'Tableau de bord'!$K:$K,\"Terminé\",'Tableau de bord'!M:M,\"5\",'Tableau de bord'!$E:$E,\"FE\",'Tableau de bord'!$H:$H,\"Vanessa\")","v":0},{"$f":"COUNTIFS('Tableau de bord'!N:N,\"2023\",'Tableau de bord'!$K:$K,\"Terminé\",'Tableau de bord'!M:M,\"5\",'Tableau de bord'!$E:$E,\"EVAL CHIMIQUE\",'Tableau de bord'!$H:$H,\"Vanessa\")","v":0},{"$f":"COUNTIFS('Tableau de bord'!N:N,\"2023\",'Tableau de bord'!$K:$K,\"Terminé\",'Tableau de bord'!M:M,\"5\",'Tableau de bord'!$E:$E,\"CSE\",'Tableau de bord'!$H:$H,\"Vanessa\")","v":0},{"$f":"COUNTIFS('Tableau de bord'!N:N,\"2023\",'Tableau de bord'!$K:$K,\"Terminé\",'Tableau de bord'!M:M,\"5\",'Tableau de bord'!$E:$E,\"METROLOGIE\",'Tableau de bord'!$H:$H,\"Vanessa\")","v":0},{"$f":"COUNTIFS('Tableau de bord'!N:N,\"2023\",'Tableau de bord'!$K:$K,\"Terminé\",'Tableau de bord'!M:M,\"5\",'Tableau de bord'!$E:$E,\"SENSIBILISATION\",'Tableau de bord'!$H:$H,\"Vanessa\")","v":0},{"$f":"COUNTIFS('Tableau de bord'!N:N,\"2023\",'Tableau de bord'!$K:$K,\"Terminé\",'Tableau de bord'!M:M,\"5\",'Tableau de bord'!$E:$E,\"AUTRE\",'Tableau de bord'!$H:$H,\"Vanessa\")","v":0}]
["Juin",{"$f":"COUNTIFS('Tableau de bord'!A:A,\"2023\",'Tableau de bord'!B:B,\"6\",'Tableau de bord'!H:H,\"Vanessa\")","v":0},{"$f":"COUNTIFS('Tableau de bord'!A:A,\"2023\",'Tableau de bord'!E:E,\"EP\",'Tableau de bord'!B:B,\"6\",'Tableau de bord'!H:H,\"Vanessa\")","v":0},{"$f":"COUNTIFS('Tableau de bord'!$A:$A,\"2023\",'Tableau de bord'!$E:$E,\"FE\",'Tableau de bord'!B:B,\"6\",'Tableau de bord'!$H:$H,\"Vanessa\")","v":0},{"$f":"COUNTIFS('Tableau de bord'!$A:$A,\"2023\",'Tableau de bord'!$E:$E,\"EVAL CHIMIQUE\",'Tableau de bord'!B:B,\"6\",'Tableau de bord'!$H:$H,\"Vanessa\")","v":0},{"$f":"COUNTIFS('Tableau de bord'!$A:$A,\"2023\",'Tableau de bord'!$E:$E,\"CSE\",'Tableau de bord'!B:B,\"6\",'Tableau de bord'!$H:$H,\"Vanessa\")","v":0},{"$f":"COUNTIFS('Tableau de bord'!$A:$A,\"2023\",'Tableau de bord'!$E:$E,\"METROLOGIE\",'Tableau de bord'!B:B,\"6\",'Tableau de bord'!$H:$H,\"Vanessa\")","v":0},{"$f":"COUNTIFS('Tableau de bord'!$A:$A,\"2023\",'Tableau de bord'!$E:$E,\"SENSIBILISATION\",'Tableau de bord'!B:B,\"6\",'Tableau de bord'!$H:$H,\"Vanessa\")","v":0},{"$f":"COUNTIFS('Tableau de bord'!A:A,\"2023\",'Tableau de bord'!E:E,\"AUTRE\",'Tableau de bord'!B:B,\"6\",'Tableau de bord'!H:H,\"Vanessa\")","v":0},{"$f":"COUNTIFS('Tableau de bord'!N:N,\"2023\",'Tableau de bord'!K:K,\"Terminé\",'Tableau de bord'!M:M,\"6\",'Tableau de bord'!H:H,\"Vanessa\")","v":0},{"$f":"COUNTIFS('Tableau de bord'!N:N,\"2023\",'Tableau de bord'!$K:$K,\"Terminé\",'Tableau de bord'!M:M,\"6\",'Tableau de bord'!$E:$E,\"EP\",'Tableau de bord'!$H:$H,\"Vanessa\")","v":0},{"$f":"COUNTIFS('Tableau de bord'!N:N,\"2023\",'Tableau de bord'!$K:$K,\"Terminé\",'Tableau de bord'!M:M,\"6\",'Tableau de bord'!$E:$E,\"FE\",'Tableau de bord'!$H:$H,\"Vanessa\")","v":0},{"$f":"COUNTIFS('Tableau de bord'!N:N,\"2023\",'Tableau de bord'!$K:$K,\"Terminé\",'Tableau de bord'!M:M,\"6\",'Tableau de bord'!$E:$E,\"EVAL CHIMIQUE\",'Tableau de bord'!$H:$H,\"Vanessa\")","v":0},{"$f":"COUNTIFS('Tableau de bord'!N:N,\"2023\",'Tableau de bord'!$K:$K,\"Terminé\",'Tableau de bord'!M:M,\"6\",'Tableau de bord'!$E:$E,\"CSE\",'Tableau de bord'!$H:$H,\"Vanessa\")","v":0},{"$f":"COUNTIFS('Tableau de bord'!N:N,\"2023\",'Tableau de bord'!$K:$K,\"Terminé\",'Tableau de bord'!M:M,\"6\",'Tableau de bord'!$E:$E,\"METROLOGIE\",'Tableau de bord'!$H:$H,\"Vanessa\")","v":0},{"$f":"COUNTIFS('Tableau de bord'!N:N,\"2023\",'Tableau de bord'!$K:$K,\"Terminé\",'Tableau de bord'!M:M,\"6\",'Tableau de bord'!$E:$E,\"SENSIBILISATION\",'Tableau de bord'!$H:$H,\"Vanessa\")","v":0},{"$f":"COUNTIFS('Tableau de bord'!N:N,\"2023\",'Tableau de bord'!$K:$K,\"Terminé\",'Tableau de bord'!M:M,\"6\",'Tableau de bord'!$E:$E,\"AUTRE\",'Tableau de bord'!$H:$H,\"Vanessa\")","v":0}]
["Juillet",{"$f":"COUNTIFS('Tableau de bord'!A:A,\"2023\",'Tableau de bord'!B:B,\"7\",'Tableau de bord'!H:H,\"Vanessa\")","v":0},{"$f":"COUNTIFS('Tableau de bord'!A:A,\"2023\",'Tableau de bord'!E:E,\"EP\",'Tableau de bord'!B:B,\"7\",'Tableau de bord'!H:H,\"Vanessa\")","v":0},{"$f":"COUNTIFS('Tableau de bord'!$A:$A,\"2023\",'Tableau de bord'!$E:$E,\"FE\",'Tableau de bord'!B:B,\"7\",'Tableau de bord'!$H:$H,\"Vanessa\")","v":0},{"$f":"COUNTIFS('Tableau de bord'!$A:$A,\"2023\",'Tableau de bord'!$E:$E,\"EVAL CHIMIQUE\",'Tableau de bord'!B:B,\"7\",'Tableau de bord'!$H:$H,\"Vanessa\")","v":0},{"$f":"COUNTIFS('Tableau de bord'!$A:$A,\"2023\",'Tableau de bord'!$E:$E,\"CSE\",'Tableau de bord'!B:B,\"7\",'Tableau de bord'!$H:$H,\"Vanessa\")","v":0},{"$f":"COUNTIFS('Tableau de bord'!$A:$A,\"2023\",'Tableau de bord'!$E:$E,\"METROLOGIE\",'Tableau de bord'!B:B,\"7\",'Tableau de bord'!$H:$H,\"Vanessa\")","v":0},{"$f":"COUNTIFS('Tableau de bord'!$A:$A,\"2023\",'Tableau de bord'!$E:$E,\"SENSIBILISATION\",'Tableau de bord'!B:B,\"7\",'Tableau de bord'!$H:$H,\"Vanessa\")","v":0},{"$f":"COUNTIFS('Tableau de bord'!A:A,\"2023\",'Tableau de bord'!E:E,\"AUTRE\",'Tableau de bord'!B:B,\"7\",'Tableau de bord'!H:H,\"Vanessa\")","v":0},{"$f":"COUNTIFS('Tableau de bord'!N:N,\"2023\",'Tableau de bord'!K:K,\"Terminé\",'Tableau de bord'!M:M,\"7\",'Tableau de bord'!H:H,\"Vanessa\")","v":0},{"$f":"COUNTIFS('Tableau de bord'!N:N,\"2023\",'Tableau de bord'!$K:$K,\"Terminé\",'Tableau de bord'!M:M,\"7\",'Tableau de bord'!$E:$E,\"EP\",'Tableau de bord'!$H:$H,\"Vanessa\")","v":0},{"$f":"COUNTIFS('Tableau de bord'!N:N,\"2023\",'Tableau de bord'!$K:$K,\"Terminé\",'Tableau de bord'!M:M,\"7\",'Tableau de bord'!$E:$E,\"FE\",'Tableau de bord'!$H:$H,\"Vanessa\")","v":0},{"$f":"COUNTIFS('Tableau de bord'!N:N,\"2023\",'Tableau de bord'!$K:$K,\"Terminé\",'Tableau de bord'!M:M,\"7\",'Tableau de bord'!$E:$E,\"EVAL CHIMIQUE\",'Tableau de bord'!$H:$H,\"Vanessa\")","v":0},{"$f":"COUNTIFS('Tableau de bord'!N:N,\"2023\",'Tableau de bord'!$K:$K,\"Terminé\",'Tableau de bord'!M:M,\"7\",'Tableau de bord'!$E:$E,\"CSE\",'Tableau de bord'!$H:$H,\"Vanessa\")","v":0},{"$f":"COUNTIFS('Tableau de bord'!N:N,\"2023\",'Tableau de bord'!$K:$K,\"Terminé\",'Tableau de bord'!M:M,\"7\",'Tableau de bord'!$E:$E,\"METROLOGIE\",'Tableau de bord'!$H:$H,\"Vanessa\")","v":0},{"$f":"COUNTIFS('Tableau de bord'!N:N,\"2023\",'Tableau de bord'!$K:$K,\"Terminé\",'Tableau de bord'!M:M,\"7\",'Tableau de bord'!$E:$E,\"SENSIBILISATION\",'Tableau de bord'!$H:$H,\"Vanessa\")","v":0},{"$f":"COUNTIFS('Tableau de bord'!N:N,\"2023\",'Tableau de bord'!$K:$K,\"Terminé\",'Tableau de bord'!M:M,\"7\",'Tableau de bord'!$E:$E,\"AUTRE\",'Tableau de bord'!$H:$H,\"Vanessa\")","v":0}]
["Août",{"$f":"COUNTIFS('Tableau de bord'!A:A,\"2023\",'Tableau de bord'!B:B,\"8\",'Tableau de bord'!H:H,\"Vanessa\")","v":0},{"$f":"COUNTIFS('Tableau de bord'!A:A,\"2023\",'Tableau de bord'!E:E,\"EP\",'Tableau de bord'!B:B,\"8\",'Tableau de bord'!H:H,\"Vanessa\")","v":0},{"$f":"COUNTIFS('Tableau de bord'!$A:$A,\"2023\",'Tableau de bord'!$E:$E,\"FE\",'Tableau de bord'!B:B,\"8\",'Tableau de bord'!$H:$H,\"Vanessa\")","v":0},{"$f":"COUNTIFS('Tableau de bord'!$A:$A,\"2023\",'Tableau de bord'!$E:$E,\"EVAL CHIMIQUE\",'Tableau de bord'!B:B,\"8\",'Tableau de bord'!$H:$H,\"Vanessa\")","v":0},{"$f":"COUNTIFS('Tableau de bord'!$A:$A,\"2023\",'Tableau de bord'!$E:$E,\"CSE\",'Tableau de bord'!B:B,\"8\",'Tableau de bord'!$H:$H,\"Vanessa\")","v":0},{"$f":"COUNTIFS('Tableau de bord'!$A:$A,\"2023\",'Tableau de bord'!$E:$E,\"METROLOGIE\",'Tableau de bord'!B:B,\"8\",'Tableau de bord'!$H:$H,\"Vanessa\")","v":0},{"$f":"COUNTIFS('Tableau de bord'!$A:$A,\"2023\",'Tableau de bord'!$E:$E,\"SENSIBILISATION\",'Tableau de bord'!B:B,\"8\",'Tableau de bord'!$H:$H,\"Vanessa\")","v":0},{"$f":"COUNTIFS('Tableau de bord'!A:A,\"2023\",'Tableau de bord'!E:E,\"AUTRE\",'Tableau de bord'!B:B,\"8\",'Tableau de bord'!H:H,\"Vanessa\")","v":0},{"$f":"COUNTIFS('Tableau de bord'!N:N,\"2023\",'Tableau de bord'!K:K,\"Terminé\",'Tableau de bord'!M:M,\"8\",'Tableau de bord'!H:H,\"Vanessa\")","v":0},{"$f":"COUNTIFS('Tableau de bord'!N:N,\"2023\",'Tableau de bord'!$K:$K,\"Terminé\",'Tableau de bord'!M:M,\"8\",'Tableau de bord'!$E:$E,\"EP\",'Tableau de bord'!$H:$H,\"Vanessa\")","v":0},{"$f":"COUNTIFS('Tableau de bord'!N:N,\"2023\",'Tableau de bord'!$K:$K,\"Terminé\",'Tableau de bord'!M:M,\"8\",'Tableau de bord'!$E:$E,\"FE\",'Tableau de bord'!$H:$H,\"Vanessa\")","v":0},{"$f":"COUNTIFS('Tableau de bord'!N:N,\"2023\",'Tableau de bord'!$K:$K,\"Terminé\",'Tableau de bord'!M:M,\"8\",'Tableau de bord'!$E:$E,\"EVAL CHIMIQUE\",'Tableau de bord'!$H:$H,\"Vanessa\")","v":0},{"$f":"COUNTIFS('Tableau de bord'!N:N,\"2023\",'Tableau de bord'!$K:$K,\"Terminé\",'Tableau de bord'!M:M,\"8\",'Tableau de bord'!$E:$E,\"CSE\",'Tableau de bord'!$H:$H,\"Vanessa\")","v":0},{"$f":"COUNTIFS('Tableau de bord'!N:N,\"2023\",'Tableau de bord'!$K:$K,\"Terminé\",'Tableau de bord'!M:M,\"8\",'Tableau de bord'!$E:$E,\"METROLOGIE\",'Tableau de bord'!$H:$H,\"Vanessa\")","v":0},{"$f":"COUNTIFS('Tableau de bord'!N:N,\"2023\",'Tableau de bord'!$K:$K,\"Terminé\",'Tableau de bord'!M:M,\"8\",'Tableau de bord'!$E:$E,\"SENSIBILISATION\",'Tableau de bord'!$H:$H,\"Vanessa\")","v":0},{"$f":"COUNTIFS('Tableau de bord'!N:N,\"2023\",'Tableau de bord'!$K:$K,\"Terminé\",'Tableau de bord'!M:M,\"8\",'Tableau de bord'!$E:$E,\"AUTRE\",'Tableau de bord'!$H:$H,\"Vanessa\")","v":0}]
["Septembre",{"$f":"COUNTIFS('Tableau de bord'!A:A,\"2023\",'Tableau de bord'!B:B,\"9\",'Tableau de bord'!H:H,\"Vanessa\")","v":0},{"$f":"COUNTIFS('Tableau de bord'!A:A,\"2023\",'Tableau de bord'!E:E,\"EP\",'Tableau de bord'!B:B,\"9\",'Tableau de bord'!H:H,\"Vanessa\")","v":0},{"$f":"COUNTIFS('Tableau de bord'!$A:$A,\"2023\",'Tableau de bord'!$E:$E,\"FE\",'Tableau de bord'!B:B,\"9\",'Tableau de bord'!$H:$H,\"Vanessa\")","v":0},{"$f":"COUNTIFS('Tableau de bord'!$A:$A,\"2023\",'Tableau de bord'!$E:$E,\"EVAL CHIMIQUE\",'Tableau de bord'!B:B,\"9\",'Tableau de bord'!$H:$H,\"Vanessa\")","v":0},{"$f":"COUNTIFS('Tableau de bord'!$A:$A,\"2023\",'Tableau de bord'!$E:$E,\"CSE\",'Tableau de bord'!B:B,\"9\",'Tableau de bord'!$H:$H,\"Vanessa\")","v":0},{"$f":"COUNTIFS('Tableau de bord'!$A:$A,\"2023\",'Tableau de bord'!$E:$E,\"METROLOGIE\",'Tableau de bord'!B:B,\"9\",'Tableau de bord'!$H:$H,\"Vanessa\")","v":0},{"$f":"COUNTIFS('Tableau de bord'!$A:$A,\"2023\",'Tableau de bord'!$E:$E,\"SENSIBILISATION\",'Tableau de bord'!B:B,\"9\",'Tableau de bord'!$H:$H,\"Vanessa\")","v":0},{"$f":"COUNTIFS('Tableau de bord'!A:A,\"2023\",'Tableau de bord'!E:E,\"AUTRE\",'Tableau de bord'!B:B,\"9\",'Tableau de bord'!H:H,\"Vanessa\")","v":0},{"$f":"COUNTIFS('Tableau de bord'!N:N,\"2023\",'Tableau de bord'!K:K,\"Terminé\",'Tableau de bord'!M:M,\"9\",'Tableau de bord'!H:H,\"Vanessa\")","v":0},{"$f":"COUNTIFS('Tableau de bord'!N:N,\"2023\",'Tableau de bord'!$K:$K,\"Terminé\",'Tableau de bord'!M:M,\"9\",'Tableau de bord'!$E:$E,\"EP\",'Tableau de bord'!$H:$H,\"Vanessa\")","v":0},{"$f":"COUNTIFS('Tableau de bord'!N:N,\"2023\",'Tableau de bord'!$K:$K,\"Terminé\",'Tableau de bord'!M:M,\"9\",'Tableau de bord'!$E:$E,\"FE\",'Tableau de bord'!$H:$H,\"Vanessa\")","v":0},{"$f":"COUNTIFS('Tableau de bord'!N:N,\"2023\",'Tableau de bord'!$K:$K,\"Terminé\",'Tableau de bord'!M:M,\"9\",'Tableau de bord'!$E:$E,\"EVAL CHIMIQUE\",'Tableau de bord'!$H:$H,\"Vanessa\")","v":0},{"$f":"COUNTIFS('Tableau de bord'!N:N,\"2023\",'Tableau de bord'!$K:$K,\"Terminé\",'Tableau de bord'!M:M,\"9\",'Tableau de bord'!$E:$E,\"CSE\",'Tableau de bord'!$H:$H,\"Vanessa\")","v":0},{"$f":"COUNTIFS('Tableau de bord'!N:N,\"2023\",'Tableau de bord'!$K:$K,\"Terminé\",'Tableau de bord'!M:M,\"9\",'Tableau de bord'!$E:$E,\"METROLOGIE\",'Tableau de bord'!$H:$H,\"Vanessa\")","v":0},{"$f":"COUNTIFS('Tableau de bord'!N:N,\"2023\",'Tableau de bord'!$K:$K,\"Terminé\",'Tableau de bord'!M:M,\"9\",'Tableau de bord'!$E:$E,\"SENSIBILISATION\",'Tableau de bord'!$H:$H,\"Vanessa\")","v":0},{"$f":"COUNTIFS('Tableau de bord'!N:N,\"2023\",'Tableau de bord'!$K:$K,\"Terminé\",'Tableau de bord'!M:M,\"9\",'Tableau de bord'!$E:$E,\"AUTRE\",'Tableau de bord'!$H:$H,\"Vanessa\")","v":0}]
["Octobre",{"$f":"COUNTIFS('Tableau de bord'!A:A,\"2023\",'Tableau de bord'!B:B,\"10\",'Tableau de bord'!H:H,\"Vanessa\")","v":0},{"$f":"COUNTIFS('Tableau de bord'!A:A,\"2023\",'Tableau de bord'!E:E,\"EP\",'Tableau de bord'!B:B,\"10\",'Tableau de bord'!H:H,\"Vanessa\")","v":0},{"$f":"COUNTIFS('Tableau de bord'!$A:$A,\"2023\",'Tableau de bord'!$E:$E,\"FE\",'Tableau de bord'!B:B,\"10\",'Tableau de bord'!$H:$H,\"Vanessa\")","v":0},{"$f":"COUNTIFS('Tableau de bord'!$A:$A,\"2023\",'Tableau de bord'!$E:$E,\"EVAL CHIMIQUE\",'Tableau de bord'!B:B,\"10\",'Tableau de bord'!$H:$H,\"Vanessa\")","v":0},{"$f":"COUNTIFS('Tableau de bord'!$A:$A,\"2023\",'Tableau de bord'!$E:$E,\"CSE\",'Tableau de bord'!B:B,\"10\",'Tableau de bord'!$H:$H,\"Vanessa\")","v":0},{"$f":"COUNTIFS('Tableau de bord'!$A:$A,\"2023\",'Tableau de bord'!$E:$E,\"METROLOGIE\",'Tableau de bord'!B:B,\"10\",'Tableau de bord'!$H:$H,\"Vanessa\")","v":0},{"$f":"COUNTIFS('Tableau de bord'!$A:$A,\"2023\",'Tableau de bord'!$E:$E,\"SENSIBILISATION\",'Tableau de bord'!B:B,\"10\",'Tableau de bord'!$H:$H,\"Vanessa\")","v":0},{"$f":"COUNTIFS('Tableau de bord'!A:A,\"2023\",'Tableau de bord'!E:E,\"AUTRE\",'Tableau de bord'!B:B,\"10\",'Tableau de bord'!H:H,\"Vanessa\")","v":0},{"$f":"COUNTIFS('Tableau de bord'!N:N,\"2023\",'Tableau de bord'!K:K,\"Terminé\",'Tableau de bord'!M:M,\"10\",'Tableau de bord'!H:H,\"Vanessa\")","v":0},{"$f":"COUNTIFS('Tableau de bord'!N:N,\"2023\",'Tableau de bord'!$K:$K,\"Terminé\",'Tableau de bord'!M:M,\"10\",'Tableau de bord'!$E:$E,\"EP\",'Tableau de bord'!$H:$H,\"Vanessa\")","v":0},{"$f":"COUNTIFS('Tableau de bord'!N:N,\"2023\",'Tableau de bord'!$K:$K,\"Terminé\",'Tableau de bord'!M:M,\"10\",'Tableau de bord'!$E:$E,\"FE\",'Tableau de bord'!$H:$H,\"Vanessa\")","v":0},{"$f":"COUNTIFS('Tableau de bord'!N:N,\"2023\",'Tableau de bord'!$K:$K,\"Terminé\",'Tableau de bord'!M:M,\"10\",'Tableau de bord'!$E:$E,\"EVAL CHIMIQUE\",'Tableau de bord'!$H:$H,\"Vanessa\")","v":0},{"$f":"COUNTIFS('Tableau de bord'!N:N,\"2023\",'Tableau de bord'!$K:$K,\"Terminé\",'Tableau de bord'!M:M,\"10\",'Tableau de bord'!$E:$E,\"CSE\",'Tableau de bord'!$H:$H,\"Vanessa\")","v":0},{"$f":"COUNTIFS('Tableau de bord'!N:N,\"2023\",'Tableau de bord'!$K:$K,\"Terminé\",'Tableau de bord'!M:M,\"10\",'Tableau de bord'!$E:$E,\"METROLOGIE\",'Tableau de bord'!$H:$H,\"Vanessa\")","v":0},{"$f":"COUNTIFS('Tableau de bord'!N:N,\"2023\",'Tableau de bord'!$K:$K,\"Terminé\",'Tableau de bord'!M:M,\"10\",'Tableau de bord'!$E:$E,\"SENSIBILISATION\",'Tableau de bord'!$H:$H,\"Vanessa\")","v":0},{"$f":"COUNTIFS('Tableau de bord'!N:N,\"2023\",'Tableau de bord'!$K:$K,\"Terminé\",'Tableau de bord'!M:M,\"10\",'Tableau de bord'!$E:$E,\"AUTRE\",'Tableau de bord'!$H:$H,\"Vanessa\")","v":0}]
["Novembre",{"$f":"COUNTIFS('Tableau de bord'!A:A,\"2023\",'Tableau de bord'!B:B,\"11\",'Tableau de bord'!H:H,\"Vanessa\")","v":0},{"$f":"COUNTIFS('Tableau de bord'!A:A,\"2023\",'Tableau de bord'!E:E,\"EP\",'Tableau de bord'!B:B,\"11\",'Tableau de bord'!H:H,\"Vanessa\")","v":0},{"$f":"COUNTIFS('Tableau de bord'!$A:$A,\"2023\",'Tableau de bord'!$E:$E,\"FE\",'Tableau de bord'!B:B,\"11\",'Tableau de bord'!$H:$H,\"Vanessa\")","v":0},{"$f":"COUNTIFS('Tableau de bord'!$A:$A,\"2023\",'Tableau de bord'!$E:$E,\"EVAL CHIMIQUE\",'Tableau de bord'!B:B,\"11\",'Tableau de bord'!$H:$H,\"Vanessa\")","v":0},{"$f":"COUNTIFS('Tableau de bord'!$A:$A,\"2023\",'Tableau de bord'!$E:$E,\"CSE\",'Tableau de bord'!B:B,\"11\",'Tableau de bord'!$H:$H,\"Vanessa\")","v":0},{"$f":"COUNTIFS('Tableau de bord'!$A:$A,\"2023\",'Tableau de bord'!$E:$E,\"METROLOGIE\",'Tableau de bord'!B:B,\"11\",'Tableau de bord'!$H:$H,\"Vanessa\")","v":0},{"$f":"COUNTIFS('Tableau de bord'!$A:$A,\"2023\",'Tableau de bord'!$E:$E,\"SENSIBILISATION\",'Tableau de bord'!B:B,\"11\",'Tableau de bord'!$H:$H,\"Vanessa\")","v":0},{"$f":"COUNTIFS('Tableau de bord'!A:A,\"2023\",'Tableau de bord'!E:E,\"AUTRE\",'Tableau de bord'!B:B,\"11\",'Tableau de bord'!H:H,\"Vanessa\")","v":0},{"$f":"COUNTIFS('Tableau de bord'!N:N,\"2023\",'Tableau de bord'!K:K,\"Terminé\",'Tableau de bord'!M:M,\"11\",'Tableau de bord'!H:H,\"Vanessa\")","v":0},{"$f":"COUNTIFS('Tableau de bord'!N:N,\"2023\",'Tableau de bord'!$K:$K,\"Terminé\",'Tableau de bord'!M:M,\"11\",'Tableau de bord'!$E:$E,\"EP\",'Tableau de bord'!$H:$H,\"Vanessa\")","v":0},{"$f":"COUNTIFS('Tableau de bord'!N:N,\"2023\",'Tableau de bord'!$K:$K,\"Terminé\",'Tableau de bord'!M:M,\"11\",'Tableau de bord'!$E:$E,\"FE\",'Tableau de bord'!$H:$H,\"Vanessa\")","v":0},{"$f":"COUNTIFS('Tableau de bord'!N:N,\"2023\",'Tableau de bord'!$K:$K,\"Terminé\",'Tableau de bord'!M:M,\"11\",'Tableau de bord'!$E:$E,\"EVAL CHIMIQUE\",'Tableau de bord'!$H:$H,\"Vanessa\")","v":0},{"$f":"COUNTIFS('Tableau de bord'!N:N,\"2023\",'Tableau de bord'!$K:$K,\"Terminé\",'Tableau de bord'!M:M,\"11\",'Tableau de bord'!$E:$E,\"CSE\",'Tableau de bord'!$H:$H,\"Vanessa\")","v":0},{"$f":"COUNTIFS('Tableau de bord'!N:N,\"2023\",'Tableau de bord'!$K:$K,\"Terminé\",'Tableau de bord'!M:M,\"11\",'Tableau de bord'!$E:$E,\"METROLOGIE\",'Tableau de bord'!$H:$H,\"Vanessa\")","v":0},{"$f":"COUNTIFS('Tableau de bord'!N:N,\"2023\",'Tableau de bord'!$K:$K,\"Terminé\",'Tableau de bord'!M:M,\"11\",'Tableau de bord'!$E:$E,\"SENSIBILISATION\",'Tableau de bord'!$H:$H,\"Vanessa\")","v":0},{"$f":"COUNTIFS('Tableau de bord'!N:N,\"2023\",'Tableau de bord'!$K:$K,\"Terminé\",'Tableau de bord'!M:M,\"11\",'Tableau de bord'!$E:$E,\"AUTRE\",'Tableau de bord'!$H:$H,\"Vanessa\")","v":0}]
["Décembre",{"$f":"COUNTIFS('Tableau de bord'!A:A,\"2023\",'Tableau de bord'!B:B,\"12\",'Tableau de bord'!H:H,\"Vanessa\")","v":0},{"$f":"COUNTIFS('Tableau de bord'!A:A,\"2023\",'Tableau de bord'!E:E,\"EP\",'Tableau de bord'!B:B,\"12\",'Tableau de bord'!H:H,\"Vanessa\")","v":0},{"$f":"COUNTIFS('Tableau de bord'!$A:$A,\"2023\",'Tableau de bord'!$E:$E,\"FE\",'Tableau de bord'!B:B,\"12\",'Tableau de bord'!$H:$H,\"Vanessa\")","v":0},{"$f":"COUNTIFS('Tableau de bord'!$A:$A,\"2023\",'Tableau de bord'!$E:$E,\"EVAL CHIMIQUE\",'Tableau de bord'!B:B,\"12\",'Tableau de bord'!$H:$H,\"Vanessa\")","v":0},{"$f":"COUNTIFS('Tableau de bord'!$A:$A,\"2023\",'Tableau de bord'!$E:$E,\"CSE\",'Tableau de bord'!B:B,\"12\",'Tableau de bord'!$H:$H,\"Vanessa\")","v":0},{"$f":"COUNTIFS('Tableau de bord'!$A:$A,\"2023\",'Tableau de bord'!$E:$E,\"METROLOGIE\",'Tableau de bord'!B:B,\"12\",'Tableau de bord'!$H:$H,\"Vanessa\")","v":0},{"$f":"COUNTIFS('Tableau de bord'!$A:$A,\"2023\",'Tableau de bord'!$E:$E,\"SENSIBILISATION\",'Tableau de bord'!B:B,\"12\",'Tableau de bord'!$H:$H,\"Vanessa\")","v":0},{"$f":"COUNTIFS('Tableau de bord'!A:A,\"2023\",'Tableau de bord'!E:E,\"AUTRE\",'Tableau de bord'!B:B,\"12\",'Tableau de bord'!H:H,\"Vanessa\")","v":0},{"$f":"COUNTIFS('Tableau de bord'!N:N,\"2023\",'Tableau de bord'!K:K,\"Terminé\",'Tableau de bord'!M:M,\"12\",'Tableau de bord'!H:H,\"Vanessa\")","v":0},{"$f":"COUNTIFS('Tableau de bord'!N:N,\"2023\",'Tableau de bord'!$K:$K,\"Terminé\",'Tableau de bord'!M:M,\"12\",'Tableau de bord'!$E:$E,\"EP\",'Tableau de bord'!$H:$H,\"Vanessa\")","v":0},{"$f":"COUNTIFS('Tableau de bord'!N:N,\"2023\",'Tableau de bord'!$K:$K,\"Terminé\",'Tableau de bord'!M:M,\"12\",'Tableau de bord'!$E:$E,\"FE\",'Tableau de bord'!$H:$H,\"Vanessa\")","v":0},{"$f":"COUNTIFS('Tableau de bord'!N:N,\"2023\",'Tableau de bord'!$K:$K,\"Terminé\",'Tableau de bord'!M:M,\"12\",'Tableau de bord'!$E:$E,\"EVAL CHIMIQUE\",'Tableau de bord'!$H:$H,\"Vanessa\")","v":0},{"$f":"COUNTIFS('Tableau de bord'!N:N,\"2023\",'Tableau de bord'!$K:$K,\"Terminé\",'Tableau de bord'!M:M,\"12\",'Tableau de bord'!$E:$E,\"CSE\",'Tableau de bord'!$H:$H,\"Vanessa\")","v":0},{"$f":"COUNTIFS('Tableau de bord'!N:N,\"2023\",'Tableau de bord'!$K:$K,\"Terminé\",'Tableau de bord'!M:M,\"12\",'Tableau de bord'!$E:$E,\"METROLOGIE\",'Tableau de bord'!$H:$H,\"Vanessa\")","v":0},{"$f":"COUNTIFS('Tableau de bord'!N:N,\"2023\",'Tableau de bord'!$K:$K,\"Terminé\",'Tableau de bord'!M:M,\"12\",'Tableau de bord'!$E:$E,\"SENSIBILISATION\",'Tableau de bord'!$H:$H,\"Vanessa\")","v":0},{"$f":"COUNTIFS('Tableau de bord'!N:N,\"2023\",'Tableau de bord'!$K:$K,\"Terminé\",'Tableau de bord'!M:M,\"12\",'Tableau de bord'!$E:$E,\"AUTRE\",'Tableau de bord'!$H:$H,\"Vanessa\")","v":0}]
["TOTAL",{"$f":"SUM(B3:B14)","v":0},{"$f":"SUM(C3:C14)","v":0},0,0,0,0,0,0,0,0,0,0,0,0,0,0]
[]
[]
[]
["Nombre d'action demandées/finalisées  par médecin"]
["Médecin","Nb d'actions demandées","EP","FE","EVAL CHIMIQUE","CSE","METROLOGIE","SENSIBILISATION","AUTRE","Nb d'actions finalisées","EP","FE","EVAL CHIMIQUE","CSE","METROLOGIE","SENSIBILISATION","AUTRE","ATTENTE VALIDATION"]
["Dr DEPEZEVILLE",{"$f":"COUNTIFS('Tableau de bord'!A:A,\"2023\",'Tableau de bord'!G:G,\"Dr. DEPEZEVILLE\",'Tableau de bord'!H:H,\"Vanessa\")","v":0},{"$f":"COUNTIFS('Tableau de bord'!A:A,\"2023\",'Tableau de bord'!$G:$G,\"Dr. DEPEZEVILLE\",'Tableau de bord'!$E:$E,\"EP\",'Tableau de bord'!$H:$H,\"Vanessa\")","v":0},{"$f":"COUNTIFS('Tableau de bord'!$A:$A,\"2023\",'Tableau de bord'!$G:$G,\"Dr. DEPEZEVILLE\",'Tableau de bord'!$E:$E,\"FE\",'Tableau de bord'!$H:$H,\"Vanessa\")","v":0},{"$f":"COUNTIFS('Tableau de bord'!$A:$A,\"2023\",'Tableau de bord'!$G:$G,\"Dr. DEPEZEVILLE\",'Tableau de bord'!$E:$E,\"EVAL CHIMIQUE\",'Tableau de bord'!$H:$H,\"Vanessa\")","v":0},{"$f":"COUNTIFS('Tableau de bord'!$A:$A,\"2023\",'Tableau de bord'!$G:$G,\"Dr. DEPEZEVILLE\",'Tableau de bord'!$E:$E,\"CSE\",'Tableau de bord'!$H:$H,\"Vanessa\")","v":0},{"$f":"COUNTIFS('Tableau de bord'!$A:$A,\"2023\",'Tableau de bord'!$G:$G,\"Dr. DEPEZEVILLE\",'Tableau de bord'!$E:$E,\"METROLOGIE\",'Tableau de bord'!$H:$H,\"Vanessa\")","v":0},{"$f":"COUNTIFS('Tableau de bord'!$A:$A,\"2023\",'Tableau de bord'!$G:$G,\"Dr. DEPEZEVILLE\",'Tableau de bord'!$E:$E,\"SENSIBILISATION\",'Tableau de bord'!$H:$H,\"Vanessa\")","v":0},{"$f":"COUNTIFS('Tableau de bord'!A:A,\"2023\",'Tableau de bord'!$G:$G,\"Dr. DEPEZEVILLE\",'Tableau de bord'!$E:$E,\"AUTRE\",'Tableau de bord'!$H:$H,\"Vanessa\")","v":0},{"$f":"COUNTIFS('Tableau de bord'!N:N,\"2023\",'Tableau de bord'!$G:$G,\"Dr. DEPEZEVILLE\",'Tableau de bord'!$K:$K,\"Terminé\",'Tableau de bord'!$H:$H,\"Vanessa\")","v":0},{"$f":"COUNTIFS('Tableau de bord'!N:N,\"2023\",'Tableau de bord'!$G:$G,\"Dr. DEPEZEVILLE\",'Tableau de bord'!$E:$E,\"EP\",'Tableau de bord'!$K:$K,\"Terminé\",'Tableau de bord'!$H:$H,\"Vanessa\")","v":0},{"$f":"COUNTIFS('Tableau de bord'!N:N,\"2023\",'Tableau de bord'!$G:$G,\"Dr. DEPEZEVILLE\",'Tableau de bord'!$E:$E,\"FE\",'Tableau de bord'!$K:$K,\"Terminé\",'Tableau de bord'!$H:$H,\"Vanessa\")","v":0},{"$f":"COUNTIFS('Tableau de bord'!N:N,\"2023\",'Tableau de bord'!$G:$G,\"Dr. DEPEZEVILLE\",'Tableau de bord'!$E:$E,\"EVAL CHIMIQUE\",'Tableau de bord'!$K:$K,\"Terminé\",'Tableau de bord'!$H:$H,\"Vanessa\")","v":0},{"$f":"COUNTIFS('Tableau de bord'!N:N,\"2023\",'Tableau de bord'!$G:$G,\"Dr. DEPEZEVILLE\",'Tableau de bord'!$E:$E,\"CSE\",'Tableau de bord'!$K:$K,\"Terminé\",'Tableau de bord'!$H:$H,\"Vanessa\")","v":0},{"$f":"COUNTIFS('Tableau de bord'!N:N,\"2023\",'Tableau de bord'!$G:$G,\"Dr. DEPEZEVILLE\",'Tableau de bord'!$E:$E,\"METROLOGIE\",'Tableau de bord'!$K:$K,\"Terminé\",'Tableau de bord'!$H:$H,\"Vanessa\")","v":0},{"$f":"COUNTIFS('Tableau de bord'!N:N,\"2023\",'Tableau de bord'!$G:$G,\"Dr. DEPEZEVILLE\",'Tableau de bord'!$E:$E,\"SENSIBILISATION\",'Tableau de bord'!$K:$K,\"Terminé\",'Tableau de bord'!$H:$H,\"Vanessa\")","v":0},{"$f":"COUNTIFS('Tableau de bord'!N:N,\"2023\",'Tableau de bord'!$G:$G,\"Dr. DEPEZEVILLE\",'Tableau de bord'!$E:$E,\"AUTRE\",'Tableau de bord'!$K:$K,\"Terminé\",'Tableau de bord'!$H:$H,\"Vanessa\")","v":0},{"$f":"COUNTIFS('Tableau de bord'!$G:$G,\"Dr. DEPEZEVILLE\",'Tableau de bord'!$H:$H,\"Vanessa\",'Tableau de bord'!$K:$K,\"Terminé\",'Tableau de bord'!O:O,\"\")","v":2}]
["Dr FAVARETTO",{"$f":"COUNTIFS('Tableau de bord'!A:A,\"2023\",'Tableau de bord'!G:G,\"Dr. FAVARETTO\",'Tableau de bord'!H:H,\"Vanessa\")","v":0},{"$f":"COUNTIFS('Tableau de bord'!A:A,\"2023\",'Tableau de bord'!$G:$G,\"Dr. FAVARETTO\",'Tableau de bord'!$E:$E,\"EP\",'Tableau de bord'!$H:$H,\"Vanessa\")","v":0},{"$f":"COUNTIFS('Tableau de bord'!$A:$A,\"2023\",'Tableau de bord'!$G:$G,\"Dr. FAVARETTO\",'Tableau de bord'!$E:$E,\"FE\",'Tableau de bord'!$H:$H,\"Vanessa\")","v":0},{"$f":"COUNTIFS('Tableau de bord'!$A:$A,\"2023\",'Tableau de bord'!$G:$G,\"Dr. FAVARETTO\",'Tableau de bord'!$E:$E,\"EVAL CHIMIQUE\",'Tableau de bord'!$H:$H,\"Vanessa\")","v":0},{"$f":"COUNTIFS('Tableau de bord'!$A:$A,\"2023\",'Tableau de bord'!$G:$G,\"Dr. FAVARETTO\",'Tableau de bord'!$E:$E,\"CSE\",'Tableau de bord'!$H:$H,\"Vanessa\")","v":0},{"$f":"COUNTIFS('Tableau de bord'!$A:$A,\"2023\",'Tableau de bord'!$G:$G,\"Dr. FAVARETTO\",'Tableau de bord'!$E:$E,\"METROLOGIE\",'Tableau de bord'!$H:$H,\"Vanessa\")","v":0},{"$f":"COUNTIFS('Tableau de bord'!$A:$A,\"2023\",'Tableau de bord'!$G:$G,\"Dr. FAVARETTO\",'Tableau de bord'!$E:$E,\"SENSIBILISATION\",'Tableau de bord'!$H:$H,\"Vanessa\")","v":0},{"$f":"COUNTIFS('Tableau de bord'!A:A,\"2023\",'Tableau de bord'!$G:$G,\"Dr. FAVARETTO\",'Tableau de bord'!$E:$E,\"AUTRE\",'Tableau de bord'!$H:$H,\"Vanessa\")","v":0},{"$f":"COUNTIFS('Tableau de bord'!N:N,\"2023\",'Tableau de bord'!$G:$G,\"Dr. FAVARETTO\",'Tableau de bord'!$K:$K,\"Terminé\",'Tableau de bord'!$H:$H,\"Vanessa\")","v":0},{"$f":"COUNTIFS('Tableau de bord'!N:N,\"2023\",'Tableau de bord'!$G:$G,\"Dr. FAVARETTO\",'Tableau de bord'!$E:$E,\"EP\",'Tableau de bord'!$K:$K,\"Terminé\",'Tableau de bord'!$H:$H,\"Vanessa\")","v":0},{"$f":"COUNTIFS('Tableau de bord'!N:N,\"2023\",'Tableau de bord'!$G:$G,\"Dr. FAVARETTO\",'Tableau de bord'!$E:$E,\"FE\",'Tableau de bord'!$K:$K,\"Terminé\",'Tableau de bord'!$H:$H,\"Vanessa\")","v":0},{"$f":"COUNTIFS('Tableau de bord'!N:N,\"2023\",'Tableau de bord'!$G:$G,\"Dr. FAVARETTO\",'Tableau de bord'!$E:$E,\"EVAL CHIMIQUE\",'Tableau de bord'!$K:$K,\"Terminé\",'Tableau de bord'!$H:$H,\"Vanessa\")","v":0},{"$f":"COUNTIFS('Tableau de bord'!N:N,\"2023\",'Tableau de bord'!$G:$G,\"Dr. FAVARETTO\",'Tableau de bord'!$E:$E,\"CSE\",'Tableau de bord'!$K:$K,\"Terminé\",'Tableau de bord'!$H:$H,\"Vanessa\")","v":0},{"$f":"COUNTIFS('Tableau de bord'!N:N,\"2023\",'Tableau de bord'!$G:$G,\"Dr. FAVARETTO\",'Tableau de bord'!$E:$E,\"METROLOGIE\",'Tableau de bord'!$K:$K,\"Terminé\",'Tableau de bord'!$H:$H,\"Vanessa\")","v":0},{"$f":"COUNTIFS('Tableau de bord'!N:N,\"2023\",'Tableau de bord'!$G:$G,\"Dr. FAVARETTO\",'Tableau de bord'!$E:$E,\"SENSIBILISATION\",'Tableau de bord'!$K:$K,\"Terminé\",'Tableau de bord'!$H:$H,\"Vanessa\")","v":0},{"$f":"COUNTIFS('Tableau de bord'!N:N,\"2023\",'Tableau de bord'!$G:$G,\"Dr. FAVARETTO\",'Tableau de bord'!$E:$E,\"AUTRE\",'Tableau de bord'!$K:$K,\"Terminé\",'Tableau de bord'!$H:$H,\"Vanessa\")","v":0},{"$f":"COUNTIFS('Tableau de bord'!$G:$G,\"Dr. FAVARETTO\",'Tableau de bord'!$H:$H,\"Vanessa\",'Tableau de bord'!$K:$K,\"Terminé\",'Tableau de bord'!O:O,\"\")","v":0}]
["Dr HAPPEY",{"$f":"COUNTIFS('Tableau de bord'!A:A,\"2023\",'Tableau de bord'!G:G,\"Dr. HAPPEY\",'Tableau de bord'!H:H,\"Vanessa\")","v":0},{"$f":"COUNTIFS('Tableau de bord'!A:A,\"2023\",'Tableau de bord'!$G:$G,\"Dr. HAPPEY\",'Tableau de bord'!$E:$E,\"EP\",'Tableau de bord'!$H:$H,\"Vanessa\")","v":0},{"$f":"COUNTIFS('Tableau de bord'!$A:$A,\"2023\",'Tableau de bord'!$G:$G,\"Dr. HAPPEY\",'Tableau de bord'!$E:$E,\"FE\",'Tableau de bord'!$H:$H,\"Vanessa\")","v":0},{"$f":"COUNTIFS('Tableau de bord'!$A:$A,\"2023\",'Tableau de bord'!$G:$G,\"Dr. HAPPEY\",'Tableau de bord'!$E:$E,\"EVAL CHIMIQUE\",'Tableau de bord'!$H:$H,\"Vanessa\")","v":0},{"$f":"COUNTIFS('Tableau de bord'!$A:$A,\"2023\",'Tableau de bord'!$G:$G,\"Dr. HAPPEY\",'Tableau de bord'!$E:$E,\"CSE\",'Tableau de bord'!$H:$H,\"Vanessa\")","v":0},{"$f":"COUNTIFS('Tableau de bord'!$A:$A,\"2023\",'Tableau de bord'!$G:$G,\"Dr. HAPPEY\",'Tableau de bord'!$E:$E,\"METROLOGIE\",'Tableau de bord'!$H:$H,\"Vanessa\")","v":0},{"$f":"COUNTIFS('Tableau de bord'!$A:$A,\"2023\",'Tableau de bord'!$G:$G,\"Dr. HAPPEY\",'Tableau de bord'!$E:$E,\"SENSIBILISATION\",'Tableau de bord'!$H:$H,\"Vanessa\")","v":0},{"$f":"COUNTIFS('Tableau de bord'!A:A,\"2023\",'Tableau de bord'!$G:$G,\"Dr. HAPPEY\",'Tableau de bord'!$E:$E,\"AUTRE\",'Tableau de bord'!$H:$H,\"Vanessa\")","v":0},{"$f":"COUNTIFS('Tableau de bord'!N:N,\"2023\",'Tableau de bord'!$G:$G,\"Dr. HAPPEY\",'Tableau de bord'!$K:$K,\"Terminé\",'Tableau de bord'!$H:$H,\"Vanessa\")","v":0},{"$f":"COUNTIFS('Tableau de bord'!N:N,\"2023\",'Tableau de bord'!$G:$G,\"Dr. HAPPEY\",'Tableau de bord'!$E:$E,\"EP\",'Tableau de bord'!$K:$K,\"Terminé\",'Tableau de bord'!$H:$H,\"Vanessa\")","v":0},{"$f":"COUNTIFS('Tableau de bord'!N:N,\"2023\",'Tableau de bord'!$G:$G,\"Dr. HAPPEY\",'Tableau de bord'!$E:$E,\"FE\",'Tableau de bord'!$K:$K,\"Terminé\",'Tableau de bord'!$H:$H,\"Vanessa\")","v":0},{"$f":"COUNTIFS('Tableau de bord'!N:N,\"2023\",'Tableau de bord'!$G:$G,\"Dr. HAPPEY\",'Tableau de bord'!$E:$E,\"EVAL CHIMIQUE\",'Tableau de bord'!$K:$K,\"Terminé\",'Tableau de bord'!$H:$H,\"Vanessa\")","v":0},{"$f":"COUNTIFS('Tableau de bord'!N:N,\"2023\",'Tableau de bord'!$G:$G,\"Dr. HAPPEY\",'Tableau de bord'!$E:$E,\"CSE\",'Tableau de bord'!$K:$K,\"Terminé\",'Tableau de bord'!$H:$H,\"Vanessa\")","v":0},{"$f":"COUNTIFS('Tableau de bord'!N:N,\"2023\",'Tableau de bord'!$G:$G,\"Dr. HAPPEY\",'Tableau de bord'!$E:$E,\"METROLOGIE\",'Tableau de bord'!$K:$K,\"Terminé\",'Tableau de bord'!$H:$H,\"Vanessa\")","v":0},{"$f":"COUNTIFS('Tableau de bord'!N:N,\"2023\",'Tableau de bord'!$G:$G,\"Dr. HAPPEY\",'Tableau de bord'!$E:$E,\"SENSIBILISATION,\",'Tableau de bord'!$K:$K,\"Terminé\",'Tableau de bord'!$H:$H,\"Vanessa\")","v":0},{"$f":"COUNTIFS('Tableau de bord'!N:N,\"2023\",'Tableau de bord'!$G:$G,\"Dr. HAPPEY\",'Tableau de bord'!$E:$E,\"AUTRE\",'Tableau de bord'!$K:$K,\"Terminé\",'Tableau de bord'!$H:$H,\"Vanessa\")","v":0},{"$f":"COUNTIFS('Tableau de bord'!$G:$G,\"Dr. HAPPEY\",'Tableau de bord'!$H:$H,\"Vanessa\",'Tableau de bord'!$K:$K,\"Terminé\",'Tableau de bord'!O:O,\"\")","v":3}]
["Dr JEANNE",{"$f":"COUNTIFS('Tableau de bord'!A:A,\"2023\",'Tableau de bord'!G:G,\"Dr. JEANNE\",'Tableau de bord'!H:H,\"Vanessa\")","v":0},{"$f":"COUNTIFS('Tableau de bord'!A:A,\"2023\",'Tableau de bord'!$G:$G,\"Dr. JEANNE\",'Tableau de bord'!$E:$E,\"EP\",'Tableau de bord'!$H:$H,\"Vanessa\")","v":0},{"$f":"COUNTIFS('Tableau de bord'!$A:$A,\"2023\",'Tableau de bord'!$G:$G,\"Dr. JEANNE\",'Tableau de bord'!$E:$E,\"FE\",'Tableau de bord'!$H:$H,\"Vanessa\")","v":0},{"$f":"COUNTIFS('Tableau de bord'!$A:$A,\"2023\",'Tableau de bord'!$G:$G,\"Dr. JEANNE\",'Tableau de bord'!$E:$E,\"EVAL CHIMIQUE\",'Tableau de bord'!$H:$H,\"Vanessa\")","v":0},{"$f":"COUNTIFS('Tableau de bord'!$A:$A,\"2023\",'Tableau de bord'!$G:$G,\"Dr. JEANNE\",'Tableau de bord'!$E:$E,\"CSE\",'Tableau de bord'!$H:$H,\"Vanessa\")","v":0},{"$f":"COUNTIFS('Tableau de bord'!$A:$A,\"2023\",'Tableau de bord'!$G:$G,\"Dr. JEANNE\",'Tableau de bord'!$E:$E,\"METROLOGIE\",'Tableau de bord'!$H:$H,\"Vanessa\")","v":0},{"$f":"COUNTIFS('Tableau de bord'!$A:$A,\"2023\",'Tableau de bord'!$G:$G,\"Dr. JEANNE\",'Tableau de bord'!$E:$E,\"SENSIBILISATION\",'Tableau de bord'!$H:$H,\"Vanessa\")","v":0},{"$f":"COUNTIFS('Tableau de bord'!A:A,\"2023\",'Tableau de bord'!$G:$G,\"Dr. JEANNE\",'Tableau de bord'!$E:$E,\"AUTRE\",'Tableau de bord'!$H:$H,\"Vanessa\")","v":0},{"$f":"COUNTIFS('Tableau de bord'!N:N,\"2023\",'Tableau de bord'!$G:$G,\"Dr. JEANNE\",'Tableau de bord'!$K:$K,\"Terminé\",'Tableau de bord'!$H:$H,\"Vanessa\")","v":0},{"$f":"COUNTIFS('Tableau de bord'!N:N,\"2023\",'Tableau de bord'!$G:$G,\"Dr. JEANNE\",'Tableau de bord'!$E:$E,\"EP\",'Tableau de bord'!$K:$K,\"Terminé\",'Tableau de bord'!$H:$H,\"Vanessa\")","v":0},{"$f":"COUNTIFS('Tableau de bord'!N:N,\"2023\",'Tableau de bord'!$G:$G,\"Dr. JEANNE\",'Tableau de bord'!$E:$E,\"FE\",'Tableau de bord'!$K:$K,\"Terminé\",'Tableau de bord'!$H:$H,\"Vanessa\")","v":0},{"$f":"COUNTIFS('Tableau de bord'!N:N,\"2023\",'Tableau de bord'!$G:$G,\"Dr. JEANNE\",'Tableau de bord'!$E:$E,\"EVAL CHIMIQUE\",'Tableau de bord'!$K:$K,\"Terminé\",'Tableau de bord'!$H:$H,\"Vanessa\")","v":0},{"$f":"COUNTIFS('Tableau de bord'!N:N,\"2023\",'Tableau de bord'!$G:$G,\"Dr. JEANNE\",'Tableau de bord'!$E:$E,\"CSE\",'Tableau de bord'!$K:$K,\"Terminé\",'Tableau de bord'!$H:$H,\"Vanessa\")","v":0},{"$f":"COUNTIFS('Tableau de bord'!N:N,\"2023\",'Tableau de bord'!$G:$G,\"Dr. JEANNE\",'Tableau de bord'!$E:$E,\"METROLOGIE\",'Tableau de bord'!$K:$K,\"Terminé\",'Tableau de bord'!$H:$H,\"Vanessa\")","v":0},{"$f":"COUNTIFS('Tableau de bord'!N:N,\"2023\",'Tableau de bord'!$G:$G,\"Dr. JEANNE\",'Tableau de bord'!$E:$E,\"SENSIBILISATION\",'Tableau de bord'!$K:$K,\"Terminé\",'Tableau de bord'!$H:$H,\"Vanessa\")","v":0},{"$f":"COUNTIFS('Tableau de bord'!N:N,\"2023\",'Tableau de bord'!$G:$G,\"Dr. JEANNE\",'Tableau de bord'!$E:$E,\"AUTRE\",'Tableau de bord'!$K:$K,\"Terminé\",'Tableau de bord'!$H:$H,\"Vanessa\")","v":0},{"$f":"COUNTIFS('Tableau de bord'!$G:$G,\"Dr. JEANNE\",'Tableau de bord'!$H:$H,\"Vanessa\",'Tableau de bord'!$K:$K,\"Terminé\",'Tableau de bord'!O:O,\"\")","v":0}]
["Dr MOULIN",{"$f":"COUNTIFS('Tableau de bord'!A:A,\"2023\",'Tableau de bord'!G:G,\"Dr. MOULIN\",'Tableau de bord'!H:H,\"Vanessa\")","v":0},{"$f":"COUNTIFS('Tableau de bord'!A:A,\"2023\",'Tableau de bord'!$G:$G,\"Dr. MOULIN\",'Tableau de bord'!$E:$E,\"EP\",'Tableau de bord'!$H:$H,\"Vanessa\")","v":0},{"$f":"COUNTIFS('Tableau de bord'!$A:$A,\"2023\",'Tableau de bord'!$G:$G,\"Dr. MOULIN\",'Tableau de bord'!$E:$E,\"FE\",'Tableau de bord'!$H:$H,\"Vanessa\")","v":0},{"$f":"COUNTIFS('Tableau de bord'!$A:$A,\"2023\",'Tableau de bord'!$G:$G,\"Dr. MOULIN\",'Tableau de bord'!$E:$E,\"EVAL CHIMIQUE\",'Tableau de bord'!$H:$H,\"Vanessa\")","v":0},{"$f":"COUNTIFS('Tableau de bord'!$A:$A,\"2023\",'Tableau de bord'!$G:$G,\"Dr. MOULIN\",'Tableau de bord'!$E:$E,\"CSE\",'Tableau de bord'!$H:$H,\"Vanessa\")","v":0},{"$f":"COUNTIFS('Tableau de bord'!$A:$A,\"2023\",'Tableau de bord'!$G:$G,\"Dr. MOULIN\",'Tableau de bord'!$E:$E,\"METROLOGIE\",'Tableau de bord'!$H:$H,\"Vanessa\")","v":0},{"$f":"COUNTIFS('Tableau de bord'!$A:$A,\"2023\",'Tableau de bord'!$G:$G,\"Dr. MOULIN\",'Tableau de bord'!$E:$E,\"SENSIBILISATION\",'Tableau de bord'!$H:$H,\"Vanessa\")","v":0},{"$f":"COUNTIFS('Tableau de bord'!A:A,\"2023\",'Tableau de bord'!$G:$G,\"Dr. MOULIN\",'Tableau de bord'!$E:$E,\"AUTRE\",'Tableau de bord'!$H:$H,\"Vanessa\")","v":0},{"$f":"COUNTIFS('Tableau de bord'!N:N,\"2023\",'Tableau de bord'!$G:$G,\"Dr. MOULIN\",'Tableau de bord'!$K:$K,\"Terminé\",'Tableau de bord'!$H:$H,\"Vanessa\")","v":0},{"$f":"COUNTIFS('Tableau de bord'!N:N,\"2023\",'Tableau de bord'!$G:$G,\"Dr. MOULIN\",'Tableau de bord'!$E:$E,\"EP\",'Tableau de bord'!$K:$K,\"Terminé\",'Tableau de bord'!$H:$H,\"Vanessa\")","v":0},{"$f":"COUNTIFS('Tableau de bord'!N:N,\"2023\",'Tableau de bord'!$G:$G,\"Dr. MOULIN\",'Tableau de bord'!$E:$E,\"FE\",'Tableau de bord'!$K:$K,\"Terminé\",'Tableau de bord'!$H:$H,\"Vanessa\")","v":0},{"$f":"COUNTIFS('Tableau de bord'!N:N,\"2023\",'Tableau de bord'!$G:$G,\"Dr. MOULIN\",'Tableau de bord'!$E:$E,\"EVAL CHIMIQUE\",'Tableau de bord'!$K:$K,\"Terminé\",'Tableau de bord'!$H:$H,\"Vanessa\")","v":0},{"$f":"COUNTIFS('Tableau de bord'!N:N,\"2023\",'Tableau de bord'!$G:$G,\"Dr. MOULIN\",'Tableau de bord'!$E:$E,\"CSE\",'Tableau de bord'!$K:$K,\"Terminé\",'Tableau de bord'!$H:$H,\"Vanessa\")","v":0},{"$f":"COUNTIFS('Tableau de bord'!N:N,\"2023\",'Tableau de bord'!$G:$G,\"Dr. MOULIN\",'Tableau de bord'!$E:$E,\"METROLOGIE\",'Tableau de bord'!$K:$K,\"Terminé\",'Tableau de bord'!$H:$H,\"Vanessa\")","v":0},{"$f":"COUNTIFS('Tableau de bord'!N:N,\"2023\",'Tableau de bord'!$G:$G,\"Dr. MOULIN\",'Tableau de bord'!$E:$E,\"SENSIBILISATION\",'Tableau de bord'!$K:$K,\"Terminé\",'Tableau de bord'!$H:$H,\"Vanessa\")","v":0},{"$f":"COUNTIFS('Tableau de bord'!N:N,\"2023\",'Tableau de bord'!$G:$G,\"Dr. MOULIN\",'Tableau de bord'!$E:$E,\"AUTRE\",'Tableau de bord'!$K:$K,\"Terminé\",'Tableau de bord'!$H:$H,\"Vanessa\")","v":0},{"$f":"COUNTIFS('Tableau de bord'!$G:$G,\"Dr. MOULIN\",'Tableau de bord'!$H:$H,\"Vanessa\",'Tableau de bord'!$K:$K,\"Terminé\",'Tableau de bord'!O:O,\"\")","v":1}]
["Dr NEE",{"$f":"COUNTIFS('Tableau de bord'!A:A,\"2023\",'Tableau de bord'!G:G,\"Dr. NEE\",'Tableau de bord'!H:H,\"Vanessa\")","v":0},{"$f":"COUNTIFS('Tableau de bord'!A:A,\"2023\",'Tableau de bord'!$G:$G,\"Dr. NEE\",'Tableau de bord'!$E:$E,\"EP\",'Tableau de bord'!$H:$H,\"Vanessa\")","v":0},{"$f":"COUNTIFS('Tableau de bord'!$A:$A,\"2023\",'Tableau de bord'!$G:$G,\"Dr. NEE\",'Tableau de bord'!$E:$E,\"FE\",'Tableau de bord'!$H:$H,\"Vanessa\")","v":0},{"$f":"COUNTIFS('Tableau de bord'!$A:$A,\"2023\",'Tableau de bord'!$G:$G,\"Dr. NEE\",'Tableau de bord'!$E:$E,\"EVAL CHIMIQUE\",'Tableau de bord'!$H:$H,\"Vanessa\")","v":0},{"$f":"COUNTIFS('Tableau de bord'!$A:$A,\"2023\",'Tableau de bord'!$G:$G,\"Dr. NEE\",'Tableau de bord'!$E:$E,\"CSE\",'Tableau de bord'!$H:$H,\"Vanessa\")","v":0},{"$f":"COUNTIFS('Tableau de bord'!$A:$A,\"2023\",'Tableau de bord'!$G:$G,\"Dr. NEE\",'Tableau de bord'!$E:$E,\"METROLOGIE\",'Tableau de bord'!$H:$H,\"Vanessa\")","v":0},{"$f":"COUNTIFS('Tableau de bord'!$A:$A,\"2023\",'Tableau de bord'!$G:$G,\"Dr. NEE\",'Tableau de bord'!$E:$E,\"SENSIBILISATION\",'Tableau de bord'!$H:$H,\"Vanessa\")","v":0},{"$f":"COUNTIFS('Tableau de bord'!A:A,\"2023\",'Tableau de bord'!$G:$G,\"Dr. NEE\",'Tableau de bord'!$E:$E,\"AUTRE\",'Tableau de bord'!$H:$H,\"Vanessa\")","v":0},{"$f":"COUNTIFS('Tableau de bord'!N:N,\"2023\",'Tableau de bord'!$G:$G,\"Dr. NEE\",'Tableau de bord'!$K:$K,\"Terminé\",'Tableau de bord'!$H:$H,\"Vanessa\")","v":0},{"$f":"COUNTIFS('Tableau de bord'!N:N,\"2023\",'Tableau de bord'!$G:$G,\"Dr. NEE\",'Tableau de bord'!$E:$E,\"EP\",'Tableau de bord'!$K:$K,\"Terminé\",'Tableau de bord'!$H:$H,\"Vanessa\")","v":0},{"$f":"COUNTIFS('Tableau de bord'!N:N,\"2023\",'Tableau de bord'!$G:$G,\"Dr. NEE\",'Tableau de bord'!$E:$E,\"FE\",'Tableau de bord'!$K:$K,\"Terminé\",'Tableau de bord'!$H:$H,\"Vanessa\")","v":0},{"$f":"COUNTIFS('Tableau de bord'!N:N,\"2023\",'Tableau de bord'!$G:$G,\"Dr. NEE\",'Tableau de bord'!$E:$E,\"EVAL CHIMIQUE\",'Tableau de bord'!$K:$K,\"Terminé\",'Tableau de bord'!$H:$H,\"Vanessa\")","v":0},{"$f":"COUNTIFS('Tableau de bord'!N:N,\"2023\",'Tableau de bord'!$G:$G,\"Dr. NEE\",'Tableau de bord'!$E:$E,\"CSE\",'Tableau de bord'!$K:$K,\"Terminé\",'Tableau de bord'!$H:$H,\"Vanessa\")","v":0},{"$f":"COUNTIFS('Tableau de bord'!N:N,\"2023\",'Tableau de bord'!$G:$G,\"Dr. NEE\",'Tableau de bord'!$E:$E,\"METROLOGIE\",'Tableau de bord'!$K:$K,\"Terminé\",'Tableau de bord'!$H:$H,\"Vanessa\")","v":0},{"$f":"COUNTIFS('Tableau de bord'!N:N,\"2023\",'Tableau de bord'!$G:$G,\"Dr. NEE\",'Tableau de bord'!$E:$E,\"SENSIBILISATION\",'Tableau de bord'!$K:$K,\"Terminé\",'Tableau de bord'!$H:$H,\"Vanessa\")","v":0},{"$f":"COUNTIFS('Tableau de bord'!N:N,\"2023\",'Tableau de bord'!$G:$G,\"Dr. NEE\",'Tableau de bord'!$E:$E,\"AUTRE\",'Tableau de bord'!$K:$K,\"Terminé\",'Tableau de bord'!$H:$H,\"Vanessa\")","v":0},{"$f":"COUNTIFS('Tableau de bord'!$G:$G,\"Dr. NEE\",'Tableau de bord'!$H:$H,\"Vanessa\",'Tableau de bord'!$K:$K,\"Terminé\",'Tableau de bord'!O:O,\"\")","v":1}]
["Dr SABATHIER",{"$f":"COUNTIFS('Tableau de bord'!A:A,\"2023\",'Tableau de bord'!G:G,\"Dr. SABATHIER\",'Tableau de bord'!H:H,\"Vanessa\")","v":0},{"$f":"COUNTIFS('Tableau de bord'!A:A,\"2023\",'Tableau de bord'!$G:$G,\"Dr. SABATHIER\",'Tableau de bord'!$E:$E,\"EP\",'Tableau de bord'!$H:$H,\"Vanessa\")","v":0},{"$f":"COUNTIFS('Tableau de bord'!$A:$A,\"2023\",'Tableau de bord'!$G:$G,\"Dr. SABATHIER\",'Tableau de bord'!$E:$E,\"FE\",'Tableau de bord'!$H:$H,\"Vanessa\")","v":0},{"$f":"COUNTIFS('Tableau de bord'!$A:$A,\"2023\",'Tableau de bord'!$G:$G,\"Dr. SABATHIER\",'Tableau de bord'!$E:$E,\"EVAL CHIMIQUE\",'Tableau de bord'!$H:$H,\"Vanessa\")","v":0},{"$f":"COUNTIFS('Tableau de bord'!$A:$A,\"2023\",'Tableau de bord'!$G:$G,\"Dr. SABATHIER\",'Tableau de bord'!$E:$E,\"CSE\",'Tableau de bord'!$H:$H,\"Vanessa\")","v":0},{"$f":"COUNTIFS('Tableau de bord'!$A:$A,\"2023\",'Tableau de bord'!$G:$G,\"Dr. SABATHIER\",'Tableau de bord'!$E:$E,\"METROLOGIE\",'Tableau de bord'!$H:$H,\"Vanessa\")","v":0},{"$f":"COUNTIFS('Tableau de bord'!$A:$A,\"2023\",'Tableau de bord'!$G:$G,\"Dr. SABATHIER\",'Tableau de bord'!$E:$E,\"SENSIBILISATION\",'Tableau de bord'!$H:$H,\"Vanessa\")","v":0},{"$f":"COUNTIFS('Tableau de bord'!A:A,\"2023\",'Tableau de bord'!$G:$G,\"Dr. SABATHIER\",'Tableau de bord'!$E:$E,\"AUTRE\",'Tableau de bord'!$H:$H,\"Vanessa\")","v":0},{"$f":"COUNTIFS('Tableau de bord'!N:N,\"2023\",'Tableau de bord'!$G:$G,\"Dr. SABATHIER\",'Tableau de bord'!$K:$K,\"Terminé\",'Tableau de bord'!$H:$H,\"Vanessa\")","v":0},{"$f":"COUNTIFS('Tableau de bord'!N:N,\"2023\",'Tableau de bord'!$G:$G,\"Dr. SABATHIER\",'Tableau de bord'!$E:$E,\"EP\",'Tableau de bord'!$K:$K,\"Terminé\",'Tableau de bord'!$H:$H,\"Vanessa\")","v":0},{"$f":"COUNTIFS('Tableau de bord'!N:N,\"2023\",'Tableau de bord'!$G:$G,\"Dr. SABATHIER\",'Tableau de bord'!$E:$E,\"FE\",'Tableau de bord'!$K:$K,\"Terminé\",'Tableau de bord'!$H:$H,\"Vanessa\")","v":0},{"$f":"COUNTIFS('Tableau de bord'!N:N,\"2023\",'Tableau de bord'!$G:$G,\"Dr. SABATHIER\",'Tableau de bord'!$E:$E,\"EVAL CHIMIQUE\",'Tableau de bord'!$K:$K,\"Terminé\",'Tableau de bord'!$H:$H,\"Vanessa\")","v":0},{"$f":"COUNTIFS('Tableau de bord'!N:N,\"2023\",'Tableau de bord'!$G:$G,\"Dr. SABATHIER\",'Tableau de bord'!$E:$E,\"CSE\",'Tableau de bord'!$K:$K,\"Terminé\",'Tableau de bord'!$H:$H,\"Vanessa\")","v":0},{"$f":"COUNTIFS('Tableau de bord'!N:N,\"2023\",'Tableau de bord'!$G:$G,\"Dr. SABATHIER\",'Tableau de bord'!$E:$E,\"METROLOGIE\",'Tableau de bord'!$K:$K,\"Terminé\",'Tableau de bord'!$H:$H,\"Vanessa\")","v":0},{"$f":"COUNTIFS('Tableau de bord'!N:N,\"2023\",'Tableau de bord'!$G:$G,\"Dr. SABATHIER\",'Tableau de bord'!$E:$E,\"SENSIBILISATION\",'Tableau de bord'!$K:$K,\"Terminé\",'Tableau de bord'!$H:$H,\"Vanessa\")","v":0},{"$f":"COUNTIFS('Tableau de bord'!N:N,\"2023\",'Tableau de bord'!$G:$G,\"Dr. SABATHIER\",'Tableau de bord'!$E:$E,\"AUTRE\",'Tableau de bord'!$K:$K,\"Terminé\",'Tableau de bord'!$H:$H,\"Vanessa\")","v":0},{"$f":"COUNTIFS('Tableau de bord'!$G:$G,\"Dr. SABATHIER\",'Tableau de bord'!$H:$H,\"Vanessa\",'Tableau de bord'!$K:$K,\"Terminé\",'Tableau de bord'!O:O,\"\")","v":0}]
["EMPLOYEUR",{"$f":"COUNTIFS('Tableau de bord'!A:A,\"2023\",'Tableau de bord'!G:G,\"EMPLOYEUR\",'Tableau de bord'!H:H,\"Vanessa\")","v":0},{"$f":"COUNTIFS('Tableau de bord'!A:A,\"2023\",'Tableau de bord'!$G:$G,\"EMPLOYEUR\",'Tableau de bord'!$E:$E,\"EP\",'Tableau de bord'!$H:$H,\"Vanessa\")","v":0},{"$f":"COUNTIFS('Tableau de bord'!$A:$A,\"2023\",'Tableau de bord'!$G:$G,\"EMPLOYEUR\",'Tableau de bord'!$E:$E,\"FE\",'Tableau de bord'!$H:$H,\"Vanessa\")","v":0},{"$f":"COUNTIFS('Tableau de bord'!$A:$A,\"2023\",'Tableau de bord'!$G:$G,\"EMPLOYEUR\",'Tableau de bord'!$E:$E,\"EVAL CHIMIQUE\",'Tableau de bord'!$H:$H,\"Vanessa\")","v":0},{"$f":"COUNTIFS('Tableau de bord'!$A:$A,\"2023\",'Tableau de bord'!$G:$G,\"EMPLOYEUR\",'Tableau de bord'!$E:$E,\"CSE\",'Tableau de bord'!$H:$H,\"Vanessa\")","v":0},{"$f":"COUNTIFS('Tableau de bord'!$A:$A,\"2023\",'Tableau de bord'!$G:$G,\"EMPLOYEUR\",'Tableau de bord'!$E:$E,\"METROLOGIE\",'Tableau de bord'!$H:$H,\"Vanessa\")","v":0},{"$f":"COUNTIFS('Tableau de bord'!$A:$A,\"2023\",'Tableau de bord'!$G:$G,\"EMPLOYEUR\",'Tableau de bord'!$E:$E,\"SENSIBILISATION\",'Tableau de bord'!$H:$H,\"Vanessa\")","v":0},{"$f":"COUNTIFS('Tableau de bord'!A:A,\"2023\",'Tableau de bord'!$G:$G,\"EMPLOYEUR\",'Tableau de bord'!$E:$E,\"AUTRE\",'Tableau de bord'!$H:$H,\"Vanessa\")","v":0},{"$f":"COUNTIFS('Tableau de bord'!N:N,\"2023\",'Tableau de bord'!$G:$G,\"EMPLOYEUR\",'Tableau de bord'!$K:$K,\"Terminé\",'Tableau de bord'!$H:$H,\"Vanessa\")","v":0},{"$f":"COUNTIFS('Tableau de bord'!N:N,\"2023\",'Tableau de bord'!$G:$G,\"EMPLOYEUR\",'Tableau de bord'!$E:$E,\"EP\",'Tableau de bord'!$K:$K,\"Terminé\",'Tableau de bord'!$H:$H,\"Vanessa\")","v":0},{"$f":"COUNTIFS('Tableau de bord'!N:N,\"2023\",'Tableau de bord'!$G:$G,\"EMPLOYEUR\",'Tableau de bord'!$E:$E,\"FE\",'Tableau de bord'!$K:$K,\"Terminé\",'Tableau de bord'!$H:$H,\"Vanessa\")","v":0},{"$f":"COUNTIFS('Tableau de bord'!N:N,\"2023\",'Tableau de bord'!$G:$G,\"EMPLOYEUR\",'Tableau de bord'!$E:$E,\"EVAL CHIMIQUE\",'Tableau de bord'!$K:$K,\"Terminé\",'Tableau de bord'!$H:$H,\"Vanessa\")","v":0},{"$f":"COUNTIFS('Tableau de bord'!N:N,\"2023\",'Tableau de bord'!$G:$G,\"EMPLOYEUR\",'Tableau de bord'!$E:$E,\"CSE\",'Tableau de bord'!$K:$K,\"Terminé\",'Tableau de bord'!$H:$H,\"Vanessa\")","v":0},{"$f":"COUNTIFS('Tableau de bord'!N:N,\"2023\",'Tableau de bord'!$G:$G,\"EMPLOYEUR\",'Tableau de bord'!$E:$E,\"METROLOGIE\",'Tableau de bord'!$K:$K,\"Terminé\",'Tableau de bord'!$H:$H,\"Vanessa\")","v":0},{"$f":"COUNTIFS('Tableau de bord'!N:N,\"2023\",'Tableau de bord'!$G:$G,\"EMPLOYEUR\",'Tableau de bord'!$E:$E,\"SENSIBILISATION\",'Tableau de bord'!$K:$K,\"Terminé\",'Tableau de bord'!$H:$H,\"Vanessa\")","v":0},{"$f":"COUNTIFS('Tableau de bord'!N:N,\"2023\",'Tableau de bord'!$G:$G,\"EMPLOYEUR\",'Tableau de bord'!$E:$E,\"AUTRE\",'Tableau de bord'!$K:$K,\"Terminé\",'Tableau de bord'!$H:$H,\"Vanessa\")","v":0},{"$f":"COUNTIFS('Tableau de bord'!$G:$G,\"EMPLOYEUR\",'Tableau de bord'!$H:$H,\"Vanessa\",'Tableau de bord'!$K:$K,\"Terminé\",'Tableau de bord'!O:O,\"\")","v":0}]
["TOTAL",{"$f":"SUM(B21:B27)","v":0},0,{"$f":"SUM(D21:D27)","v":0},0,0,0,0,0,0,0,0,0,0,0,0,0,7]

{"sheet":"Mathieu_23","index":6,"n_rows":28,"n_cols":20,"rows_kept":28,"cut":false,"hidden":false,"merged":[[0,0,0,18],[18,0,18,19]]}
["Nombre d'action demandées/finalisées  par mois"]
["Mois","Nb d'actions demandées","EP","FE","EVAL CHIMIQUE","CSE","VISITE CHANTIER","METROLOGIE","SENSIBILISATION","AUTRE","Nb d'actions finalisées","EP","FE","EVAL CHIMIQUE","CSE","VISITE CHANTIER","METROLOGIE","SENSIBILISATION","AUTRE"]
["Janvier",{"$f":"COUNTIFS('Tableau de bord'!A:A,\"2023\",'Tableau de bord'!B:B,\"1\",'Tableau de bord'!H:H,\"Mathieu\")","v":0},{"$f":"COUNTIFS('Tableau de bord'!A:A,\"2023\",'Tableau de bord'!E:E,\"EP\",'Tableau de bord'!B:B,\"1\",'Tableau de bord'!H:H,\"Mathieu\")","v":0},{"$f":"COUNTIFS('Tableau de bord'!$A:$A,\"2023\",'Tableau de bord'!$E:$E,\"FE\",'Tableau de bord'!B:B,\"1\",'Tableau de bord'!$H:$H,\"Mathieu\")","v":0},{"$f":"COUNTIFS('Tableau de bord'!$A:$A,\"2023\",'Tableau de bord'!$E:$E,\"EVAL CHIMIQUE\",'Tableau de bord'!B:B,\"1\",'Tableau de bord'!$H:$H,\"Mathieu\")","v":0},{"$f":"COUNTIFS('Tableau de bord'!$A:$A,\"2023\",'Tableau de bord'!$E:$E,\"CSE\",'Tableau de bord'!B:B,\"1\",'Tableau de bord'!$H:$H,\"Mathieu\")","v":0},{"$f":"COUNTIFS('Tableau de bord'!$A:$A,\"2023\",'Tableau de bord'!$E:$E,\"VISITE CHANTIER\",'Tableau de bord'!B:B,\"1\",'Tableau de bord'!$H:$H,\"Mathieu\")","v":0},{"$f":"COUNTIFS('Tableau de bord'!$A:$A,\"2023\",'Tableau de bord'!$E:$E,\"METROLOGIE\",'Tableau de bord'!B:B,\"1\",'Tableau de bord'!$H:$H,\"Mathieu\")","v":0},{"$f":"COUNTIFS('Tableau de bord'!$A:$A,\"2023\",'Tableau de bord'!$E:$E,\"SENSIBILISATION\",'Tableau de bord'!B:B,\"1\",'Tableau de bord'!$H:$H,\"Mathieu\")","v":0},{"$f":"COUNTIFS('Tableau de bord'!A:A,\"2023\",'Tableau de bord'!E:E,\"AUTRE\",'Tableau de bord'!B:B,\"1\",'Tableau de bord'!H:H,\"Mathieu\")","v":0},{"$f":"COUNTIFS('Tableau de bord'!N:N,\"2023\",'Tableau de bord'!K:K,\"Terminé\",'Tableau de bord'!M:M,\"1\",'Tableau de bord'!H:H,\"Mathieu\")","v":0},{"$f":"COUNTIFS('Tableau de bord'!N:N,\"2023\",'Tableau de bord'!$K:$K,\"Terminé\",'Tableau de bord'!M:M,\"1\",'Tableau de bord'!$E:$E,\"EP\",'Tableau de bord'!$H:$H,\"Mathieu\")","v":0},{"$f":"COUNTIFS('Tableau de bord'!N:N,\"2023\",'Tableau de bord'!$K:$K,\"Terminé\",'Tableau de bord'!M:M,\"1\",'Tableau de bord'!$E:$E,\"FE\",'Tableau de bord'!$H:$H,\"Mathieu\")","v":0},{"$f":"COUNTIFS('Tableau de bord'!N:N,\"2023\",'Tableau de bord'!$K:$K,\"Terminé\",'Tableau de bord'!M:M,\"1\",'Tableau de bord'!$E:$E,\"EVAL CHIMIQUE\",'Tableau de bord'!$H:$H,\"Mathieu\")","v":0},{"$f":"COUNTIFS('Tableau de bord'!N:N,\"2023\",'Tableau de bord'!$K:$K,\"Terminé\",'Tableau de bord'!M:M,\"1\",'Tableau de bord'!$E:$E,\"CSE\",'Tableau de bord'!$H:$H,\"Mathieu\")","v":0},{"$f":"COUNTIFS('Tableau de bord'!N:N,\"2023\",'Tableau de bord'!$K:$K,\"Terminé\",'Tableau de bord'!M:M,\"1\",'Tableau de bord'!$E:$E,\"VISITE CHANTIER\",'Tableau de bord'!$H:$H,\"Mathieu\")","v":0},{"$f":"COUNTIFS('Tableau de bord'!N:N,\"2023\",'Tableau de bord'!$K:$K,\"Terminé\",'Tableau de bord'!M:M,\"1\",'Tableau de bord'!$E:$E,\"METROLOGIE\",'Tableau de bord'!$H:$H,\"Mathieu\")","v":0},{"$f":"COUNTIFS('Tableau de bord'!N:N,\"2023\",'Tableau de bord'!$K:$K,\"Terminé\",'Tableau de bord'!M:M,\"1\",'Tableau de bord'!$E:$E,\"SENSIBILISATION\",'Tableau de bord'!$H:$H,\"Mathieu\")","v":0},{"$f":"COUNTIFS('Tableau de bord'!N:N,\"2023\",'Tableau de bord'!$K:$K,\"Terminé\",'Tableau de bord'!M:M,\"1\",'Tableau de bord'!$E:$E,\"AUTRE\",'Tableau de bord'!$H:$H,\"Mathieu\")","v":0}]
["Février",{"$f":"COUNTIFS('Tableau de bord'!A:A,\"2023\",'Tableau de bord'!B:B,\"2\",'Tableau de bord'!H:H,\"Mathieu\")","v":0},{"$f":"COUNTIFS('Tableau de bord'!A:A,\"2023\",'Tableau de bord'!E:E,\"EP\",'Tableau de bord'!B:B,\"2\",'Tableau de bord'!H:H,\"Mathieu\")","v":0},{"$f":"COUNTIFS('Tableau de bord'!$A:$A,\"2023\",'Tableau de bord'!$E:$E,\"FE\",'Tableau de bord'!B:B,\"2\",'Tableau de bord'!$H:$H,\"Mathieu\")","v":0},{"$f":"COUNTIFS('Tableau de bord'!$A:$A,\"2023\",'Tableau de bord'!$E:$E,\"EVAL CHIMIQUE\",'Tableau de bord'!B:B,\"2\",'Tableau de bord'!$H:$H,\"Mathieu\")","v":0},{"$f":"COUNTIFS('Tableau de bord'!$A:$A,\"2023\",'Tableau de bord'!$E:$E,\"CSE\",'Tableau de bord'!B:B,\"2\",'Tableau de bord'!$H:$H,\"Mathieu\")","v":0},{"$f":"COUNTIFS('Tableau de bord'!$A:$A,\"2023\",'Tableau de bord'!$E:$E,\"VISITE CHANTIER\",'Tableau de bord'!B:B,\"2\",'Tableau de bord'!$H:$H,\"Mathieu\")","v":0},{"$f":"COUNTIFS('Tableau de bord'!$A:$A,\"2023\",'Tableau de bord'!$E:$E,\"METROLOGIE\",'Tableau de bord'!B:B,\"2\",'Tableau de bord'!$H:$H,\"Mathieu\")","v":0},{"$f":"COUNTIFS('Tableau de bord'!$A:$A,\"2023\",'Tableau de bord'!$E:$E,\"SENSIBILISATION\",'Tableau de bord'!B:B,\"2\",'Tableau de bord'!$H:$H,\"Mathieu\")","v":0},{"$f":"COUNTIFS('Tableau de bord'!A:A,\"2023\",'Tableau de bord'!E:E,\"AUTRE\",'Tableau de bord'!B:B,\"2\",'Tableau de bord'!H:H,\"Mathieu\")","v":0},{"$f":"COUNTIFS('Tableau de bord'!N:N,\"2023\",'Tableau de bord'!K:K,\"Terminé\",'Tableau de bord'!M:M,\"2\",'Tableau de bord'!H:H,\"Mathieu\")","v":0},{"$f":"COUNTIFS('Tableau de bord'!N:N,\"2023\",'Tableau de bord'!$K:$K,\"Terminé\",'Tableau de bord'!M:M,\"2\",'Tableau de bord'!$E:$E,\"EP\",'Tableau de bord'!$H:$H,\"Mathieu\")","v":0},{"$f":"COUNTIFS('Tableau de bord'!N:N,\"2023\",'Tableau de bord'!$K:$K,\"Terminé\",'Tableau de bord'!M:M,\"2\",'Tableau de bord'!$E:$E,\"FE\",'Tableau de bord'!$H:$H,\"Mathieu\")","v":0},{"$f":"COUNTIFS('Tableau de bord'!N:N,\"2023\",'Tableau de bord'!$K:$K,\"Terminé\",'Tableau de bord'!M:M,\"2\",'Tableau de bord'!$E:$E,\"EVAL CHIMIQUE\",'Tableau de bord'!$H:$H,\"Mathieu\")","v":0},{"$f":"COUNTIFS('Tableau de bord'!N:N,\"2023\",'Tableau de bord'!$K:$K,\"Terminé\",'Tableau de bord'!M:M,\"2\",'Tableau de bord'!$E:$E,\"CSE\",'Tableau de bord'!$H:$H,\"Mathieu\")","v":0},{"$f":"COUNTIFS('Tableau de bord'!N:N,\"2023\",'Tableau de bord'!$K:$K,\"Terminé\",'Tableau de bord'!M:M,\"2\",'Tableau de bord'!$E:$E,\"VISITE CHANTIER\",'Tableau de bord'!$H:$H,\"Mathieu\")","v":0},{"$f":"COUNTIFS('Tableau de bord'!N:N,\"2023\",'Tableau de bord'!$K:$K,\"Terminé\",'Tableau de bord'!M:M,\"2\",'Tableau de bord'!$E:$E,\"METROLOGIE\",'Tableau de bord'!$H:$H,\"Mathieu\")","v":0},{"$f":"COUNTIFS('Tableau de bord'!N:N,\"2023\",'Tableau de bord'!$K:$K,\"Terminé\",'Tableau de bord'!M:M,\"2\",'Tableau de bord'!$E:$E,\"SENSIBILISATION\",'Tableau de bord'!$H:$H,\"Mathieu\")","v":0},{"$f":"COUNTIFS('Tableau de bord'!N:N,\"2023\",'Tableau de bord'!$K:$K,\"Terminé\",'Tableau de bord'!M:M,\"2\",'Tableau de bord'!$E:$E,\"AUTRE\",'Tableau de bord'!$H:$H,\"Mathieu\")","v":0}]
["Mars",{"$f":"COUNTIFS('Tableau de bord'!A:A,\"2023\",'Tableau de bord'!B:B,\"3\",'Tableau de bord'!H:H,\"Mathieu\")","v":0},{"$f":"COUNTIFS('Tableau de bord'!A:A,\"2023\",'Tableau de bord'!E:E,\"EP\",'Tableau de bord'!B:B,\"3\",'Tableau de bord'!H:H,\"Mathieu\")","v":0},{"$f":"COUNTIFS('Tableau de bord'!$A:$A,\"2023\",'Tableau de bord'!$E:$E,\"FE\",'Tableau de bord'!B:B,\"3\",'Tableau de bord'!$H:$H,\"Mathieu\")","v":0},{"$f":"COUNTIFS('Tableau de bord'!$A:$A,\"2023\",'Tableau de bord'!$E:$E,\"EVAL CHIMIQUE\",'Tableau de bord'!B:B,\"3\",'Tableau de bord'!$H:$H,\"Mathieu\")","v":0},{"$f":"COUNTIFS('Tableau de bord'!$A:$A,\"2023\",'Tableau de bord'!$E:$E,\"CSE\",'Tableau de bord'!B:B,\"3\",'Tableau de bord'!$H:$H,\"Mathieu\")","v":0},{"$f":"COUNTIFS('Tableau de bord'!$A:$A,\"2023\",'Tableau de bord'!$E:$E,\"VISITE CHANTIER\",'Tableau de bord'!B:B,\"3\",'Tableau de bord'!$H:$H,\"Mathieu\")","v":0},{"$f":"COUNTIFS('Tableau de bord'!$A:$A,\"2023\",'Tableau de bord'!$E:$E,\"METROLOGIE\",'Tableau de bord'!B:B,\"3\",'Tableau de bord'!$H:$H,\"Mathieu\")","v":0},{"$f":"COUNTIFS('Tableau de bord'!$A:$A,\"2023\",'Tableau de bord'!$E:$E,\"SENSIBILISATION\",'Tableau de bord'!B:B,\"3\",'Tableau de bord'!$H:$H,\"Mathieu\")","v":0},{"$f":"COUNTIFS('Tableau de bord'!A:A,\"2023\",'Tableau de bord'!E:E,\"AUTRE\",'Tableau de bord'!B:B,\"3\",'Tableau de bord'!H:H,\"Mathieu\")","v":0},{"$f":"COUNTIFS('Tableau de bord'!N:N,\"2023\",'Tableau de bord'!K:K,\"Terminé\",'Tableau de bord'!M:M,\"3\",'Tableau de bord'!H:H,\"Mathieu\")","v":0},{"$f":"COUNTIFS('Tableau de bord'!N:N,\"2023\",'Tableau de bord'!$K:$K,\"Terminé\",'Tableau de bord'!M:M,\"3\",'Tableau de bord'!$E:$E,\"EP\",'Tableau de bord'!$H:$H,\"Mathieu\")","v":0},{"$f":"COUNTIFS('Tableau de bord'!N:N,\"2023\",'Tableau de bord'!$K:$K,\"Terminé\",'Tableau de bord'!M:M,\"3\",'Tableau de bord'!$E:$E,\"FE\",'Tableau de bord'!$H:$H,\"Mathieu\")","v":0},{"$f":"COUNTIFS('Tableau de bord'!N:N,\"2023\",'Tableau de bord'!$K:$K,\"Terminé\",'Tableau de bord'!M:M,\"3\",'Tableau de bord'!$E:$E,\"EVAL CHIMIQUE\",'Tableau de bord'!$H:$H,\"Mathieu\")","v":0},{"$f":"COUNTIFS('Tableau de bord'!N:N,\"2023\",'Tableau de bord'!$K:$K,\"Terminé\",'Tableau de bord'!M:M,\"3\",'Tableau de bord'!$E:$E,\"CSE\",'Tableau de bord'!$H:$H,\"Mathieu\")","v":0},{"$f":"COUNTIFS('Tableau de bord'!N:N,\"2023\",'Tableau de bord'!$K:$K,\"Terminé\",'Tableau de bord'!M:M,\"3\",'Tableau de bord'!$E:$E,\"VISITE CHANTIER\",'Tableau de bord'!$H:$H,\"Mathieu\")","v":0},{"$f":"COUNTIFS('Tableau de bord'!N:N,\"2023\",'Tableau de bord'!$K:$K,\"Terminé\",'Tableau de bord'!M:M,\"3\",'Tableau de bord'!$E:$E,\"METROLOGIE\",'Tableau de bord'!$H:$H,\"Mathieu\")","v":0},{"$f":"COUNTIFS('Tableau de bord'!N:N,\"2023\",'Tableau de bord'!$K:$K,\"Terminé\",'Tableau de bord'!M:M,\"3\",'Tableau de bord'!$E:$E,\"SENSIBILISATION\",'Tableau de bord'!$H:$H,\"Mathieu\")","v":0},{"$f":"COUNTIFS('Tableau de bord'!N:N,\"2023\",'Tableau de bord'!$K:$K,\"Terminé\",'Tableau de bord'!M:M,\"3\",'Tableau de bord'!$E:$E,\"AUTRE\",'Tableau de bord'!$H:$H,\"Mathieu\")","v":0}]
["Avril",{"$f":"COUNTIFS('Tableau de bord'!A:A,\"2023\",'Tableau de bord'!B:B,\"4\",'Tableau de bord'!H:H,\"Mathieu\")","v":0},{"$f":"COUNTIFS('Tableau de bord'!A:A,\"2023\",'Tableau de bord'!E:E,\"EP\",'Tableau de bord'!B:B,\"4\",'Tableau de bord'!H:H,\"Mathieu\")","v":0},{"$f":"COUNTIFS('Tableau de bord'!$A:$A,\"2023\",'Tableau de bord'!$E:$E,\"FE\",'Tableau de bord'!B:B,\"4\",'Tableau de bord'!$H:$H,\"Mathieu\")","v":0},{"$f":"COUNTIFS('Tableau de bord'!$A:$A,\"2023\",'Tableau de bord'!$E:$E,\"EVAL CHIMIQUE\",'Tableau de bord'!B:B,\"4\",'Tableau de bord'!$H:$H,\"Mathieu\")","v":0},{"$f":"COUNTIFS('Tableau de bord'!$A:$A,\"2023\",'Tableau de bord'!$E:$E,\"CSE\",'Tableau de bord'!B:B,\"4\",'Tableau de bord'!$H:$H,\"Mathieu\")","v":0},{"$f":"COUNTIFS('Tableau de bord'!$A:$A,\"2023\",'Tableau de bord'!$E:$E,\"VISITE CHANTIER\",'Tableau de bord'!B:B,\"4\",'Tableau de bord'!$H:$H,\"Mathieu\")","v":0},{"$f":"COUNTIFS('Tableau de bord'!$A:$A,\"2023\",'Tableau de bord'!$E:$E,\"METROLOGIE\",'Tableau de bord'!B:B,\"4\",'Tableau de bord'!$H:$H,\"Mathieu\")","v":0},{"$f":"COUNTIFS('Tableau de bord'!$A:$A,\"2023\",'Tableau de bord'!$E:$E,\"SENSIBILISATION\",'Tableau de bord'!B:B,\"4\",'Tableau de bord'!$H:$H,\"Mathieu\")","v":0},{"$f":"COUNTIFS('Tableau de bord'!A:A,\"2023\",'Tableau de bord'!E:E,\"AUTRE\",'Tableau de bord'!B:B,\"4\",'Tableau de bord'!H:H,\"Mathieu\")","v":0},{"$f":"COUNTIFS('Tableau de bord'!N:N,\"2023\",'Tableau de bord'!K:K,\"Terminé\",'Tableau de bord'!M:M,\"4\",'Tableau de bord'!H:H,\"Mathieu\")","v":0},{"$f":"COUNTIFS('Tableau de bord'!N:N,\"2023\",'Tableau de bord'!$K:$K,\"Terminé\",'Tableau de bord'!M:M,\"4\",'Tableau de bord'!$E:$E,\"EP\",'Tableau de bord'!$H:$H,\"Mathieu\")","v":0},{"$f":"COUNTIFS('Tableau de bord'!N:N,\"2023\",'Tableau de bord'!$K:$K,\"Terminé\",'Tableau de bord'!M:M,\"4\",'Tableau de bord'!$E:$E,\"FE\",'Tableau de bord'!$H:$H,\"Mathieu\")","v":0},{"$f":"COUNTIFS('Tableau de bord'!N:N,\"2023\",'Tableau de bord'!$K:$K,\"Terminé\",'Tableau de bord'!M:M,\"4\",'Tableau de bord'!$E:$E,\"EVAL CHIMIQUE\",'Tableau de bord'!$H:$H,\"Mathieu\")","v":0},{"$f":"COUNTIFS('Tableau de bord'!N:N,\"2023\",'Tableau de bord'!$K:$K,\"Terminé\",'Tableau de bord'!M:M,\"4\",'Tableau de bord'!$E:$E,\"CSE\",'Tableau de bord'!$H:$H,\"Mathieu\")","v":0},{"$f":"COUNTIFS('Tableau de bord'!N:N,\"2023\",'Tableau de bord'!$K:$K,\"Terminé\",'Tableau de bord'!M:M,\"4\",'Tableau de bord'!$E:$E,\"VISITE CHANTIER\",'Tableau de bord'!$H:$H,\"Mathieu\")","v":0},{"$f":"COUNTIFS('Tableau de bord'!N:N,\"2023\",'Tableau de bord'!$K:$K,\"Terminé\",'Tableau de bord'!M:M,\"4\",'Tableau de bord'!$E:$E,\"METROLOGIE\",'Tableau de bord'!$H:$H,\"Mathieu\")","v":0},{"$f":"COUNTIFS('Tableau de bord'!N:N,\"2023\",'Tableau de bord'!$K:$K,\"Terminé\",'Tableau de bord'!M:M,\"4\",'Tableau de bord'!$E:$E,\"SENSIBILISATION\",'Tableau de bord'!$H:$H,\"Mathieu\")","v":0},{"$f":"COUNTIFS('Tableau de bord'!N:N,\"2023\",'Tableau de bord'!$K:$K,\"Terminé\",'Tableau de bord'!M:M,\"4\",'Tableau de bord'!$E:$E,\"AUTRE\",'Tableau de bord'!$H:$H,\"Mathieu\")","v":0}]
["Mai",{"$f":"COUNTIFS('Tableau de bord'!A:A,\"2023\",'Tableau de bord'!B:B,\"5\",'Tableau de bord'!H:H,\"Mathieu\")","v":0},{"$f":"COUNTIFS('Tableau de bord'!A:A,\"2023\",'Tableau de bord'!E:E,\"EP\",'Tableau de bord'!B:B,\"5\",'Tableau de bord'!H:H,\"Mathieu\")","v":0},{"$f":"COUNTIFS('Tableau de bord'!$A:$A,\"2023\",'Tableau de bord'!$E:$E,\"FE\",'Tableau de bord'!B:B,\"5\",'Tableau de bord'!$H:$H,\"Mathieu\")","v":0},{"$f":"COUNTIFS('Tableau de bord'!$A:$A,\"2023\",'Tableau de bord'!$E:$E,\"EVAL CHIMIQUE\",'Tableau de bord'!B:B,\"5\",'Tableau de bord'!$H:$H,\"Mathieu\")","v":0},{"$f":"COUNTIFS('Tableau de bord'!$A:$A,\"2023\",'Tableau de bord'!$E:$E,\"CSE\",'Tableau de bord'!B:B,\"5\",'Tableau de bord'!$H:$H,\"Mathieu\")","v":0},{"$f":"COUNTIFS('Tableau de bord'!$A:$A,\"2023\",'Tableau de bord'!$E:$E,\"VISITE CHANTIER\",'Tableau de bord'!B:B,\"5\",'Tableau de bord'!$H:$H,\"Mathieu\")","v":0},{"$f":"COUNTIFS('Tableau de bord'!$A:$A,\"2023\",'Tableau de bord'!$E:$E,\"METROLOGIE\",'Tableau de bord'!B:B,\"5\",'Tableau de bord'!$H:$H,\"Mathieu\")","v":0},{"$f":"COUNTIFS('Tableau de bord'!$A:$A,\"2023\",'Tableau de bord'!$E:$E,\"SENSIBILISATION\",'Tableau de bord'!B:B,\"5\",'Tableau de bord'!$H:$H,\"Mathieu\")","v":0},{"$f":"COUNTIFS('Tableau de bord'!A:A,\"2023\",'Tableau de bord'!E:E,\"AUTRE\",'Tableau de bord'!B:B,\"5\",'Tableau de bord'!H:H,\"Mathieu\")","v":0},{"$f":"COUNTIFS('Tableau de bord'!N:N,\"2023\",'Tableau de bord'!K:K,\"Terminé\",'Tableau de bord'!M:M,\"5\",'Tableau de bord'!H:H,\"Mathieu\")","v":0},{"$f":"COUNTIFS('Tableau de bord'!N:N,\"2023\",'Tableau de bord'!$K:$K,\"Terminé\",'Tableau de bord'!M:M,\"5\",'Tableau de bord'!$E:$E,\"EP\",'Tableau de bord'!$H:$H,\"Mathieu\")","v":0},{"$f":"COUNTIFS('Tableau de bord'!N:N,\"2023\",'Tableau de bord'!$K:$K,\"Terminé\",'Tableau de bord'!M:M,\"5\",'Tableau de bord'!$E:$E,\"FE\",'Tableau de bord'!$H:$H,\"Mathieu\")","v":0},{"$f":"COUNTIFS('Tableau de bord'!N:N,\"2023\",'Tableau de bord'!$K:$K,\"Terminé\",'Tableau de bord'!M:M,\"5\",'Tableau de bord'!$E:$E,\"EVAL CHIMIQUE\",'Tableau de bord'!$H:$H,\"Mathieu\")","v":0},{"$f":"COUNTIFS('Tableau de bord'!N:N,\"2023\",'Tableau de bord'!$K:$K,\"Terminé\",'Tableau de bord'!M:M,\"5\",'Tableau de bord'!$E:$E,\"CSE\",'Tableau de bord'!$H:$H,\"Mathieu\")","v":0},{"$f":"COUNTIFS('Tableau de bord'!N:N,\"2023\",'Tableau de bord'!$K:$K,\"Terminé\",'Tableau de bord'!M:M,\"5\",'Tableau de bord'!$E:$E,\"VISITE CHANTIER\",'Tableau de bord'!$H:$H,\"Mathieu\")","v":0},{"$f":"COUNTIFS('Tableau de bord'!N:N,\"2023\",'Tableau de bord'!$K:$K,\"Terminé\",'Tableau de bord'!M:M,\"5\",'Tableau de bord'!$E:$E,\"METROLOGIE\",'Tableau de bord'!$H:$H,\"Mathieu\")","v":0},{"$f":"COUNTIFS('Tableau de bord'!N:N,\"2023\",'Tableau de bord'!$K:$K,\"Terminé\",'Tableau de bord'!M:M,\"5\",'Tableau de bord'!$E:$E,\"SENSIBILISATION\",'Tableau de bord'!$H:$H,\"Mathieu\")","v":0},{"$f":"COUNTIFS('Tableau de bord'!N:N,\"2023\",'Tableau de bord'!$K:$K,\"Terminé\",'Tableau de bord'!M:M,\"5\",'Tableau de bord'!$E:$E,\"AUTRE\",'Tableau de bord'!$H:$H,\"Mathieu\")","v":0}]
["Juin",{"$f":"COUNTIFS('Tableau de bord'!A:A,\"2023\",'Tableau de bord'!B:B,\"6\",'Tableau de bord'!H:H,\"Mathieu\")","v":0},{"$f":"COUNTIFS('Tableau de bord'!A:A,\"2023\",'Tableau de bord'!E:E,\"EP\",'Tableau de bord'!B:B,\"6\",'Tableau de bord'!H:H,\"Mathieu\")","v":0},{"$f":"COUNTIFS('Tableau de bord'!$A:$A,\"2023\",'Tableau de bord'!$E:$E,\"FE\",'Tableau de bord'!B:B,\"6\",'Tableau de bord'!$H:$H,\"Mathieu\")","v":0},{"$f":"COUNTIFS('Tableau de bord'!$A:$A,\"2023\",'Tableau de bord'!$E:$E,\"EVAL CHIMIQUE\",'Tableau de bord'!B:B,\"6\",'Tableau de bord'!$H:$H,\"Mathieu\")","v":0},{"$f":"COUNTIFS('Tableau de bord'!$A:$A,\"2023\",'Tableau de bord'!$E:$E,\"CSE\",'Tableau de bord'!B:B,\"6\",'Tableau de bord'!$H:$H,\"Mathieu\")","v":0},{"$f":"COUNTIFS('Tableau de bord'!$A:$A,\"2023\",'Tableau de bord'!$E:$E,\"VISITE CHANTIER\",'Tableau de bord'!B:B,\"6\",'Tableau de bord'!$H:$H,\"Mathieu\")","v":0},{"$f":"COUNTIFS('Tableau de bord'!$A:$A,\"2023\",'Tableau de bord'!$E:$E,\"METROLOGIE\",'Tableau de bord'!B:B,\"6\",'Tableau de bord'!$H:$H,\"Mathieu\")","v":0},{"$f":"COUNTIFS('Tableau de bord'!$A:$A,\"2023\",'Tableau de bord'!$E:$E,\"SENSIBILISATION\",'Tableau de bord'!B:B,\"6\",'Tableau de bord'!$H:$H,\"Mathieu\")","v":0},{"$f":"COUNTIFS('Tableau de bord'!A:A,\"2023\",'Tableau de bord'!E:E,\"AUTRE\",'Tableau de bord'!B:B,\"6\",'Tableau de bord'!H:H,\"Mathieu\")","v":0},{"$f":"COUNTIFS('Tableau de bord'!N:N,\"2023\",'Tableau de bord'!K:K,\"Terminé\",'Tableau de bord'!M:M,\"6\",'Tableau de bord'!H:H,\"Mathieu\")","v":0},{"$f":"COUNTIFS('Tableau de bord'!N:N,\"2023\",'Tableau de bord'!$K:$K,\"Terminé\",'Tableau de bord'!M:M,\"6\",'Tableau de bord'!$E:$E,\"EP\",'Tableau de bord'!$H:$H,\"Mathieu\")","v":0},{"$f":"COUNTIFS('Tableau de bord'!N:N,\"2023\",'Tableau de bord'!$K:$K,\"Terminé\",'Tableau de bord'!M:M,\"6\",'Tableau de bord'!$E:$E,\"FE\",'Tableau de bord'!$H:$H,\"Mathieu\")","v":0},{"$f":"COUNTIFS('Tableau de bord'!N:N,\"2023\",'Tableau de bord'!$K:$K,\"Terminé\",'Tableau de bord'!M:M,\"6\",'Tableau de bord'!$E:$E,\"EVAL CHIMIQUE\",'Tableau de bord'!$H:$H,\"Mathieu\")","v":0},{"$f":"COUNTIFS('Tableau de bord'!N:N,\"2023\",'Tableau de bord'!$K:$K,\"Terminé\",'Tableau de bord'!M:M,\"6\",'Tableau de bord'!$E:$E,\"CSE\",'Tableau de bord'!$H:$H,\"Mathieu\")","v":0},{"$f":"COUNTIFS('Tableau de bord'!N:N,\"2023\",'Tableau de bord'!$K:$K,\"Terminé\",'Tableau de bord'!M:M,\"6\",'Tableau de bord'!$E:$E,\"VISITE CHANTIER\",'Tableau de bord'!$H:$H,\"Mathieu\")","v":0},{"$f":"COUNTIFS('Tableau de bord'!N:N,\"2023\",'Tableau de bord'!$K:$K,\"Terminé\",'Tableau de bord'!M:M,\"6\",'Tableau de bord'!$E:$E,\"METROLOGIE\",'Tableau de bord'!$H:$H,\"Mathieu\")","v":0},{"$f":"COUNTIFS('Tableau de bord'!N:N,\"2023\",'Tableau de bord'!$K:$K,\"Terminé\",'Tableau de bord'!M:M,\"6\",'Tableau de bord'!$E:$E,\"SENSIBILISATION\",'Tableau de bord'!$H:$H,\"Mathieu\")","v":0},{"$f":"COUNTIFS('Tableau de bord'!N:N,\"2023\",'Tableau de bord'!$K:$K,\"Terminé\",'Tableau de bord'!M:M,\"6\",'Tableau de bord'!$E:$E,\"AUTRE\",'Tableau de bord'!$H:$H,\"Mathieu\")","v":0}]
["Juillet",{"$f":"COUNTIFS('Tableau de bord'!A:A,\"2023\",'Tableau de bord'!B:B,\"7\",'Tableau de bord'!H:H,\"Mathieu\")","v":0},{"$f":"COUNTIFS('Tableau de bord'!A:A,\"2023\",'Tableau de bord'!E:E,\"EP\",'Tableau de bord'!B:B,\"7\",'Tableau de bord'!H:H,\"Mathieu\")","v":0},{"$f":"COUNTIFS('Tableau de bord'!$A:$A,\"2023\",'Tableau de bord'!$E:$E,\"FE\",'Tableau de bord'!B:B,\"7\",'Tableau de bord'!$H:$H,\"Mathieu\")","v":0},{"$f":"COUNTIFS('Tableau de bord'!$A:$A,\"2023\",'Tableau de bord'!$E:$E,\"EVAL CHIMIQUE\",'Tableau de bord'!B:B,\"7\",'Tableau de bord'!$H:$H,\"Mathieu\")","v":0},{"$f":"COUNTIFS('Tableau de bord'!$A:$A,\"2023\",'Tableau de bord'!$E:$E,\"CSE\",'Tableau de bord'!B:B,\"7\",'Tableau de bord'!$H:$H,\"Mathieu\")","v":0},{"$f":"COUNTIFS('Tableau de bord'!$A:$A,\"2023\",'Tableau de bord'!$E:$E,\"VISITE CHANTIER\",'Tableau de bord'!B:B,\"7\",'Tableau de bord'!$H:$H,\"Mathieu\")","v":0},{"$f":"COUNTIFS('Tableau de bord'!$A:$A,\"2023\",'Tableau de bord'!$E:$E,\"METROLOGIE\",'Tableau de bord'!B:B,\"7\",'Tableau de bord'!$H:$H,\"Mathieu\")","v":0},{"$f":"COUNTIFS('Tableau de bord'!$A:$A,\"2023\",'Tableau de bord'!$E:$E,\"SENSIBILISATION\",'Tableau de bord'!B:B,\"7\",'Tableau de bord'!$H:$H,\"Mathieu\")","v":0},{"$f":"COUNTIFS('Tableau de bord'!A:A,\"2023\",'Tableau de bord'!E:E,\"AUTRE\",'Tableau de bord'!B:B,\"7\",'Tableau de bord'!H:H,\"Mathieu\")","v":0},{"$f":"COUNTIFS('Tableau de bord'!N:N,\"2023\",'Tableau de bord'!K:K,\"Terminé\",'Tableau de bord'!M:M,\"7\",'Tableau de bord'!H:H,\"Mathieu\")","v":0},{"$f":"COUNTIFS('Tableau de bord'!N:N,\"2023\",'Tableau de bord'!$K:$K,\"Terminé\",'Tableau de bord'!M:M,\"7\",'Tableau de bord'!$E:$E,\"EP\",'Tableau de bord'!$H:$H,\"Mathieu\")","v":0},{"$f":"COUNTIFS('Tableau de bord'!N:N,\"2023\",'Tableau de bord'!$K:$K,\"Terminé\",'Tableau de bord'!M:M,\"7\",'Tableau de bord'!$E:$E,\"FE\",'Tableau de bord'!$H:$H,\"Mathieu\")","v":0},{"$f":"COUNTIFS('Tableau de bord'!N:N,\"2023\",'Tableau de bord'!$K:$K,\"Terminé\",'Tableau de bord'!M:M,\"7\",'Tableau de bord'!$E:$E,\"EVAL CHIMIQUE\",'Tableau de bord'!$H:$H,\"Mathieu\")","v":0},{"$f":"COUNTIFS('Tableau de bord'!N:N,\"2023\",'Tableau de bord'!$K:$K,\"Terminé\",'Tableau de bord'!M:M,\"7\",'Tableau de bord'!$E:$E,\"CSE\",'Tableau de bord'!$H:$H,\"Mathieu\")","v":0},{"$f":"COUNTIFS('Tableau de bord'!N:N,\"2023\",'Tableau de bord'!$K:$K,\"Terminé\",'Tableau de bord'!M:M,\"7\",'Tableau de bord'!$E:$E,\"VISITE CHANTIER\",'Tableau de bord'!$H:$H,\"Mathieu\")","v":0},{"$f":"COUNTIFS('Tableau de bord'!N:N,\"2023\",'Tableau de bord'!$K:$K,\"Terminé\",'Tableau de bord'!M:M,\"7\",'Tableau de bord'!$E:$E,\"METROLOGIE\",'Tableau de bord'!$H:$H,\"Mathieu\")","v":0},{"$f":"COUNTIFS('Tableau de bord'!N:N,\"2023\",'Tableau de bord'!$K:$K,\"Terminé\",'Tableau de bord'!M:M,\"7\",'Tableau de bord'!$E:$E,\"SENSIBILISATION\",'Tableau de bord'!$H:$H,\"Mathieu\")","v":0},{"$f":"COUNTIFS('Tableau de bord'!N:N,\"2023\",'Tableau de bord'!$K:$K,\"Terminé\",'Tableau de bord'!M:M,\"7\",'Tableau de bord'!$E:$E,\"AUTRE\",'Tableau de bord'!$H:$H,\"Mathieu\")","v":0}]
["Août",{"$f":"COUNTIFS('Tableau de bord'!A:A,\"2023\",'Tableau de bord'!B:B,\"8\",'Tableau de bord'!H:H,\"Mathieu\")","v":0},{"$f":"COUNTIFS('Tableau de bord'!A:A,\"2023\",'Tableau de bord'!E:E,\"EP\",'Tableau de bord'!B:B,\"8\",'Tableau de bord'!H:H,\"Mathieu\")","v":0},{"$f":"COUNTIFS('Tableau de bord'!$A:$A,\"2023\",'Tableau de bord'!$E:$E,\"FE\",'Tableau de bord'!B:B,\"8\",'Tableau de bord'!$H:$H,\"Mathieu\")","v":0},{"$f":"COUNTIFS('Tableau de bord'!$A:$A,\"2023\",'Tableau de bord'!$E:$E,\"EVAL CHIMIQUE\",'Tableau de bord'!B:B,\"8\",'Tableau de bord'!$H:$H,\"Mathieu\")","v":0},{"$f":"COUNTIFS('Tableau de bord'!$A:$A,\"2023\",'Tableau de bord'!$E:$E,\"CSE\",'Tableau de bord'!B:B,\"8\",'Tableau de bord'!$H:$H,\"Mathieu\")","v":0},{"$f":"COUNTIFS('Tableau de bord'!$A:$A,\"2023\",'Tableau de bord'!$E:$E,\"VISITE CHANTIER\",'Tableau de bord'!B:B,\"8\",'Tableau de bord'!$H:$H,\"Mathieu\")","v":0},{"$f":"COUNTIFS('Tableau de bord'!$A:$A,\"2023\",'Tableau de bord'!$E:$E,\"METROLOGIE\",'Tableau de bord'!B:B,\"8\",'Tableau de bord'!$H:$H,\"Mathieu\")","v":0},{"$f":"COUNTIFS('Tableau de bord'!$A:$A,\"2023\",'Tableau de bord'!$E:$E,\"SENSIBILISATION\",'Tableau de bord'!B:B,\"8\",'Tableau de bord'!$H:$H,\"Mathieu\")","v":0},{"$f":"COUNTIFS('Tableau de bord'!A:A,\"2023\",'Tableau de bord'!E:E,\"AUTRE\",'Tableau de bord'!B:B,\"8\",'Tableau de bord'!H:H,\"Mathieu\")","v":0},{"$f":"COUNTIFS('Tableau de bord'!N:N,\"2023\",'Tableau de bord'!K:K,\"Terminé\",'Tableau de bord'!M:M,\"8\",'Tableau de bord'!H:H,\"Mathieu\")","v":0},{"$f":"COUNTIFS('Tableau de bord'!N:N,\"2023\",'Tableau de bord'!$K:$K,\"Terminé\",'Tableau de bord'!M:M,\"8\",'Tableau de bord'!$E:$E,\"EP\",'Tableau de bord'!$H:$H,\"Mathieu\")","v":0},{"$f":"COUNTIFS('Tableau de bord'!N:N,\"2023\",'Tableau de bord'!$K:$K,\"Terminé\",'Tableau de bord'!M:M,\"8\",'Tableau de bord'!$E:$E,\"FE\",'Tableau de bord'!$H:$H,\"Mathieu\")","v":0},{"$f":"COUNTIFS('Tableau de bord'!N:N,\"2023\",'Tableau de bord'!$K:$K,\"Terminé\",'Tableau de bord'!M:M,\"8\",'Tableau de bord'!$E:$E,\"EVAL CHIMIQUE\",'Tableau de bord'!$H:$H,\"Mathieu\")","v":0},{"$f":"COUNTIFS('Tableau de bord'!N:N,\"2023\",'Tableau de bord'!$K:$K,\"Terminé\",'Tableau de bord'!M:M,\"8\",'Tableau de bord'!$E:$E,\"CSE\",'Tableau de bord'!$H:$H,\"Mathieu\")","v":0},{"$f":"COUNTIFS('Tableau de bord'!N:N,\"2023\",'Tableau de bord'!$K:$K,\"Terminé\",'Tableau de bord'!M:M,\"8\",'Tableau de bord'!$E:$E,\"VISITE CHANTIER\",'Tableau de bord'!$H:$H,\"Mathieu\")","v":0},{"$f":"COUNTIFS('Tableau de bord'!N:N,\"2023\",'Tableau de bord'!$K:$K,\"Terminé\",'Tableau de bord'!M:M,\"8\",'Tableau de bord'!$E:$E,\"METROLOGIE\",'Tableau de bord'!$H:$H,\"Mathieu\")","v":0},{"$f":"COUNTIFS('Tableau de bord'!N:N,\"2023\",'Tableau de bord'!$K:$K,\"Terminé\",'Tableau de bord'!M:M,\"8\",'Tableau de bord'!$E:$E,\"SENSIBILISATION\",'Tableau de bord'!$H:$H,\"Mathieu\")","v":0},{"$f":"COUNTIFS('Tableau de bord'!N:N,\"2023\",'Tableau de bord'!$K:$K,\"Terminé\",'Tableau de bord'!M:M,\"8\",'Tableau de bord'!$E:$E,\"AUTRE\",'Tableau de bord'!$H:$H,\"Mathieu\")","v":0}]
["Septembre",{"$f":"COUNTIFS('Tableau de bord'!A:A,\"2023\",'Tableau de bord'!B:B,\"9\",'Tableau de bord'!H:H,\"Mathieu\")","v":0},{"$f":"COUNTIFS('Tableau de bord'!A:A,\"2023\",'Tableau de bord'!E:E,\"EP\",'Tableau de bord'!B:B,\"9\",'Tableau de bord'!H:H,\"Mathieu\")","v":0},{"$f":"COUNTIFS('Tableau de bord'!$A:$A,\"2023\",'Tableau de bord'!$E:$E,\"FE\",'Tableau de bord'!B:B,\"9\",'Tableau de bord'!$H:$H,\"Mathieu\")","v":0},{"$f":"COUNTIFS('Tableau de bord'!$A:$A,\"2023\",'Tableau de bord'!$E:$E,\"EVAL CHIMIQUE\",'Tableau de bord'!B:B,\"9\",'Tableau de bord'!$H:$H,\"Mathieu\")","v":0},{"$f":"COUNTIFS('Tableau de bord'!$A:$A,\"2023\",'Tableau de bord'!$E:$E,\"CSE\",'Tableau de bord'!B:B,\"9\",'Tableau de bord'!$H:$H,\"Mathieu\")","v":0},{"$f":"COUNTIFS('Tableau de bord'!$A:$A,\"2023\",'Tableau de bord'!$E:$E,\"VISITE CHANTIER\",'Tableau de bord'!B:B,\"9\",'Tableau de bord'!$H:$H,\"Mathieu\")","v":0},{"$f":"COUNTIFS('Tableau de bord'!$A:$A,\"2023\",'Tableau de bord'!$E:$E,\"METROLOGIE\",'Tableau de bord'!B:B,\"9\",'Tableau de bord'!$H:$H,\"Mathieu\")","v":0},{"$f":"COUNTIFS('Tableau de bord'!$A:$A,\"2023\",'Tableau de bord'!$E:$E,\"SENSIBILISATION\",'Tableau de bord'!B:B,\"9\",'Tableau de bord'!$H:$H,\"Mathieu\")","v":0},{"$f":"COUNTIFS('Tableau de bord'!A:A,\"2023\",'Tableau de bord'!E:E,\"AUTRE\",'Tableau de bord'!B:B,\"9\",'Tableau de bord'!H:H,\"Mathieu\")","v":0},{"$f":"COUNTIFS('Tableau de bord'!N:N,\"2023\",'Tableau de bord'!K:K,\"Terminé\",'Tableau de bord'!M:M,\"9\",'Tableau de bord'!H:H,\"Mathieu\")","v":0},{"$f":"COUNTIFS('Tableau de bord'!N:N,\"2023\",'Tableau de bord'!$K:$K,\"Terminé\",'Tableau de bord'!M:M,\"9\",'Tableau de bord'!$E:$E,\"EP\",'Tableau de bord'!$H:$H,\"Mathieu\")","v":0},{"$f":"COUNTIFS('Tableau de bord'!N:N,\"2023\",'Tableau de bord'!$K:$K,\"Terminé\",'Tableau de bord'!M:M,\"9\",'Tableau de bord'!$E:$E,\"FE\",'Tableau de bord'!$H:$H,\"Mathieu\")","v":0},{"$f":"COUNTIFS('Tableau de bord'!N:N,\"2023\",'Tableau de bord'!$K:$K,\"Terminé\",'Tableau de bord'!M:M,\"9\",'Tableau de bord'!$E:$E,\"EVAL CHIMIQUE\",'Tableau de bord'!$H:$H,\"Mathieu\")","v":0},{"$f":"COUNTIFS('Tableau de bord'!N:N,\"2023\",'Tableau de bord'!$K:$K,\"Terminé\",'Tableau de bord'!M:M,\"9\",'Tableau de bord'!$E:$E,\"CSE\",'Tableau de bord'!$H:$H,\"Mathieu\")","v":0},{"$f":"COUNTIFS('Tableau de bord'!N:N,\"2023\",'Tableau de bord'!$K:$K,\"Terminé\",'Tableau de bord'!M:M,\"9\",'Tableau de bord'!$E:$E,\"VISITE CHANTIER\",'Tableau de bord'!$H:$H,\"Mathieu\")","v":0},{"$f":"COUNTIFS('Tableau de bord'!N:N,\"2023\",'Tableau de bord'!$K:$K,\"Terminé\",'Tableau de bord'!M:M,\"9\",'Tableau de bord'!$E:$E,\"METROLOGIE\",'Tableau de bord'!$H:$H,\"Mathieu\")","v":0},{"$f":"COUNTIFS('Tableau de bord'!N:N,\"2023\",'Tableau de bord'!$K:$K,\"Terminé\",'Tableau de bord'!M:M,\"9\",'Tableau de bord'!$E:$E,\"SENSIBILISATION\",'Tableau de bord'!$H:$H,\"Mathieu\")","v":0},{"$f":"COUNTIFS('Tableau de bord'!N:N,\"2023\",'Tableau de bord'!$K:$K,\"Terminé\",'Tableau de bord'!M:M,\"9\",'Tableau de bord'!$E:$E,\"AUTRE\",'Tableau de bord'!$H:$H,\"Mathieu\")","v":0}]
["Octobre",{"$f":"COUNTIFS('Tableau de bord'!A:A,\"2023\",'Tableau de bord'!B:B,\"10\",'Tableau de bord'!H:H,\"Mathieu\")","v":0},{"$f":"COUNTIFS('Tableau de bord'!A:A,\"2023\",'Tableau de bord'!E:E,\"EP\",'Tableau de bord'!B:B,\"10\",'Tableau de bord'!H:H,\"Mathieu\")","v":0},{"$f":"COUNTIFS('Tableau de bord'!$A:$A,\"2023\",'Tableau de bord'!$E:$E,\"FE\",'Tableau de bord'!B:B,\"10\",'Tableau de bord'!$H:$H,\"Mathieu\")","v":0},{"$f":"COUNTIFS('Tableau de bord'!$A:$A,\"2023\",'Tableau de bord'!$E:$E,\"EVAL CHIMIQUE\",'Tableau de bord'!B:B,\"10\",'Tableau de bord'!$H:$H,\"Mathieu\")","v":0},{"$f":"COUNTIFS('Tableau de bord'!$A:$A,\"2023\",'Tableau de bord'!$E:$E,\"CSE\",'Tableau de bord'!B:B,\"10\",'Tableau de bord'!$H:$H,\"Mathieu\")","v":0},{"$f":"COUNTIFS('Tableau de bord'!$A:$A,\"2023\",'Tableau de bord'!$E:$E,\"VISITE CHANTIER\",'Tableau de bord'!B:B,\"10\",'Tableau de bord'!$H:$H,\"Mathieu\")","v":0},{"$f":"COUNTIFS('Tableau de bord'!$A:$A,\"2023\",'Tableau de bord'!$E:$E,\"METROLOGIE\",'Tableau de bord'!B:B,\"10\",'Tableau de bord'!$H:$H,\"Mathieu\")","v":0},{"$f":"COUNTIFS('Tableau de bord'!$A:$A,\"2023\",'Tableau de bord'!$E:$E,\"SENSIBILISATION\",'Tableau de bord'!B:B,\"10\",'Tableau de bord'!$H:$H,\"Mathieu\")","v":0},{"$f":"COUNTIFS('Tableau de bord'!A:A,\"2023\",'Tableau de bord'!E:E,\"AUTRE\",'Tableau de bord'!B:B,\"10\",'Tableau de bord'!H:H,\"Mathieu\")","v":0},{"$f":"COUNTIFS('Tableau de bord'!N:N,\"2023\",'Tableau de bord'!K:K,\"Terminé\",'Tableau de bord'!M:M,\"10\",'Tableau de bord'!H:H,\"Mathieu\")","v":0},{"$f":"COUNTIFS('Tableau de bord'!N:N,\"2023\",'Tableau de bord'!$K:$K,\"Terminé\",'Tableau de bord'!M:M,\"10\",'Tableau de bord'!$E:$E,\"EP\",'Tableau de bord'!$H:$H,\"Mathieu\")","v":0},{"$f":"COUNTIFS('Tableau de bord'!N:N,\"2023\",'Tableau de bord'!$K:$K,\"Terminé\",'Tableau de bord'!M:M,\"10\",'Tableau de bord'!$E:$E,\"FE\",'Tableau de bord'!$H:$H,\"Mathieu\")","v":0},{"$f":"COUNTIFS('Tableau de bord'!N:N,\"2023\",'Tableau de bord'!$K:$K,\"Terminé\",'Tableau de bord'!M:M,\"10\",'Tableau de bord'!$E:$E,\"EVAL CHIMIQUE\",'Tableau de bord'!$H:$H,\"Mathieu\")","v":0},{"$f":"COUNTIFS('Tableau de bord'!N:N,\"2023\",'Tableau de bord'!$K:$K,\"Terminé\",'Tableau de bord'!M:M,\"10\",'Tableau de bord'!$E:$E,\"CSE\",'Tableau de bord'!$H:$H,\"Mathieu\")","v":0},{"$f":"COUNTIFS('Tableau de bord'!N:N,\"2023\",'Tableau de bord'!$K:$K,\"Terminé\",'Tableau de bord'!M:M,\"10\",'Tableau de bord'!$E:$E,\"VISITE CHANTIER\",'Tableau de bord'!$H:$H,\"Mathieu\")","v":0},{"$f":"COUNTIFS('Tableau de bord'!N:N,\"2023\",'Tableau de bord'!$K:$K,\"Terminé\",'Tableau de bord'!M:M,\"10\",'Tableau de bord'!$E:$E,\"METROLOGIE\",'Tableau de bord'!$H:$H,\"Mathieu\")","v":0},{"$f":"COUNTIFS('Tableau de bord'!N:N,\"2023\",'Tableau de bord'!$K:$K,\"Terminé\",'Tableau de bord'!M:M,\"10\",'Tableau de bord'!$E:$E,\"SENSIBILISATION\",'Tableau de bord'!$H:$H,\"Mathieu\")","v":0},{"$f":"COUNTIFS('Tableau de bord'!N:N,\"2023\",'Tableau de bord'!$K:$K,\"Terminé\",'Tableau de bord'!M:M,\"10\",'Tableau de bord'!$E:$E,\"AUTRE\",'Tableau de bord'!$H:$H,\"Mathieu\")","v":0}]
["Novembre",{"$f":"COUNTIFS('Tableau de bord'!A:A,\"2023\",'Tableau de bord'!B:B,\"11\",'Tableau de bord'!H:H,\"Mathieu\")","v":0},{"$f":"COUNTIFS('Tableau de bord'!A:A,\"2023\",'Tableau de bord'!E:E,\"EP\",'Tableau de bord'!B:B,\"11\",'Tableau de bord'!H:H,\"Mathieu\")","v":0},{"$f":"COUNTIFS('Tableau de bord'!$A:$A,\"2023\",'Tableau de bord'!$E:$E,\"FE\",'Tableau de bord'!B:B,\"11\",'Tableau de bord'!$H:$H,\"Mathieu\")","v":0},{"$f":"COUNTIFS('Tableau de bord'!$A:$A,\"2023\",'Tableau de bord'!$E:$E,\"EVAL CHIMIQUE\",'Tableau de bord'!B:B,\"11\",'Tableau de bord'!$H:$H,\"Mathieu\")","v":0},{"$f":"COUNTIFS('Tableau de bord'!$A:$A,\"2023\",'Tableau de bord'!$E:$E,\"CSE\",'Tableau de bord'!B:B,\"11\",'Tableau de bord'!$H:$H,\"Mathieu\")","v":0},{"$f":"COUNTIFS('Tableau de bord'!$A:$A,\"2023\",'Tableau de bord'!$E:$E,\"VISITE CHANTIER\",'Tableau de bord'!B:B,\"11\",'Tableau de bord'!$H:$H,\"Mathieu\")","v":0},{"$f":"COUNTIFS('Tableau de bord'!$A:$A,\"2023\",'Tableau de bord'!$E:$E,\"METROLOGIE\",'Tableau de bord'!B:B,\"11\",'Tableau de bord'!$H:$H,\"Mathieu\")","v":0},{"$f":"COUNTIFS('Tableau de bord'!$A:$A,\"2023\",'Tableau de bord'!$E:$E,\"SENSIBILISATION\",'Tableau de bord'!B:B,\"11\",'Tableau de bord'!$H:$H,\"Mathieu\")","v":0},{"$f":"COUNTIFS('Tableau de bord'!A:A,\"2023\",'Tableau de bord'!E:E,\"AUTRE\",'Tableau de bord'!B:B,\"11\",'Tableau de bord'!H:H,\"Mathieu\")","v":0},{"$f":"COUNTIFS('Tableau de bord'!N:N,\"2023\",'Tableau de bord'!K:K,\"Terminé\",'Tableau de bord'!M:M,\"11\",'Tableau de bord'!H:H,\"Mathieu\")","v":0},{"$f":"COUNTIFS('Tableau de bord'!N:N,\"2023\",'Tableau de bord'!$K:$K,\"Terminé\",'Tableau de bord'!M:M,\"11\",'Tableau de bord'!$E:$E,\"EP\",'Tableau de bord'!$H:$H,\"Mathieu\")","v":0},{"$f":"COUNTIFS('Tableau de bord'!N:N,\"2023\",'Tableau de bord'!$K:$K,\"Terminé\",'Tableau de bord'!M:M,\"11\",'Tableau de bord'!$E:$E,\"FE\",'Tableau de bord'!$H:$H,\"Mathieu\")","v":0},{"$f":"COUNTIFS('Tableau de bord'!N:N,\"2023\",'Tableau de bord'!$K:$K,\"Terminé\",'Tableau de bord'!M:M,\"11\",'Tableau de bord'!$E:$E,\"EVAL CHIMIQUE\",'Tableau de bord'!$H:$H,\"Mathieu\")","v":0},{"$f":"COUNTIFS('Tableau de bord'!N:N,\"2023\",'Tableau de bord'!$K:$K,\"Terminé\",'Tableau de bord'!M:M,\"11\",'Tableau de bord'!$E:$E,\"CSE\",'Tableau de bord'!$H:$H,\"Mathieu\")","v":0},{"$f":"COUNTIFS('Tableau de bord'!N:N,\"2023\",'Tableau de bord'!$K:$K,\"Terminé\",'Tableau de bord'!M:M,\"11\",'Tableau de bord'!$E:$E,\"VISITE CHANTIER\",'Tableau de bord'!$H:$H,\"Mathieu\")","v":0},{"$f":"COUNTIFS('Tableau de bord'!N:N,\"2023\",'Tableau de bord'!$K:$K,\"Terminé\",'Tableau de bord'!M:M,\"11\",'Tableau de bord'!$E:$E,\"METROLOGIE\",'Tableau de bord'!$H:$H,\"Mathieu\")","v":0},{"$f":"COUNTIFS('Tableau de bord'!N:N,\"2023\",'Tableau de bord'!$K:$K,\"Terminé\",'Tableau de bord'!M:M,\"11\",'Tableau de bord'!$E:$E,\"SENSIBILISATION\",'Tableau de bord'!$H:$H,\"Mathieu\")","v":0},{"$f":"COUNTIFS('Tableau de bord'!N:N,\"2023\",'Tableau de bord'!$K:$K,\"Terminé\",'Tableau de bord'!M:M,\"11\",'Tableau de bord'!$E:$E,\"AUTRE\",'Tableau de bord'!$H:$H,\"Mathieu\")","v":0}]
["Décembre",{"$f":"COUNTIFS('Tableau de bord'!A:A,\"2023\",'Tableau de bord'!B:B,\"12\",'Tableau de bord'!H:H,\"Mathieu\")","v":0},{"$f":"COUNTIFS('Tableau de bord'!A:A,\"2023\",'Tableau de bord'!E:E,\"EP\",'Tableau de bord'!B:B,\"12\",'Tableau de bord'!H:H,\"Mathieu\")","v":0},{"$f":"COUNTIFS('Tableau de bord'!$A:$A,\"2023\",'Tableau de bord'!$E:$E,\"FE\",'Tableau de bord'!B:B,\"12\",'Tableau de bord'!$H:$H,\"Mathieu\")","v":0},{"$f":"COUNTIFS('Tableau de bord'!$A:$A,\"2023\",'Tableau de bord'!$E:$E,\"EVAL CHIMIQUE\",'Tableau de bord'!B:B,\"12\",'Tableau de bord'!$H:$H,\"Mathieu\")","v":0},{"$f":"COUNTIFS('Tableau de bord'!$A:$A,\"2023\",'Tableau de bord'!$E:$E,\"CSE\",'Tableau de bord'!B:B,\"12\",'Tableau de bord'!$H:$H,\"Mathieu\")","v":0},{"$f":"COUNTIFS('Tableau de bord'!$A:$A,\"2023\",'Tableau de bord'!$E:$E,\"VISITE CHANTIER\",'Tableau de bord'!B:B,\"12\",'Tableau de bord'!$H:$H,\"Mathieu\")","v":0},{"$f":"COUNTIFS('Tableau de bord'!$A:$A,\"2023\",'Tableau de bord'!$E:$E,\"METROLOGIE\",'Tableau de bord'!B:B,\"12\",'Tableau de bord'!$H:$H,\"Mathieu\")","v":0},{"$f":"COUNTIFS('Tableau de bord'!$A:$A,\"2023\",'Tableau de bord'!$E:$E,\"SENSIBILISATION\",'Tableau de bord'!B:B,\"12\",'Tableau de bord'!$H:$H,\"Mathieu\")","v":0},{"$f":"COUNTIFS('Tableau de bord'!A:A,\"2023\",'Tableau de bord'!E:E,\"AUTRE\",'Tableau de bord'!B:B,\"12\",'Tableau de bord'!H:H,\"Mathieu\")","v":0},{"$f":"COUNTIFS('Tableau de bord'!N:N,\"2023\",'Tableau de bord'!K:K,\"Terminé\",'Tableau de bord'!M:M,\"12\",'Tableau de bord'!H:H,\"Mathieu\")","v":0},{"$f":"COUNTIFS('Tableau de bord'!N:N,\"2023\",'Tableau de bord'!$K:$K,\"Terminé\",'Tableau de bord'!M:M,\"12\",'Tableau de bord'!$E:$E,\"EP\",'Tableau de bord'!$H:$H,\"Mathieu\")","v":0},{"$f":"COUNTIFS('Tableau de bord'!N:N,\"2023\",'Tableau de bord'!$K:$K,\"Terminé\",'Tableau de bord'!M:M,\"12\",'Tableau de bord'!$E:$E,\"FE\",'Tableau de bord'!$H:$H,\"Mathieu\")","v":0},{"$f":"COUNTIFS('Tableau de bord'!N:N,\"2023\",'Tableau de bord'!$K:$K,\"Terminé\",'Tableau de bord'!M:M,\"12\",'Tableau de bord'!$E:$E,\"EVAL CHIMIQUE\",'Tableau de bord'!$H:$H,\"Mathieu\")","v":0},{"$f":"COUNTIFS('Tableau de bord'!N:N,\"2023\",'Tableau de bord'!$K:$K,\"Terminé\",'Tableau de bord'!M:M,\"12\",'Tableau de bord'!$E:$E,\"CSE\",'Tableau de bord'!$H:$H,\"Mathieu\")","v":0},{"$f":"COUNTIFS('Tableau de bord'!N:N,\"2023\",'Tableau de bord'!$K:$K,\"Terminé\",'Tableau de bord'!M:M,\"12\",'Tableau de bord'!$E:$E,\"VISITE CHANTIER\",'Tableau de bord'!$H:$H,\"Mathieu\")","v":0},{"$f":"COUNTIFS('Tableau de bord'!N:N,\"2023\",'Tableau de bord'!$K:$K,\"Terminé\",'Tableau de bord'!M:M,\"12\",'Tableau de bord'!$E:$E,\"METROLOGIE\",'Tableau de bord'!$H:$H,\"Mathieu\")","v":0},{"$f":"COUNTIFS('Tableau de bord'!N:N,\"2023\",'Tableau de bord'!$K:$K,\"Terminé\",'Tableau de bord'!M:M,\"12\",'Tableau de bord'!$E:$E,\"SENSIBILISATION\",'Tableau de bord'!$H:$H,\"Mathieu\")","v":0},{"$f":"COUNTIFS('Tableau de bord'!N:N,\"2023\",'Tableau de bord'!$K:$K,\"Terminé\",'Tableau de bord'!M:M,\"12\",'Tableau de bord'!$E:$E,\"AUTRE\",'Tableau de bord'!$H:$H,\"Mathieu\")","v":0}]
["TOTAL",{"$f":"SUM(B3:B14)","v":0},{"$f":"SUM(C3:C14)","v":0},0,0,0,0,0,0,0,0,0,0,0,0,0,0,0,0]
[]
[]
[]
["Nombre d'action demandées/finalisées  par médecin"]
["Médecin","Nb d'actions demandées","EP","FE","EVAL CHIMIQUE","CSE","VISITE CHANTIER","METROLOGIE","SENSIBILISATION","AUTRE","Nb d'actions finalisées","EP","FE","EVAL CHIMIQUE","CSE","VISITE CHANTIER","METROLOGIE","SENSIBILISATION","AUTRE","ATTENTE VALIDATION"]
["Dr DEPEZEVILLE",{"$f":"COUNTIFS('Tableau de bord'!A:A,\"2023\",'Tableau de bord'!G:G,\"Dr. DEPEZEVILLE\",'Tableau de bord'!H:H,\"Mathieu\")","v":0},{"$f":"COUNTIFS('Tableau de bord'!A:A,\"2023\",'Tableau de bord'!$G:$G,\"Dr. DEPEZEVILLE\",'Tableau de bord'!$E:$E,\"EP\",'Tableau de bord'!$H:$H,\"Mathieu\")","v":0},{"$f":"COUNTIFS('Tableau de bord'!$A:$A,\"2023\",'Tableau de bord'!$G:$G,\"Dr. DEPEZEVILLE\",'Tableau de bord'!$E:$E,\"FE\",'Tableau de bord'!$H:$H,\"Mathieu\")","v":0},{"$f":"COUNTIFS('Tableau de bord'!$A:$A,\"2023\",'Tableau de bord'!$G:$G,\"Dr. DEPEZEVILLE\",'Tableau de bord'!$E:$E,\"EVAL CHIMIQUE\",'Tableau de bord'!$H:$H,\"Mathieu\")","v":0},{"$f":"COUNTIFS('Tableau de bord'!$A:$A,\"2023\",'Tableau de bord'!$G:$G,\"Dr. DEPEZEVILLE\",'Tableau de bord'!$E:$E,\"CSE\",'Tableau de bord'!$H:$H,\"Mathieu\")","v":0},{"$f":"COUNTIFS('Tableau de bord'!$A:$A,\"2023\",'Tableau de bord'!$G:$G,\"Dr. DEPEZEVILLE\",'Tableau de bord'!$E:$E,\"VISITE CHANTIER\",'Tableau de bord'!$H:$H,\"Mathieu\")","v":0},{"$f":"COUNTIFS('Tableau de bord'!$A:$A,\"2023\",'Tableau de bord'!$G:$G,\"Dr. DEPEZEVILLE\",'Tableau de bord'!$E:$E,\"METROLOGIE\",'Tableau de bord'!$H:$H,\"Mathieu\")","v":0},{"$f":"COUNTIFS('Tableau de bord'!$A:$A,\"2023\",'Tableau de bord'!$G:$G,\"Dr. DEPEZEVILLE\",'Tableau de bord'!$E:$E,\"SENSIBILISATION\",'Tableau de bord'!$H:$H,\"Mathieu\")","v":0},{"$f":"COUNTIFS('Tableau de bord'!A:A,\"2023\",'Tableau de bord'!$G:$G,\"Dr. DEPEZEVILLE\",'Tableau de bord'!$E:$E,\"AUTRE\",'Tableau de bord'!$H:$H,\"Mathieu\")","v":0},{"$f":"COUNTIFS('Tableau de bord'!N:N,\"2023\",'Tableau de bord'!$G:$G,\"Dr. DEPEZEVILLE\",'Tableau de bord'!$K:$K,\"Terminé\",'Tableau de bord'!$H:$H,\"Mathieu\")","v":0},{"$f":"COUNTIFS('Tableau de bord'!N:N,\"2023\",'Tableau de bord'!$G:$G,\"Dr. DEPEZEVILLE\",'Tableau de bord'!$E:$E,\"EP\",'Tableau de bord'!$K:$K,\"Terminé\",'Tableau de bord'!$H:$H,\"Mathieu\")","v":0},{"$f":"COUNTIFS('Tableau de bord'!N:N,\"2023\",'Tableau de bord'!$G:$G,\"Dr. DEPEZEVILLE\",'Tableau de bord'!$E:$E,\"FE\",'Tableau de bord'!$K:$K,\"Terminé\",'Tableau de bord'!$H:$H,\"Mathieu\")","v":0},{"$f":"COUNTIFS('Tableau de bord'!N:N,\"2023\",'Tableau de bord'!$G:$G,\"Dr. DEPEZEVILLE\",'Tableau de bord'!$E:$E,\"EVAL CHIMIQUE\",'Tableau de bord'!$K:$K,\"Terminé\",'Tableau de bord'!$H:$H,\"Mathieu\")","v":0},{"$f":"COUNTIFS('Tableau de bord'!N:N,\"2023\",'Tableau de bord'!$G:$G,\"Dr. DEPEZEVILLE\",'Tableau de bord'!$E:$E,\"CSE\",'Tableau de bord'!$K:$K,\"Terminé\",'Tableau de bord'!$H:$H,\"Mathieu\")","v":0},{"$f":"COUNTIFS('Tableau de bord'!N:N,\"2023\",'Tableau de bord'!$G:$G,\"Dr. DEPEZEVILLE\",'Tableau de bord'!$E:$E,\"VISITE CHANTIER\",'Tableau de bord'!$K:$K,\"Terminé\",'Tableau de bord'!$H:$H,\"Mathieu\")","v":0},{"$f":"COUNTIFS('Tableau de bord'!N:N,\"2023\",'Tableau de bord'!$G:$G,\"Dr. DEPEZEVILLE\",'Tableau de bord'!$E:$E,\"METROLOGIE\",'Tableau de bord'!$K:$K,\"Terminé\",'Tableau de bord'!$H:$H,\"Mathieu\")","v":0},{"$f":"COUNTIFS('Tableau de bord'!N:N,\"2023\",'Tableau de bord'!$G:$G,\"Dr. DEPEZEVILLE\",'Tableau de bord'!$E:$E,\"SENSIBILISATION\",'Tableau de bord'!$K:$K,\"Terminé\",'Tableau de bord'!$H:$H,\"Mathieu\")","v":0},{"$f":"COUNTIFS('Tableau de bord'!N:N,\"2023\",'Tableau de bord'!$G:$G,\"Dr. DEPEZEVILLE\",'Tableau de bord'!$E:$E,\"AUTRE\",'Tableau de bord'!$K:$K,\"Terminé\",'Tableau de bord'!$H:$H,\"Mathieu\")","v":0},{"$f":"COUNTIFS('Tableau de bord'!$G:$G,\"Dr. DEPEZEVILLE\",'Tableau de bord'!$H:$H,\"Vanessa\",'Tableau de bord'!$K:$K,\"Terminé\",'Tableau de bord'!O:O,\"\")","v":2}]
["Dr FAVARETTO",{"$f":"COUNTIFS('Tableau de bord'!A:A,\"2023\",'Tableau de bord'!G:G,\"Dr. FAVARETTO\",'Tableau de bord'!H:H,\"Mathieu\")","v":0},{"$f":"COUNTIFS('Tableau de bord'!A:A,\"2023\",'Tableau de bord'!$G:$G,\"Dr. FAVARETTO\",'Tableau de bord'!$E:$E,\"EP\",'Tableau de bord'!$H:$H,\"Mathieu\")","v":0},{"$f":"COUNTIFS('Tableau de bord'!$A:$A,\"2023\",'Tableau de bord'!$G:$G,\"Dr. FAVARETTO\",'Tableau de bord'!$E:$E,\"FE\",'Tableau de bord'!$H:$H,\"Mathieu\")","v":0},{"$f":"COUNTIFS('Tableau de bord'!$A:$A,\"2023\",'Tableau de bord'!$G:$G,\"Dr. FAVARETTO\",'Tableau de bord'!$E:$E,\"EVAL CHIMIQUE\",'Tableau de bord'!$H:$H,\"Mathieu\")","v":0},{"$f":"COUNTIFS('Tableau de bord'!$A:$A,\"2023\",'Tableau de bord'!$G:$G,\"Dr. FAVARETTO\",'Tableau de bord'!$E:$E,\"CSE\",'Tableau de bord'!$H:$H,\"Mathieu\")","v":0},{"$f":"COUNTIFS('Tableau de bord'!$A:$A,\"2023\",'Tableau de bord'!$G:$G,\"Dr. FAVARETTO\",'Tableau de bord'!$E:$E,\"VISITE CHANTIER\",'Tableau de bord'!$H:$H,\"Mathieu\")","v":0},{"$f":"COUNTIFS('Tableau de bord'!$A:$A,\"2023\",'Tableau de bord'!$G:$G,\"Dr. FAVARETTO\",'Tableau de bord'!$E:$E,\"METROLOGIE\",'Tableau de bord'!$H:$H,\"Mathieu\")","v":0},{"$f":"COUNTIFS('Tableau de bord'!$A:$A,\"2023\",'Tableau de bord'!$G:$G,\"Dr. FAVARETTO\",'Tableau de bord'!$E:$E,\"SENSIBILISATION\",'Tableau de bord'!$H:$H,\"Mathieu\")","v":0},{"$f":"COUNTIFS('Tableau de bord'!A:A,\"2023\",'Tableau de bord'!$G:$G,\"Dr. FAVARETTO\",'Tableau de bord'!$E:$E,\"AUTRE\",'Tableau de bord'!$H:$H,\"Mathieu\")","v":0},{"$f":"COUNTIFS('Tableau de bord'!N:N,\"2023\",'Tableau de bord'!$G:$G,\"Dr. FAVARETTO\",'Tableau de bord'!$K:$K,\"Terminé\",'Tableau de bord'!$H:$H,\"Mathieu\")","v":0},{"$f":"COUNTIFS('Tableau de bord'!N:N,\"2023\",'Tableau de bord'!$G:$G,\"Dr. FAVARETTO\",'Tableau de bord'!$E:$E,\"EP\",'Tableau de bord'!$K:$K,\"Terminé\",'Tableau de bord'!$H:$H,\"Mathieu\")","v":0},{"$f":"COUNTIFS('Tableau de bord'!N:N,\"2023\",'Tableau de bord'!$G:$G,\"Dr. FAVARETTO\",'Tableau de bord'!$E:$E,\"FE\",'Tableau de bord'!$K:$K,\"Terminé\",'Tableau de bord'!$H:$H,\"Mathieu\")","v":0},{"$f":"COUNTIFS('Tableau de bord'!N:N,\"2023\",'Tableau de bord'!$G:$G,\"Dr. FAVARETTO\",'Tableau de bord'!$E:$E,\"EVAL CHIMIQUE\",'Tableau de bord'!$K:$K,\"Terminé\",'Tableau de bord'!$H:$H,\"Mathieu\")","v":0},{"$f":"COUNTIFS('Tableau de bord'!N:N,\"2023\",'Tableau de bord'!$G:$G,\"Dr. FAVARETTO\",'Tableau de bord'!$E:$E,\"CSE\",'Tableau de bord'!$K:$K,\"Terminé\",'Tableau de bord'!$H:$H,\"Mathieu\")","v":0},{"$f":"COUNTIFS('Tableau de bord'!N:N,\"2023\",'Tableau de bord'!$G:$G,\"Dr. FAVARETTO\",'Tableau de bord'!$E:$E,\"VISITE CHANTIER\",'Tableau de bord'!$K:$K,\"Terminé\",'Tableau de bord'!$H:$H,\"Mathieu\")","v":0},{"$f":"COUNTIFS('Tableau de bord'!N:N,\"2023\",'Tableau de bord'!$G:$G,\"Dr. FAVARETTO\",'Tableau de bord'!$E:$E,\"METROLOGIE\",'Tableau de bord'!$K:$K,\"Terminé\",'Tableau de bord'!$H:$H,\"Mathieu\")","v":0},{"$f":"COUNTIFS('Tableau de bord'!N:N,\"2023\",'Tableau de bord'!$G:$G,\"Dr. FAVARETTO\",'Tableau de bord'!$E:$E,\"SENSIBILISATION\",'Tableau de bord'!$K:$K,\"Terminé\",'Tableau de bord'!$H:$H,\"Mathieu\")","v":0},{"$f":"COUNTIFS('Tableau de bord'!N:N,\"2023\",'Tableau de bord'!$G:$G,\"Dr. FAVARETTO\",'Tableau de bord'!$E:$E,\"AUTRE\",'Tableau de bord'!$K:$K,\"Terminé\",'Tableau de bord'!$H:$H,\"Mathieu\")","v":0},{"$f":"COUNTIFS('Tableau de bord'!$G:$G,\"Dr. FAVARETTO\",'Tableau de bord'!$H:$H,\"Vanessa\",'Tableau de bord'!$K:$K,\"Terminé\",'Tableau de bord'!O:O,\"\")","v":0}]
["Dr HAPPEY",{"$f":"COUNTIFS('Tableau de bord'!A:A,\"2023\",'Tableau de bord'!G:G,\"Dr. HAPPEY\",'Tableau de bord'!H:H,\"Mathieu\")","v":0},{"$f":"COUNTIFS('Tableau de bord'!A:A,\"2023\",'Tableau de bord'!$G:$G,\"Dr. HAPPEY\",'Tableau de bord'!$E:$E,\"EP\",'Tableau de bord'!$H:$H,\"Mathieu\")","v":0},{"$f":"COUNTIFS('Tableau de bord'!$A:$A,\"2023\",'Tableau de bord'!$G:$G,\"Dr. HAPPEY\",'Tableau de bord'!$E:$E,\"FE\",'Tableau de bord'!$H:$H,\"Mathieu\")","v":0},{"$f":"COUNTIFS('Tableau de bord'!$A:$A,\"2023\",'Tableau de bord'!$G:$G,\"Dr. HAPPEY\",'Tableau de bord'!$E:$E,\"EVAL CHIMIQUE\",'Tableau de bord'!$H:$H,\"Mathieu\")","v":0},{"$f":"COUNTIFS('Tableau de bord'!$A:$A,\"2023\",'Tableau de bord'!$G:$G,\"Dr. HAPPEY\",'Tableau de bord'!$E:$E,\"CSE\",'Tableau de bord'!$H:$H,\"Mathieu\")","v":0},{"$f":"COUNTIFS('Tableau de bord'!$A:$A,\"2023\",'Tableau de bord'!$G:$G,\"Dr. HAPPEY\",'Tableau de bord'!$E:$E,\"VISITE CHANTIER\",'Tableau de bord'!$H:$H,\"Mathieu\")","v":0},{"$f":"COUNTIFS('Tableau de bord'!$A:$A,\"2023\",'Tableau de bord'!$G:$G,\"Dr. HAPPEY\",'Tableau de bord'!$E:$E,\"METROLOGIE\",'Tableau de bord'!$H:$H,\"Mathieu\")","v":0},{"$f":"COUNTIFS('Tableau de bord'!$A:$A,\"2023\",'Tableau de bord'!$G:$G,\"Dr. HAPPEY\",'Tableau de bord'!$E:$E,\"SENSIBILISATION\",'Tableau de bord'!$H:$H,\"Mathieu\")","v":0},{"$f":"COUNTIFS('Tableau de bord'!A:A,\"2023\",'Tableau de bord'!$G:$G,\"Dr. HAPPEY\",'Tableau de bord'!$E:$E,\"AUTRE\",'Tableau de bord'!$H:$H,\"Mathieu\")","v":0},{"$f":"COUNTIFS('Tableau de bord'!N:N,\"2023\",'Tableau de bord'!$G:$G,\"Dr. HAPPEY\",'Tableau de bord'!$K:$K,\"Terminé\",'Tableau de bord'!$H:$H,\"Mathieu\")","v":0},{"$f":"COUNTIFS('Tableau de bord'!N:N,\"2023\",'Tableau de bord'!$G:$G,\"Dr. HAPPEY\",'Tableau de bord'!$E:$E,\"EP\",'Tableau de bord'!$K:$K,\"Terminé\",'Tableau de bord'!$H:$H,\"Mathieu\")","v":0},{"$f":"COUNTIFS('Tableau de bord'!N:N,\"2023\",'Tableau de bord'!$G:$G,\"Dr. HAPPEY\",'Tableau de bord'!$E:$E,\"FE\",'Tableau de bord'!$K:$K,\"Terminé\",'Tableau de bord'!$H:$H,\"Mathieu\")","v":0},{"$f":"COUNTIFS('Tableau de bord'!N:N,\"2023\",'Tableau de bord'!$G:$G,\"Dr. HAPPEY\",'Tableau de bord'!$E:$E,\"EVAL CHIMIQUE\",'Tableau de bord'!$K:$K,\"Terminé\",'Tableau de bord'!$H:$H,\"Mathieu\")","v":0},{"$f":"COUNTIFS('Tableau de bord'!N:N,\"2023\",'Tableau de bord'!$G:$G,\"Dr. HAPPEY\",'Tableau de bord'!$E:$E,\"CSE\",'Tableau de bord'!$K:$K,\"Terminé\",'Tableau de bord'!$H:$H,\"Mathieu\")","v":0},{"$f":"COUNTIFS('Tableau de bord'!N:N,\"2023\",'Tableau de bord'!$G:$G,\"Dr. HAPPEY\",'Tableau de bord'!$E:$E,\"VISITE CHANTIER\",'Tableau de bord'!$K:$K,\"Terminé\",'Tableau de bord'!$H:$H,\"Mathieu\")","v":0},{"$f":"COUNTIFS('Tableau de bord'!N:N,\"2023\",'Tableau de bord'!$G:$G,\"Dr. HAPPEY\",'Tableau de bord'!$E:$E,\"METROLOGIE\",'Tableau de bord'!$K:$K,\"Terminé\",'Tableau de bord'!$H:$H,\"Mathieu\")","v":0},{"$f":"COUNTIFS('Tableau de bord'!N:N,\"2023\",'Tableau de bord'!$G:$G,\"Dr. HAPPEY\",'Tableau de bord'!$E:$E,\"SENSIBILISATION,\",'Tableau de bord'!$K:$K,\"Terminé\",'Tableau de bord'!$H:$H,\"Mathieu\")","v":0},{"$f":"COUNTIFS('Tableau de bord'!N:N,\"2023\",'Tableau de bord'!$G:$G,\"Dr. HAPPEY\",'Tableau de bord'!$E:$E,\"AUTRE\",'Tableau de bord'!$K:$K,\"Terminé\",'Tableau de bord'!$H:$H,\"Mathieu\")","v":0},{"$f":"COUNTIFS('Tableau de bord'!$G:$G,\"Dr. HAPPEY\",'Tableau de bord'!$H:$H,\"Vanessa\",'Tableau de bord'!$K:$K,\"Terminé\",'Tableau de bord'!O:O,\"\")","v":3}]
["Dr JEANNE",{"$f":"COUNTIFS('Tableau de bord'!A:A,\"2023\",'Tableau de bord'!G:G,\"Dr. JEANNE\",'Tableau de bord'!H:H,\"Mathieu\")","v":0},{"$f":"COUNTIFS('Tableau de bord'!A:A,\"2023\",'Tableau de bord'!$G:$G,\"Dr. JEANNE\",'Tableau de bord'!$E:$E,\"EP\",'Tableau de bord'!$H:$H,\"Mathieu\")","v":0},{"$f":"COUNTIFS('Tableau de bord'!$A:$A,\"2023\",'Tableau de bord'!$G:$G,\"Dr. JEANNE\",'Tableau de bord'!$E:$E,\"FE\",'Tableau de bord'!$H:$H,\"Mathieu\")","v":0},{"$f":"COUNTIFS('Tableau de bord'!$A:$A,\"2023\",'Tableau de bord'!$G:$G,\"Dr. JEANNE\",'Tableau de bord'!$E:$E,\"EVAL CHIMIQUE\",'Tableau de bord'!$H:$H,\"Mathieu\")","v":0},{"$f":"COUNTIFS('Tableau de bord'!$A:$A,\"2023\",'Tableau de bord'!$G:$G,\"Dr. JEANNE\",'Tableau de bord'!$E:$E,\"CSE\",'Tableau de bord'!$H:$H,\"Mathieu\")","v":0},{"$f":"COUNTIFS('Tableau de bord'!$A:$A,\"2023\",'Tableau de bord'!$G:$G,\"Dr. JEANNE\",'Tableau de bord'!$E:$E,\"VISITE CHANTIER\",'Tableau de bord'!$H:$H,\"Mathieu\")","v":0},{"$f":"COUNTIFS('Tableau de bord'!$A:$A,\"2023\",'Tableau de bord'!$G:$G,\"Dr. JEANNE\",'Tableau de bord'!$E:$E,\"METROLOGIE\",'Tableau de bord'!$H:$H,\"Mathieu\")","v":0},{"$f":"COUNTIFS('Tableau de bord'!$A:$A,\"2023\",'Tableau de bord'!$G:$G,\"Dr. JEANNE\",'Tableau de bord'!$E:$E,\"SENSIBILISATION\",'Tableau de bord'!$H:$H,\"Mathieu\")","v":0},{"$f":"COUNTIFS('Tableau de bord'!A:A,\"2023\",'Tableau de bord'!$G:$G,\"Dr. JEANNE\",'Tableau de bord'!$E:$E,\"AUTRE\",'Tableau de bord'!$H:$H,\"Mathieu\")","v":0},{"$f":"COUNTIFS('Tableau de bord'!N:N,\"2023\",'Tableau de bord'!$G:$G,\"Dr. JEANNE\",'Tableau de bord'!$K:$K,\"Terminé\",'Tableau de bord'!$H:$H,\"Mathieu\")","v":0},{"$f":"COUNTIFS('Tableau de bord'!N:N,\"2023\",'Tableau de bord'!$G:$G,\"Dr. JEANNE\",'Tableau de bord'!$E:$E,\"EP\",'Tableau de bord'!$K:$K,\"Terminé\",'Tableau de bord'!$H:$H,\"Mathieu\")","v":0},{"$f":"COUNTIFS('Tableau de bord'!N:N,\"2023\",'Tableau de bord'!$G:$G,\"Dr. JEANNE\",'Tableau de bord'!$E:$E,\"FE\",'Tableau de bord'!$K:$K,\"Terminé\",'Tableau de bord'!$H:$H,\"Mathieu\")","v":0},{"$f":"COUNTIFS('Tableau de bord'!N:N,\"2023\",'Tableau de bord'!$G:$G,\"Dr. JEANNE\",'Tableau de bord'!$E:$E,\"EVAL CHIMIQUE\",'Tableau de bord'!$K:$K,\"Terminé\",'Tableau de bord'!$H:$H,\"Mathieu\")","v":0},{"$f":"COUNTIFS('Tableau de bord'!N:N,\"2023\",'Tableau de bord'!$G:$G,\"Dr. JEANNE\",'Tableau de bord'!$E:$E,\"CSE\",'Tableau de bord'!$K:$K,\"Terminé\",'Tableau de bord'!$H:$H,\"Mathieu\")","v":0},{"$f":"COUNTIFS('Tableau de bord'!N:N,\"2023\",'Tableau de bord'!$G:$G,\"Dr. JEANNE\",'Tableau de bord'!$E:$E,\"VISITE CHANTIER\",'Tableau de bord'!$K:$K,\"Terminé\",'Tableau de bord'!$H:$H,\"Mathieu\")","v":0},{"$f":"COUNTIFS('Tableau de bord'!N:N,\"2023\",'Tableau de bord'!$G:$G,\"Dr. JEANNE\",'Tableau de bord'!$E:$E,\"METROLOGIE\",'Tableau de bord'!$K:$K,\"Terminé\",'Tableau de bord'!$H:$H,\"Mathieu\")","v":0},{"$f":"COUNTIFS('Tableau de bord'!N:N,\"2023\",'Tableau de bord'!$G:$G,\"Dr. JEANNE\",'Tableau de bord'!$E:$E,\"SENSIBILISATION\",'Tableau de bord'!$K:$K,\"Terminé\",'Tableau de bord'!$H:$H,\"Mathieu\")","v":0},{"$f":"COUNTIFS('Tableau de bord'!N:N,\"2023\",'Tableau de bord'!$G:$G,\"Dr. JEANNE\",'Tableau de bord'!$E:$E,\"AUTRE\",'Tableau de bord'!$K:$K,\"Terminé\",'Tableau de bord'!$H:$H,\"Mathieu\")","v":0},{"$f":"COUNTIFS('Tableau de bord'!$G:$G,\"Dr. JEANNE\",'Tableau de bord'!$H:$H,\"Vanessa\",'Tableau de bord'!$K:$K,\"Terminé\",'Tableau de bord'!O:O,\"\")","v":0}]
["Dr MOULIN",{"$f":"COUNTIFS('Tableau de bord'!A:A,\"2023\",'Tableau de bord'!G:G,\"Dr. MOULIN\",'Tableau de bord'!H:H,\"Mathieu\")","v":0},{"$f":"COUNTIFS('Tableau de bord'!A:A,\"2023\",'Tableau de bord'!$G:$G,\"Dr. MOULIN\",'Tableau de bord'!$E:$E,\"EP\",'Tableau de bord'!$H:$H,\"Mathieu\")","v":0},{"$f":"COUNTIFS('Tableau de bord'!$A:$A,\"2023\",'Tableau de bord'!$G:$G,\"Dr. MOULIN\",'Tableau de bord'!$E:$E,\"FE\",'Tableau de bord'!$H:$H,\"Mathieu\")","v":0},{"$f":"COUNTIFS('Tableau de bord'!$A:$A,\"2023\",'Tableau de bord'!$G:$G,\"Dr. MOULIN\",'Tableau de bord'!$E:$E,\"EVAL CHIMIQUE\",'Tableau de bord'!$H:$H,\"Mathieu\")","v":0},{"$f":"COUNTIFS('Tableau de bord'!$A:$A,\"2023\",'Tableau de bord'!$G:$G,\"Dr. MOULIN\",'Tableau de bord'!$E:$E,\"CSE\",'Tableau de bord'!$H:$H,\"Mathieu\")","v":0},{"$f":"COUNTIFS('Tableau de bord'!$A:$A,\"2023\",'Tableau de bord'!$G:$G,\"Dr. MOULIN\",'Tableau de bord'!$E:$E,\"VISITE CHANTIER\",'Tableau de bord'!$H:$H,\"Mathieu\")","v":0},{"$f":"COUNTIFS('Tableau de bord'!$A:$A,\"2023\",'Tableau de bord'!$G:$G,\"Dr. MOULIN\",'Tableau de bord'!$E:$E,\"METROLOGIE\",'Tableau de bord'!$H:$H,\"Mathieu\")","v":0},{"$f":"COUNTIFS('Tableau de bord'!$A:$A,\"2023\",'Tableau de bord'!$G:$G,\"Dr. MOULIN\",'Tableau de bord'!$E:$E,\"SENSIBILISATION\",'Tableau de bord'!$H:$H,\"Mathieu\")","v":0},{"$f":"COUNTIFS('Tableau de bord'!A:A,\"2023\",'Tableau de bord'!$G:$G,\"Dr. MOULIN\",'Tableau de bord'!$E:$E,\"AUTRE\",'Tableau de bord'!$H:$H,\"Mathieu\")","v":0},{"$f":"COUNTIFS('Tableau de bord'!N:N,\"2023\",'Tableau de bord'!$G:$G,\"Dr. MOULIN\",'Tableau de bord'!$K:$K,\"Terminé\",'Tableau de bord'!$H:$H,\"Mathieu\")","v":0},{"$f":"COUNTIFS('Tableau de bord'!N:N,\"2023\",'Tableau de bord'!$G:$G,\"Dr. MOULIN\",'Tableau de bord'!$E:$E,\"EP\",'Tableau de bord'!$K:$K,\"Terminé\",'Tableau de bord'!$H:$H,\"Mathieu\")","v":0},{"$f":"COUNTIFS('Tableau de bord'!N:N,\"2023\",'Tableau de bord'!$G:$G,\"Dr. MOULIN\",'Tableau de bord'!$E:$E,\"FE\",'Tableau de bord'!$K:$K,\"Terminé\",'Tableau de bord'!$H:$H,\"Mathieu\")","v":0},{"$f":"COUNTIFS('Tableau de bord'!N:N,\"2023\",'Tableau de bord'!$G:$G,\"Dr. MOULIN\",'Tableau de bord'!$E:$E,\"EVAL CHIMIQUE\",'Tableau de bord'!$K:$K,\"Terminé\",'Tableau de bord'!$H:$H,\"Mathieu\")","v":0},{"$f":"COUNTIFS('Tableau de bord'!N:N,\"2023\",'Tableau de bord'!$G:$G,\"Dr. MOULIN\",'Tableau de bord'!$E:$E,\"CSE\",'Tableau de bord'!$K:$K,\"Terminé\",'Tableau de bord'!$H:$H,\"Mathieu\")","v":0},{"$f":"COUNTIFS('Tableau de bord'!N:N,\"20223\",'Tableau de bord'!$G:$G,\"Dr. MOULIN\",'Tableau de bord'!$E:$E,\"VISITE CHANTIER\",'Tableau de bord'!$K:$K,\"Terminé\",'Tableau de bord'!$H:$H,\"Mathieu\")","v":0},{"$f":"COUNTIFS('Tableau de bord'!N:N,\"2023\",'Tableau de bord'!$G:$G,\"Dr. MOULIN\",'Tableau de bord'!$E:$E,\"METROLOGIE\",'Tableau de bord'!$K:$K,\"Terminé\",'Tableau de bord'!$H:$H,\"Mathieu\")","v":0},{"$f":"COUNTIFS('Tableau de bord'!N:N,\"2023\",'Tableau de bord'!$G:$G,\"Dr. MOULIN\",'Tableau de bord'!$E:$E,\"SENSIBILISATION\",'Tableau de bord'!$K:$K,\"Terminé\",'Tableau de bord'!$H:$H,\"Mathieu\")","v":0},{"$f":"COUNTIFS('Tableau de bord'!N:N,\"2023\",'Tableau de bord'!$G:$G,\"Dr. MOULIN\",'Tableau de bord'!$E:$E,\"AUTRE\",'Tableau de bord'!$K:$K,\"Terminé\",'Tableau de bord'!$H:$H,\"Mathieu\")","v":0},{"$f":"COUNTIFS('Tableau de bord'!$G:$G,\"Dr. MOULIN\",'Tableau de bord'!$H:$H,\"Vanessa\",'Tableau de bord'!$K:$K,\"Terminé\",'Tableau de bord'!O:O,\"\")","v":1}]
["Dr NEE",{"$f":"COUNTIFS('Tableau de bord'!A:A,\"2023\",'Tableau de bord'!G:G,\"Dr. NEE\",'Tableau de bord'!H:H,\"Mathieu\")","v":0},{"$f":"COUNTIFS('Tableau de bord'!A:A,\"2023\",'Tableau de bord'!$G:$G,\"Dr. NEE\",'Tableau de bord'!$E:$E,\"EP\",'Tableau de bord'!$H:$H,\"Mathieu\")","v":0},{"$f":"COUNTIFS('Tableau de bord'!$A:$A,\"2023\",'Tableau de bord'!$G:$G,\"Dr. NEE\",'Tableau de bord'!$E:$E,\"FE\",'Tableau de bord'!$H:$H,\"Mathieu\")","v":0},{"$f":"COUNTIFS('Tableau de bord'!$A:$A,\"2023\",'Tableau de bord'!$G:$G,\"Dr. NEE\",'Tableau de bord'!$E:$E,\"EVAL CHIMIQUE\",'Tableau de bord'!$H:$H,\"Mathieu\")","v":0},{"$f":"COUNTIFS('Tableau de bord'!$A:$A,\"2023\",'Tableau de bord'!$G:$G,\"Dr. NEE\",'Tableau de bord'!$E:$E,\"CSE\",'Tableau de bord'!$H:$H,\"Mathieu\")","v":0},{"$f":"COUNTIFS('Tableau de bord'!$A:$A,\"2023\",'Tableau de bord'!$G:$G,\"Dr. NEE\",'Tableau de bord'!$E:$E,\"VISITE CHANTIER\",'Tableau de bord'!$H:$H,\"Mathieu\")","v":0},{"$f":"COUNTIFS('Tableau de bord'!$A:$A,\"2023\",'Tableau de bord'!$G:$G,\"Dr. NEE\",'Tableau de bord'!$E:$E,\"METROLOGIE\",'Tableau de bord'!$H:$H,\"Mathieu\")","v":0},{"$f":"COUNTIFS('Tableau de bord'!$A:$A,\"2023\",'Tableau de bord'!$G:$G,\"Dr. NEE\",'Tableau de bord'!$E:$E,\"SENSIBILISATION\",'Tableau de bord'!$H:$H,\"Mathieu\")","v":0},{"$f":"COUNTIFS('Tableau de bord'!A:A,\"2023\",'Tableau de bord'!$G:$G,\"Dr. NEE\",'Tableau de bord'!$E:$E,\"AUTRE\",'Tableau de bord'!$H:$H,\"Mathieu\")","v":0},{"$f":"COUNTIFS('Tableau de bord'!N:N,\"2023\",'Tableau de bord'!$G:$G,\"Dr. NEE\",'Tableau de bord'!$K:$K,\"Terminé\",'Tableau de bord'!$H:$H,\"Mathieu\")","v":0},{"$f":"COUNTIFS('Tableau de bord'!N:N,\"2023\",'Tableau de bord'!$G:$G,\"Dr. NEE\",'Tableau de bord'!$E:$E,\"EP\",'Tableau de bord'!$K:$K,\"Terminé\",'Tableau de bord'!$H:$H,\"Mathieu\")","v":0},{"$f":"COUNTIFS('Tableau de bord'!N:N,\"2023\",'Tableau de bord'!$G:$G,\"Dr. NEE\",'Tableau de bord'!$E:$E,\"FE\",'Tableau de bord'!$K:$K,\"Terminé\",'Tableau de bord'!$H:$H,\"Mathieu\")","v":0},{"$f":"COUNTIFS('Tableau de bord'!N:N,\"2023\",'Tableau de bord'!$G:$G,\"Dr. NEE\",'Tableau de bord'!$E:$E,\"EVAL CHIMIQUE\",'Tableau de bord'!$K:$K,\"Terminé\",'Tableau de bord'!$H:$H,\"Mathieu\")","v":0},{"$f":"COUNTIFS('Tableau de bord'!N:N,\"2023\",'Tableau de bord'!$G:$G,\"Dr. NEE\",'Tableau de bord'!$E:$E,\"CSE\",'Tableau de bord'!$K:$K,\"Terminé\",'Tableau de bord'!$H:$H,\"Mathieu\")","v":0},{"$f":"COUNTIFS('Tableau de bord'!N:N,\"2023\",'Tableau de bord'!$G:$G,\"Dr. NEE\",'Tableau de bord'!$E:$E,\"VISITE CHANTIER\",'Tableau de bord'!$K:$K,\"Terminé\",'Tableau de bord'!$H:$H,\"Mathieu\")","v":0},{"$f":"COUNTIFS('Tableau de bord'!N:N,\"2023\",'Tableau de bord'!$G:$G,\"Dr. NEE\",'Tableau de bord'!$E:$E,\"METROLOGIE\",'Tableau de bord'!$K:$K,\"Terminé\",'Tableau de bord'!$H:$H,\"Mathieu\")","v":0},{"$f":"COUNTIFS('Tableau de bord'!N:N,\"2023\",'Tableau de bord'!$G:$G,\"Dr. NEE\",'Tableau de bord'!$E:$E,\"SENSIBILISATION\",'Tableau de bord'!$K:$K,\"Terminé\",'Tableau de bord'!$H:$H,\"Mathieu\")","v":0},{"$f":"COUNTIFS('Tableau de bord'!N:N,\"2023\",'Tableau de bord'!$G:$G,\"Dr. NEE\",'Tableau de bord'!$E:$E,\"AUTRE\",'Tableau de bord'!$K:$K,\"Terminé\",'Tableau de bord'!$H:$H,\"Mathieu\")","v":0},{"$f":"COUNTIFS('Tableau de bord'!$G:$G,\"Dr. NEE\",'Tableau de bord'!$H:$H,\"Vanessa\",'Tableau de bord'!$K:$K,\"Terminé\",'Tableau de bord'!O:O,\"\")","v":1}]
["Dr SABATHIER",{"$f":"COUNTIFS('Tableau de bord'!A:A,\"2023\",'Tableau de bord'!G:G,\"Dr. SABATHIER\",'Tableau de bord'!H:H,\"Mathieu\")","v":0},{"$f":"COUNTIFS('Tableau de bord'!A:A,\"2023\",'Tableau de bord'!$G:$G,\"Dr. SABATHIER\",'Tableau de bord'!$E:$E,\"EP\",'Tableau de bord'!$H:$H,\"Mathieu\")","v":0},{"$f":"COUNTIFS('Tableau de bord'!$A:$A,\"2023\",'Tableau de bord'!$G:$G,\"Dr. SABATHIER\",'Tableau de bord'!$E:$E,\"FE\",'Tableau de bord'!$H:$H,\"Mathieu\")","v":0},{"$f":"COUNTIFS('Tableau de bord'!$A:$A,\"2023\",'Tableau de bord'!$G:$G,\"Dr. SABATHIER\",'Tableau de bord'!$E:$E,\"EVAL CHIMIQUE\",'Tableau de bord'!$H:$H,\"Mathieu\")","v":0},{"$f":"COUNTIFS('Tableau de bord'!$A:$A,\"2023\",'Tableau de bord'!$G:$G,\"Dr. SABATHIER\",'Tableau de bord'!$E:$E,\"CSE\",'Tableau de bord'!$H:$H,\"Mathieu\")","v":0},{"$f":"COUNTIFS('Tableau de bord'!$A:$A,\"2023\",'Tableau de bord'!$G:$G,\"Dr. SABATHIER\",'Tableau de bord'!$E:$E,\"VISITE CHANTIER\",'Tableau de bord'!$H:$H,\"Mathieu\")","v":0},{"$f":"COUNTIFS('Tableau de bord'!$A:$A,\"2023\",'Tableau de bord'!$G:$G,\"Dr. SABATHIER\",'Tableau de bord'!$E:$E,\"METROLOGIE\",'Tableau de bord'!$H:$H,\"Mathieu\")","v":0},{"$f":"COUNTIFS('Tableau de bord'!$A:$A,\"2023\",'Tableau de bord'!$G:$G,\"Dr. SABATHIER\",'Tableau de bord'!$E:$E,\"SENSIBILISATION\",'Tableau de bord'!$H:$H,\"Mathieu\")","v":0},{"$f":"COUNTIFS('Tableau de bord'!A:A,\"2023\",'Tableau de bord'!$G:$G,\"Dr. SABATHIER\",'Tableau de bord'!$E:$E,\"AUTRE\",'Tableau de bord'!$H:$H,\"Mathieu\")","v":0},{"$f":"COUNTIFS('Tableau de bord'!N:N,\"2023\",'Tableau de bord'!$G:$G,\"Dr. SABATHIER\",'Tableau de bord'!$K:$K,\"Terminé\",'Tableau de bord'!$H:$H,\"Mathieu\")","v":0},{"$f":"COUNTIFS('Tableau de bord'!N:N,\"2023\",'Tableau de bord'!$G:$G,\"Dr. SABATHIER\",'Tableau de bord'!$E:$E,\"EP\",'Tableau de bord'!$K:$K,\"Terminé\",'Tableau de bord'!$H:$H,\"Mathieu\")","v":0},{"$f":"COUNTIFS('Tableau de bord'!N:N,\"2023\",'Tableau de bord'!$G:$G,\"Dr. SABATHIER\",'Tableau de bord'!$E:$E,\"FE\",'Tableau de bord'!$K:$K,\"Terminé\",'Tableau de bord'!$H:$H,\"Mathieu\")","v":0},{"$f":"COUNTIFS('Tableau de bord'!N:N,\"2023\",'Tableau de bord'!$G:$G,\"Dr. SABATHIER\",'Tableau de bord'!$E:$E,\"EVAL CHIMIQUE\",'Tableau de bord'!$K:$K,\"Terminé\",'Tableau de bord'!$H:$H,\"Mathieu\")","v":0},{"$f":"COUNTIFS('Tableau de bord'!N:N,\"2023\",'Tableau de bord'!$G:$G,\"Dr. SABATHIER\",'Tableau de bord'!$E:$E,\"CSE\",'Tableau de bord'!$K:$K,\"Terminé\",'Tableau de bord'!$H:$H,\"Mathieu\")","v":0},{"$f":"COUNTIFS('Tableau de bord'!N:N,\"2023\",'Tableau de bord'!$G:$G,\"Dr. SABATHIER\",'Tableau de bord'!$E:$E,\"VISITE CHANTIER\",'Tableau de bord'!$K:$K,\"Terminé\",'Tableau de bord'!$H:$H,\"Mathieu\")","v":0},{"$f":"COUNTIFS('Tableau de bord'!N:N,\"2023\",'Tableau de bord'!$G:$G,\"Dr. SABATHIER\",'Tableau de bord'!$E:$E,\"METROLOGIE\",'Tableau de bord'!$K:$K,\"Terminé\",'Tableau de bord'!$H:$H,\"Mathieu\")","v":0},{"$f":"COUNTIFS('Tableau de bord'!N:N,\"2023\",'Tableau de bord'!$G:$G,\"Dr. SABATHIER\",'Tableau de bord'!$E:$E,\"SENSIBILISATION\",'Tableau de bord'!$K:$K,\"Terminé\",'Tableau de bord'!$H:$H,\"Mathieu\")","v":0},{"$f":"COUNTIFS('Tableau de bord'!N:N,\"2023\",'Tableau de bord'!$G:$G,\"Dr. SABATHIER\",'Tableau de bord'!$E:$E,\"AUTRE\",'Tableau de bord'!$K:$K,\"Terminé\",'Tableau de bord'!$H:$H,\"Mathieu\")","v":0},{"$f":"COUNTIFS('Tableau de bord'!$G:$G,\"Dr. SABATHIER\",'Tableau de bord'!$H:$H,\"Vanessa\",'Tableau de bord'!$K:$K,\"Terminé\",'Tableau de bord'!O:O,\"\")","v":0}]
["TOTAL",{"$f":"SUM(B21:B27)","v":0},0,{"$f":"SUM(D21:D27)","v":0},0,0,0,0,0,{"$f":"SUM(J21:J27)","v":0},0,0,0,0,0,0,0,0,0,7]

{"sheet":"Global_23","index":7,"n_rows":28,"n_cols":20,"rows_kept":28,"cut":false,"hidden":false,"merged":[[0,0,0,18],[18,0,18,19]]}
["Nombre d'action demandées/finalisées  par mois"]
["Mois","Nb d'actions demandées","EP","FE","EVAL CHIMIQUE","CSE","VISITE CHANTIER","METROLOGIE","SENSIBILISATION","AUTRE","Nb d'actions finalisées","EP","FE","EVAL CHIMIQUE","CSE","VISITE CHANTIER","METROLOGIE","SENSIBILISATION","AUTRE"]
["Janvier",{"$f":"COUNTIFS('Tableau de bord'!A:A,\"2023\",'Tableau de bord'!B:B,\"1\")","v":0},{"$f":"COUNTIFS('Tableau de bord'!A:A,\"2023\",'Tableau de bord'!E:E,\"EP\",'Tableau de bord'!B:B,\"1\")","v":0},{"$f":"COUNTIFS('Tableau de bord'!$A:$A,\"2023\",'Tableau de bord'!$E:$E,\"FE\",'Tableau de bord'!B:B,\"1\")","v":0},{"$f":"COUNTIFS('Tableau de bord'!$A:$A,\"2023\",'Tableau de bord'!$E:$E,\"EVAL CHIMIQUE\",'Tableau de bord'!B:B,\"1\")","v":0},{"$f":"COUNTIFS('Tableau de bord'!$A:$A,\"2023\",'Tableau de bord'!$E:$E,\"CSE\",'Tableau de bord'!B:B,\"1\")","v":0},{"$f":"COUNTIFS('Tableau de bord'!$A:$A,\"2023\",'Tableau de bord'!$E:$E,\"VISITE CHANTIER\",'Tableau de bord'!B:B,\"1\")","v":0},{"$f":"COUNTIFS('Tableau de bord'!$A:$A,\"2023\",'Tableau de bord'!$E:$E,\"METROLOGIE\",'Tableau de bord'!B:B,\"1\")","v":0},{"$f":"COUNTIFS('Tableau de bord'!$A:$A,\"2023\",'Tableau de bord'!$E:$E,\"SENSIBILISATION\",'Tableau de bord'!B:B,\"1\")","v":0},{"$f":"COUNTIFS('Tableau de bord'!A:A,\"2023\",'Tableau de bord'!E:E,\"AUTRE\",'Tableau de bord'!B:B,\"1\")","v":0},{"$f":"COUNTIFS('Tableau de bord'!N:N,\"2023\",'Tableau de bord'!K:K,\"Terminé\",'Tableau de bord'!M:M,\"1\")","v":0},{"$f":"COUNTIFS('Tableau de bord'!N:N,\"2023\",'Tableau de bord'!$K:$K,\"Terminé\",'Tableau de bord'!M:M,\"1\",'Tableau de bord'!$E:$E,\"EP\")","v":0},{"$f":"COUNTIFS('Tableau de bord'!N:N,\"2023\",'Tableau de bord'!$K:$K,\"Terminé\",'Tableau de bord'!M:M,\"1\",'Tableau de bord'!$E:$E,\"FE\")","v":0},{"$f":"COUNTIFS('Tableau de bord'!N:N,\"2023\",'Tableau de bord'!$K:$K,\"Terminé\",'Tableau de bord'!M:M,\"1\",'Tableau de bord'!$E:$E,\"EVAL CHIMIQUE\")","v":0},{"$f":"COUNTIFS('Tableau de bord'!N:N,\"2023\",'Tableau de bord'!$K:$K,\"Terminé\",'Tableau de bord'!M:M,\"1\",'Tableau de bord'!$E:$E,\"CSE\")","v":0},{"$f":"COUNTIFS('Tableau de bord'!N:N,\"2023\",'Tableau de bord'!$K:$K,\"Terminé\",'Tableau de bord'!M:M,\"1\",'Tableau de bord'!$E:$E,\"VISITE CHANTIER\")","v":0},{"$f":"COUNTIFS('Tableau de bord'!N:N,\"2023\",'Tableau de bord'!$K:$K,\"Terminé\",'Tableau de bord'!M:M,\"1\",'Tableau de bord'!$E:$E,\"METROLOGIE\")","v":0},{"$f":"COUNTIFS('Tableau de bord'!N:N,\"2023\",'Tableau de bord'!$K:$K,\"Terminé\",'Tableau de bord'!M:M,\"1\",'Tableau de bord'!$E:$E,\"SENSIBILISATION\")","v":0},{"$f":"COUNTIFS('Tableau de bord'!N:N,\"2023\",'Tableau de bord'!$K:$K,\"Terminé\",'Tableau de bord'!M:M,\"1\",'Tableau de bord'!$E:$E,\"AUTRE\")","v":0}]
["Février",{"$f":"COUNTIFS('Tableau de bord'!A:A,\"2023\",'Tableau de bord'!B:B,\"2\")","v":0},{"$f":"COUNTIFS('Tableau de bord'!A:A,\"2023\",'Tableau de bord'!E:E,\"EP\",'Tableau de bord'!B:B,\"2\")","v":0},{"$f":"COUNTIFS('Tableau de bord'!$A:$A,\"2023\",'Tableau de bord'!$E:$E,\"FE\",'Tableau de bord'!B:B,\"2\")","v":0},{"$f":"COUNTIFS('Tableau de bord'!$A:$A,\"2023\",'Tableau de bord'!$E:$E,\"EVAL CHIMIQUE\",'Tableau de bord'!B:B,\"2\")","v":0},{"$f":"COUNTIFS('Tableau de bord'!$A:$A,\"2023\",'Tableau de bord'!$E:$E,\"CSE\",'Tableau de bord'!B:B,\"2\")","v":0},{"$f":"COUNTIFS('Tableau de bord'!$A:$A,\"2023\",'Tableau de bord'!$E:$E,\"VISITE CHANTIER\",'Tableau de bord'!B:B,\"2\")","v":0},{"$f":"COUNTIFS('Tableau de bord'!$A:$A,\"2023\",'Tableau de bord'!$E:$E,\"METROLOGIE\",'Tableau de bord'!B:B,\"2\")","v":0},{"$f":"COUNTIFS('Tableau de bord'!$A:$A,\"2023\",'Tableau de bord'!$E:$E,\"SENSIBILISATION\",'Tableau de bord'!B:B,\"2\")","v":0},{"$f":"COUNTIFS('Tableau de bord'!A:A,\"2023\",'Tableau de bord'!E:E,\"AUTRE\",'Tableau de bord'!B:B,\"2\")","v":0},{"$f":"COUNTIFS('Tableau de bord'!N:N,\"2023\",'Tableau de bord'!K:K,\"Terminé\",'Tableau de bord'!M:M,\"2\")","v":0},{"$f":"COUNTIFS('Tableau de bord'!N:N,\"2023\",'Tableau de bord'!$K:$K,\"Terminé\",'Tableau de bord'!M:M,\"2\",'Tableau de bord'!$E:$E,\"EP\")","v":0},{"$f":"COUNTIFS('Tableau de bord'!N:N,\"2023\",'Tableau de bord'!$K:$K,\"Terminé\",'Tableau de bord'!M:M,\"2\",'Tableau de bord'!$E:$E,\"FE\")","v":0},{"$f":"COUNTIFS('Tableau de bord'!N:N,\"2023\",'Tableau de bord'!$K:$K,\"Terminé\",'Tableau de bord'!M:M,\"2\",'Tableau de bord'!$E:$E,\"EVAL CHIMIQUE\")","v":0},{"$f":"COUNTIFS('Tableau de bord'!N:N,\"2023\",'Tableau de bord'!$K:$K,\"Terminé\",'Tableau de bord'!M:M,\"2\",'Tableau de bord'!$E:$E,\"CSE\")","v":0},{"$f":"COUNTIFS('Tableau de bord'!N:N,\"2023\",'Tableau de bord'!$K:$K,\"Terminé\",'Tableau de bord'!M:M,\"2\",'Tableau de bord'!$E:$E,\"VISITE CHANTIER\")","v":0},{"$f":"COUNTIFS('Tableau de bord'!N:N,\"2023\",'Tableau de bord'!$K:$K,\"Terminé\",'Tableau de bord'!M:M,\"2\",'Tableau de bord'!$E:$E,\"METROLOGIE\")","v":0},{"$f":"COUNTIFS('Tableau de bord'!N:N,\"2023\",'Tableau de bord'!$K:$K,\"Terminé\",'Tableau de bord'!M:M,\"2\",'Tableau de bord'!$E:$E,\"SENSIBILISATION\")","v":0},{"$f":"COUNTIFS('Tableau de bord'!N:N,\"2023\",'Tableau de bord'!$K:$K,\"Terminé\",'Tableau de bord'!M:M,\"2\",'Tableau de bord'!$E:$E,\"AUTRE\")","v":0}]
["Mars",{"$f":"COUNTIFS('Tableau de bord'!A:A,\"2023\",'Tableau de bord'!B:B,\"3\")","v":0},{"$f":"COUNTIFS('Tableau de bord'!A:A,\"2023\",'Tableau de bord'!E:E,\"EP\",'Tableau de bord'!B:B,\"3\")","v":0},{"$f":"COUNTIFS('Tableau de bord'!$A:$A,\"2023\",'Tableau de bord'!$E:$E,\"FE\",'Tableau de bord'!B:B,\"3\")","v":0},{"$f":"COUNTIFS('Tableau de bord'!$A:$A,\"2023\",'Tableau de bord'!$E:$E,\"EVAL CHIMIQUE\",'Tableau de bord'!B:B,\"3\")","v":0},{"$f":"COUNTIFS('Tableau de bord'!$A:$A,\"2023\",'Tableau de bord'!$E:$E,\"CSE\",'Tableau de bord'!B:B,\"3\")","v":0},{"$f":"COUNTIFS('Tableau de bord'!$A:$A,\"2023\",'Tableau de bord'!$E:$E,\"VISITE CHANTIER\",'Tableau de bord'!B:B,\"3\")","v":0},{"$f":"COUNTIFS('Tableau de bord'!$A:$A,\"2023\",'Tableau de bord'!$E:$E,\"METROLOGIE\",'Tableau de bord'!B:B,\"3\")","v":0},{"$f":"COUNTIFS('Tableau de bord'!$A:$A,\"2023\",'Tableau de bord'!$E:$E,\"SENSIBILISATION\",'Tableau de bord'!B:B,\"3\")","v":0},{"$f":"COUNTIFS('Tableau de bord'!A:A,\"2023\",'Tableau de bord'!E:E,\"AUTRE\",'Tableau de bord'!B:B,\"3\")","v":0},{"$f":"COUNTIFS('Tableau de bord'!N:N,\"2023\",'Tableau de bord'!K:K,\"Terminé\",'Tableau de bord'!M:M,\"3\")","v":0},{"$f":"COUNTIFS('Tableau de bord'!N:N,\"2023\",'Tableau de bord'!$K:$K,\"Terminé\",'Tableau de bord'!M:M,\"3\",'Tableau de bord'!$E:$E,\"EP\")","v":0},{"$f":"COUNTIFS('Tableau de bord'!N:N,\"2023\",'Tableau de bord'!$K:$K,\"Terminé\",'Tableau de bord'!M:M,\"3\",'Tableau de bord'!$E:$E,\"FE\")","v":0},{"$f":"COUNTIFS('Tableau de bord'!N:N,\"2023\",'Tableau de bord'!$K:$K,\"Terminé\",'Tableau de bord'!M:M,\"3\",'Tableau de bord'!$E:$E,\"EVAL CHIMIQUE\")","v":0},{"$f":"COUNTIFS('Tableau de bord'!N:N,\"2023\",'Tableau de bord'!$K:$K,\"Terminé\",'Tableau de bord'!M:M,\"3\",'Tableau de bord'!$E:$E,\"CSE\")","v":0},{"$f":"COUNTIFS('Tableau de bord'!N:N,\"2023\",'Tableau de bord'!$K:$K,\"Terminé\",'Tableau de bord'!M:M,\"3\",'Tableau de bord'!$E:$E,\"VISITE CHANTIER\")","v":0},{"$f":"COUNTIFS('Tableau de bord'!N:N,\"2023\",'Tableau de bord'!$K:$K,\"Terminé\",'Tableau de bord'!M:M,\"3\",'Tableau de bord'!$E:$E,\"METROLOGIE\")","v":0},{"$f":"COUNTIFS('Tableau de bord'!N:N,\"2023\",'Tableau de bord'!$K:$K,\"Terminé\",'Tableau de bord'!M:M,\"3\",'Tableau de bord'!$E:$E,\"SENSIBILISATION\")","v":0},{"$f":"COUNTIFS('Tableau de bord'!N:N,\"2023\",'Tableau de bord'!$K:$K,\"Terminé\",'Tableau de bord'!M:M,\"3\",'Tableau de bord'!$E:$E,\"AUTRE\")","v":0}]
["Avril",{"$f":"COUNTIFS('Tableau de bord'!A:A,\"2023\",'Tableau de bord'!B:B,\"4\")","v":0},{"$f":"COUNTIFS('Tableau de bord'!A:A,\"2023\",'Tableau de bord'!E:E,\"EP\",'Tableau de bord'!B:B,\"4\")","v":0},{"$f":"COUNTIFS('Tableau de bord'!$A:$A,\"2023\",'Tableau de bord'!$E:$E,\"FE\",'Tableau de bord'!B:B,\"4\")","v":0},{"$f":"COUNTIFS('Tableau de bord'!$A:$A,\"2023\",'Tableau de bord'!$E:$E,\"EVAL CHIMIQUE\",'Tableau de bord'!B:B,\"4\")","v":0},{"$f":"COUNTIFS('Tableau de bord'!$A:$A,\"2023\",'Tableau de bord'!$E:$E,\"CSE\",'Tableau de bord'!B:B,\"4\")","v":0},{"$f":"COUNTIFS('Tableau de bord'!$A:$A,\"2023\",'Tableau de bord'!$E:$E,\"VISITE CHANTIER\",'Tableau de bord'!B:B,\"4\")","v":0},{"$f":"COUNTIFS('Tableau de bord'!$A:$A,\"2023\",'Tableau de bord'!$E:$E,\"METROLOGIE\",'Tableau de bord'!B:B,\"4\")","v":0},{"$f":"COUNTIFS('Tableau de bord'!$A:$A,\"2023\",'Tableau de bord'!$E:$E,\"SENSIBILISATION\",'Tableau de bord'!B:B,\"4\")","v":0},{"$f":"COUNTIFS('Tableau de bord'!A:A,\"2023\",'Tableau de bord'!E:E,\"AUTRE\",'Tableau de bord'!B:B,\"4\")","v":0},{"$f":"COUNTIFS('Tableau de bord'!N:N,\"2023\",'Tableau de bord'!K:K,\"Terminé\",'Tableau de bord'!M:M,\"4\")","v":0},{"$f":"COUNTIFS('Tableau de bord'!N:N,\"2023\",'Tableau de bord'!$K:$K,\"Terminé\",'Tableau de bord'!M:M,\"4\",'Tableau de bord'!$E:$E,\"EP\")","v":0},{"$f":"COUNTIFS('Tableau de bord'!N:N,\"2023\",'Tableau de bord'!$K:$K,\"Terminé\",'Tableau de bord'!M:M,\"4\",'Tableau de bord'!$E:$E,\"FE\")","v":0},{"$f":"COUNTIFS('Tableau de bord'!N:N,\"2023\",'Tableau de bord'!$K:$K,\"Terminé\",'Tableau de bord'!M:M,\"4\",'Tableau de bord'!$E:$E,\"EVAL CHIMIQUE\")","v":0},{"$f":"COUNTIFS('Tableau de bord'!N:N,\"2023\",'Tableau de bord'!$K:$K,\"Terminé\",'Tableau de bord'!M:M,\"4\",'Tableau de bord'!$E:$E,\"CSE\")","v":0},{"$f":"COUNTIFS('Tableau de bord'!N:N,\"2023\",'Tableau de bord'!$K:$K,\"Terminé\",'Tableau de bord'!M:M,\"4\",'Tableau de bord'!$E:$E,\"VISITE CHANTIER\")","v":0},{"$f":"COUNTIFS('Tableau de bord'!N:N,\"2023\",'Tableau de bord'!$K:$K,\"Terminé\",'Tableau de bord'!M:M,\"4\",'Tableau de bord'!$E:$E,\"METROLOGIE\")","v":0},{"$f":"COUNTIFS('Tableau de bord'!N:N,\"2023\",'Tableau de bord'!$K:$K,\"Terminé\",'Tableau de bord'!M:M,\"4\",'Tableau de bord'!$E:$E,\"SENSIBILISATION\")","v":0},{"$f":"COUNTIFS('Tableau de bord'!N:N,\"2023\",'Tableau de bord'!$K:$K,\"Terminé\",'Tableau de bord'!M:M,\"4\",'Tableau de bord'!$E:$E,\"AUTRE\")","v":0}]
["Mai",{"$f":"COUNTIFS('Tableau de bord'!A:A,\"2023\",'Tableau de bord'!B:B,\"5\")","v":0},{"$f":"COUNTIFS('Tableau de bord'!A:A,\"2023\",'Tableau de bord'!E:E,\"EP\",'Tableau de bord'!B:B,\"5\")","v":0},{"$f":"COUNTIFS('Tableau de bord'!$A:$A,\"2023\",'Tableau de bord'!$E:$E,\"FE\",'Tableau de bord'!B:B,\"5\")","v":0},{"$f":"COUNTIFS('Tableau de bord'!$A:$A,\"2023\",'Tableau de bord'!$E:$E,\"EVAL CHIMIQUE\",'Tableau de bord'!B:B,\"5\")","v":0},{"$f":"COUNTIFS('Tableau de bord'!$A:$A,\"2023\",'Tableau de bord'!$E:$E,\"CSE\",'Tableau de bord'!B:B,\"5\")","v":0},{"$f":"COUNTIFS('Tableau de bord'!$A:$A,\"2023\",'Tableau de bord'!$E:$E,\"VISITE CHANTIER\",'Tableau de bord'!B:B,\"5\")","v":0},{"$f":"COUNTIFS('Tableau de bord'!$A:$A,\"2023\",'Tableau de bord'!$E:$E,\"METROLOGIE\",'Tableau de bord'!B:B,\"5\")","v":0},{"$f":"COUNTIFS('Tableau de bord'!$A:$A,\"2023\",'Tableau de bord'!$E:$E,\"SENSIBILISATION\",'Tableau de bord'!B:B,\"5\")","v":0},{"$f":"COUNTIFS('Tableau de bord'!A:A,\"2023\",'Tableau de bord'!E:E,\"AUTRE\",'Tableau de bord'!B:B,\"5\")","v":0},{"$f":"COUNTIFS('Tableau de bord'!N:N,\"2023\",'Tableau de bord'!K:K,\"Terminé\",'Tableau de bord'!M:M,\"5\")","v":0},{"$f":"COUNTIFS('Tableau de bord'!N:N,\"2023\",'Tableau de bord'!$K:$K,\"Terminé\",'Tableau de bord'!M:M,\"5\",'Tableau de bord'!$E:$E,\"EP\")","v":0},{"$f":"COUNTIFS('Tableau de bord'!N:N,\"2023\",'Tableau de bord'!$K:$K,\"Terminé\",'Tableau de bord'!M:M,\"5\",'Tableau de bord'!$E:$E,\"FE\")","v":0},{"$f":"COUNTIFS('Tableau de bord'!N:N,\"2023\",'Tableau de bord'!$K:$K,\"Terminé\",'Tableau de bord'!M:M,\"5\",'Tableau de bord'!$E:$E,\"EVAL CHIMIQUE\")","v":0},{"$f":"COUNTIFS('Tableau de bord'!N:N,\"2023\",'Tableau de bord'!$K:$K,\"Terminé\",'Tableau de bord'!M:M,\"5\",'Tableau de bord'!$E:$E,\"CSE\")","v":0},{"$f":"COUNTIFS('Tableau de bord'!N:N,\"2023\",'Tableau de bord'!$K:$K,\"Terminé\",'Tableau de bord'!M:M,\"5\",'Tableau de bord'!$E:$E,\"VISITE CHANTIER\")","v":0},{"$f":"COUNTIFS('Tableau de bord'!N:N,\"2023\",'Tableau de bord'!$K:$K,\"Terminé\",'Tableau de bord'!M:M,\"5\",'Tableau de bord'!$E:$E,\"METROLOGIE\")","v":0},{"$f":"COUNTIFS('Tableau de bord'!N:N,\"2023\",'Tableau de bord'!$K:$K,\"Terminé\",'Tableau de bord'!M:M,\"5\",'Tableau de bord'!$E:$E,\"SENSIBILISATION\")","v":0},{"$f":"COUNTIFS('Tableau de bord'!N:N,\"2023\",'Tableau de bord'!$K:$K,\"Terminé\",'Tableau de bord'!M:M,\"5\",'Tableau de bord'!$E:$E,\"AUTRE\")","v":0}]
["Juin",{"$f":"COUNTIFS('Tableau de bord'!A:A,\"2023\",'Tableau de bord'!B:B,\"6\")","v":0},{"$f":"COUNTIFS('Tableau de bord'!A:A,\"2023\",'Tableau de bord'!E:E,\"EP\",'Tableau de bord'!B:B,\"6\")","v":0},{"$f":"COUNTIFS('Tableau de bord'!$A:$A,\"2023\",'Tableau de bord'!$E:$E,\"FE\",'Tableau de bord'!B:B,\"6\")","v":0},{"$f":"COUNTIFS('Tableau de bord'!$A:$A,\"2023\",'Tableau de bord'!$E:$E,\"EVAL CHIMIQUE\",'Tableau de bord'!B:B,\"6\")","v":0},{"$f":"COUNTIFS('Tableau de bord'!$A:$A,\"2023\",'Tableau de bord'!$E:$E,\"CSE\",'Tableau de bord'!B:B,\"6\")","v":0},{"$f":"COUNTIFS('Tableau de bord'!$A:$A,\"2023\",'Tableau de bord'!$E:$E,\"VISITE CHANTIER\",'Tableau de bord'!B:B,\"6\")","v":0},{"$f":"COUNTIFS('Tableau de bord'!$A:$A,\"2023\",'Tableau de bord'!$E:$E,\"METROLOGIE\",'Tableau de bord'!B:B,\"6\")","v":0},{"$f":"COUNTIFS('Tableau de bord'!$A:$A,\"2023\",'Tableau de bord'!$E:$E,\"SENSIBILISATION\",'Tableau de bord'!B:B,\"6\")","v":0},{"$f":"COUNTIFS('Tableau de bord'!A:A,\"2023\",'Tableau de bord'!E:E,\"AUTRE\",'Tableau de bord'!B:B,\"6\")","v":0},{"$f":"COUNTIFS('Tableau de bord'!N:N,\"2023\",'Tableau de bord'!K:K,\"Terminé\",'Tableau de bord'!M:M,\"6\")","v":0},{"$f":"COUNTIFS('Tableau de bord'!N:N,\"2023\",'Tableau de bord'!$K:$K,\"Terminé\",'Tableau de bord'!M:M,\"6\",'Tableau de bord'!$E:$E,\"EP\")","v":0},{"$f":"COUNTIFS('Tableau de bord'!N:N,\"2023\",'Tableau de bord'!$K:$K,\"Terminé\",'Tableau de bord'!M:M,\"6\",'Tableau de bord'!$E:$E,\"FE\")","v":0},{"$f":"COUNTIFS('Tableau de bord'!N:N,\"2023\",'Tableau de bord'!$K:$K,\"Terminé\",'Tableau de bord'!M:M,\"6\",'Tableau de bord'!$E:$E,\"EVAL CHIMIQUE\")","v":0},{"$f":"COUNTIFS('Tableau de bord'!N:N,\"2023\",'Tableau de bord'!$K:$K,\"Terminé\",'Tableau de bord'!M:M,\"6\",'Tableau de bord'!$E:$E,\"CSE\")","v":0},{"$f":"COUNTIFS('Tableau de bord'!N:N,\"2023\",'Tableau de bord'!$K:$K,\"Terminé\",'Tableau de bord'!M:M,\"6\",'Tableau de bord'!$E:$E,\"VISITE CHANTIER\")","v":0},{"$f":"COUNTIFS('Tableau de bord'!N:N,\"2023\",'Tableau de bord'!$K:$K,\"Terminé\",'Tableau de bord'!M:M,\"6\",'Tableau de bord'!$E:$E,\"METROLOGIE\")","v":0},{"$f":"COUNTIFS('Tableau de bord'!N:N,\"2023\",'Tableau de bord'!$K:$K,\"Terminé\",'Tableau de bord'!M:M,\"6\",'Tableau de bord'!$E:$E,\"SENSIBILISATION\")","v":0},{"$f":"COUNTIFS('Tableau de bord'!N:N,\"2023\",'Tableau de bord'!$K:$K,\"Terminé\",'Tableau de bord'!M:M,\"6\",'Tableau de bord'!$E:$E,\"AUTRE\")","v":0}]
["Juillet",{"$f":"COUNTIFS('Tableau de bord'!A:A,\"2023\",'Tableau de bord'!B:B,\"7\")","v":0},{"$f":"COUNTIFS('Tableau de bord'!A:A,\"2023\",'Tableau de bord'!E:E,\"EP\",'Tableau de bord'!B:B,\"7\")","v":0},{"$f":"COUNTIFS('Tableau de bord'!$A:$A,\"2023\",'Tableau de bord'!$E:$E,\"FE\",'Tableau de bord'!B:B,\"7\")","v":0},{"$f":"COUNTIFS('Tableau de bord'!$A:$A,\"2023\",'Tableau de bord'!$E:$E,\"EVAL CHIMIQUE\",'Tableau de bord'!B:B,\"7\")","v":0},{"$f":"COUNTIFS('Tableau de bord'!$A:$A,\"2023\",'Tableau de bord'!$E:$E,\"CSE\",'Tableau de bord'!B:B,\"7\")","v":0},{"$f":"COUNTIFS('Tableau de bord'!$A:$A,\"2023\",'Tableau de bord'!$E:$E,\"VISITE CHANTIER\",'Tableau de bord'!B:B,\"7\")","v":0},{"$f":"COUNTIFS('Tableau de bord'!$A:$A,\"2023\",'Tableau de bord'!$E:$E,\"METROLOGIE\",'Tableau de bord'!B:B,\"7\")","v":0},{"$f":"COUNTIFS('Tableau de bord'!$A:$A,\"2023\",'Tableau de bord'!$E:$E,\"SENSIBILISATION\",'Tableau de bord'!B:B,\"7\")","v":0},{"$f":"COUNTIFS('Tableau de bord'!A:A,\"2023\",'Tableau de bord'!E:E,\"AUTRE\",'Tableau de bord'!B:B,\"7\")","v":0},{"$f":"COUNTIFS('Tableau de bord'!N:N,\"2023\",'Tableau de bord'!K:K,\"Terminé\",'Tableau de bord'!M:M,\"7\")","v":0},{"$f":"COUNTIFS('Tableau de bord'!N:N,\"2023\",'Tableau de bord'!$K:$K,\"Terminé\",'Tableau de bord'!M:M,\"7\",'Tableau de bord'!$E:$E,\"EP\")","v":0},{"$f":"COUNTIFS('Tableau de bord'!N:N,\"2023\",'Tableau de bord'!$K:$K,\"Terminé\",'Tableau de bord'!M:M,\"7\",'Tableau de bord'!$E:$E,\"FE\")","v":0},{"$f":"COUNTIFS('Tableau de bord'!N:N,\"2023\",'Tableau de bord'!$K:$K,\"Terminé\",'Tableau de bord'!M:M,\"7\",'Tableau de bord'!$E:$E,\"EVAL CHIMIQUE\")","v":0},{"$f":"COUNTIFS('Tableau de bord'!N:N,\"2023\",'Tableau de bord'!$K:$K,\"Terminé\",'Tableau de bord'!M:M,\"7\",'Tableau de bord'!$E:$E,\"CSE\")","v":0},{"$f":"COUNTIFS('Tableau de bord'!N:N,\"2023\",'Tableau de bord'!$K:$K,\"Terminé\",'Tableau de bord'!M:M,\"7\",'Tableau de bord'!$E:$E,\"VISITE CHANTIER\")","v":0},{"$f":"COUNTIFS('Tableau de bord'!N:N,\"2023\",'Tableau de bord'!$K:$K,\"Terminé\",'Tableau de bord'!M:M,\"7\",'Tableau de bord'!$E:$E,\"METROLOGIE\")","v":0},{"$f":"COUNTIFS('Tableau de bord'!N:N,\"2023\",'Tableau de bord'!$K:$K,\"Terminé\",'Tableau de bord'!M:M,\"7\",'Tableau de bord'!$E:$E,\"SENSIBILISATION\")","v":0},{"$f":"COUNTIFS('Tableau de bord'!N:N,\"2023\",'Tableau de bord'!$K:$K,\"Terminé\",'Tableau de bord'!M:M,\"7\",'Tableau de bord'!$E:$E,\"AUTRE\")","v":0}]
["Août",{"$f":"COUNTIFS('Tableau de bord'!A:A,\"2023\",'Tableau de bord'!B:B,\"8\")","v":0},{"$f":"COUNTIFS('Tableau de bord'!A:A,\"2023\",'Tableau de bord'!E:E,\"EP\",'Tableau de bord'!B:B,\"8\")","v":0},{"$f":"COUNTIFS('Tableau de bord'!$A:$A,\"2023\",'Tableau de bord'!$E:$E,\"FE\",'Tableau de bord'!B:B,\"8\")","v":0},{"$f":"COUNTIFS('Tableau de bord'!$A:$A,\"2023\",'Tableau de bord'!$E:$E,\"EVAL CHIMIQUE\",'Tableau de bord'!B:B,\"8\")","v":0},{"$f":"COUNTIFS('Tableau de bord'!$A:$A,\"2023\",'Tableau de bord'!$E:$E,\"CSE\",'Tableau de bord'!B:B,\"8\")","v":0},{"$f":"COUNTIFS('Tableau de bord'!$A:$A,\"2023\",'Tableau de bord'!$E:$E,\"VISITE CHANTIER\",'Tableau de bord'!B:B,\"8\")","v":0},{"$f":"COUNTIFS('Tableau de bord'!$A:$A,\"2023\",'Tableau de bord'!$E:$E,\"METROLOGIE\",'Tableau de bord'!B:B,\"8\")","v":0},{"$f":"COUNTIFS('Tableau de bord'!$A:$A,\"2023\",'Tableau de bord'!$E:$E,\"SENSIBILISATION\",'Tableau de bord'!B:B,\"8\")","v":0},{"$f":"COUNTIFS('Tableau de bord'!A:A,\"2023\",'Tableau de bord'!E:E,\"AUTRE\",'Tableau de bord'!B:B,\"8\")","v":0},{"$f":"COUNTIFS('Tableau de bord'!N:N,\"2023\",'Tableau de bord'!K:K,\"Terminé\",'Tableau de bord'!M:M,\"8\")","v":0},{"$f":"COUNTIFS('Tableau de bord'!N:N,\"2023\",'Tableau de bord'!$K:$K,\"Terminé\",'Tableau de bord'!M:M,\"8\",'Tableau de bord'!$E:$E,\"EP\")","v":0},{"$f":"COUNTIFS('Tableau de bord'!N:N,\"2023\",'Tableau de bord'!$K:$K,\"Terminé\",'Tableau de bord'!M:M,\"8\",'Tableau de bord'!$E:$E,\"FE\")","v":0},{"$f":"COUNTIFS('Tableau de bord'!N:N,\"2023\",'Tableau de bord'!$K:$K,\"Terminé\",'Tableau de bord'!M:M,\"8\",'Tableau de bord'!$E:$E,\"EVAL CHIMIQUE\")","v":0},{"$f":"COUNTIFS('Tableau de bord'!N:N,\"2023\",'Tableau de bord'!$K:$K,\"Terminé\",'Tableau de bord'!M:M,\"8\",'Tableau de bord'!$E:$E,\"CSE\")","v":0},{"$f":"COUNTIFS('Tableau de bord'!N:N,\"2023\",'Tableau de bord'!$K:$K,\"Terminé\",'Tableau de bord'!M:M,\"8\",'Tableau de bord'!$E:$E,\"VISITE CHANTIER\")","v":0},{"$f":"COUNTIFS('Tableau de bord'!N:N,\"2023\",'Tableau de bord'!$K:$K,\"Terminé\",'Tableau de bord'!M:M,\"8\",'Tableau de bord'!$E:$E,\"METROLOGIE\")","v":0},{"$f":"COUNTIFS('Tableau de bord'!N:N,\"2023\",'Tableau de bord'!$K:$K,\"Terminé\",'Tableau de bord'!M:M,\"8\",'Tableau de bord'!$E:$E,\"SENSIBILISATION\")","v":0},{"$f":"COUNTIFS('Tableau de bord'!N:N,\"2023\",'Tableau de bord'!$K:$K,\"Terminé\",'Tableau de bord'!M:M,\"8\",'Tableau de bord'!$E:$E,\"AUTRE\")","v":0}]
["Septembre",{"$f":"COUNTIFS('Tableau de bord'!A:A,\"2023\",'Tableau de bord'!B:B,\"9\")","v":0},{"$f":"COUNTIFS('Tableau de bord'!A:A,\"2023\",'Tableau de bord'!E:E,\"EP\",'Tableau de bord'!B:B,\"9\")","v":0},{"$f":"COUNTIFS('Tableau de bord'!$A:$A,\"2023\",'Tableau de bord'!$E:$E,\"FE\",'Tableau de bord'!B:B,\"9\")","v":0},{"$f":"COUNTIFS('Tableau de bord'!$A:$A,\"2023\",'Tableau de bord'!$E:$E,\"EVAL CHIMIQUE\",'Tableau de bord'!B:B,\"9\")","v":0},{"$f":"COUNTIFS('Tableau de bord'!$A:$A,\"2023\",'Tableau de bord'!$E:$E,\"CSE\",'Tableau de bord'!B:B,\"9\")","v":0},{"$f":"COUNTIFS('Tableau de bord'!$A:$A,\"2023\",'Tableau de bord'!$E:$E,\"VISITE CHANTIER\",'Tableau de bord'!B:B,\"9\")","v":0},{"$f":"COUNTIFS('Tableau de bord'!$A:$A,\"2023\",'Tableau de bord'!$E:$E,\"METROLOGIE\",'Tableau de bord'!B:B,\"9\")","v":0},{"$f":"COUNTIFS('Tableau de bord'!$A:$A,\"2023\",'Tableau de bord'!$E:$E,\"SENSIBILISATION\",'Tableau de bord'!B:B,\"9\")","v":0},{"$f":"COUNTIFS('Tableau de bord'!A:A,\"2023\",'Tableau de bord'!E:E,\"AUTRE\",'Tableau de bord'!B:B,\"9\")","v":0},{"$f":"COUNTIFS('Tableau de bord'!N:N,\"2023\",'Tableau de bord'!K:K,\"Terminé\",'Tableau de bord'!M:M,\"9\")","v":0},{"$f":"COUNTIFS('Tableau de bord'!N:N,\"2023\",'Tableau de bord'!$K:$K,\"Terminé\",'Tableau de bord'!M:M,\"9\",'Tableau de bord'!$E:$E,\"EP\")","v":0},{"$f":"COUNTIFS('Tableau de bord'!N:N,\"2023\",'Tableau de bord'!$K:$K,\"Terminé\",'Tableau de bord'!M:M,\"9\",'Tableau de bord'!$E:$E,\"FE\")","v":0},{"$f":"COUNTIFS('Tableau de bord'!N:N,\"2023\",'Tableau de bord'!$K:$K,\"Terminé\",'Tableau de bord'!M:M,\"9\",'Tableau de bord'!$E:$E,\"EVAL CHIMIQUE\")","v":0},{"$f":"COUNTIFS('Tableau de bord'!N:N,\"2023\",'Tableau de bord'!$K:$K,\"Terminé\",'Tableau de bord'!M:M,\"9\",'Tableau de bord'!$E:$E,\"CSE\")","v":0},{"$f":"COUNTIFS('Tableau de bord'!N:N,\"2023\",'Tableau de bord'!$K:$K,\"Terminé\",'Tableau de bord'!M:M,\"9\",'Tableau de bord'!$E:$E,\"VISITE CHANTIER\")","v":0},{"$f":"COUNTIFS('Tableau de bord'!N:N,\"2023\",'Tableau de bord'!$K:$K,\"Terminé\",'Tableau de bord'!M:M,\"9\",'Tableau de bord'!$E:$E,\"METROLOGIE\")","v":0},{"$f":"COUNTIFS('Tableau de bord'!N:N,\"2023\",'Tableau de bord'!$K:$K,\"Terminé\",'Tableau de bord'!M:M,\"9\",'Tableau de bord'!$E:$E,\"SENSIBILISATION\")","v":0},{"$f":"COUNTIFS('Tableau de bord'!N:N,\"2023\",'Tableau de bord'!$K:$K,\"Terminé\",'Tableau de bord'!M:M,\"9\",'Tableau de bord'!$E:$E,\"AUTRE\")","v":0}]
["Octobre",{"$f":"COUNTIFS('Tableau de bord'!A:A,\"2023\",'Tableau de bord'!B:B,\"10\")","v":0},{"$f":"COUNTIFS('Tableau de bord'!A:A,\"2023\",'Tableau de bord'!E:E,\"EP\",'Tableau de bord'!B:B,\"10\")","v":0},{"$f":"COUNTIFS('Tableau de bord'!$A:$A,\"2023\",'Tableau de bord'!$E:$E,\"FE\",'Tableau de bord'!B:B,\"10\")","v":0},{"$f":"COUNTIFS('Tableau de bord'!$A:$A,\"2023\",'Tableau de bord'!$E:$E,\"EVAL CHIMIQUE\",'Tableau de bord'!B:B,\"10\")","v":0},{"$f":"COUNTIFS('Tableau de bord'!$A:$A,\"2023\",'Tableau de bord'!$E:$E,\"CSE\",'Tableau de bord'!B:B,\"10\")","v":0},{"$f":"COUNTIFS('Tableau de bord'!$A:$A,\"2023\",'Tableau de bord'!$E:$E,\"VISITE CHANTIER\",'Tableau de bord'!B:B,\"10\")","v":0},{"$f":"COUNTIFS('Tableau de bord'!$A:$A,\"2023\",'Tableau de bord'!$E:$E,\"METROLOGIE\",'Tableau de bord'!B:B,\"10\")","v":0},{"$f":"COUNTIFS('Tableau de bord'!$A:$A,\"2023\",'Tableau de bord'!$E:$E,\"SENSIBILISATION\",'Tableau de bord'!B:B,\"10\")","v":0},{"$f":"COUNTIFS('Tableau de bord'!A:A,\"2023\",'Tableau de bord'!E:E,\"AUTRE\",'Tableau de bord'!B:B,\"10\")","v":0},{"$f":"COUNTIFS('Tableau de bord'!N:N,\"2023\",'Tableau de bord'!K:K,\"Terminé\",'Tableau de bord'!M:M,\"10\")","v":0},{"$f":"COUNTIFS('Tableau de bord'!N:N,\"2023\",'Tableau de bord'!$K:$K,\"Terminé\",'Tableau de bord'!M:M,\"10\",'Tableau de bord'!$E:$E,\"EP\")","v":0},{"$f":"COUNTIFS('Tableau de bord'!N:N,\"2023\",'Tableau de bord'!$K:$K,\"Terminé\",'Tableau de bord'!M:M,\"10\",'Tableau de bord'!$E:$E,\"FE\")","v":0},{"$f":"COUNTIFS('Tableau de bord'!N:N,\"2023\",'Tableau de bord'!$K:$K,\"Terminé\",'Tableau de bord'!M:M,\"10\",'Tableau de bord'!$E:$E,\"EVAL CHIMIQUE\")","v":0},{"$f":"COUNTIFS('Tableau de bord'!N:N,\"2023\",'Tableau de bord'!$K:$K,\"Terminé\",'Tableau de bord'!M:M,\"10\",'Tableau de bord'!$E:$E,\"CSE\")","v":0},{"$f":"COUNTIFS('Tableau de bord'!N:N,\"2023\",'Tableau de bord'!$K:$K,\"Terminé\",'Tableau de bord'!M:M,\"10\",'Tableau de bord'!$E:$E,\"VISITE CHANTIER\")","v":0},{"$f":"COUNTIFS('Tableau de bord'!N:N,\"2023\",'Tableau de bord'!$K:$K,\"Terminé\",'Tableau de bord'!M:M,\"10\",'Tableau de bord'!$E:$E,\"METROLOGIE\")","v":0},{"$f":"COUNTIFS('Tableau de bord'!N:N,\"2023\",'Tableau de bord'!$K:$K,\"Terminé\",'Tableau de bord'!M:M,\"10\",'Tableau de bord'!$E:$E,\"SENSIBILISATION\")","v":0},{"$f":"COUNTIFS('Tableau de bord'!N:N,\"2023\",'Tableau de bord'!$K:$K,\"Terminé\",'Tableau de bord'!M:M,\"10\",'Tableau de bord'!$E:$E,\"AUTRE\")","v":0}]
["Novembre",{"$f":"COUNTIFS('Tableau de bord'!A:A,\"2023\",'Tableau de bord'!B:B,\"11\")","v":0},{"$f":"COUNTIFS('Tableau de bord'!A:A,\"2023\",'Tableau de bord'!E:E,\"EP\",'Tableau de bord'!B:B,\"11\")","v":0},{"$f":"COUNTIFS('Tableau de bord'!$A:$A,\"2023\",'Tableau de bord'!$E:$E,\"FE\",'Tableau de bord'!B:B,\"11\")","v":0},{"$f":"COUNTIFS('Tableau de bord'!$A:$A,\"2023\",'Tableau de bord'!$E:$E,\"EVAL CHIMIQUE\",'Tableau de bord'!B:B,\"11\")","v":0},{"$f":"COUNTIFS('Tableau de bord'!$A:$A,\"2023\",'Tableau de bord'!$E:$E,\"CSE\",'Tableau de bord'!B:B,\"11\")","v":0},{"$f":"COUNTIFS('Tableau de bord'!$A:$A,\"2023\",'Tableau de bord'!$E:$E,\"VISITE CHANTIER\",'Tableau de bord'!B:B,\"11\")","v":0},{"$f":"COUNTIFS('Tableau de bord'!$A:$A,\"2023\",'Tableau de bord'!$E:$E,\"METROLOGIE\",'Tableau de bord'!B:B,\"11\")","v":0},{"$f":"COUNTIFS('Tableau de bord'!$A:$A,\"2023\",'Tableau de bord'!$E:$E,\"SENSIBILISATION\",'Tableau de bord'!B:B,\"11\")","v":0},{"$f":"COUNTIFS('Tableau de bord'!A:A,\"2023\",'Tableau de bord'!E:E,\"AUTRE\",'Tableau de bord'!B:B,\"11\")","v":0},{"$f":"COUNTIFS('Tableau de bord'!N:N,\"2023\",'Tableau de bord'!K:K,\"Terminé\",'Tableau de bord'!M:M,\"11\")","v":0},{"$f":"COUNTIFS('Tableau de bord'!N:N,\"2023\",'Tableau de bord'!$K:$K,\"Terminé\",'Tableau de bord'!M:M,\"11\",'Tableau de bord'!$E:$E,\"EP\")","v":0},{"$f":"COUNTIFS('Tableau de bord'!N:N,\"2023\",'Tableau de bord'!$K:$K,\"Terminé\",'Tableau de bord'!M:M,\"11\",'Tableau de bord'!$E:$E,\"FE\")","v":0},{"$f":"COUNTIFS('Tableau de bord'!N:N,\"2023\",'Tableau de bord'!$K:$K,\"Terminé\",'Tableau de bord'!M:M,\"11\",'Tableau de bord'!$E:$E,\"EVAL CHIMIQUE\")","v":0},{"$f":"COUNTIFS('Tableau de bord'!N:N,\"2023\",'Tableau de bord'!$K:$K,\"Terminé\",'Tableau de bord'!M:M,\"11\",'Tableau de bord'!$E:$E,\"CSE\")","v":0},{"$f":"COUNTIFS('Tableau de bord'!N:N,\"2023\",'Tableau de bord'!$K:$K,\"Terminé\",'Tableau de bord'!M:M,\"11\",'Tableau de bord'!$E:$E,\"VISITE CHANTIER\")","v":0},{"$f":"COUNTIFS('Tableau de bord'!N:N,\"2023\",'Tableau de bord'!$K:$K,\"Terminé\",'Tableau de bord'!M:M,\"11\",'Tableau de bord'!$E:$E,\"METROLOGIE\")","v":0},{"$f":"COUNTIFS('Tableau de bord'!N:N,\"2023\",'Tableau de bord'!$K:$K,\"Terminé\",'Tableau de bord'!M:M,\"11\",'Tableau de bord'!$E:$E,\"SENSIBILISATION\")","v":0},{"$f":"COUNTIFS('Tableau de bord'!N:N,\"2023\",'Tableau de bord'!$K:$K,\"Terminé\",'Tableau de bord'!M:M,\"11\",'Tableau de bord'!$E:$E,\"AUTRE\")","v":0}]
["Décembre",{"$f":"COUNTIFS('Tableau de bord'!A:A,\"2023\",'Tableau de bord'!B:B,\"12\")","v":0},{"$f":"COUNTIFS('Tableau de bord'!A:A,\"2023\",'Tableau de bord'!E:E,\"EP\",'Tableau de bord'!B:B,\"12\")","v":0},{"$f":"COUNTIFS('Tableau de bord'!$A:$A,\"2023\",'Tableau de bord'!$E:$E,\"FE\",'Tableau de bord'!B:B,\"12\")","v":0},{"$f":"COUNTIFS('Tableau de bord'!$A:$A,\"2023\",'Tableau de bord'!$E:$E,\"EVAL CHIMIQUE\",'Tableau de bord'!B:B,\"12\")","v":0},{"$f":"COUNTIFS('Tableau de bord'!$A:$A,\"2023\",'Tableau de bord'!$E:$E,\"CSE\",'Tableau de bord'!B:B,\"12\")","v":0},{"$f":"COUNTIFS('Tableau de bord'!$A:$A,\"2023\",'Tableau de bord'!$E:$E,\"VISITE CHANTIER\",'Tableau de bord'!B:B,\"12\")","v":0},{"$f":"COUNTIFS('Tableau de bord'!$A:$A,\"2023\",'Tableau de bord'!$E:$E,\"METROLOGIE\",'Tableau de bord'!B:B,\"12\")","v":0},{"$f":"COUNTIFS('Tableau de bord'!$A:$A,\"2023\",'Tableau de bord'!$E:$E,\"SENSIBILISATION\",'Tableau de bord'!B:B,\"12\")","v":0},{"$f":"COUNTIFS('Tableau de bord'!A:A,\"2023\",'Tableau de bord'!E:E,\"AUTRE\",'Tableau de bord'!B:B,\"12\")","v":0},{"$f":"COUNTIFS('Tableau de bord'!N:N,\"2023\",'Tableau de bord'!K:K,\"Terminé\",'Tableau de bord'!M:M,\"12\")","v":0},{"$f":"COUNTIFS('Tableau de bord'!N:N,\"2023\",'Tableau de bord'!$K:$K,\"Terminé\",'Tableau de bord'!M:M,\"12\",'Tableau de bord'!$E:$E,\"EP\")","v":0},{"$f":"COUNTIFS('Tableau de bord'!N:N,\"2023\",'Tableau de bord'!$K:$K,\"Terminé\",'Tableau de bord'!M:M,\"12\",'Tableau de bord'!$E:$E,\"FE\")","v":0},{"$f":"COUNTIFS('Tableau de bord'!N:N,\"2023\",'Tableau de bord'!$K:$K,\"Terminé\",'Tableau de bord'!M:M,\"12\",'Tableau de bord'!$E:$E,\"EVAL CHIMIQUE\")","v":0},{"$f":"COUNTIFS('Tableau de bord'!N:N,\"2023\",'Tableau de bord'!$K:$K,\"Terminé\",'Tableau de bord'!M:M,\"12\",'Tableau de bord'!$E:$E,\"CSE\")","v":0},{"$f":"COUNTIFS('Tableau de bord'!N:N,\"2023\",'Tableau de bord'!$K:$K,\"Terminé\",'Tableau de bord'!M:M,\"12\",'Tableau de bord'!$E:$E,\"VISITE CHANTIER\")","v":0},{"$f":"COUNTIFS('Tableau de bord'!N:N,\"2023\",'Tableau de bord'!$K:$K,\"Terminé\",'Tableau de bord'!M:M,\"12\",'Tableau de bord'!$E:$E,\"METROLOGIE\")","v":0},{"$f":"COUNTIFS('Tableau de bord'!N:N,\"2023\",'Tableau de bord'!$K:$K,\"Terminé\",'Tableau de bord'!M:M,\"12\",'Tableau de bord'!$E:$E,\"SENSIBILISATION\")","v":0},{"$f":"COUNTIFS('Tableau de bord'!N:N,\"2023\",'Tableau de bord'!$K:$K,\"Terminé\",'Tableau de bord'!M:M,\"12\",'Tableau de bord'!$E:$E,\"AUTRE\")","v":0}]
["TOTAL",{"$f":"SUM(B3:B14)","v":0},{"$f":"SUM(C3:C14)","v":0},0,0,0,0,0,0,0,0,0,0,0,0,0,0,0,0]
[]
[]
[]
["Nombre d'action demandées/finalisées  par médecin"]
["Médecin","Nb d'actions demandées","EP","FE","EVAL CHIMIQUE","CSE","VISITE CHANTIER","METROLOGIE","SENSIBILISATION","AUTRE","Nb d'actions finalisées","EP","FE","EVAL CHIMIQUE","CSE","VISITE CHANTIER","METROLOGIE","SENSIBILISATION","AUTRE","ATTENTE VALIDATION"]
["Dr DEPEZEVILLE",{"$f":"COUNTIFS('Tableau de bord'!A:A,\"2023\",'Tableau de bord'!G:G,\"Dr. DEPEZEVILLE\")","v":0},{"$f":"COUNTIFS('Tableau de bord'!A:A,\"2023\",'Tableau de bord'!$G:$G,\"Dr. DEPEZEVILLE\",'Tableau de bord'!$E:$E,\"EP\")","v":0},{"$f":"COUNTIFS('Tableau de bord'!$A:$A,\"2023\",'Tableau de bord'!$G:$G,\"Dr. DEPEZEVILLE\",'Tableau de bord'!$E:$E,\"FE\")","v":0},{"$f":"COUNTIFS('Tableau de bord'!$A:$A,\"2023\",'Tableau de bord'!$G:$G,\"Dr. DEPEZEVILLE\",'Tableau de bord'!$E:$E,\"EVAL CHIMIQUE\")","v":0},{"$f":"COUNTIFS('Tableau de bord'!$A:$A,\"2023\",'Tableau de bord'!$G:$G,\"Dr. DEPEZEVILLE\",'Tableau de bord'!$E:$E,\"CSE\")","v":0},{"$f":"COUNTIFS('Tableau de bord'!$A:$A,\"2023\",'Tableau de bord'!$G:$G,\"Dr. DEPEZEVILLE\",'Tableau de bord'!$E:$E,\"VISITE CHANTIER\")","v":0},{"$f":"COUNTIFS('Tableau de bord'!$A:$A,\"2023\",'Tableau de bord'!$G:$G,\"Dr. DEPEZEVILLE\",'Tableau de bord'!$E:$E,\"METROLOGIE\")","v":0},{"$f":"COUNTIFS('Tableau de bord'!$A:$A,\"2023\",'Tableau de bord'!$G:$G,\"Dr. DEPEZEVILLE\",'Tableau de bord'!$E:$E,\"SENSIBILISATION\")","v":0},{"$f":"COUNTIFS('Tableau de bord'!A:A,\"2023\",'Tableau de bord'!$G:$G,\"Dr. DEPEZEVILLE\",'Tableau de bord'!$E:$E,\"AUTRE\")","v":0},{"$f":"COUNTIFS('Tableau de bord'!N:N,\"2023\",'Tableau de bord'!$G:$G,\"Dr. DEPEZEVILLE\",'Tableau de bord'!$K:$K,\"Terminé\")","v":0},{"$f":"COUNTIFS('Tableau de bord'!N:N,\"2023\",'Tableau de bord'!$G:$G,\"Dr. DEPEZEVILLE\",'Tableau de bord'!$E:$E,\"EP\",'Tableau de bord'!$K:$K,\"Terminé\")","v":0},{"$f":"COUNTIFS('Tableau de bord'!N:N,\"2023\",'Tableau de bord'!$G:$G,\"Dr. DEPEZEVILLE\",'Tableau de bord'!$E:$E,\"FE\",'Tableau de bord'!$K:$K,\"Terminé\")","v":0},{"$f":"COUNTIFS('Tableau de bord'!N:N,\"2023\",'Tableau de bord'!$G:$G,\"Dr. DEPEZEVILLE\",'Tableau de bord'!$E:$E,\"EVAL CHIMIQUE\",'Tableau de bord'!$K:$K,\"Terminé\")","v":0},{"$f":"COUNTIFS('Tableau de bord'!N:N,\"2023\",'Tableau de bord'!$G:$G,\"Dr. DEPEZEVILLE\",'Tableau de bord'!$E:$E,\"CSE\",'Tableau de bord'!$K:$K,\"Terminé\")","v":0},{"$f":"COUNTIFS('Tableau de bord'!N:N,\"2023\",'Tableau de bord'!$G:$G,\"Dr. DEPEZEVILLE\",'Tableau de bord'!$E:$E,\"VISITE CHANTIER\",'Tableau de bord'!$K:$K,\"Terminé\")","v":0},{"$f":"COUNTIFS('Tableau de bord'!N:N,\"2023\",'Tableau de bord'!$G:$G,\"Dr. DEPEZEVILLE\",'Tableau de bord'!$E:$E,\"METROLOGIE\",'Tableau de bord'!$K:$K,\"Terminé\")","v":0},{"$f":"COUNTIFS('Tableau de bord'!N:N,\"2023\",'Tableau de bord'!$G:$G,\"Dr. DEPEZEVILLE\",'Tableau de bord'!$E:$E,\"SENSIBILISATION\",'Tableau de bord'!$K:$K,\"Terminé\")","v":0},{"$f":"COUNTIFS('Tableau de bord'!N:N,\"2023\",'Tableau de bord'!$G:$G,\"Dr. DEPEZEVILLE\",'Tableau de bord'!$E:$E,\"AUTRE\",'Tableau de bord'!$K:$K,\"Terminé\")","v":0},{"$f":"COUNTIFS('Tableau de bord'!$G:$G,\"Dr. DEPEZEVILLE\",'Tableau de bord'!$H:$H,\"Vanessa\",'Tableau de bord'!$K:$K,\"Terminé\",'Tableau de bord'!O:O,\"\")","v":2}]
["Dr FAVARETTO",{"$f":"COUNTIFS('Tableau de bord'!A:A,\"2023\",'Tableau de bord'!G:G,\"Dr. FAVARETTO\")","v":0},{"$f":"COUNTIFS('Tableau de bord'!A:A,\"2023\",'Tableau de bord'!$G:$G,\"Dr. FAVARETTO\",'Tableau de bord'!$E:$E,\"EP\")","v":0},{"$f":"COUNTIFS('Tableau de bord'!$A:$A,\"2023\",'Tableau de bord'!$G:$G,\"Dr. FAVARETTO\",'Tableau de bord'!$E:$E,\"FE\")","v":0},{"$f":"COUNTIFS('Tableau de bord'!$A:$A,\"2023\",'Tableau de bord'!$G:$G,\"Dr. FAVARETTO\",'Tableau de bord'!$E:$E,\"EVAL CHIMIQUE\")","v":0},{"$f":"COUNTIFS('Tableau de bord'!$A:$A,\"2023\",'Tableau de bord'!$G:$G,\"Dr. FAVARETTO\",'Tableau de bord'!$E:$E,\"CSE\")","v":0},{"$f":"COUNTIFS('Tableau de bord'!$A:$A,\"2023\",'Tableau de bord'!$G:$G,\"Dr. FAVARETTO\",'Tableau de bord'!$E:$E,\"VISITE CHANTIER\")","v":0},{"$f":"COUNTIFS('Tableau de bord'!$A:$A,\"2023\",'Tableau de bord'!$G:$G,\"Dr. FAVARETTO\",'Tableau de bord'!$E:$E,\"METROLOGIE\")","v":0},{"$f":"COUNTIFS('Tableau de bord'!$A:$A,\"2023\",'Tableau de bord'!$G:$G,\"Dr. FAVARETTO\",'Tableau de bord'!$E:$E,\"SENSIBILISATION\")","v":0},{"$f":"COUNTIFS('Tableau de bord'!A:A,\"2023\",'Tableau de bord'!$G:$G,\"Dr. FAVARETTO\",'Tableau de bord'!$E:$E,\"AUTRE\")","v":0},{"$f":"COUNTIFS('Tableau de bord'!N:N,\"2023\",'Tableau de bord'!$G:$G,\"Dr. FAVARETTO\",'Tableau de bord'!$K:$K,\"Terminé\")","v":0},{"$f":"COUNTIFS('Tableau de bord'!N:N,\"2023\",'Tableau de bord'!$G:$G,\"Dr. FAVARETTO\",'Tableau de bord'!$E:$E,\"EP\",'Tableau de bord'!$K:$K,\"Terminé\")","v":0},{"$f":"COUNTIFS('Tableau de bord'!N:N,\"2023\",'Tableau de bord'!$G:$G,\"Dr. FAVARETTO\",'Tableau de bord'!$E:$E,\"FE\",'Tableau de bord'!$K:$K,\"Terminé\")","v":0},{"$f":"COUNTIFS('Tableau de bord'!N:N,\"2023\",'Tableau de bord'!$G:$G,\"Dr. FAVARETTO\",'Tableau de bord'!$E:$E,\"EVAL CHIMIQUE\",'Tableau de bord'!$K:$K,\"Terminé\")","v":0},{"$f":"COUNTIFS('Tableau de bord'!N:N,\"2023\",'Tableau de bord'!$G:$G,\"Dr. FAVARETTO\",'Tableau de bord'!$E:$E,\"CSE\",'Tableau de bord'!$K:$K,\"Terminé\")","v":0},{"$f":"COUNTIFS('Tableau de bord'!N:N,\"2023\",'Tableau de bord'!$G:$G,\"Dr. FAVARETTO\",'Tableau de bord'!$E:$E,\"VISITE CHANTIER\",'Tableau de bord'!$K:$K,\"Terminé\")","v":0},{"$f":"COUNTIFS('Tableau de bord'!N:N,\"2023\",'Tableau de bord'!$G:$G,\"Dr. FAVARETTO\",'Tableau de bord'!$E:$E,\"METROLOGIE\",'Tableau de bord'!$K:$K,\"Terminé\")","v":0},{"$f":"COUNTIFS('Tableau de bord'!N:N,\"2023\",'Tableau de bord'!$G:$G,\"Dr. FAVARETTO\",'Tableau de bord'!$E:$E,\"SENSIBILISATION\",'Tableau de bord'!$K:$K,\"Terminé\")","v":0},{"$f":"COUNTIFS('Tableau de bord'!N:N,\"2023\",'Tableau de bord'!$G:$G,\"Dr. FAVARETTO\",'Tableau de bord'!$E:$E,\"AUTRE\",'Tableau de bord'!$K:$K,\"Terminé\")","v":0},{"$f":"COUNTIFS('Tableau de bord'!$G:$G,\"Dr. FAVARETTO\",'Tableau de bord'!$H:$H,\"Vanessa\",'Tableau de bord'!$K:$K,\"Terminé\",'Tableau de bord'!O:O,\"\")","v":0}]
["Dr HAPPEY",{"$f":"COUNTIFS('Tableau de bord'!A:A,\"2023\",'Tableau de bord'!G:G,\"Dr. HAPPEY\")","v":0},{"$f":"COUNTIFS('Tableau de bord'!A:A,\"2023\",'Tableau de bord'!$G:$G,\"Dr. HAPPEY\",'Tableau de bord'!$E:$E,\"EP\")","v":0},{"$f":"COUNTIFS('Tableau de bord'!$A:$A,\"2023\",'Tableau de bord'!$G:$G,\"Dr. HAPPEY\",'Tableau de bord'!$E:$E,\"FE\")","v":0},{"$f":"COUNTIFS('Tableau de bord'!$A:$A,\"2023\",'Tableau de bord'!$G:$G,\"Dr. HAPPEY\",'Tableau de bord'!$E:$E,\"EVAL CHIMIQUE\")","v":0},{"$f":"COUNTIFS('Tableau de bord'!$A:$A,\"2023\",'Tableau de bord'!$G:$G,\"Dr. HAPPEY\",'Tableau de bord'!$E:$E,\"CSE\")","v":0},{"$f":"COUNTIFS('Tableau de bord'!$A:$A,\"2023\",'Tableau de bord'!$G:$G,\"Dr. HAPPEY\",'Tableau de bord'!$E:$E,\"VISITE CHANTIER\")","v":0},{"$f":"COUNTIFS('Tableau de bord'!$A:$A,\"2023\",'Tableau de bord'!$G:$G,\"Dr. HAPPEY\",'Tableau de bord'!$E:$E,\"METROLOGIE\")","v":0},{"$f":"COUNTIFS('Tableau de bord'!$A:$A,\"2023\",'Tableau de bord'!$G:$G,\"Dr. HAPPEY\",'Tableau de bord'!$E:$E,\"SENSIBILISATION\")","v":0},{"$f":"COUNTIFS('Tableau de bord'!A:A,\"2023\",'Tableau de bord'!$G:$G,\"Dr. HAPPEY\",'Tableau de bord'!$E:$E,\"AUTRE\")","v":0},{"$f":"COUNTIFS('Tableau de bord'!N:N,\"2023\",'Tableau de bord'!$G:$G,\"Dr. HAPPEY\",'Tableau de bord'!$K:$K,\"Terminé\")","v":0},{"$f":"COUNTIFS('Tableau de bord'!N:N,\"2023\",'Tableau de bord'!$G:$G,\"Dr. HAPPEY\",'Tableau de bord'!$E:$E,\"EP\",'Tableau de bord'!$K:$K,\"Terminé\")","v":0},{"$f":"COUNTIFS('Tableau de bord'!N:N,\"2023\",'Tableau de bord'!$G:$G,\"Dr. HAPPEY\",'Tableau de bord'!$E:$E,\"FE\",'Tableau de bord'!$K:$K,\"Terminé\")","v":0},{"$f":"COUNTIFS('Tableau de bord'!N:N,\"2023\",'Tableau de bord'!$G:$G,\"Dr. HAPPEY\",'Tableau de bord'!$E:$E,\"EVAL CHIMIQUE\",'Tableau de bord'!$K:$K,\"Terminé\")","v":0},{"$f":"COUNTIFS('Tableau de bord'!N:N,\"2023\",'Tableau de bord'!$G:$G,\"Dr. HAPPEY\",'Tableau de bord'!$E:$E,\"CSE\",'Tableau de bord'!$K:$K,\"Terminé\")","v":0},{"$f":"COUNTIFS('Tableau de bord'!N:N,\"2023\",'Tableau de bord'!$G:$G,\"Dr. HAPPEY\",'Tableau de bord'!$E:$E,\"VISITE CHANTIER\",'Tableau de bord'!$K:$K,\"Terminé\")","v":0},{"$f":"COUNTIFS('Tableau de bord'!N:N,\"2023\",'Tableau de bord'!$G:$G,\"Dr. HAPPEY\",'Tableau de bord'!$E:$E,\"METROLOGIE\",'Tableau de bord'!$K:$K,\"Terminé\")","v":0},{"$f":"COUNTIFS('Tableau de bord'!N:N,\"2023\",'Tableau de bord'!$G:$G,\"Dr. HAPPEY\",'Tableau de bord'!$E:$E,\"SENSIBILISATION,\",'Tableau de bord'!$K:$K,\"Terminé\")","v":0},{"$f":"COUNTIFS('Tableau de bord'!N:N,\"2023\",'Tableau de bord'!$G:$G,\"Dr. HAPPEY\",'Tableau de bord'!$E:$E,\"AUTRE\",'Tableau de bord'!$K:$K,\"Terminé\")","v":0},{"$f":"COUNTIFS('Tableau de bord'!$G:$G,\"Dr. HAPPEY\",'Tableau de bord'!$H:$H,\"Vanessa\",'Tableau de bord'!$K:$K,\"Terminé\",'Tableau de bord'!O:O,\"\")","v":3}]
["Dr JEANNE",{"$f":"COUNTIFS('Tableau de bord'!A:A,\"2023\",'Tableau de bord'!G:G,\"Dr. JEANNE\")","v":0},{"$f":"COUNTIFS('Tableau de bord'!A:A,\"2023\",'Tableau de bord'!$G:$G,\"Dr. JEANNE\",'Tableau de bord'!$E:$E,\"EP\")","v":0},{"$f":"COUNTIFS('Tableau de bord'!$A:$A,\"2023\",'Tableau de bord'!$G:$G,\"Dr. JEANNE\",'Tableau de bord'!$E:$E,\"FE\")","v":0},{"$f":"COUNTIFS('Tableau de bord'!$A:$A,\"2023\",'Tableau de bord'!$G:$G,\"Dr. JEANNE\",'Tableau de bord'!$E:$E,\"EVAL CHIMIQUE\")","v":0},{"$f":"COUNTIFS('Tableau de bord'!$A:$A,\"2023\",'Tableau de bord'!$G:$G,\"Dr. JEANNE\",'Tableau de bord'!$E:$E,\"CSE\")","v":0},{"$f":"COUNTIFS('Tableau de bord'!$A:$A,\"2023\",'Tableau de bord'!$G:$G,\"Dr. JEANNE\",'Tableau de bord'!$E:$E,\"VISITE CHANTIER\")","v":0},{"$f":"COUNTIFS('Tableau de bord'!$A:$A,\"2023\",'Tableau de bord'!$G:$G,\"Dr. JEANNE\",'Tableau de bord'!$E:$E,\"METROLOGIE\")","v":0},{"$f":"COUNTIFS('Tableau de bord'!$A:$A,\"2023\",'Tableau de bord'!$G:$G,\"Dr. JEANNE\",'Tableau de bord'!$E:$E,\"SENSIBILISATION\")","v":0},{"$f":"COUNTIFS('Tableau de bord'!A:A,\"2023\",'Tableau de bord'!$G:$G,\"Dr. JEANNE\",'Tableau de bord'!$E:$E,\"AUTRE\")","v":0},{"$f":"COUNTIFS('Tableau de bord'!N:N,\"2023\",'Tableau de bord'!$G:$G,\"Dr. JEANNE\",'Tableau de bord'!$K:$K,\"Terminé\")","v":0},{"$f":"COUNTIFS('Tableau de bord'!N:N,\"2023\",'Tableau de bord'!$G:$G,\"Dr. JEANNE\",'Tableau de bord'!$E:$E,\"EP\",'Tableau de bord'!$K:$K,\"Terminé\")","v":0},{"$f":"COUNTIFS('Tableau de bord'!N:N,\"2023\",'Tableau de bord'!$G:$G,\"Dr. JEANNE\",'Tableau de bord'!$E:$E,\"FE\",'Tableau de bord'!$K:$K,\"Terminé\")","v":0},{"$f":"COUNTIFS('Tableau de bord'!N:N,\"2023\",'Tableau de bord'!$G:$G,\"Dr. JEANNE\",'Tableau de bord'!$E:$E,\"EVAL CHIMIQUE\",'Tableau de bord'!$K:$K,\"Terminé\")","v":0},{"$f":"COUNTIFS('Tableau de bord'!N:N,\"2023\",'Tableau de bord'!$G:$G,\"Dr. JEANNE\",'Tableau de bord'!$E:$E,\"CSE\",'Tableau de bord'!$K:$K,\"Terminé\")","v":0},{"$f":"COUNTIFS('Tableau de bord'!N:N,\"2023\",'Tableau de bord'!$G:$G,\"Dr. JEANNE\",'Tableau de bord'!$E:$E,\"VISITE CHANTIER\",'Tableau de bord'!$K:$K,\"Terminé\")","v":0},{"$f":"COUNTIFS('Tableau de bord'!N:N,\"2023\",'Tableau de bord'!$G:$G,\"Dr. JEANNE\",'Tableau de bord'!$E:$E,\"METROLOGIE\",'Tableau de bord'!$K:$K,\"Terminé\")","v":0},{"$f":"COUNTIFS('Tableau de bord'!N:N,\"2023\",'Tableau de bord'!$G:$G,\"Dr. JEANNE\",'Tableau de bord'!$E:$E,\"SENSIBILISATION\",'Tableau de bord'!$K:$K,\"Terminé\")","v":0},{"$f":"COUNTIFS('Tableau de bord'!N:N,\"2023\",'Tableau de bord'!$G:$G,\"Dr. JEANNE\",'Tableau de bord'!$E:$E,\"AUTRE\",'Tableau de bord'!$K:$K,\"Terminé\")","v":0},{"$f":"COUNTIFS('Tableau de bord'!$G:$G,\"Dr. JEANNE\",'Tableau de bord'!$H:$H,\"Vanessa\",'Tableau de bord'!$K:$K,\"Terminé\",'Tableau de bord'!O:O,\"\")","v":0}]
["Dr MOULIN",{"$f":"COUNTIFS('Tableau de bord'!A:A,\"2023\",'Tableau de bord'!G:G,\"Dr. MOULIN\")","v":0},{"$f":"COUNTIFS('Tableau de bord'!A:A,\"2023\",'Tableau de bord'!$G:$G,\"Dr. MOULIN\",'Tableau de bord'!$E:$E,\"EP\")","v":0},{"$f":"COUNTIFS('Tableau de bord'!$A:$A,\"2023\",'Tableau de bord'!$G:$G,\"Dr. MOULIN\",'Tableau de bord'!$E:$E,\"FE\")","v":0},{"$f":"COUNTIFS('Tableau de bord'!$A:$A,\"2023\",'Tableau de bord'!$G:$G,\"Dr. MOULIN\",'Tableau de bord'!$E:$E,\"EVAL CHIMIQUE\")","v":0},{"$f":"COUNTIFS('Tableau de bord'!$A:$A,\"2023\",'Tableau de bord'!$G:$G,\"Dr. MOULIN\",'Tableau de bord'!$E:$E,\"CSE\")","v":0},{"$f":"COUNTIFS('Tableau de bord'!$A:$A,\"2023\",'Tableau de bord'!$G:$G,\"Dr. MOULIN\",'Tableau de bord'!$E:$E,\"VISITE CHANTIER\")","v":0},{"$f":"COUNTIFS('Tableau de bord'!$A:$A,\"2023\",'Tableau de bord'!$G:$G,\"Dr. MOULIN\",'Tableau de bord'!$E:$E,\"METROLOGIE\")","v":0},{"$f":"COUNTIFS('Tableau de bord'!$A:$A,\"2023\",'Tableau de bord'!$G:$G,\"Dr. MOULIN\",'Tableau de bord'!$E:$E,\"SENSIBILISATION\")","v":0},{"$f":"COUNTIFS('Tableau de bord'!A:A,\"2023\",'Tableau de bord'!$G:$G,\"Dr. MOULIN\",'Tableau de bord'!$E:$E,\"AUTRE\")","v":0},{"$f":"COUNTIFS('Tableau de bord'!N:N,\"2023\",'Tableau de bord'!$G:$G,\"Dr. MOULIN\",'Tableau de bord'!$K:$K,\"Terminé\")","v":0},{"$f":"COUNTIFS('Tableau de bord'!N:N,\"2023\",'Tableau de bord'!$G:$G,\"Dr. MOULIN\",'Tableau de bord'!$E:$E,\"EP\",'Tableau de bord'!$K:$K,\"Terminé\")","v":0},{"$f":"COUNTIFS('Tableau de bord'!N:N,\"2023\",'Tableau de bord'!$G:$G,\"Dr. MOULIN\",'Tableau de bord'!$E:$E,\"FE\",'Tableau de bord'!$K:$K,\"Terminé\")","v":0},{"$f":"COUNTIFS('Tableau de bord'!N:N,\"2023\",'Tableau de bord'!$G:$G,\"Dr. MOULIN\",'Tableau de bord'!$E:$E,\"EVAL CHIMIQUE\",'Tableau de bord'!$K:$K,\"Terminé\")","v":0},{"$f":"COUNTIFS('Tableau de bord'!N:N,\"2023\",'Tableau de bord'!$G:$G,\"Dr. MOULIN\",'Tableau de bord'!$E:$E,\"CSE\",'Tableau de bord'!$K:$K,\"Terminé\")","v":0},{"$f":"COUNTIFS('Tableau de bord'!N:N,\"20223\",'Tableau de bord'!$G:$G,\"Dr. MOULIN\",'Tableau de bord'!$E:$E,\"VISITE CHANTIER\",'Tableau de bord'!$K:$K,\"Terminé\")","v":0},{"$f":"COUNTIFS('Tableau de bord'!N:N,\"2023\",'Tableau de bord'!$G:$G,\"Dr. MOULIN\",'Tableau de bord'!$E:$E,\"METROLOGIE\",'Tableau de bord'!$K:$K,\"Terminé\")","v":0},{"$f":"COUNTIFS('Tableau de bord'!N:N,\"2023\",'Tableau de bord'!$G:$G,\"Dr. MOULIN\",'Tableau de bord'!$E:$E,\"SENSIBILISATION\",'Tableau de bord'!$K:$K,\"Terminé\")","v":0},{"$f":"COUNTIFS('Tableau de bord'!N:N,\"2023\",'Tableau de bord'!$G:$G,\"Dr. MOULIN\",'Tableau de bord'!$E:$E,\"AUTRE\",'Tableau de bord'!$K:$K,\"Terminé\")","v":0},{"$f":"COUNTIFS('Tableau de bord'!$G:$G,\"Dr. MOULIN\",'Tableau de bord'!$H:$H,\"Vanessa\",'Tableau de bord'!$K:$K,\"Terminé\",'Tableau de bord'!O:O,\"\")","v":1}]
["Dr NEE",{"$f":"COUNTIFS('Tableau de bord'!A:A,\"2023\",'Tableau de bord'!G:G,\"Dr. NEE\")","v":0},{"$f":"COUNTIFS('Tableau de bord'!A:A,\"2023\",'Tableau de bord'!$G:$G,\"Dr. NEE\",'Tableau de bord'!$E:$E,\"EP\")","v":0},{"$f":"COUNTIFS('Tableau de bord'!$A:$A,\"2023\",'Tableau de bord'!$G:$G,\"Dr. NEE\",'Tableau de bord'!$E:$E,\"FE\")","v":0},{"$f":"COUNTIFS('Tableau de bord'!$A:$A,\"2023\",'Tableau de bord'!$G:$G,\"Dr. NEE\",'Tableau de bord'!$E:$E,\"EVAL CHIMIQUE\")","v":0},{"$f":"COUNTIFS('Tableau de bord'!$A:$A,\"2023\",'Tableau de bord'!$G:$G,\"Dr. NEE\",'Tableau de bord'!$E:$E,\"CSE\")","v":0},{"$f":"COUNTIFS('Tableau de bord'!$A:$A,\"2023\",'Tableau de bord'!$G:$G,\"Dr. NEE\",'Tableau de bord'!$E:$E,\"VISITE CHANTIER\")","v":0},{"$f":"COUNTIFS('Tableau de bord'!$A:$A,\"2023\",'Tableau de bord'!$G:$G,\"Dr. NEE\",'Tableau de bord'!$E:$E,\"METROLOGIE\")","v":0},{"$f":"COUNTIFS('Tableau de bord'!$A:$A,\"2023\",'Tableau de bord'!$G:$G,\"Dr. NEE\",'Tableau de bord'!$E:$E,\"SENSIBILISATION\")","v":0},{"$f":"COUNTIFS('Tableau de bord'!A:A,\"2023\",'Tableau de bord'!$G:$G,\"Dr. NEE\",'Tableau de bord'!$E:$E,\"AUTRE\")","v":0},{"$f":"COUNTIFS('Tableau de bord'!N:N,\"2023\",'Tableau de bord'!$G:$G,\"Dr. NEE\",'Tableau de bord'!$K:$K,\"Terminé\")","v":0},{"$f":"COUNTIFS('Tableau de bord'!N:N,\"2023\",'Tableau de bord'!$G:$G,\"Dr. NEE\",'Tableau de bord'!$E:$E,\"EP\",'Tableau de bord'!$K:$K,\"Terminé\")","v":0},{"$f":"COUNTIFS('Tableau de bord'!N:N,\"2023\",'Tableau de bord'!$G:$G,\"Dr. NEE\",'Tableau de bord'!$E:$E,\"FE\",'Tableau de bord'!$K:$K,\"Terminé\")","v":0},{"$f":"COUNTIFS('Tableau de bord'!N:N,\"2023\",'Tableau de bord'!$G:$G,\"Dr. NEE\",'Tableau de bord'!$E:$E,\"EVAL CHIMIQUE\",'Tableau de bord'!$K:$K,\"Terminé\")","v":0},{"$f":"COUNTIFS('Tableau de bord'!N:N,\"2023\",'Tableau de bord'!$G:$G,\"Dr. NEE\",'Tableau de bord'!$E:$E,\"CSE\",'Tableau de bord'!$K:$K,\"Terminé\")","v":0},{"$f":"COUNTIFS('Tableau de bord'!N:N,\"2023\",'Tableau de bord'!$G:$G,\"Dr. NEE\",'Tableau de bord'!$E:$E,\"VISITE CHANTIER\",'Tableau de bord'!$K:$K,\"Terminé\")","v":0},{"$f":"COUNTIFS('Tableau de bord'!N:N,\"2023\",'Tableau de bord'!$G:$G,\"Dr. NEE\",'Tableau de bord'!$E:$E,\"METROLOGIE\",'Tableau de bord'!$K:$K,\"Terminé\")","v":0},{"$f":"COUNTIFS('Tableau de bord'!N:N,\"2023\",'Tableau de bord'!$G:$G,\"Dr. NEE\",'Tableau de bord'!$E:$E,\"SENSIBILISATION\",'Tableau de bord'!$K:$K,\"Terminé\")","v":0},{"$f":"COUNTIFS('Tableau de bord'!N:N,\"2023\",'Tableau de bord'!$G:$G,\"Dr. NEE\",'Tableau de bord'!$E:$E,\"AUTRE\",'Tableau de bord'!$K:$K,\"Terminé\")","v":0},{"$f":"COUNTIFS('Tableau de bord'!$G:$G,\"Dr. NEE\",'Tableau de bord'!$H:$H,\"Vanessa\",'Tableau de bord'!$K:$K,\"Terminé\",'Tableau de bord'!O:O,\"\")","v":1}]
["Dr SABATHIER",{"$f":"COUNTIFS('Tableau de bord'!A:A,\"2023\",'Tableau de bord'!G:G,\"Dr. SABATHIER\")","v":0},{"$f":"COUNTIFS('Tableau de bord'!A:A,\"2023\",'Tableau de bord'!$G:$G,\"Dr. SABATHIER\",'Tableau de bord'!$E:$E,\"EP\")","v":0},{"$f":"COUNTIFS('Tableau de bord'!$A:$A,\"2023\",'Tableau de bord'!$G:$G,\"Dr. SABATHIER\",'Tableau de bord'!$E:$E,\"FE\")","v":0},{"$f":"COUNTIFS('Tableau de bord'!$A:$A,\"2023\",'Tableau de bord'!$G:$G,\"Dr. SABATHIER\",'Tableau de bord'!$E:$E,\"EVAL CHIMIQUE\")","v":0},{"$f":"COUNTIFS('Tableau de bord'!$A:$A,\"2023\",'Tableau de bord'!$G:$G,\"Dr. SABATHIER\",'Tableau de bord'!$E:$E,\"CSE\")","v":0},{"$f":"COUNTIFS('Tableau de bord'!$A:$A,\"2023\",'Tableau de bord'!$G:$G,\"Dr. SABATHIER\",'Tableau de bord'!$E:$E,\"VISITE CHANTIER\")","v":0},{"$f":"COUNTIFS('Tableau de bord'!$A:$A,\"2023\",'Tableau de bord'!$G:$G,\"Dr. SABATHIER\",'Tableau de bord'!$E:$E,\"METROLOGIE\")","v":0},{"$f":"COUNTIFS('Tableau de bord'!$A:$A,\"2023\",'Tableau de bord'!$G:$G,\"Dr. SABATHIER\",'Tableau de bord'!$E:$E,\"SENSIBILISATION\")","v":0},{"$f":"COUNTIFS('Tableau de bord'!A:A,\"2023\",'Tableau de bord'!$G:$G,\"Dr. SABATHIER\",'Tableau de bord'!$E:$E,\"AUTRE\")","v":0},{"$f":"COUNTIFS('Tableau de bord'!N:N,\"2023\",'Tableau de bord'!$G:$G,\"Dr. SABATHIER\",'Tableau de bord'!$K:$K,\"Terminé\")","v":0},{"$f":"COUNTIFS('Tableau de bord'!N:N,\"2023\",'Tableau de bord'!$G:$G,\"Dr. SABATHIER\",'Tableau de bord'!$E:$E,\"EP\",'Tableau de bord'!$K:$K,\"Terminé\")","v":0},{"$f":"COUNTIFS('Tableau de bord'!N:N,\"2023\",'Tableau de bord'!$G:$G,\"Dr. SABATHIER\",'Tableau de bord'!$E:$E,\"FE\",'Tableau de bord'!$K:$K,\"Terminé\")","v":0},{"$f":"COUNTIFS('Tableau de bord'!N:N,\"2023\",'Tableau de bord'!$G:$G,\"Dr. SABATHIER\",'Tableau de bord'!$E:$E,\"EVAL CHIMIQUE\",'Tableau de bord'!$K:$K,\"Terminé\")","v":0},{"$f":"COUNTIFS('Tableau de bord'!N:N,\"2023\",'Tableau de bord'!$G:$G,\"Dr. SABATHIER\",'Tableau de bord'!$E:$E,\"CSE\",'Tableau de bord'!$K:$K,\"Terminé\")","v":0},{"$f":"COUNTIFS('Tableau de bord'!N:N,\"2023\",'Tableau de bord'!$G:$G,\"Dr. SABATHIER\",'Tableau de bord'!$E:$E,\"VISITE CHANTIER\",'Tableau de bord'!$K:$K,\"Terminé\")","v":0},{"$f":"COUNTIFS('Tableau de bord'!N:N,\"2023\",'Tableau de bord'!$G:$G,\"Dr. SABATHIER\",'Tableau de bord'!$E:$E,\"METROLOGIE\",'Tableau de bord'!$K:$K,\"Terminé\")","v":0},{"$f":"COUNTIFS('Tableau de bord'!N:N,\"2023\",'Tableau de bord'!$G:$G,\"Dr. SABATHIER\",'Tableau de bord'!$E:$E,\"SENSIBILISATION\",'Tableau de bord'!$K:$K,\"Terminé\")","v":0},{"$f":"COUNTIFS('Tableau de bord'!N:N,\"2023\",'Tableau de bord'!$G:$G,\"Dr. SABATHIER\",'Tableau de bord'!$E:$E,\"AUTRE\",'Tableau de bord'!$K:$K,\"Terminé\")","v":0},{"$f":"COUNTIFS('Tableau de bord'!$G:$G,\"Dr. SABATHIER\",'Tableau de bord'!$H:$H,\"Vanessa\",'Tableau de bord'!$K:$K,\"Terminé\",'Tableau de bord'!O:O,\"\")","v":0}]
["TOTAL",{"$f":"SUM(B21:B27)","v":0},0,{"$f":"SUM(D21:D27)","v":0},0,0,0,0,0,{"$f":"SUM(J21:J27)","v":0},0,0,0,0,0,0,0,0,0,7]